Workbook

Sheet MainDisplay
E1: =IF(N32=$N$12,R12,IF(N32=$N$14,R14,IF(N32=$N$16,R16,IF(N32=$N$18,R18,IF(N32=$N$20,R20,IF(N32=$N$22,R22,IF(N32=$N$24,R24,IF(N32=$N$26,R26,IF(N32=$N$28,R28,IF(N32=$N$30,R30)))))))))) -> GCE | S1: =Data!C2 -> DD | U1: =Data!D2 -> DSX | V1: =Data!E2 -> SF6 | X1: =Data!F2 -> PIL | Y1: =Data!G2 -> CLE | AA1: =Data!H2 -> HOE | AB1: =Data!I2 -> RBE | AD1: =Data!J2 -> NGE | AE1: =Data!K2 -> TYA | AG1: =Data!L2 -> PLE
B2: 15 | C2: 15 | I2: CQG Correlation Dashboard | AE2: =RTD("cqg.rtd", ,"SystemInfo", "Linetime")+Symbols!L36 -> 43525.59898
C3: 65
A4: =INDIRECT("Data!H"&$B$2) -> 0 | B4: =INDIRECT("Data!J"&$B$2) -> 0 | C4: =INDIRECT("Data!K"&$B$2) -> 0 | D4: =INDIRECT("Data!L"&$B$2) -> 0 | E4: =RTD("cqg.rtd", ,"ContractData",Symbols!B5, "LongDescription",, "T") -> E-Mini S&P 500, Mar 19 | H4: =RTD("cqg.rtd", ,"ContractData",Symbols!B6, "LongDescription",, "T") -> E-mini NASDAQ-100, Mar 19 | K4: =RTD("cqg.rtd", ,"ContractData",Symbols!B7, "LongDescription",, "T") -> E-mini MidCap 400, Mar 19 | N4: =RTD("cqg.rtd", ,"ContractData",Symbols!B8, "LongDescription",, "T") -> Gold (Globex), Apr 19 | Q4: =RTD("cqg.rtd", ,"ContractData",Symbols!B9, "LongDescription",, "T") -> Dollar Index (ICE), Mar 19 | T4: =RTD("cqg.rtd", ,"ContractData",Symbols!B10, "LongDescription",, "T") -> Euro FX (Globex), Mar 19 | W4: =RTD("cqg.rtd", ,"ContractData",Symbols!B11, "LongDescription",, "T") -> Japanese Yen (Globex), Mar 19 | Z4: =RTD("cqg.rtd", ,"ContractData",Symbols!B12, "LongDescription",, "T") -> Australian Dollar (Globex), Mar 19 | AC4: =RTD("cqg.rtd", ,"ContractData",Symbols!B13, "LongDescription",, "T") -> British Pound (Globex), Mar 19 | AF4: =RTD("cqg.rtd", ,"ContractData",Symbols!B14, "LongDescription",, "T") -> Mexican Peso (Globex), Mar 19
A5: =INDIRECT("Data!H"&$B$2+1) -> 0 | B5: =INDIRECT("Data!J"&$B$2+1) -> 0 | C5: =INDIRECT("Data!K"&$B$2+1) -> 0 | D5: =INDIRECT("Data!L"&$B$2+1) -> 0 | E5: =IF(Symbols!C5="B",RTD("cqg.rtd",,"ContractData",Symbols!B5,"LastTrade",,"B"),TEXT(RTD("cqg.rtd",,"ContractData",Symbols!B5,"LastTrade",,"T"),Symbols!D5)) -> 2801.00 | H5: =IF(Symbols!C6="B",RTD("cqg.rtd",,"ContractData",Symbols!B6,"LastTrade",,"B"),TEXT(RTD("cqg.rtd",,"ContractData",Symbols!B6,"LastTrade",,"T"),Symbols!D6)) -> 7150.75 | K5: =IF(Symbols!C7="B",RTD("cqg.rtd",,"ContractData",Symbols!B7,"LastTrade",,"B"),TEXT(RTD("cqg.rtd",,"ContractData",Symbols!B7,"LastTrade",,"T"),Symbols!D7)) -> 1925.70 | N5: =IF(Symbols!C8="B",RTD("cqg.rtd",,"ContractData",Symbols!B8,"LastTrade",,"B"),TEXT(RTD("cqg.rtd",,"ContractData",Symbols!B8,"LastTrade",,"T"),Symbols!D8)) -> 1294.40 | Q5: =IF(Symbols!C9="B",RTD("cqg.rtd",,"ContractData",Symbols!B9,"LastTrade",,"B"),TEXT(RTD("cqg.rtd",,"ContractData",Symbols!B9,"LastTrade",,"T"),Symbols!D9)) -> 96.46 | T5: =IF(Symbols!C10="B",RTD("cqg.rtd",,"ContractData",Symbols!B10,"LastTrade",,"B"),TEXT(RTD("cqg.rtd",,"ContractData",Symbols!B10,"LastTrade",,"T"),Symbols!D10)) -> 1.13725 | W5: =IF(Symbols!C11="B",RTD("cqg.rtd",,"ContractData",Symbols!B11,"LastTrade",,"B"),TEXT(RTD("cqg.rtd",,"ContractData",Symbols!B11,"LastTrade",,"T"),Symbols!D11)) -> .0089390 | Z5: =IF(Symbols!C12="B",RTD("cqg.rtd",,"ContractData",Symbols!B12,"LastTrade",,"B"),TEXT(RTD("cqg.rtd",,"ContractData",Symbols!B12,"LastTrade",,"T"),Symbols!D12)) -> .7076 | AC5: =IF(Symbols!C13="B",RTD("cqg.rtd",,"ContractData",Symbols!B13,"LastTrade",,"B"),TEXT(RTD("cqg.rtd",,"ContractData",Symbols!B13,"LastTrade",,"T"),Symbols!D13)) -> 1.3183 | AF5: =IF(Symbols!C14="B",RTD("cqg.rtd",,"ContractData",Symbols!B14,"LastTrade",,"B"),TEXT(RTD("cqg.rtd",,"ContractData",Symbols!B14,"LastTrade",,"T"),Symbols!D14)) -> .051750
A6: =INDIRECT("Data!H"&$B$2+2) -> 0 | B6: =INDIRECT("Data!J"&$B$2+2) -> 0 | C6: =INDIRECT("Data!K"&$B$2+2) -> 0 | D6: =INDIRECT("Data!L"&$B$2+2) -> 0
A7: =INDIRECT("Data!H"&$B$2+3) -> 0 | B7: =INDIRECT("Data!J"&$B$2+3) -> 0 | C7: =INDIRECT("Data!K"&$B$2+3) -> 0 | D7: =INDIRECT("Data!L"&$B$2+3) -> 0 | E7: H: | F7: =IF(Symbols!C5="B",RTD("cqg.rtd",,"ContractData",Symbols!B5,"High",,"B"),TEXT(RTD("cqg.rtd",,"ContractData",Symbols!B5,"High",,"T"),Symbols!D5)) -> 2808.25 | G7: =IF(Symbols!C5="B",RTD("cqg.rtd",,"ContractData",Symbols!B5,"NetLastQuoteToday",,"B"),IF(RTD("cqg.rtd",,"ContractData",Symbols!B5,"NetLastQuoteToday",,"T")>0,"+"&TEXT(RTD("cqg.rtd",,"ContractData",Symbols!B5,"NetLastQuoteToday",,"T"),Symbols!D5),TEXT(RTD("cqg.rtd",,"ContractData",Symbols!B5,"NetLastQuoteToday",,"T"),Symbols!D5))) -> +16.25 | H7: H: | I7: =IF(Symbols!C6="B",RTD("cqg.rtd",,"ContractData",Symbols!B6,"High",,"B"),TEXT(RTD("cqg.rtd",,"ContractData",Symbols!B6,"High",,"T"),Symbols!D6)) -> 7164.00 | J7: =IF(Symbols!C6="B",RTD("cqg.rtd",,"ContractData",Symbols!B6,"NetLastQuoteToday",,"B"),IF(RTD("cqg.rtd",,"ContractData",Symbols!B6,"NetLastQuoteToday",,"T")>0,"+"&TEXT(RTD("cqg.rtd",,"ContractData",Symbols!B6,"NetLastQuoteToday",,"T"),Symbols!D6),TEXT(RTD("cqg.rtd",,"ContractData",Symbols!B6,"NetLastQuoteToday",,"T"),Symbols!D6))) -> +48.50 | K7: H: | L7: =IF(Symbols!C7="B",RTD("cqg.rtd",,"ContractData",Symbols!B7,"High",,"B"),TEXT(RTD("cqg.rtd",,"ContractData",Symbols!B7,"High",,"T"),Symbols!D7)) -> 1932.00 | M7: =IF(Symbols!C7="B",RTD("cqg.rtd",,"ContractData",Symbols!B7,"NetLastQuoteToday",,"B"),IF(RTD("cqg.rtd",,"ContractData",Symbols!B7,"NetLastQuoteToday",,"T")>0,"+"&TEXT(RTD("cqg.rtd",,"ContractData",Symbols!B7,"NetLastQuoteToday",,"T"),Symbols!D7),TEXT(RTD("cqg.rtd",,"ContractData",Symbols!B7,"NetLastQuoteToday",,"T"),Symbols!D7))) -> +15.00 | N7: H: | O7: =IF(Symbols!C8="B",RTD("cqg.rtd",,"ContractData",Symbols!B8,"High",,"B"),TEXT(RTD("cqg.rtd",,"ContractData",Symbols!B8,"High",,"T"),Symbols!D8)) -> 1316.50 | P7: =IF(Symbols!C8="B",RTD("cqg.rtd",,"ContractData",Symbols!B8,"NetLastQuoteToday",,"B"),IF(RTD("cqg.rtd",,"ContractData",Symbols!B8,"NetLastQuoteToday",,"T")>0,"+"&TEXT(RTD("cqg.rtd",,"ContractData",Symbols!B8,"NetLastQuoteToday",,"T"),Symbols!D8),TEXT(RTD("cqg.rtd",,"ContractData",Symbols!B8,"NetLastQuoteToday",,"T"),Symbols!D8))) -> -21.70 | Q7: H: | R7: =IF(Symbols!C9="B",RTD("cqg.rtd",,"ContractData",Symbols!B9,"High",,"B"),TEXT(RTD("cqg.rtd",,"ContractData",Symbols!B9,"High",,"T"),Symbols!D9)) -> 96.48 | S7: =IF(Symbols!C9="B",RTD("cqg.rtd",,"ContractData",Symbols!B9,"NetLastQuoteToday",,"B"),IF(RTD("cqg.rtd",,"ContractData",Symbols!B9,"NetLastQuoteToday",,"T")>0,"+"&TEXT(RTD("cqg.rtd",,"ContractData",Symbols!B9,"NetLastQuoteToday",,"T"),Symbols!D9),TEXT(RTD("cqg.rtd",,"ContractData",Symbols!B9,"NetLastQuoteToday",,"T"),Symbols!D9))) -> +.42 | T7: H: | U7: =IF(Symbols!C10="B",RTD("cqg.rtd",,"ContractData",Symbols!B10,"High",,"B"),TEXT(RTD("cqg.rtd",,"ContractData",Symbols!B10,"High",,"T"),Symbols!D10)) -> 1.14230 | V7: =IF(Symbols!C10="B",RTD("cqg.rtd",,"ContractData",Symbols!B10,"NetLastQuoteToday",,"B"),IF(RTD("cqg.rtd",,"ContractData",Symbols!B10,"NetLastQuoteToday",,"T")>0,"+"&TEXT(RTD("cqg.rtd",,"ContractData",Symbols!B10,"NetLastQuoteToday",,"T"),Symbols!D10),TEXT(RTD("cqg.rtd",,"ContractData",Symbols!B10,"NetLastQuoteToday",,"T"),Symbols!D10))) -> -.00205 | W7: H: | X7: =IF(Symbols!C8="B",RTD("cqg.rtd",,"ContractData",Symbols!B11,"High",,"B"),TEXT(RTD("cqg.rtd",,"ContractData",Symbols!B11,"High",,"T"),Symbols!D11)) -> .0089920 | Y7: =IF(Symbols!C11="B",RTD("cqg.rtd",,"ContractData",Symbols!B11,"NetLastQuoteToday",,"B"),IF(RTD("cqg.rtd",,"ContractData",Symbols!B11,"NetLastQuoteToday",,"T")>0,"+"&TEXT(RTD("cqg.rtd",,"ContractData",Symbols!B11,"NetLastQuoteToday",,"T"),Symbols!D11),TEXT(RTD("cqg.rtd",,"ContractData",Symbols!B11,"NetLastQuoteToday",,"T"),Symbols!D11))) -> -.0000490 | Z7: H: | AA7: =IF(Symbols!C12="B",RTD("cqg.rtd",,"ContractData",Symbols!B12,"High",,"B"),TEXT(RTD("cqg.rtd",,"ContractData",Symbols!B12,"High",,"T"),Symbols!D12)) -> .7124 | AB7: =IF(Symbols!C12="B",RTD("cqg.rtd",,"ContractData",Symbols!B12,"NetLastQuoteToday",,"B"),IF(RTD("cqg.rtd",,"ContractData",Symbols!B12,"NetLastQuoteToday",,"T")>0,"+"&TEXT(RTD("cqg.rtd",,"ContractData",Symbols!B12,"NetLastQuoteToday",,"T"),Symbols!D12),TEXT(RTD("cqg.rtd",,"ContractData",Symbols!B12,"NetLastQuoteToday",,"T"),Symbols!D12))) -> -.0019 | AC7: H: | AD7: =IF(Symbols!C13="B",RTD("cqg.rtd",,"ContractData",Symbols!B13,"High",,"B"),TEXT(RTD("cqg.rtd",,"ContractData",Symbols!B13,"High",,"T"),Symbols!D13)) -> 1.3297 | AE7: =IF(Symbols!C13="B",RTD("cqg.rtd",,"ContractData",Symbols!B13,"NetLastQuoteToday",,"B"),IF(RTD("cqg.rtd",,"ContractData",Symbols!B13,"NetLastQuoteToday",,"T")>0,"+"&TEXT(RTD("cqg.rtd",,"ContractData",Symbols!B13,"NetLastQuoteToday",,"T"),Symbols!D13),TEXT(RTD("cqg.rtd",,"ContractData",Symbols!B13,"NetLastQuoteToday",,"T"),Symbols!D13))) -> -.0095 | AF7: H: | AG7: =IF(Symbols!C14="B",RTD("cqg.rtd",,"ContractData",Symbols!B14,"High",,"B"),TEXT(RTD("cqg.rtd",,"ContractData",Symbols!B14,"High",,"T"),Symbols!D14)) -> .051840 | AH7: =IF(Symbols!C14="B",RTD("cqg.rtd",,"ContractData",Symbols!B14,"NetLastQuoteToday",,"B"),IF(RTD("cqg.rtd",,"ContractData",Symbols!B14,"NetLastQuoteToday",,"T")>0,"+"&TEXT(RTD("cqg.rtd",,"ContractData",Symbols!B14,"NetLastQuoteToday",,"T"),Symbols!D14),TEXT(RTD("cqg.rtd",,"ContractData",Symbols!B14,"NetLastQuoteToday",,"T"),Symbols!D14))) -> +.000020
A8: =INDIRECT("Data!H"&$B$2+4) -> 0 | B8: =INDIRECT("Data!J"&$B$2+4) -> 0 | C8: =INDIRECT("Data!K"&$B$2+4) -> 0 | D8: =INDIRECT("Data!L"&$B$2+4) -> 0 | E8: L: | F8: =IF(Symbols!C5="B",RTD("cqg.rtd",,"ContractData",Symbols!B5,"Low",,"B"),TEXT(RTD("cqg.rtd",,"ContractData",Symbols!B5,"Low",,"T"),Symbols!D5)) -> 2783.00 | G8: =IFERROR(RTD("cqg.rtd", ,"ContractData",Symbols!B5, "PerCentNetLastQuote",, "T")/100,"") -> 0.005835353263 | H8: L: | I8: =IF(Symbols!C6="B",RTD("cqg.rtd",,"ContractData",Symbols!B6,"Low",,"B"),TEXT(RTD("cqg.rtd",,"ContractData",Symbols!B6,"Low",,"T"),Symbols!D6)) -> 7098.25 | J8: =IFERROR(RTD("cqg.rtd", ,"ContractData",Symbols!B6, "PerCentNetLastQuote",, "T")/100,"") -> 0.006828581485 | K8: L: | L8: =IF(Symbols!C7="B",RTD("cqg.rtd",,"ContractData",Symbols!B7,"Low",,"B"),TEXT(RTD("cqg.rtd",,"ContractData",Symbols!B7,"Low",,"T"),Symbols!D7)) -> 1910.30 | M8: =IFERROR(RTD("cqg.rtd", ,"ContractData",Symbols!B7, "PerCentNetLastQuote",, "T")/100,"") -> 0.007850115135 | N8: L: | O8: =IF(Symbols!C8="B",RTD("cqg.rtd",,"ContractData",Symbols!B8,"Low",,"B"),TEXT(RTD("cqg.rtd",,"ContractData",Symbols!B8,"Low",,"T"),Symbols!D8)) -> 1293.20 | P8: =IFERROR(RTD("cqg.rtd", ,"ContractData",Symbols!B8, "PerCentNetLastQuote",, "T")/100,"") -> -0.01648810881 | Q8: L: | R8: =IF(Symbols!C9="B",RTD("cqg.rtd",,"ContractData",Symbols!B9,"Low",,"B"),TEXT(RTD("cqg.rtd",,"ContractData",Symbols!B9,"Low",,"T"),Symbols!D9)) -> 95.96 | S8: =IFERROR(RTD("cqg.rtd", ,"ContractData",Symbols!B9, "PerCentNetLastQuote",, "T")/100,"") -> 0.004341805233 | T8: L: | U8: =IF(Symbols!C10="B",RTD("cqg.rtd",,"ContractData",Symbols!B10,"Low",,"B"),TEXT(RTD("cqg.rtd",,"ContractData",Symbols!B10,"Low",,"T"),Symbols!D10)) -> 1.13670 | V8: =IFERROR(RTD("cqg.rtd", ,"ContractData",Symbols!B10, "PerCentNetLastQuote",, "T")/100,"") -> -0.001799271514 | W8: L: | X8: =IF(Symbols!C11="B",RTD("cqg.rtd",,"ContractData",Symbols!B11,"Low",,"B"),TEXT(RTD("cqg.rtd",,"ContractData",Symbols!B11,"Low",,"T"),Symbols!D11)) -> .0089315 | Y8: =IFERROR(RTD("cqg.rtd", ,"ContractData",Symbols!B11, "PerCentNetLastQuote",, "T")/100,"") -> -0.00545201669 | Z8: L: | AA8: =IF(Symbols!C12="B",RTD("cqg.rtd",,"ContractData",Symbols!B12,"Low",,"B"),TEXT(RTD("cqg.rtd",,"ContractData",Symbols!B12,"Low",,"T"),Symbols!D12)) -> .7071 | AB8: =IFERROR(RTD("cqg.rtd", ,"ContractData",Symbols!B12, "PerCentNetLastQuote",, "T")/100,"") -> -0.002677942213 | AC8: L: | AD8: =IF(Symbols!C13="B",RTD("cqg.rtd",,"ContractData",Symbols!B13,"Low",,"B"),TEXT(RTD("cqg.rtd",,"ContractData",Symbols!B13,"Low",,"T"),Symbols!D13)) -> 1.3182 | AE8: =IFERROR(RTD("cqg.rtd", ,"ContractData",Symbols!B13, "PerCentNetLastQuote",, "T")/100,"") -> -0.007154691972 | AF8: L: | AG8: =IF(Symbols!C14="B",RTD("cqg.rtd",,"ContractData",Symbols!B14,"Low",,"B"),TEXT(RTD("cqg.rtd",,"ContractData",Symbols!B14,"Low",,"T"),Symbols!D14)) -> .051590 | AH8: =IFERROR(RTD("cqg.rtd", ,"ContractData",Symbols!B14, "PerCentNetLastQuote",, "T")/100,"") -> 0.0003866228494
A9: =INDIRECT("Data!H"&$B$2+5) -> 0 | B9: =INDIRECT("Data!J"&$B$2+5) -> 0 | C9: =INDIRECT("Data!K"&$B$2+5) -> 0 | D9: =INDIRECT("Data!L"&$B$2+5) -> 0 | E9: =N32 -> Gold (Globex), Apr 19 | N9: Correlations
A10: =INDIRECT("Data!H"&$B$2+6) -> 0 | B10: =INDIRECT("Data!J"&$B$2+6) -> 0 | C10: =INDIRECT("Data!K"&$B$2+6) -> 0 | D10: =INDIRECT("Data!L"&$B$2+6) -> 0 | E10: =TEXT(S32,"#.00")&" Correlation to the "&RTD("cqg.rtd", ,"ContractData",'1'!C2, "LongDescription",, "T") -> .18 Correlation to the DAX Index, Mar 19 | N10: Time Frame | P10: Look Back | U10: =RTD("cqg.rtd", ,"ContractData",Data!D2, "LongDescription",, "T") -> Euro STOXX 50, Mar 19 | X10: =RTD("cqg.rtd", ,"ContractData",Data!F2, "LongDescription",, "T") -> CAC40, Mar 19 | AA10: =RTD("cqg.rtd", ,"ContractData",Data!H2, "LongDescription",, "T") -> NY Harbor ULSD, Apr 19 | AD10: =RTD("cqg.rtd", ,"ContractData",Data!J2, "LongDescription",, "T") -> Natural Gas (Globex), Apr 19 | AG10: =RTD("cqg.rtd", ,"ContractData",Data!L2, "LongDescription",, "T") -> Platinum (Globex), Apr 19
A11: =INDIRECT("Data!H"&$B$2+7) -> 0 | B11: =INDIRECT("Data!J"&$B$2+7) -> 0 | C11: =INDIRECT("Data!K"&$B$2+7) -> 0 | D11: =INDIRECT("Data!L"&$B$2+7) -> 0 | N11: ADC | P11: 20 | S11: =RTD("cqg.rtd", ,"ContractData",Data!C2, "LongDescription",, "T") -> DAX Index, Mar 19 | V11: =RTD("cqg.rtd", ,"ContractData",Data!E2, "LongDescription",, "T") -> Swiss Franc (Globex), Mar 19 | Y11: =RTD("cqg.rtd", ,"ContractData",Data!G2, "LongDescription",, "T") -> Crude Light (Globex), Apr 19 | AB11: =RTD("cqg.rtd", ,"ContractData",Data!I2, "LongDescription",, "T") -> RBOB Gasoline (Globex), Apr 19 | AE11: =RTD("cqg.rtd", ,"ContractData",Data!K2, "LongDescription",, "T") -> 10yr US Treasury Notes (Globex), Jun 19
A12: =INDIRECT("Data!H"&$B$2+8) -> 0 | B12: =INDIRECT("Data!J"&$B$2+8) -> 0 | C12: =INDIRECT("Data!K"&$B$2+8) -> 0 | D12: =INDIRECT("Data!L"&$B$2+8) -> 0 | N12: =RTD("cqg.rtd", ,"ContractData",Symbols!B5, "LongDescription",, "T") -> E-Mini S&P 500, Mar 19 | R12: =Symbols!B5 -> EP | S12: =Data!C3 -> 0.878342263 | U12: =Data!D3 -> 0.9486752667 | V12: =Data!E3 -> -0.01385230524 | X12: =Data!F3 -> 0.9746815981 | Y12: =Data!G3 -> 0.7822811833 | AA12: =Data!H3 -> 0.8960722396 | AB12: =Data!I3 -> 0.8964253449 | AD12: =Data!J3 -> 0.6217937035 | AE12: =Data!K3 -> -0.2100214992 | AG12: =Data!L3 -> 0.716468669
A13: =INDIRECT("Data!H"&$B$2+9) -> 0 | B13: =INDIRECT("Data!J"&$B$2+9) -> 0 | C13: =INDIRECT("Data!K"&$B$2+9) -> 0 | D13: =INDIRECT("Data!L"&$B$2+9) -> 0 | N13: =$N$12 -> E-Mini S&P 500, Mar 19 | S13: =$S$12 -> 0.878342263 | U13: =$U$12 -> 0.9486752667 | V13: =$V$12 -> -0.01385230524 | X13: =$X$12 -> 0.9746815981 | Y13: =$Y$12 -> 0.7822811833 | AA13: =$AA$12 -> 0.8960722396 | AB13: =$AB$12 -> 0.8964253449 | AD13: =$AD$12 -> 0.6217937035 | AE13: =$AE$12 -> -0.2100214992 | AG13: =$AG$12 -> 0.716468669
A14: =INDIRECT("Data!H"&$B$2+10) -> 0 | B14: =INDIRECT("Data!J"&$B$2+10) -> 0 | C14: =INDIRECT("Data!K"&$B$2+10) -> 0 | D14: =INDIRECT("Data!L"&$B$2+10) -> 0 | E14: =TEXT(U32,"#.00")&" Correlation to the "&RTD("cqg.rtd",,"ContractData",'1'!I2,"LongDescription",,"T") -> .18 Correlation to the Euro STOXX 50, Mar 19 | N14: =RTD("cqg.rtd", ,"ContractData",Symbols!B6, "LongDescription",, "T") -> E-mini NASDAQ-100, Mar 19 | R14: =Symbols!B6 -> ENQ | S14: =Data!C4 -> 0.9032987306 | U14: =Data!D4 -> 0.95299322 | V14: =Data!E4 -> -0.01528714231 | X14: =Data!F4 -> 0.9565665347 | Y14: =Data!G4 -> 0.6663651563 | AA14: =Data!H4 -> 0.8049430715 | AB14: =Data!I4 -> 0.8068267841 | AD14: =Data!J4 -> 0.6241163899 | AE14: =Data!K4 -> -0.2616999558 | AG14: =Data!L4 -> 0.6963456154
A15: =INDIRECT("Data!H"&$B$2+11) -> 0 | B15: =INDIRECT("Data!J"&$B$2+11) -> 0 | C15: =INDIRECT("Data!K"&$B$2+11) -> 0 | D15: =INDIRECT("Data!L"&$B$2+11) -> 0 | N15: =$N$14 -> E-mini NASDAQ-100, Mar 19 | S15: =$S$14 -> 0.9032987306 | U15: =$U$14 -> 0.95299322 | V15: =$V$14 -> -0.01528714231 | X15: =$X$14 -> 0.9565665347 | Y15: =$Y$14 -> 0.6663651563 | AA15: =$AA$14 -> 0.8049430715 | AB15: =$AB$14 -> 0.8068267841 | AD15: =$AD$14 -> 0.6241163899 | AE15: =$AE$14 -> -0.2616999558 | AG15: =$AG$14 -> 0.6963456154
A16: =INDIRECT("Data!H"&$B$2+12) -> 0 | B16: =INDIRECT("Data!J"&$B$2+12) -> 0 | C16: =INDIRECT("Data!K"&$B$2+12) -> 0 | D16: =INDIRECT("Data!L"&$B$2+12) -> 0 | N16: =RTD("cqg.rtd", ,"ContractData",Symbols!B7, "LongDescription",, "T") -> E-mini MidCap 400, Mar 19 | R16: =Symbols!B7 -> EMD | S16: =Data!C5 -> 0.7841590669 | U16: =Data!D5 -> 0.8865062984 | V16: =Data!E5 -> -0.1215678401 | X16: =Data!F5 -> 0.92683989 | Y16: =Data!G5 -> 0.7406343679 | AA16: =Data!H5 -> 0.9001583167 | AB16: =Data!I5 -> 0.9005097723 | AD16: =Data!J5 -> 0.4889496854 | AE16: =Data!K5 -> -0.101706245 | AG16: =Data!L5 -> 0.5823149232
A17: =INDIRECT("Data!H"&$B$2+13) -> 0 | B17: =INDIRECT("Data!J"&$B$2+13) -> 0 | C17: =INDIRECT("Data!K"&$B$2+13) -> 0 | D17: =INDIRECT("Data!L"&$B$2+13) -> 0 | N17: =$N$16 -> E-mini MidCap 400, Mar 19 | S17: =$S$16 -> 0.7841590669 | U17: =$U$16 -> 0.8865062984 | V17: =$V$16 -> -0.1215678401 | X17: =$X$16 -> 0.92683989 | Y17: =$Y$16 -> 0.7406343679 | AA17: =$AA$16 -> 0.9001583167 | AB17: =$AB$16 -> 0.9005097723 | AD17: =$AD$16 -> 0.4889496854 | AE17: =$AE$16 -> -0.101706245 | AG17: =$AG$16 -> 0.5823149232
A18: =INDIRECT("Data!H"&$B$2+14) -> 0 | B18: =INDIRECT("Data!J"&$B$2+14) -> 0 | C18: =INDIRECT("Data!K"&$B$2+14) -> 0 | D18: =INDIRECT("Data!L"&$B$2+14) -> 0 | N18: =RTD("cqg.rtd", ,"ContractData",Symbols!B8, "LongDescription",, "T") -> Gold (Globex), Apr 19 | R18: =Symbols!B8 -> GCE | S18: =Data!C6 -> 0.1826248519 | U18: =Data!D6 -> 0.1832342488 | V18: =Data!E6 -> 0.1906855594 | X18: =Data!F6 -> 0.2551039012 | Y18: =Data!G6 -> 0.5106457201 | AA18: =Data!H6 -> 0.4040978727 | AB18: =Data!I6 -> 0.4542386305 | AD18: =Data!J6 -> -0.04961668089 | AE18: =Data!K6 -> 0.5443930858 | AG18: =Data!L6 -> 0.1724328125
A19: =INDIRECT("Data!H"&$B$2+15) -> 0 | B19: =INDIRECT("Data!J"&$B$2+15) -> 0 | C19: =INDIRECT("Data!K"&$B$2+15) -> 0 | D19: =INDIRECT("Data!L"&$B$2+15) -> 0 | N19: =$N$18 -> Gold (Globex), Apr 19 | S19: =$S$18 -> 0.1826248519 | U19: =$U$18 -> 0.1832342488 | V19: =$V$18 -> 0.1906855594 | X19: =$X$18 -> 0.2551039012 | Y19: =$Y$18 -> 0.5106457201 | AA19: =$AA$18 -> 0.4040978727 | AB19: =$AB$18 -> 0.4542386305 | AD19: =$AD$18 -> -0.04961668089 | AE19: =$AE$18 -> 0.5443930858 | AG19: =$AG$18 -> 0.1724328125
A20: =INDIRECT("Data!H"&$B$2+16) -> 0 | B20: =INDIRECT("Data!J"&$B$2+16) -> 0 | C20: =INDIRECT("Data!K"&$B$2+16) -> 0 | D20: =INDIRECT("Data!L"&$B$2+16) -> 0 | E20: =TEXT(V32,"#.00")&" Correlation to the "&RTD("cqg.rtd",,"ContractData",'1'!O2,"LongDescription",,"T") -> .19 Correlation to the Swiss Franc (Globex), Mar 19 | N20: =RTD("cqg.rtd", ,"ContractData",Symbols!B9, "LongDescription",, "T") -> Dollar Index (ICE), Mar 19 | R20: =Symbols!B9 -> DXE | S20: =Data!C7 -> -0.342252141 | U20: =Data!D7 -> -0.1381428299 | V20: =Data!E7 -> -0.8324460437 | X20: =Data!F7 -> -0.1132504943 | Y20: =Data!G7 -> -0.1715915778 | AA20: =Data!H7 -> 0.07516660868 | AB20: =Data!I7 -> 0.03211292536 | AD20: =Data!J7 -> -0.4239563115 | AE20: =Data!K7 -> 0.1159205432 | AG20: =Data!L7 -> -0.5691237517
A21: =INDIRECT("Data!H"&$B$2+17) -> 0 | B21: =INDIRECT("Data!J"&$B$2+17) -> 0 | C21: =INDIRECT("Data!K"&$B$2+17) -> 0 | D21: =INDIRECT("Data!L"&$B$2+17) -> 0 | N21: =$N$20 -> Dollar Index (ICE), Mar 19 | S21: =$S$20 -> -0.342252141 | U21: =$U$20 -> -0.1381428299 | V21: =$V$20 -> -0.8324460437 | X21: =$X$20 -> -0.1132504943 | Y21: =$Y$20 -> -0.1715915778 | AA21: =$AA$20 -> 0.07516660868 | AB21: =$AB$20 -> 0.03211292536 | AD21: =$AD$20 -> -0.4239563115 | AE21: =$AE$20 -> 0.1159205432 | AG21: =$AG$20 -> -0.5691237517
A22: =INDIRECT("Data!H"&$B$2+18) -> 0 | B22: =INDIRECT("Data!J"&$B$2+18) -> 0 | C22: =INDIRECT("Data!K"&$B$2+18) -> 0 | D22: =INDIRECT("Data!L"&$B$2+18) -> 0 | N22: =RTD("cqg.rtd", ,"ContractData",Symbols!B10, "LongDescription",, "T") -> Euro FX (Globex), Mar 19 | R22: =Symbols!B10 -> EU6 | S22: =Data!C8 -> 0.1581910037 | U22: =Data!D8 -> -0.07621997828 | V22: =Data!E8 -> 0.8537391287 | X22: =Data!F8 -> -0.1165849184 | Y22: =Data!G8 -> 0.0574997611 | AA22: =Data!H8 -> -0.1976296668 | AB22: =Data!I8 -> -0.1584170272 | AD22: =Data!J8 -> 0.3640652176 | AE22: =Data!K8 -> -0.1888518823 | AG22: =Data!L8 -> 0.4590818834
A23: =INDIRECT("Data!H"&$B$2+19) -> 0 | B23: =INDIRECT("Data!J"&$B$2+19) -> 0 | C23: =INDIRECT("Data!K"&$B$2+19) -> 0 | D23: =INDIRECT("Data!L"&$B$2+19) -> 0 | N23: =$N$22 -> Euro FX (Globex), Mar 19 | S23: =$S$22 -> 0.1581910037 | U23: =$U$22 -> -0.07621997828 | V23: =$V$22 -> 0.8537391287 | X23: =$X$22 -> -0.1165849184 | Y23: =$Y$22 -> 0.0574997611 | AA23: =$AA$22 -> -0.1976296668 | AB23: =$AB$22 -> -0.1584170272 | AD23: =$AD$22 -> 0.3640652176 | AE23: =$AE$22 -> -0.1888518823 | AG23: =$AG$22 -> 0.4590818834
A24: =INDIRECT("Data!H"&$B$2+20) -> 0 | B24: =INDIRECT("Data!J"&$B$2+20) -> 0 | C24: =INDIRECT("Data!K"&$B$2+20) -> 0 | D24: =INDIRECT("Data!L"&$B$2+20) -> 0 | N24: =RTD("cqg.rtd", ,"ContractData",Symbols!B11, "LongDescription",, "T") -> Japanese Yen (Globex), Mar 19 | R24: =Symbols!B11 -> JY6 | S24: =Data!C9 -> -0.705615447 | U24: =Data!D9 -> -0.8344375425 | V24: =Data!E9 -> 0.3387248199 | X24: =Data!F9 -> -0.8380563522 | Y24: =Data!G9 -> -0.6001940765 | AA24: =Data!H9 -> -0.6653803564 | AB24: =Data!I9 -> -0.6528940809 | AD24: =Data!J9 -> -0.6954868968 | AE24: =Data!K9 -> 0.5315791994 | AG24: =Data!L9 -> -0.631001872
A25: =INDIRECT("Data!H"&$B$2+21) -> 0 | B25: =INDIRECT("Data!J"&$B$2+21) -> 0 | C25: =INDIRECT("Data!K"&$B$2+21) -> 0 | D25: =INDIRECT("Data!L"&$B$2+21) -> 0 | N25: =$N$24 -> Japanese Yen (Globex), Mar 19 | S25: =$S$24 -> -0.705615447 | U25: =$U$24 -> -0.8344375425 | V25: =$V$24 -> 0.3387248199 | X25: =$X$24 -> -0.8380563522 | Y25: =$Y$24 -> -0.6001940765 | AA25: =$AA$24 -> -0.6653803564 | AB25: =$AB$24 -> -0.6528940809 | AD25: =$AD$24 -> -0.6954868968 | AE25: =$AE$24 -> 0.5315791994 | AG25: =$AG$24 -> -0.631001872
A26: =INDIRECT("Data!H"&$B$2+22) -> 0 | B26: =INDIRECT("Data!J"&$B$2+22) -> 0 | C26: =INDIRECT("Data!K"&$B$2+22) -> 0 | D26: =INDIRECT("Data!L"&$B$2+22) -> 0 | E26: =TEXT(X32,"#.00")&" Correlation to the "&RTD("cqg.rtd",,"ContractData",'1'!U2,"LongDescription",,"T") -> .26 Correlation to the CAC40, Mar 19 | N26: =RTD("cqg.rtd", ,"ContractData",Symbols!B12, "LongDescription",, "T") -> Australian Dollar (Globex), Mar 19 | R26: =Symbols!B12 -> DA6 | S26: =Data!C10 -> 0.153718441 | U26: =Data!D10 -> -0.04422175186 | V26: =Data!E10 -> 0.6047739254 | X26: =Data!F10 -> -0.04717057481 | Y26: =Data!G10 -> 0.2032766955 | AA26: =Data!H10 -> 0.003538249541 | AB26: =Data!I10 -> 0.03514539899 | AD26: =Data!J10 -> 0.106627925 | AE26: =Data!K10 -> 0.1194045242 | AG26: =Data!L10 -> 0.2543261788
A27: =INDIRECT("Data!H"&$B$2+23) -> 0 | B27: =INDIRECT("Data!J"&$B$2+23) -> 0 | C27: =INDIRECT("Data!K"&$B$2+23) -> 0 | D27: =INDIRECT("Data!L"&$B$2+23) -> 0 | N27: =$N$26 -> Australian Dollar (Globex), Mar 19 | S27: =$S$26 -> 0.153718441 | U27: =$U$26 -> -0.04422175186 | V27: =$V$26 -> 0.6047739254 | X27: =$X$26 -> -0.04717057481 | Y27: =$Y$26 -> 0.2032766955 | AA27: =$AA$26 -> 0.003538249541 | AB27: =$AB$26 -> 0.03514539899 | AD27: =$AD$26 -> 0.106627925 | AE27: =$AE$26 -> 0.1194045242 | AG27: =$AG$26 -> 0.2543261788
A28: =INDIRECT("Data!H"&$B$2+24) -> 0 | B28: =INDIRECT("Data!J"&$B$2+24) -> 0 | C28: =INDIRECT("Data!K"&$B$2+24) -> 0 | D28: =INDIRECT("Data!L"&$B$2+24) -> 0 | N28: =RTD("cqg.rtd", ,"ContractData",Symbols!B13, "LongDescription",, "T") -> British Pound (Globex), Mar 19 | R28: =Symbols!B13 -> BP6 | S28: =Data!C11 -> 0.7301857189 | U28: =Data!D11 -> 0.6818297099 | V28: =Data!E11 -> 0.5229081914 | X28: =Data!F11 -> 0.6748845595 | Y28: =Data!G11 -> 0.5872187546 | AA28: =Data!H11 -> 0.502614289 | AB28: =Data!I11 -> 0.5387545409 | AD28: =Data!J11 -> 0.8167577455 | AE28: =Data!K11 -> -0.2192893867 | AG28: =Data!L11 -> 0.9457096161
A29: =INDIRECT("Data!H"&$B$2+25) -> 0 | B29: =INDIRECT("Data!J"&$B$2+25) -> 0 | C29: =INDIRECT("Data!K"&$B$2+25) -> 0 | D29: =INDIRECT("Data!L"&$B$2+25) -> 0 | N29: =$N$28 -> British Pound (Globex), Mar 19 | S29: =$S$28 -> 0.7301857189 | U29: =$U$28 -> 0.6818297099 | V29: =$V$28 -> 0.5229081914 | X29: =$X$28 -> 0.6748845595 | Y29: =$Y$28 -> 0.5872187546 | AA29: =$AA$28 -> 0.502614289 | AB29: =$AB$28 -> 0.5387545409 | AD29: =$AD$28 -> 0.8167577455 | AE29: =$AE$28 -> -0.2192893867 | AG29: =$AG$28 -> 0.9457096161
A30: =INDIRECT("Data!H"&$B$2+26) -> 0 | B30: =INDIRECT("Data!J"&$B$2+26) -> 0 | C30: =INDIRECT("Data!K"&$B$2+26) -> 0 | D30: =INDIRECT("Data!L"&$B$2+26) -> 0 | N30: =RTD("cqg.rtd", ,"ContractData",Symbols!B14, "LongDescription",, "T") -> Mexican Peso (Globex), Mar 19 | R30: =Symbols!B14 -> MX6 | S30: =Data!C12 -> 0.1672904118 | U30: =Data!D12 -> 0.01139414594 | V30: =Data!E12 -> 0.7112867674 | X30: =Data!F12 -> 0.03439264857 | Y30: =Data!G12 -> 0.08200007815 | AA30: =Data!H12 -> -0.06665430328 | AB30: =Data!I12 -> 0.01565664234 | AD30: =Data!J12 -> 0.2168661462 | AE30: =Data!K12 -> 0.3038398768 | AG30: =Data!L12 -> 0.401698579
A31: =INDIRECT("Data!H"&$B$2+27) -> 0 | B31: =INDIRECT("Data!J"&$B$2+27) -> 0 | C31: =INDIRECT("Data!K"&$B$2+27) -> 0 | D31: =INDIRECT("Data!L"&$B$2+27) -> 0 | N31: =$N$30 -> Mexican Peso (Globex), Mar 19 | S31: =$S$30 -> 0.1672904118 | U31: =$U$30 -> 0.01139414594 | V31: =$V$30 -> 0.7112867674 | X31: =$X$30 -> 0.03439264857 | Y31: =$Y$30 -> 0.08200007815 | AA31: =$AA$30 -> -0.06665430328 | AB31: =$AB$30 -> 0.01565664234 | AD31: =$AD$30 -> 0.2168661462 | AE31: =$AE$30 -> 0.3038398768 | AG31: =$AG$30 -> 0.401698579
A32: =INDIRECT("Data!H"&$B$2+28) -> 0 | B32: =INDIRECT("Data!J"&$B$2+28) -> 0 | C32: =INDIRECT("Data!K"&$B$2+28) -> 0 | D32: =INDIRECT("Data!L"&$B$2+28) -> 0 | N32: =$N$18 -> Gold (Globex), Apr 19 | S32: =$S$18 -> 0.1826248519 | U32: =$U$18 -> 0.1832342488 | V32: =$V$18 -> 0.1906855594 | X32: =$X$18 -> 0.2551039012 | Y32: =$Y$18 -> 0.5106457201 | AA32: =$AA$18 -> 0.4040978727 | AB32: =$AB$18 -> 0.4542386305 | AD32: =$AD$18 -> -0.04961668089 | AE32: =$AE$18 -> 0.5443930858 | AG32: =$AG$18 -> 0.1724328125
A33: =INDIRECT("Data!H"&$B$2+29) -> 0 | B33: =INDIRECT("Data!J"&$B$2+29) -> 0 | C33: =INDIRECT("Data!K"&$B$2+29) -> 0 | D33: =INDIRECT("Data!L"&$B$2+29) -> 0 | E33: =TEXT(Y32,"#.00")&" Correlation to the "&RTD("cqg.rtd",,"ContractData",'1'!AA2,"LongDescription",,"T") -> .51 Correlation to the Crude Light (Globex), Apr 19 | N33: ="Correlations relative to the "&N32 -> Correlations relative to the Gold (Globex), Apr 19
A34: =INDIRECT("Data!H"&$B$2+30) -> 0 | B34: =INDIRECT("Data!J"&$B$2+30) -> 0 | C34: =INDIRECT("Data!K"&$B$2+30) -> 0 | D34: =INDIRECT("Data!L"&$B$2+30) -> 0
A35: =INDIRECT("Data!H"&$B$2+31) -> 0 | B35: =INDIRECT("Data!J"&$B$2+31) -> 0 | C35: =INDIRECT("Data!K"&$B$2+31) -> 0 | D35: =INDIRECT("Data!L"&$B$2+31) -> 0
A36: =INDIRECT("Data!H"&$B$2+32) -> 0 | B36: =INDIRECT("Data!J"&$B$2+32) -> 0 | C36: =INDIRECT("Data!K"&$B$2+32) -> 0 | D36: =INDIRECT("Data!L"&$B$2+32) -> 0 | E36: =TEXT(AA32,"#.00")&" Correlation to the "&RTD("cqg.rtd",,"ContractData",'1'!AG2,"LongDescription",,"T") -> .40 Correlation to the NY Harbor ULSD, Apr 19
A37: =INDIRECT("Data!H"&$B$2+33) -> 0 | B37: =INDIRECT("Data!J"&$B$2+33) -> 0 | C37: =INDIRECT("Data!K"&$B$2+33) -> 0 | D37: =INDIRECT("Data!L"&$B$2+33) -> 0
A38: =INDIRECT("Data!H"&$B$2+34) -> 0 | B38: =INDIRECT("Data!J"&$B$2+34) -> 0 | C38: =INDIRECT("Data!K"&$B$2+34) -> 0 | D38: =INDIRECT("Data!L"&$B$2+34) -> 0
A39: =INDIRECT("Data!H"&$B$2+35) -> 0 | B39: =INDIRECT("Data!J"&$B$2+35) -> 0 | C39: =INDIRECT("Data!K"&$B$2+35) -> 0 | D39: =INDIRECT("Data!L"&$B$2+35) -> 0 | E39: =TEXT(AB32,"#.00")&" Correlation to the "&RTD("cqg.rtd",,"ContractData",'1'!AM2,"LongDescription",,"T") -> .45 Correlation to the RBOB Gasoline (Globex), Apr 19
A40: =INDIRECT("Data!H"&$B$2+36) -> 0 | B40: =INDIRECT("Data!J"&$B$2+36) -> 0 | C40: =INDIRECT("Data!K"&$B$2+36) -> 0 | D40: =INDIRECT("Data!L"&$B$2+36) -> 0
A41: =INDIRECT("Data!H"&$B$2+35) -> 0 | B41: =INDIRECT("Data!J"&$B$2+35) -> 0 | C41: =INDIRECT("Data!K"&$B$2+35) -> 0 | D41: =INDIRECT("Data!L"&$B$2+35) -> 0
A42: =INDIRECT("Data!H"&$B$2+38) -> 0 | B42: =INDIRECT("Data!J"&$B$2+38) -> 0 | C42: =INDIRECT("Data!K"&$B$2+38) -> 0 | D42: =INDIRECT("Data!L"&$B$2+38) -> 0 | E42: =TEXT(AD32,"#.00")&" Correlation to the "&RTD("cqg.rtd",,"ContractData",'1'!AS2,"LongDescription",,"T") -> -.05 Correlation to the Natural Gas (Globex), Apr 19
A43: =INDIRECT("Data!H"&$B$2+39) -> 0 | B43: =INDIRECT("Data!J"&$B$2+39) -> 0 | C43: =INDIRECT("Data!K"&$B$2+39) -> 0 | D43: =INDIRECT("Data!L"&$B$2+39) -> 0
A44: =INDIRECT("Data!H"&$B$2+40) -> 0 | B44: =INDIRECT("Data!J"&$B$2+40) -> 0 | C44: =INDIRECT("Data!K"&$B$2+40) -> 0 | D44: =INDIRECT("Data!L"&$B$2+40) -> 0
A45: =INDIRECT("Data!H"&$B$2+41) -> 0 | B45: =INDIRECT("Data!J"&$B$2+41) -> 0 | C45: =INDIRECT("Data!K"&$B$2+41) -> 0 | D45: =INDIRECT("Data!L"&$B$2+41) -> 0 | E45: =TEXT(AE32,"#.00")&" Correlation to the "&RTD("cqg.rtd",,"ContractData",'1'!AY2,"LongDescription",,"T") -> .54 Correlation to the 10yr US Treasury Notes (Globex), Jun 19
A46: =INDIRECT("Data!H"&$B$2+42) -> 0 | B46: =INDIRECT("Data!J"&$B$2+42) -> 0 | C46: =INDIRECT("Data!K"&$B$2+42) -> 0 | D46: =INDIRECT("Data!L"&$B$2+42) -> 0
A47: =INDIRECT("Data!H"&$B$2+43) -> 0 | B47: =INDIRECT("Data!J"&$B$2+43) -> 0 | C47: =INDIRECT("Data!K"&$B$2+43) -> 0 | D47: =INDIRECT("Data!L"&$B$2+43) -> 0
E48: =TEXT(AG32,"#.00")&" Correlation to the "&RTD("cqg.rtd",,"ContractData",'1'!BE2,"LongDescription",,"T") -> .17 Correlation to the Platinum (Globex), Apr 19
A51: =INDIRECT("Data!H"&$B$2+47) -> 0 | B51: =INDIRECT("Data!J"&$B$2+47) -> 0 | C51: =INDIRECT("Data!K"&$B$2+47) -> 0 | D51: =INDIRECT("Data!L"&$B$2+47) -> 0 | E51: =RTD("cqg.rtd", ,"ContractData",Symbols!D3, "LongDescription",, "T") -> DAX Index, Mar 19 | H51: =RTD("cqg.rtd", ,"ContractData",Symbols!E3, "LongDescription",, "T") -> Euro STOXX 50, Mar 19 | K51: =RTD("cqg.rtd", ,"ContractData",Symbols!F3, "LongDescription",, "T") -> Swiss Franc (Globex), Mar 19 | N51: =RTD("cqg.rtd", ,"ContractData",Symbols!G3, "LongDescription",, "T") -> CAC40, Mar 19 | Q51: =RTD("cqg.rtd", ,"ContractData",Symbols!H3, "LongDescription",, "T") -> Crude Light (Globex), Apr 19 | T51: =RTD("cqg.rtd", ,"ContractData",Symbols!I3, "LongDescription",, "T") -> NY Harbor ULSD, Apr 19 | W51: =RTD("cqg.rtd", ,"ContractData",Symbols!J3, "LongDescription",, "T") -> RBOB Gasoline (Globex), Apr 19 | Z51: =RTD("cqg.rtd", ,"ContractData",Symbols!K3, "LongDescription",, "T") -> Natural Gas (Globex), Apr 19 | AC51: =RTD("cqg.rtd", ,"ContractData",Symbols!L3, "LongDescription",, "T") -> 10yr US Treasury Notes (Globex), Jun 19 | AF51: =RTD("cqg.rtd", ,"ContractData",Symbols!M3, "LongDescription",, "T") -> Platinum (Globex), Apr 19
A52: =INDIRECT("Data!H"&$B$2+48) -> 0 | B52: =INDIRECT("Data!J"&$B$2+48) -> 0 | C52: =INDIRECT("Data!K"&$B$2+48) -> 0 | D52: =INDIRECT("Data!L"&$B$2+48) -> 0 | E52: =IF(Symbols!D4="B",RTD("cqg.rtd",,"ContractData",Symbols!D3,"LastTrade",,"B"),TEXT(RTD("cqg.rtd",,"ContractData",Symbols!D3,"LastTrade",,"T"),Symbols!D2)) -> 11622.00 | H52: =IF(Symbols!E4="B",RTD("cqg.rtd",,"ContractData",Symbols!E3,"LastTrade",,"B"),TEXT(RTD("cqg.rtd",,"ContractData",Symbols!E3,"LastTrade",,"T"),Symbols!E2)) -> 3317 | K52: =IF(Symbols!F4="B",RTD("cqg.rtd",,"ContractData",Symbols!F3,"LastTrade",,"B"),TEXT(RTD("cqg.rtd",,"ContractData",Symbols!F3,"LastTrade",,"T"),Symbols!F2)) -> 1.0017 | N52: =IF(Symbols!G4="B",RTD("cqg.rtd",,"ContractData",Symbols!G3,"LastTrade",,"B"),TEXT(RTD("cqg.rtd",,"ContractData",Symbols!G3,"LastTrade",,"T"),Symbols!G2)) -> 5271.50 | Q52: =IF(Symbols!H4="B",RTD("cqg.rtd",,"ContractData",Symbols!H3,"LastTrade",,"B"),TEXT(RTD("cqg.rtd",,"ContractData",Symbols!H3,"LastTrade",,"T"),Symbols!H2)) -> 55.74 | T52: =IF(Symbols!I4="B",RTD("cqg.rtd",,"ContractData",Symbols!I3,"LastTrade",,"B"),TEXT(RTD("cqg.rtd",,"ContractData",Symbols!I3,"LastTrade",,"T"),Symbols!I2)) -> 1.9998 | W52: =IF(Symbols!J4="B",RTD("cqg.rtd",,"ContractData",Symbols!J3,"LastTrade",,"B"),TEXT(RTD("cqg.rtd",,"ContractData",Symbols!J3,"LastTrade",,"T"),Symbols!J2)) -> 1.7263 | Z52: =IF(Symbols!K4="B",RTD("cqg.rtd",,"ContractData",Symbols!K3,"LastTrade",,"B"),TEXT(RTD("cqg.rtd",,"ContractData",Symbols!K3,"LastTrade",,"T"),Symbols!K2)) -> 2.8510 | AC52: =IF(Symbols!L4="B",RTD("cqg.rtd",,"ContractData",Symbols!L3,"LastTrade",,"B"),TEXT(RTD("cqg.rtd",,"ContractData",Symbols!L3,"LastTrade",,"T"),Symbols!L2)) -> 121195 | AF52: =IF(Symbols!M4="B",RTD("cqg.rtd",,"ContractData",Symbols!M3,"LastTrade",,"B"),TEXT(RTD("cqg.rtd",,"ContractData",Symbols!M3,"LastTrade",,"T"),Symbols!M2)) -> 860.50
A53: =INDIRECT("Data!H"&$B$2+49) -> 0 | B53: =INDIRECT("Data!J"&$B$2+49) -> 0 | C53: =INDIRECT("Data!K"&$B$2+49) -> 0 | D53: =INDIRECT("Data!L"&$B$2+49) -> 0
E54: H: | F54: =IF(Symbols!D4="B",RTD("cqg.rtd",,"ContractData",Symbols!D3,"High",,"B"),TEXT(RTD("cqg.rtd",,"ContractData",Symbols!D3,"High",,"T"),Symbols!D2)) -> 11675.50 | G54: =IF(Symbols!D4="B",RTD("cqg.rtd",,"ContractData",Symbols!D3,"NetLastQuoteToday",,"B"),IF(RTD("cqg.rtd",,"ContractData",Symbols!D3,"NetLastQuoteToday",,"T")>0,"+"&TEXT(RTD("cqg.rtd",,"ContractData",Symbols!D3,"NetLastQuoteToday",,"T"),Symbols!D2),TEXT(RTD("cqg.rtd",,"ContractData",Symbols!D3,"NetLastQuoteToday",,"T"),Symbols!D2))) -> +102.00 | H54: H: | I54: =IF(Symbols!E4="B",RTD("cqg.rtd",,"ContractData",Symbols!E3,"High",,"B"),TEXT(RTD("cqg.rtd",,"ContractData",Symbols!E3,"High",,"T"),Symbols!E2)) -> 3329 | J54: =IF(Symbols!E4="B",RTD("cqg.rtd",,"ContractData",Symbols!E3,"NetLastQuoteToday",,"B"),IF(RTD("cqg.rtd",,"ContractData",Symbols!E3,"NetLastQuoteToday",,"T")>0,"+"&TEXT(RTD("cqg.rtd",,"ContractData",Symbols!E3,"NetLastQuoteToday",,"T"),Symbols!E2),TEXT(RTD("cqg.rtd",,"ContractData",Symbols!E3,"NetLastQuoteToday",,"T"),Symbols!E2))) -> +19 | K54: H: | L54: =IF(Symbols!F4="B",RTD("cqg.rtd",,"ContractData",Symbols!F3,"High",,"B"),TEXT(RTD("cqg.rtd",,"ContractData",Symbols!F3,"High",,"T"),Symbols!F2)) -> 1.0051 | M54: =IF(Symbols!F4="B",RTD("cqg.rtd",,"ContractData",Symbols!F3,"NetLastQuoteToday",,"B"),IF(RTD("cqg.rtd",,"ContractData",Symbols!F3,"NetLastQuoteToday",,"T")>0,"+"&TEXT(RTD("cqg.rtd",,"ContractData",Symbols!F3,"NetLastQuoteToday",,"T"),Symbols!F2),TEXT(RTD("cqg.rtd",,"ContractData",Symbols!F3,"NetLastQuoteToday",,"T"),Symbols!F2))) -> -.0022 | N54: H: | O54: =IF(Symbols!M4="B",RTD("cqg.rtd",,"ContractData",Symbols!M3,"High",,"B"),TEXT(RTD("cqg.rtd",,"ContractData",Symbols!M3,"High",,"T"),Symbols!M2)) -> 877.10 | P54: =IF(Symbols!G4="B",RTD("cqg.rtd",,"ContractData",Symbols!G3,"NetLastQuoteToday",,"B"),IF(RTD("cqg.rtd",,"ContractData",Symbols!G3,"NetLastQuoteToday",,"T")>0,"+"&TEXT(RTD("cqg.rtd",,"ContractData",Symbols!G3,"NetLastQuoteToday",,"T"),Symbols!G2),TEXT(RTD("cqg.rtd",,"ContractData",Symbols!G3,"NetLastQuoteToday",,"T"),Symbols!G2))) -> +35.50 | Q54: H: | R54: =IF(Symbols!H4="B",RTD("cqg.rtd",,"ContractData",Symbols!H3,"High",,"B"),TEXT(RTD("cqg.rtd",,"ContractData",Symbols!H3,"High",,"T"),Symbols!H2)) -> 57.88 | S54: =IF(Symbols!H4="B",RTD("cqg.rtd",,"ContractData",Symbols!H3,"NetLastQuoteToday",,"B"),IF(RTD("cqg.rtd",,"ContractData",Symbols!H3,"NetLastQuoteToday",,"T")>0,"+"&TEXT(RTD("cqg.rtd",,"ContractData",Symbols!H3,"NetLastQuoteToday",,"T"),Symbols!H2),TEXT(RTD("cqg.rtd",,"ContractData",Symbols!H3,"NetLastQuoteToday",,"T"),Symbols!H2))) -> -1.48 | T54: H: | U54: =IF(Symbols!I4="B",RTD("cqg.rtd",,"ContractData",Symbols!I3,"High",,"B"),TEXT(RTD("cqg.rtd",,"ContractData",Symbols!I3,"High",,"T"),Symbols!I2)) -> 2.0479 | V54: =IF(Symbols!I4="B",RTD("cqg.rtd",,"ContractData",Symbols!I3,"NetLastQuoteToday",,"B"),IF(RTD("cqg.rtd",,"ContractData",Symbols!I3,"NetLastQuoteToday",,"T")>0,"+"&TEXT(RTD("cqg.rtd",,"ContractData",Symbols!I3,"NetLastQuoteToday",,"T"),Symbols!I2),TEXT(RTD("cqg.rtd",,"ContractData",Symbols!I3,"NetLastQuoteToday",,"T"),Symbols!I2))) -> -.0277 | W54: H: | X54: =IF(Symbols!J4="B",RTD("cqg.rtd",,"ContractData",Symbols!J3,"High",,"B"),TEXT(RTD("cqg.rtd",,"ContractData",Symbols!J3,"High",,"T"),Symbols!J2)) -> 1.7720 | Y54: =IF(Symbols!J4="B",RTD("cqg.rtd",,"ContractData",Symbols!J3,"NetLastQuoteToday",,"B"),IF(RTD("cqg.rtd",,"ContractData",Symbols!J3,"NetLastQuoteToday",,"T")>0,"+"&TEXT(RTD("cqg.rtd",,"ContractData",Symbols!J3,"NetLastQuoteToday",,"T"),Symbols!J2),TEXT(RTD("cqg.rtd",,"ContractData",Symbols!J3,"NetLastQuoteToday",,"T"),Symbols!J2))) -> -.0263 | Z54: H: | AA54: =IF(Symbols!K4="B",RTD("cqg.rtd",,"ContractData",Symbols!K3,"High",,"B"),TEXT(RTD("cqg.rtd",,"ContractData",Symbols!K3,"High",,"T"),Symbols!K2)) -> 2.8720 | AB54: =IF(Symbols!K4="B",RTD("cqg.rtd",,"ContractData",Symbols!K3,"NetLastQuoteToday",,"B"),IF(RTD("cqg.rtd",,"ContractData",Symbols!K3,"NetLastQuoteToday",,"T")>0,"+"&TEXT(RTD("cqg.rtd",,"ContractData",Symbols!K3,"NetLastQuoteToday",,"T"),Symbols!K2),TEXT(RTD("cqg.rtd",,"ContractData",Symbols!K3,"NetLastQuoteToday",,"T"),Symbols!K2))) -> +.0390 | AC54: H: | AD54: =IF(Symbols!L4="B",RTD("cqg.rtd",,"ContractData",Symbols!L3,"High",,"B"),TEXT(RTD("cqg.rtd",,"ContractData",Symbols!L3,"High",,"T"),Symbols!L2)) -> 122000 | AE54: =IF(Symbols!L4="B",RTD("cqg.rtd",,"ContractData",Symbols!L3,"NetLastQuoteToday",,"B"),IF(RTD("cqg.rtd",,"ContractData",Symbols!L3,"NetLastQuoteToday",,"T")>0,"+"&TEXT(RTD("cqg.rtd",,"ContractData",Symbols!L3,"NetLastQuoteToday",,"T"),Symbols!L2),TEXT(RTD("cqg.rtd",,"ContractData",Symbols!L3,"NetLastQuoteToday",,"T"),Symbols!L2))) -> -130 | AF54: H: | AG54: =IF(Symbols!M4="B",RTD("cqg.rtd",,"ContractData",Symbols!M3,"High",,"B"),TEXT(RTD("cqg.rtd",,"ContractData",Symbols!M3,"High",,"T"),Symbols!M2)) -> 877.10 | AH54: =IF(Symbols!M4="B",RTD("cqg.rtd",,"ContractData",Symbols!M3,"NetLastQuoteToday",,"B"),IF(RTD("cqg.rtd",,"ContractData",Symbols!M3,"NetLastQuoteToday",,"T")>0,"+"&TEXT(RTD("cqg.rtd",,"ContractData",Symbols!M3,"NetLastQuoteToday",,"T"),Symbols!M2),TEXT(RTD("cqg.rtd",,"ContractData",Symbols!M3,"NetLastQuoteToday",,"T"),Symbols!M2))) -> -14.80
E55: L: | F55: =IF(Symbols!D4="B",RTD("cqg.rtd",,"ContractData",Symbols!D3,"Low",,"B"),TEXT(RTD("cqg.rtd",,"ContractData",Symbols!D3,"Low",,"T"),Symbols!D2)) -> 11522.50 | G55: =IFERROR(RTD("cqg.rtd", ,"ContractData",Symbols!D3, "PerCentNetLastQuote",, "T")/100,"") -> 0.008854166667 | H55: L: | I55: =IF(Symbols!E4="B",RTD("cqg.rtd",,"ContractData",Symbols!E3,"Low",,"B"),TEXT(RTD("cqg.rtd",,"ContractData",Symbols!E3,"Low",,"T"),Symbols!E2)) -> 3296 | J55: =IFERROR(RTD("cqg.rtd", ,"ContractData",Symbols!E3, "PerCentNetLastQuote",, "T")/100,"") -> 0.005761067314 | K55: L: | L55: =IF(Symbols!F4="B",RTD("cqg.rtd",,"ContractData",Symbols!F3,"Low",,"B"),TEXT(RTD("cqg.rtd",,"ContractData",Symbols!F3,"Low",,"T"),Symbols!F2)) -> 1.0004 | M55: =IFERROR(RTD("cqg.rtd", ,"ContractData",Symbols!F3, "PerCentNetLastQuote",, "T")/100,"") -> -0.002191671648 | N55: L: | O55: =IF(Symbols!M4="B",RTD("cqg.rtd",,"ContractData",Symbols!M3,"Low",,"B"),TEXT(RTD("cqg.rtd",,"ContractData",Symbols!M3,"Low",,"T"),Symbols!M2)) -> 859.80 | P55: =IFERROR(RTD("cqg.rtd", ,"ContractData",Symbols!M3, "PerCentNetLastQuote",, "T")/100,"") -> -0.01691042048 | Q55: L: | R55: =IF(Symbols!H4="B",RTD("cqg.rtd",,"ContractData",Symbols!H3,"Low",,"B"),TEXT(RTD("cqg.rtd",,"ContractData",Symbols!H3,"Low",,"T"),Symbols!H2)) -> 55.57 | S55: =IFERROR(RTD("cqg.rtd", ,"ContractData",Symbols!H3, "PerCentNetLastQuote",, "T")/100,"") -> -0.02586508214 | T55: L: | U55: =IF(Symbols!I4="B",RTD("cqg.rtd",,"ContractData",Symbols!I3,"Low",,"B"),TEXT(RTD("cqg.rtd",,"ContractData",Symbols!I3,"Low",,"T"),Symbols!I2)) -> 1.9791 | V55: =IFERROR(RTD("cqg.rtd", ,"ContractData",Symbols!I3, "PerCentNetLastQuote",, "T")/100,"") -> -0.01366349332 | W55: L: | X55: =IF(Symbols!J4="B",RTD("cqg.rtd",,"ContractData",Symbols!J3,"Low",,"B"),TEXT(RTD("cqg.rtd",,"ContractData",Symbols!J3,"Low",,"T"),Symbols!J2)) -> 1.7124 | Y55: =IFERROR(RTD("cqg.rtd", ,"ContractData",Symbols!J3, "PerCentNetLastQuote",, "T")/100,"") -> -0.01500884552 | Z55: L: | AA55: =IF(Symbols!K4="B",RTD("cqg.rtd",,"ContractData",Symbols!K3,"Low",,"B"),TEXT(RTD("cqg.rtd",,"ContractData",Symbols!K3,"Low",,"T"),Symbols!K2)) -> 2.7800 | AB55: =IFERROR(RTD("cqg.rtd", ,"ContractData",Symbols!K3, "PerCentNetLastQuote",, "T")/100,"") -> 0.01386913229 | AC55: L: | AD55: =IF(Symbols!L4="B",RTD("cqg.rtd",,"ContractData",Symbols!L3,"Low",,"B"),TEXT(RTD("cqg.rtd",,"ContractData",Symbols!L3,"Low",,"T"),Symbols!L2)) -> 121190 | AE55: =IFERROR(RTD("cqg.rtd", ,"ContractData",Symbols!L3, "PerCentNetLastQuote",, "T")/100,"") -> -0.003329918033 | AF55: L: | AG55: =IF(Symbols!M4="B",RTD("cqg.rtd",,"ContractData",Symbols!M3,"Low",,"B"),TEXT(RTD("cqg.rtd",,"ContractData",Symbols!M3,"Low",,"T"),Symbols!M2)) -> 859.80 | AH55: =IFERROR(RTD("cqg.rtd", ,"ContractData",Symbols!M3, "PerCentNetLastQuote",, "T")/100,"") -> -0.01691042048
F56: Copyright © 2016 | J56: Chicago: | L56: =RTD("cqg.rtd", ,"SystemInfo", "Linetime") -> 43525.59898 | O56: Designed by Thom Hartle

Sheet Symbols
D2: =IF(Symbols!D4="B","B",IF(Symbols!D4=0,0,IF(Symbols!D4=1,"#.0",IF(Symbols!D4=2,"#.00",IF(Symbols!D4=3,"#.000",IF(Symbols!D4=4,"#.0000",IF(Symbols!D4=5,"#.00000",IF(Symbols!D4=6,"#.000000",IF(Symbols!D4=7,"#.0000000"))))))))) -> #.00 | E2: =IF(Symbols!E4="B","B",IF(Symbols!E4=0,0,IF(Symbols!E4=1,"#.0",IF(Symbols!E4=2,"#.00",IF(Symbols!E4=3,"#.000",IF(Symbols!E4=4,"#.0000",IF(Symbols!E4=5,"#.00000",IF(Symbols!E4=6,"#.000000",IF(Symbols!E4=7,"#.0000000"))))))))) -> 0 | F2: =IF(Symbols!F4="B","B",IF(Symbols!F4=0,0,IF(Symbols!F4=1,"#.0",IF(Symbols!F4=2,"#.00",IF(Symbols!F4=3,"#.000",IF(Symbols!F4=4,"#.0000",IF(Symbols!F4=5,"#.00000",IF(Symbols!F4=6,"#.000000",IF(Symbols!F4=7,"#.0000000"))))))))) -> #.0000 | G2: =IF(Symbols!G4="B","B",IF(Symbols!G4=0,0,IF(Symbols!G4=1,"#.0",IF(Symbols!G4=2,"#.00",IF(Symbols!G4=3,"#.000",IF(Symbols!G4=4,"#.0000",IF(Symbols!G4=5,"#.00000",IF(Symbols!G4=6,"#.000000",IF(Symbols!G4=7,"#.0000000"))))))))) -> #.00 | H2: =IF(Symbols!H4="B","B",IF(Symbols!H4=0,0,IF(Symbols!H4=1,"#.0",IF(Symbols!H4=2,"#.00",IF(Symbols!H4=3,"#.000",IF(Symbols!H4=4,"#.0000",IF(Symbols!H4=5,"#.00000",IF(Symbols!H4=6,"#.000000",IF(Symbols!H4=7,"#.0000000"))))))))) -> #.00 | I2: =IF(Symbols!I4="B","B",IF(Symbols!I4=0,0,IF(Symbols!I4=1,"#.0",IF(Symbols!I4=2,"#.00",IF(Symbols!I4=3,"#.000",IF(Symbols!I4=4,"#.0000",IF(Symbols!I4=5,"#.00000",IF(Symbols!I4=6,"#.000000",IF(Symbols!I4=7,"#.0000000"))))))))) -> #.0000 | J2: =IF(Symbols!J4="B","B",IF(Symbols!J4=0,0,IF(Symbols!J4=1,"#.0",IF(Symbols!J4=2,"#.00",IF(Symbols!J4=3,"#.000",IF(Symbols!J4=4,"#.0000",IF(Symbols!J4=5,"#.00000",IF(Symbols!J4=6,"#.000000",IF(Symbols!J4=7,"#.0000000"))))))))) -> #.0000 | K2: =IF(Symbols!K4="B","B",IF(Symbols!K4=0,0,IF(Symbols!K4=1,"#.0",IF(Symbols!K4=2,"#.00",IF(Symbols!K4=3,"#.000",IF(Symbols!K4=4,"#.0000",IF(Symbols!K4=5,"#.00000",IF(Symbols!K4=6,"#.000000",IF(Symbols!K4=7,"#.0000000"))))))))) -> #.0000 | L2: =IF(Symbols!L4="B","B",IF(Symbols!L4=0,0,IF(Symbols!L4=1,"#.0",IF(Symbols!L4=2,"#.00",IF(Symbols!L4=3,"#.000",IF(Symbols!L4=4,"#.0000",IF(Symbols!L4=5,"#.00000",IF(Symbols!L4=6,"#.000000",IF(Symbols!L4=7,"#.0000000"))))))))) -> B | M2: =IF(Symbols!M4="B","B",IF(Symbols!M4=0,0,IF(Symbols!M4=1,"#.0",IF(Symbols!M4=2,"#.00",IF(Symbols!M4=3,"#.000",IF(Symbols!M4=4,"#.0000",IF(Symbols!M4=5,"#.00000",IF(Symbols!M4=6,"#.000000",IF(Symbols!M4=7,"#.0000000"))))))))) -> #.00 | N2: =IF(Symbols!N4="B","B",IF(Symbols!N4=0,0,IF(Symbols!N4=1,"#.0",IF(Symbols!N4=2,"#.00",IF(Symbols!N4=3,"#.000",IF(Symbols!N4=4,"#.0000",IF(Symbols!N4=5,"#.00000",IF(Symbols!N4=6,"#.000000")))))))) -> 0
B3: Symbols | D3: DD | E3: DSX | F3: SF6 | G3: PIL | H3: CLE | I3: HOE | J3: RBE | K3: NGE | L3: TYA | M3: PLE
C4: Decimals | D4: 2 | E4: 0 | F4: 4 | G4: 2 | H4: 2 | I4: 4 | J4: 4 | K4: 4 | L4: B | M4: 2
B5: EP | C5: 2 | D5: =IF(Symbols!C5="B","B",IF(Symbols!C5=0,0,IF(Symbols!C5=1,"#.0",IF(Symbols!C5=2,"#.00",IF(Symbols!C5=3,"#.000",IF(Symbols!C5=4,"#.0000",IF(Symbols!C5=5,"#.00000",IF(Symbols!C5=6,"#.000000",IF(Symbols!C5=7,"#.0000000"))))))))) -> #.00
B6: ENQ | C6: 2 | D6: =IF(Symbols!C6="B","B",IF(Symbols!C6=0,0,IF(Symbols!C6=1,"#.0",IF(Symbols!C6=2,"#.00",IF(Symbols!C6=3,"#.000",IF(Symbols!C6=4,"#.0000",IF(Symbols!C6=5,"#.00000",IF(Symbols!C6=6,"#.000000",IF(Symbols!C6=7,"#.0000000"))))))))) -> #.00 | E6: Enter in, using all capitals, the symbols in the column to the left for the symbols in the first column of the Correlation matrix. This will also be the top row
B7: EMD | C7: 2 | D7: =IF(Symbols!C7="B","B",IF(Symbols!C7=0,0,IF(Symbols!C7=1,"#.0",IF(Symbols!C7=2,"#.00",IF(Symbols!C7=3,"#.000",IF(Symbols!C7=4,"#.0000",IF(Symbols!C7=5,"#.00000",IF(Symbols!C7=6,"#.000000",IF(Symbols!C7=7,"#.0000000"))))))))) -> #.00 | E7: of market information on the main display. For price formatting, enter in the number of decimals or B for bonds and grains.
B8: GCE | C8: 2 | D8: =IF(Symbols!C8="B","B",IF(Symbols!C8=0,0,IF(Symbols!C8=1,"#.0",IF(Symbols!C8=2,"#.00",IF(Symbols!C8=3,"#.000",IF(Symbols!C8=4,"#.0000",IF(Symbols!C8=5,"#.00000",IF(Symbols!C8=6,"#.000000",IF(Symbols!C8=7,"#.0000000"))))))))) -> #.00
B9: DXE | C9: 2 | D9: =IF(Symbols!C9="B","B",IF(Symbols!C9=0,0,IF(Symbols!C9=1,"#.0",IF(Symbols!C9=2,"#.00",IF(Symbols!C9=3,"#.000",IF(Symbols!C9=4,"#.0000",IF(Symbols!C9=5,"#.00000",IF(Symbols!C9=6,"#.000000",IF(Symbols!C9=7,"#.0000000"))))))))) -> #.00 | E9: Enter in, using all capitals, the symbols in the the top row above for the symbols along the top of the Correlation matrix. This will also be the bottom row
B10: EU6 | C10: 5 | D10: =IF(Symbols!C10="B","B",IF(Symbols!C10=0,0,IF(Symbols!C10=1,"#.0",IF(Symbols!C10=2,"#.00",IF(Symbols!C10=3,"#.000",IF(Symbols!C10=4,"#.0000",IF(Symbols!C10=5,"#.00000",IF(Symbols!C10=6,"#.000000",IF(Symbols!C10=7,"#.0000000"))))))))) -> #.00000 | E10: of market information on the main display. Enter in the number of decimals or B for bonds and grains.
B11: JY6 | C11: 7 | D11: =IF(Symbols!C11="B","B",IF(Symbols!C11=0,0,IF(Symbols!C11=1,"#.0",IF(Symbols!C11=2,"#.00",IF(Symbols!C11=3,"#.000",IF(Symbols!C11=4,"#.0000",IF(Symbols!C11=5,"#.00000",IF(Symbols!C11=6,"#.000000",IF(Symbols!C11=7,"#.0000000"))))))))) -> #.0000000
B12: DA6 | C12: 4 | D12: =IF(Symbols!C12="B","B",IF(Symbols!C12=0,0,IF(Symbols!C12=1,"#.0",IF(Symbols!C12=2,"#.00",IF(Symbols!C12=3,"#.000",IF(Symbols!C12=4,"#.0000",IF(Symbols!C12=5,"#.00000",IF(Symbols!C12=6,"#.000000",IF(Symbols!C12=7,"#.0000000"))))))))) -> #.0000 | E12: Click the "Chart" toolbar button on the Correlation matrix on the main display to change the scattergram chart to display
B13: BP6 | C13: 4 | D13: =IF(Symbols!C13="B","B",IF(Symbols!C13=0,0,IF(Symbols!C13=1,"#.0",IF(Symbols!C13=2,"#.00",IF(Symbols!C13=3,"#.000",IF(Symbols!C13=4,"#.0000",IF(Symbols!C13=5,"#.00000",IF(Symbols!C13=6,"#.000000",IF(Symbols!C13=7,"#.0000000"))))))))) -> #.0000 | E13: that row of correlation values relative to the market in the same row listed in the first column.
B14: MX6 | C14: 6 | D14: =IF(Symbols!C14="B","B",IF(Symbols!C14=0,0,IF(Symbols!C14=1,"#.0",IF(Symbols!C14=2,"#.00",IF(Symbols!C14=3,"#.000",IF(Symbols!C14=4,"#.0000",IF(Symbols!C14=5,"#.00000",IF(Symbols!C14=6,"#.000000",IF(Symbols!C14=7,"#.0000000"))))))))) -> #.000000
E15: Enter in the time frame and look back period for the correlation analysis. Use ADC for daily bars.
E36: Adjust the time displayed on the main display by: | J36: 0 | K36: hours | L36: =J36/24 -> 0

Sheet Data (hidden)
A1: Lookback: | B1: =MainDisplay!P11 -> 20
A2: Time Frame: | B2: =MainDisplay!N11 -> ADC | C2: =Symbols!D3 -> DD | D2: =Symbols!E3 -> DSX | E2: =Symbols!F3 -> SF6 | F2: =Symbols!G3 -> PIL | G2: =Symbols!H3 -> CLE | H2: =Symbols!I3 -> HOE | I2: =Symbols!J3 -> RBE | J2: =Symbols!K3 -> NGE | K2: =Symbols!L3 -> TYA | L2: =Symbols!M3 -> PLE
A3: =Symbols!B5 -> EP | C3: =RTD("cqg.rtd",,"StudyData", "Correlation("&$A$3&","&C$2&",Period:="&$B$1&",InputChoice1::=Close,InputChoice2::=Close)", "FG", "", "Close",$B$2, "0", "all","", "","True","T")/100 -> 0.878342263 | D3: =RTD("cqg.rtd",,"StudyData", "Correlation("&$A$3&","&D$2&",Period:="&$B$1&",InputChoice1:=Close,InputChoice2:=Close)", "FG", "", "Close",$B$2, "0", "all","", "","True","T")/100 -> 0.9486752667 | E3: =RTD("cqg.rtd",,"StudyData", "Correlation("&$A$3&","&E$2&",Period:="&$B$1&",InputChoice1:=Close,InputChoice2:=Close)", "FG", "", "Close",$B$2, "0", "all","", "","True","T")/100 -> -0.01385230524 | F3: =RTD("cqg.rtd",,"StudyData", "Correlation("&$A$3&","&F$2&",Period:="&$B$1&",InputChoice1:=Close,InputChoice2:=Close)", "FG", "", "Close",$B$2, "0", "all","", "","True","T")/100 -> 0.9746815981 | G3: =RTD("cqg.rtd",,"StudyData", "Correlation("&$A$3&","&G$2&",Period:="&$B$1&",InputChoice1:=Close,InputChoice2:=Close)", "FG", "", "Close",$B$2, "0", "all","", "","True","T")/100 -> 0.7822811833 | H3: =RTD("cqg.rtd",,"StudyData", "Correlation("&$A$3&","&H$2&",Period:="&$B$1&",InputChoice1:=Close,InputChoice2:=Close)", "FG", "", "Close",$B$2, "0", "all","", "","True","T")/100 -> 0.8960722396 | I3: =RTD("cqg.rtd",,"StudyData", "Correlation("&$A$3&","&I$2&",Period:="&$B$1&",InputChoice1:=Close,InputChoice2:=Close)", "FG", "", "Close",$B$2, "0", "all","", "","True","T")/100 -> 0.8964253449 | J3: =RTD("cqg.rtd",,"StudyData", "Correlation("&$A$3&","&J$2&",Period:="&$B$1&",InputChoice1:=Close,InputChoice2:=Close)", "FG", "", "Close",$B$2, "0", "all","", "","True","T")/100 -> 0.6217937035 | K3: =RTD("cqg.rtd",,"StudyData", "Correlation("&$A$3&","&K$2&",Period:="&$B$1&",InputChoice1:=Close,InputChoice2:=Close)", "FG", "", "Close",$B$2, "0", "all","", "","True","T")/100 -> -0.2100214992 | L3: =RTD("cqg.rtd",,"StudyData", "Correlation("&$A$3&","&L$2&",Period:="&$B$1&",InputChoice1:=Close,InputChoice2:=Close)", "FG", "", "Close",$B$2, "0", "all","", "","True","T")/100 -> 0.716468669
A4: =Symbols!B6 -> ENQ | C4: =RTD("cqg.rtd",,"StudyData", "Correlation("&$A$4&","&C$2&",Period:="&$B$1&",InputChoice1::=Close,InputChoice2::=Close)", "FG", "", "Close",$B$2, "0", "all","", "","True","T")/100 -> 0.9032987306 | D4: =RTD("cqg.rtd",,"StudyData", "Correlation("&$A$4&","&D$2&",Period:="&$B$1&",InputChoice1:=Close,InputChoice2:=Close)", "FG", "", "Close",$B$2, "0", "all","", "","True","T")/100 -> 0.95299322 | E4: =RTD("cqg.rtd",,"StudyData", "Correlation("&$A$4&","&E$2&",Period:="&$B$1&",InputChoice1:=Close,InputChoice2:=Close)", "FG", "", "Close",$B$2, "0", "all","", "","True","T")/100 -> -0.01528714231 | F4: =RTD("cqg.rtd",,"StudyData", "Correlation("&$A$4&","&F$2&",Period:="&$B$1&",InputChoice1:=Close,InputChoice2:=Close)", "FG", "", "Close",$B$2, "0", "all","", "","True","T")/100 -> 0.9565665347 | G4: =RTD("cqg.rtd",,"StudyData", "Correlation("&$A$4&","&G$2&",Period:="&$B$1&",InputChoice1:=Close,InputChoice2:=Close)", "FG", "", "Close",$B$2, "0", "all","", "","True","T")/100 -> 0.6663651563 | H4: =RTD("cqg.rtd",,"StudyData", "Correlation("&$A$4&","&H$2&",Period:="&$B$1&",InputChoice1:=Close,InputChoice2:=Close)", "FG", "", "Close",$B$2, "0", "all","", "","True","T")/100 -> 0.8049430715 | I4: =RTD("cqg.rtd",,"StudyData", "Correlation("&$A$4&","&I$2&",Period:="&$B$1&",InputChoice1:=Close,InputChoice2:=Close)", "FG", "", "Close",$B$2, "0", "all","", "","True","T")/100 -> 0.8068267841 | J4: =RTD("cqg.rtd",,"StudyData", "Correlation("&$A$4&","&J$2&",Period:="&$B$1&",InputChoice1:=Close,InputChoice2:=Close)", "FG", "", "Close",$B$2, "0", "all","", "","True","T")/100 -> 0.6241163899 | K4: =RTD("cqg.rtd",,"StudyData", "Correlation("&$A$4&","&K$2&",Period:="&$B$1&",InputChoice1:=Close,InputChoice2:=Close)", "FG", "", "Close",$B$2, "0", "all","", "","True","T")/100 -> -0.2616999558 | L4: =RTD("cqg.rtd",,"StudyData", "Correlation("&$A$4&","&L$2&",Period:="&$B$1&",InputChoice1:=Close,InputChoice2:=Close)", "FG", "", "Close",$B$2, "0", "all","", "","True","T")/100 -> 0.6963456154
A5: =Symbols!B7 -> EMD | C5: =RTD("cqg.rtd",,"StudyData", "Correlation("&$A$5&","&C$2&",Period:="&$B$1&",InputChoice1:=Close,InputChoice2:=Close)", "FG", "", "Close",$B$2, "0", "all","", "","True","T")/100 -> 0.7841590669 | D5: =RTD("cqg.rtd",,"StudyData", "Correlation("&$A$5&","&D$2&",Period:="&$B$1&",InputChoice1:=Close,InputChoice2:=Close)", "FG", "", "Close",$B$2, "0", "all","", "","True","T")/100 -> 0.8865062984 | E5: =RTD("cqg.rtd",,"StudyData", "Correlation("&$A$5&","&E$2&",Period:="&$B$1&",InputChoice1:=Close,InputChoice2:=Close)", "FG", "", "Close",$B$2, "0", "all","", "","True","T")/100 -> -0.1215678401 | F5: =RTD("cqg.rtd",,"StudyData", "Correlation("&$A$5&","&F$2&",Period:="&$B$1&",InputChoice1:=Close,InputChoice2:=Close)", "FG", "", "Close",$B$2, "0", "all","", "","True","T")/100 -> 0.92683989 | G5: =RTD("cqg.rtd",,"StudyData", "Correlation("&$A$5&","&G$2&",Period:="&$B$1&",InputChoice1:=Close,InputChoice2:=Close)", "FG", "", "Close",$B$2, "0", "all","", "","True","T")/100 -> 0.7406343679 | H5: =RTD("cqg.rtd",,"StudyData", "Correlation("&$A$5&","&H$2&",Period:="&$B$1&",InputChoice1:=Close,InputChoice2:=Close)", "FG", "", "Close",$B$2, "0", "all","", "","True","T")/100 -> 0.9001583167 | I5: =RTD("cqg.rtd",,"StudyData", "Correlation("&$A$5&","&I$2&",Period:="&$B$1&",InputChoice1:=Close,InputChoice2:=Close)", "FG", "", "Close",$B$2, "0", "all","", "","True","T")/100 -> 0.9005097723 | J5: =RTD("cqg.rtd",,"StudyData", "Correlation("&$A$5&","&J$2&",Period:="&$B$1&",InputChoice1:=Close,InputChoice2:=Close)", "FG", "", "Close",$B$2, "0", "all","", "","True","T")/100 -> 0.4889496854 | K5: =RTD("cqg.rtd",,"StudyData", "Correlation("&$A$5&","&K$2&",Period:="&$B$1&",InputChoice1:=Close,InputChoice2:=Close)", "FG", "", "Close",$B$2, "0", "all","", "","True","T")/100 -> -0.101706245 | L5: =RTD("cqg.rtd",,"StudyData", "Correlation("&$A$5&","&L$2&",Period:="&$B$1&",InputChoice1:=Close,InputChoice2:=Close)", "FG", "", "Close",$B$2, "0", "all","", "","True","T")/100 -> 0.5823149232
A6: =Symbols!B8 -> GCE | C6: =RTD("cqg.rtd",,"StudyData", "Correlation("&$A$6&","&C$2&",Period:="&$B$1&",InputChoice1:=Close,InputChoice2:=Close)", "FG", "", "Close",$B$2, "0", "all","", "","True","T")/100 -> 0.1826248519 | D6: =RTD("cqg.rtd",,"StudyData", "Correlation("&$A$6&","&D$2&",Period:="&$B$1&",InputChoice1:=Close,InputChoice2:=Close)", "FG", "", "Close",$B$2, "0", "all","", "","True","T")/100 -> 0.1832342488 | E6: =RTD("cqg.rtd",,"StudyData", "Correlation("&$A$6&","&E$2&",Period:="&$B$1&",InputChoice1:=Close,InputChoice2:=Close)", "FG", "", "Close",$B$2, "0", "all","", "","True","T")/100 -> 0.1906855594 | F6: =RTD("cqg.rtd",,"StudyData", "Correlation("&$A$6&","&F$2&",Period:="&$B$1&",InputChoice1:=Close,InputChoice2:=Close)", "FG", "", "Close",$B$2, "0", "all","", "","True","T")/100 -> 0.2551039012 | G6: =RTD("cqg.rtd",,"StudyData", "Correlation("&$A$6&","&G$2&",Period:="&$B$1&",InputChoice1:=Close,InputChoice2:=Close)", "FG", "", "Close",$B$2, "0", "all","", "","True","T")/100 -> 0.5106457201 | H6: =RTD("cqg.rtd",,"StudyData", "Correlation("&$A$6&","&H$2&",Period:="&$B$1&",InputChoice1:=Close,InputChoice2:=Close)", "FG", "", "Close",$B$2, "0", "all","", "","True","T")/100 -> 0.4040978727 | I6: =RTD("cqg.rtd",,"StudyData", "Correlation("&$A$6&","&I$2&",Period:="&$B$1&",InputChoice1:=Close,InputChoice2:=Close)", "FG", "", "Close",$B$2, "0", "all","", "","True","T")/100 -> 0.4542386305 | J6: =RTD("cqg.rtd",,"StudyData", "Correlation("&$A$6&","&J$2&",Period:="&$B$1&",InputChoice1:=Close,InputChoice2:=Close)", "FG", "", "Close",$B$2, "0", "all","", "","True","T")/100 -> -0.04961668089 | K6: =RTD("cqg.rtd",,"StudyData", "Correlation("&$A$6&","&K$2&",Period:="&$B$1&",InputChoice1:=Close,InputChoice2:=Close)", "FG", "", "Close",$B$2, "0", "all","", "","True","T")/100 -> 0.5443930858 | L6: =RTD("cqg.rtd",,"StudyData", "Correlation("&$A$6&","&L$2&",Period:="&$B$1&",InputChoice1:=Close,InputChoice2:=Close)", "FG", "", "Close",$B$2, "0", "all","", "","True","T")/100 -> 0.1724328125
A7: =Symbols!B9 -> DXE | C7: =RTD("cqg.rtd",,"StudyData", "Correlation("&$A$7&","&C$2&",Period:="&$B$1&",InputChoice1:=Close,InputChoice2:=Close)", "FG", "", "Close",$B$2, "0", "all","", "","True","T")/100 -> -0.342252141 | D7: =RTD("cqg.rtd",,"StudyData", "Correlation("&$A$7&","&D$2&",Period:="&$B$1&",InputChoice1:=Close,InputChoice2:=Close)", "FG", "", "Close",$B$2, "0", "all","", "","True","T")/100 -> -0.1381428299 | E7: =RTD("cqg.rtd",,"StudyData", "Correlation("&$A$7&","&E$2&",Period:="&$B$1&",InputChoice1:=Close,InputChoice2:=Close)", "FG", "", "Close",$B$2, "0", "all","", "","True","T")/100 -> -0.8324460437 | F7: =RTD("cqg.rtd",,"StudyData", "Correlation("&$A$7&","&F$2&",Period:="&$B$1&",InputChoice1:=Close,InputChoice2:=Close)", "FG", "", "Close",$B$2, "0", "all","", "","True","T")/100 -> -0.1132504943 | G7: =RTD("cqg.rtd",,"StudyData", "Correlation("&$A$7&","&G$2&",Period:="&$B$1&",InputChoice1:=Close,InputChoice2:=Close)", "FG", "", "Close",$B$2, "0", "all","", "","True","T")/100 -> -0.1715915778 | H7: =RTD("cqg.rtd",,"StudyData", "Correlation("&$A$7&","&H$2&",Period:="&$B$1&",InputChoice1:=Close,InputChoice2:=Close)", "FG", "", "Close",$B$2, "0", "all","", "","True","T")/100 -> 0.07516660868 | I7: =RTD("cqg.rtd",,"StudyData", "Correlation("&$A$7&","&I$2&",Period:="&$B$1&",InputChoice1:=Close,InputChoice2:=Close)", "FG", "", "Close",$B$2, "0", "all","", "","True","T")/100 -> 0.03211292536 | J7: =RTD("cqg.rtd",,"StudyData", "Correlation("&$A$7&","&J$2&",Period:="&$B$1&",InputChoice1:=Close,InputChoice2:=Close)", "FG", "", "Close",$B$2, "0", "all","", "","True","T")/100 -> -0.4239563115 | K7: =RTD("cqg.rtd",,"StudyData", "Correlation("&$A$7&","&K$2&",Period:="&$B$1&",InputChoice1:=Close,InputChoice2:=Close)", "FG", "", "Close",$B$2, "0", "all","", "","True","T")/100 -> 0.1159205432 | L7: =RTD("cqg.rtd",,"StudyData", "Correlation("&$A$7&","&L$2&",Period:="&$B$1&",InputChoice1:=Close,InputChoice2:=Close)", "FG", "", "Close",$B$2, "0", "all","", "","True","T")/100 -> -0.5691237517
A8: =Symbols!B10 -> EU6 | C8: =RTD("cqg.rtd",,"StudyData", "Correlation("&$A$8&","&C$2&",Period:="&$B$1&",InputChoice1:=Close,InputChoice2:=Close)", "FG", "", "Close",$B$2, "0", "all","", "","True","T")/100 -> 0.1581910037 | D8: =RTD("cqg.rtd",,"StudyData", "Correlation("&$A$8&","&D$2&",Period:="&$B$1&",InputChoice1:=Close,InputChoice2:=Close)", "FG", "", "Close",$B$2, "0", "all","", "","True","T")/100 -> -0.07621997828 | E8: =RTD("cqg.rtd",,"StudyData", "Correlation("&$A$8&","&E$2&",Period:="&$B$1&",InputChoice1:=Close,InputChoice2:=Close)", "FG", "", "Close",$B$2, "0", "all","", "","True","T")/100 -> 0.8537391287 | F8: =RTD("cqg.rtd",,"StudyData", "Correlation("&$A$8&","&F$2&",Period:="&$B$1&",InputChoice1:=Close,InputChoice2:=Close)", "FG", "", "Close",$B$2, "0", "all","", "","True","T")/100 -> -0.1165849184 | G8: =RTD("cqg.rtd",,"StudyData", "Correlation("&$A$8&","&G$2&",Period:="&$B$1&",InputChoice1:=Close,InputChoice2:=Close)", "FG", "", "Close",$B$2, "0", "all","", "","True","T")/100 -> 0.0574997611 | H8: =RTD("cqg.rtd",,"StudyData", "Correlation("&$A$8&","&H$2&",Period:="&$B$1&",InputChoice1:=Close,InputChoice2:=Close)", "FG", "", "Close",$B$2, "0", "all","", "","True","T")/100 -> -0.1976296668 | I8: =RTD("cqg.rtd",,"StudyData", "Correlation("&$A$8&","&I$2&",Period:="&$B$1&",InputChoice1:=Close,InputChoice2:=Close)", "FG", "", "Close",$B$2, "0", "all","", "","True","T")/100 -> -0.1584170272 | J8: =RTD("cqg.rtd",,"StudyData", "Correlation("&$A$8&","&J$2&",Period:="&$B$1&",InputChoice1:=Close,InputChoice2:=Close)", "FG", "", "Close",$B$2, "0", "all","", "","True","T")/100 -> 0.3640652176 | K8: =RTD("cqg.rtd",,"StudyData", "Correlation("&$A$8&","&K$2&",Period:="&$B$1&",InputChoice1:=Close,InputChoice2:=Close)", "FG", "", "Close",$B$2, "0", "all","", "","True","T")/100 -> -0.1888518823 | L8: =RTD("cqg.rtd",,"StudyData", "Correlation("&$A$8&","&L$2&",Period:="&$B$1&",InputChoice1:=Close,InputChoice2:=Close)", "FG", "", "Close",$B$2, "0", "all","", "","True","T")/100 -> 0.4590818834
A9: =Symbols!B11 -> JY6 | C9: =RTD("cqg.rtd",,"StudyData", "Correlation("&$A$9&","&C$2&",Period:="&$B$1&",InputChoice1:=Close,InputChoice2:=Close)", "FG", "", "Close",$B$2, "0", "all","", "","True","T")/100 -> -0.705615447 | D9: =RTD("cqg.rtd",,"StudyData", "Correlation("&$A$9&","&D$2&",Period:="&$B$1&",InputChoice1:=Close,InputChoice2:=Close)", "FG", "", "Close",$B$2, "0", "all","", "","True","T")/100 -> -0.8344375425 | E9: =RTD("cqg.rtd",,"StudyData", "Correlation("&$A$9&","&E$2&",Period:="&$B$1&",InputChoice1:=Close,InputChoice2:=Close)", "FG", "", "Close",$B$2, "0", "all","", "","True","T")/100 -> 0.3387248199 | F9: =RTD("cqg.rtd",,"StudyData", "Correlation("&$A$9&","&F$2&",Period:="&$B$1&",InputChoice1:=Close,InputChoice2:=Close)", "FG", "", "Close",$B$2, "0", "all","", "","True","T")/100 -> -0.8380563522 | G9: =RTD("cqg.rtd",,"StudyData", "Correlation("&$A$9&","&G$2&",Period:="&$B$1&",InputChoice1:=Close,InputChoice2:=Close)", "FG", "", "Close",$B$2, "0", "all","", "","True","T")/100 -> -0.6001940765 | H9: =RTD("cqg.rtd",,"StudyData", "Correlation("&$A$9&","&H$2&",Period:="&$B$1&",InputChoice1:=Close,InputChoice2:=Close)", "FG", "", "Close",$B$2, "0", "all","", "","True","T")/100 -> -0.6653803564 | I9: =RTD("cqg.rtd",,"StudyData", "Correlation("&$A$9&","&I$2&",Period:="&$B$1&",InputChoice1:=Close,InputChoice2:=Close)", "FG", "", "Close",$B$2, "0", "all","", "","True","T")/100 -> -0.6528940809 | J9: =RTD("cqg.rtd",,"StudyData", "Correlation("&$A$9&","&J$2&",Period:="&$B$1&",InputChoice1:=Close,InputChoice2:=Close)", "FG", "", "Close",$B$2, "0", "all","", "","True","T")/100 -> -0.6954868968 | K9: =RTD("cqg.rtd",,"StudyData", "Correlation("&$A$9&","&K$2&",Period:="&$B$1&",InputChoice1:=Close,InputChoice2:=Close)", "FG", "", "Close",$B$2, "0", "all","", "","True","T")/100 -> 0.5315791994 | L9: =RTD("cqg.rtd",,"StudyData", "Correlation("&$A$9&","&L$2&",Period:="&$B$1&",InputChoice1:=Close,InputChoice2:=Close)", "FG", "", "Close",$B$2, "0", "all","", "","True","T")/100 -> -0.631001872
A10: =Symbols!B12 -> DA6 | C10: =RTD("cqg.rtd",,"StudyData", "Correlation("&$A$10&","&C$2&",Period:="&$B$1&",InputChoice1:=Close,InputChoice2:=Close)", "FG", "", "Close",$B$2, "0", "all","", "","True","T")/100 -> 0.153718441 | D10: =RTD("cqg.rtd",,"StudyData", "Correlation("&$A$10&","&D$2&",Period:="&$B$1&",InputChoice1:=Close,InputChoice2:=Close)", "FG", "", "Close",$B$2, "0", "all","", "","True","T")/100 -> -0.04422175186 | E10: =RTD("cqg.rtd",,"StudyData", "Correlation("&$A$10&","&E$2&",Period:="&$B$1&",InputChoice1:=Close,InputChoice2:=Close)", "FG", "", "Close",$B$2, "0", "all","", "","True","T")/100 -> 0.6047739254 | F10: =RTD("cqg.rtd",,"StudyData", "Correlation("&$A$10&","&F$2&",Period:="&$B$1&",InputChoice1:=Close,InputChoice2:=Close)", "FG", "", "Close",$B$2, "0", "all","", "","True","T")/100 -> -0.04717057481 | G10: =RTD("cqg.rtd",,"StudyData", "Correlation("&$A$10&","&G$2&",Period:="&$B$1&",InputChoice1:=Close,InputChoice2:=Close)", "FG", "", "Close",$B$2, "0", "all","", "","True","T")/100 -> 0.2032766955 | H10: =RTD("cqg.rtd",,"StudyData", "Correlation("&$A$10&","&H$2&",Period:="&$B$1&",InputChoice1:=Close,InputChoice2:=Close)", "FG", "", "Close",$B$2, "0", "all","", "","True","T")/100 -> 0.003538249541 | I10: =RTD("cqg.rtd",,"StudyData", "Correlation("&$A$10&","&I$2&",Period:="&$B$1&",InputChoice1:=Close,InputChoice2:=Close)", "FG", "", "Close",$B$2, "0", "all","", "","True","T")/100 -> 0.03514539899 | J10: =RTD("cqg.rtd",,"StudyData", "Correlation("&$A$10&","&J$2&",Period:="&$B$1&",InputChoice1:=Close,InputChoice2:=Close)", "FG", "", "Close",$B$2, "0", "all","", "","True","T")/100 -> 0.106627925 | K10: =RTD("cqg.rtd",,"StudyData", "Correlation("&$A$10&","&K$2&",Period:="&$B$1&",InputChoice1:=Close,InputChoice2:=Close)", "FG", "", "Close",$B$2, "0", "all","", "","True","T")/100 -> 0.1194045242 | L10: =RTD("cqg.rtd",,"StudyData", "Correlation("&$A$10&","&L$2&",Period:="&$B$1&",InputChoice1:=Close,InputChoice2:=Close)", "FG", "", "Close",$B$2, "0", "all","", "","True","T")/100 -> 0.2543261788
A11: =Symbols!B13 -> BP6 | C11: =RTD("cqg.rtd",,"StudyData", "Correlation("&$A$11&","&C$2&",Period:="&$B$1&",InputChoice1:=Close,InputChoice2:=Close)", "FG", "", "Close",$B$2, "0", "all","", "","True","T")/100 -> 0.7301857189 | D11: =RTD("cqg.rtd",,"StudyData", "Correlation("&$A$11&","&D$2&",Period:="&$B$1&",InputChoice1:=Close,InputChoice2:=Close)", "FG", "", "Close",$B$2, "0", "all","", "","True","T")/100 -> 0.6818297099 | E11: =RTD("cqg.rtd",,"StudyData", "Correlation("&$A$11&","&E$2&",Period:="&$B$1&",InputChoice1:=Close,InputChoice2:=Close)", "FG", "", "Close",$B$2, "0", "all","", "","True","T")/100 -> 0.5229081914 | F11: =RTD("cqg.rtd",,"StudyData", "Correlation("&$A$11&","&F$2&",Period:="&$B$1&",InputChoice1:=Close,InputChoice2:=Close)", "FG", "", "Close",$B$2, "0", "all","", "","True","T")/100 -> 0.6748845595 | G11: =RTD("cqg.rtd",,"StudyData", "Correlation("&$A$11&","&G$2&",Period:="&$B$1&",InputChoice1:=Close,InputChoice2:=Close)", "FG", "", "Close",$B$2, "0", "all","", "","True","T")/100 -> 0.5872187546 | H11: =RTD("cqg.rtd",,"StudyData", "Correlation("&$A$11&","&H$2&",Period:="&$B$1&",InputChoice1:=Close,InputChoice2:=Close)", "FG", "", "Close",$B$2, "0", "all","", "","True","T")/100 -> 0.502614289 | I11: =RTD("cqg.rtd",,"StudyData", "Correlation("&$A$11&","&I$2&",Period:="&$B$1&",InputChoice1:=Close,InputChoice2:=Close)", "FG", "", "Close",$B$2, "0", "all","", "","True","T")/100 -> 0.5387545409 | J11: =RTD("cqg.rtd",,"StudyData", "Correlation("&$A$11&","&J$2&",Period:="&$B$1&",InputChoice1:=Close,InputChoice2:=Close)", "FG", "", "Close",$B$2, "0", "all","", "","True","T")/100 -> 0.8167577455 | K11: =RTD("cqg.rtd",,"StudyData", "Correlation("&$A$11&","&K$2&",Period:="&$B$1&",InputChoice1:=Close,InputChoice2:=Close)", "FG", "", "Close",$B$2, "0", "all","", "","True","T")/100 -> -0.2192893867 | L11: =RTD("cqg.rtd",,"StudyData", "Correlation("&$A$11&","&L$2&",Period:="&$B$1&",InputChoice1:=Close,InputChoice2:=Close)", "FG", "", "Close",$B$2, "0", "all","", "","True","T")/100 -> 0.9457096161
A12: =Symbols!B14 -> MX6 | C12: =RTD("cqg.rtd",,"StudyData", "Correlation("&$A$12&","&C$2&",Period:="&$B$1&",InputChoice1:=Close,InputChoice2:=Close)", "FG", "", "Close",$B$2, "0", "all","", "","True","T")/100 -> 0.1672904118 | D12: =RTD("cqg.rtd",,"StudyData", "Correlation("&$A$12&","&D$2&",Period:="&$B$1&",InputChoice1:=Close,InputChoice2:=Close)", "FG", "", "Close",$B$2, "0", "all","", "","True","T")/100 -> 0.01139414594 | E12: =RTD("cqg.rtd",,"StudyData", "Correlation("&$A$12&","&E$2&",Period:="&$B$1&",InputChoice1:=Close,InputChoice2:=Close)", "FG", "", "Close",$B$2, "0", "all","", "","True","T")/100 -> 0.7112867674 | F12: =RTD("cqg.rtd",,"StudyData", "Correlation("&$A$12&","&F$2&",Period:="&$B$1&",InputChoice1:=Close,InputChoice2:=Close)", "FG", "", "Close",$B$2, "0", "all","", "","True","T")/100 -> 0.03439264857 | G12: =RTD("cqg.rtd",,"StudyData", "Correlation("&$A$12&","&G$2&",Period:="&$B$1&",InputChoice1:=Close,InputChoice2:=Close)", "FG", "", "Close",$B$2, "0", "all","", "","True","T")/100 -> 0.08200007815 | H12: =RTD("cqg.rtd",,"StudyData", "Correlation("&$A$12&","&H$2&",Period:="&$B$1&",InputChoice1:=Close,InputChoice2:=Close)", "FG", "", "Close",$B$2, "0", "all","", "","True","T")/100 -> -0.06665430328 | I12: =RTD("cqg.rtd",,"StudyData", "Correlation("&$A$12&","&I$2&",Period:="&$B$1&",InputChoice1:=Close,InputChoice2:=Close)", "FG", "", "Close",$B$2, "0", "all","", "","True","T")/100 -> 0.01565664234 | J12: =RTD("cqg.rtd",,"StudyData", "Correlation("&$A$12&","&J$2&",Period:="&$B$1&",InputChoice1:=Close,InputChoice2:=Close)", "FG", "", "Close",$B$2, "0", "all","", "","True","T")/100 -> 0.2168661462 | K12: =RTD("cqg.rtd",,"StudyData", "Correlation("&$A$12&","&K$2&",Period:="&$B$1&",InputChoice1:=Close,InputChoice2:=Close)", "FG", "", "Close",$B$2, "0", "all","", "","True","T")/100 -> 0.3038398768 | L12: =RTD("cqg.rtd",,"StudyData", "Correlation("&$A$12&","&L$2&",Period:="&$B$1&",InputChoice1:=Close,InputChoice2:=Close)", "FG", "", "Close",$B$2, "0", "all","", "","True","T")/100 -> 0.401698579

Sheet 1 (hidden)
A1: Lookback | B1: =Data!B1 -> 20
A2: TimeFrame | B2: =Data!B2 -> ADC | C2: =Data!C2 -> DD | I2: =Data!D2 -> DSX | O2: =Data!E2 -> SF6 | U2: =Data!F2 -> PIL | AA2: =Data!G2 -> CLE | AG2: =Data!H2 -> HOE | AM2: =Data!I2 -> RBE | AS2: =Data!J2 -> NGE | AY2: =Data!K2 -> TYA | BE2: =Data!L2 -> PLE
A3: Symbol | B3: =MainDisplay!E1 -> GCE
A4: 0 | C4: =IFERROR(RTD("cqg.rtd",,"StudyData", "Correlation("&$B$3&","&C$2&",Period:="&$B$1&",InputChoice1:=Close,InputChoice2:=Close)", "FG", "", "Close",$B$2,A4, "all","", "","True","T")/100,"") -> 0.1826248519 | E4: -1 | F4: =FREQUENCY(C4:C104,E4:E104) -> 0 | G4: =IF(AND($C$4>=E4,$C$4<E5),IF(F4=0,1,F4),NA()) ->  | I4: =IFERROR(RTD("cqg.rtd",,"StudyData", "Correlation("&$B$3&","&I$2&",Period:="&$B$1&",InputChoice1:=Close,InputChoice2::=Close)", "FG", "", "Close",$B$2,A4, "all","", "","True","T")/100,"") -> 0.1832342488 | K4: -1 | L4: =FREQUENCY(I4:I104,K4:K104) -> 0 | M4: =IF(AND($I$4>=K4,$I$4<K5),IF(L4=0,1,L4),NA()) ->  | O4: =IFERROR(RTD("cqg.rtd",,"StudyData", "Correlation("&$B$3&","&O$2&",Period:="&$B$1&",InputChoice1:=Close,InputChoice2::=Close)", "FG", "", "Close",$B$2,A4, "all","", "","True","T")/100,"") -> 0.1906855594 | Q4: -1 | R4: =FREQUENCY(O4:O104,Q4:Q104) -> 0 | S4: =IF(AND($O$4>=Q4,$O$4<Q5),IF(R4=0,1,R4),NA()) ->  | U4: =IFERROR(RTD("cqg.rtd",,"StudyData", "Correlation("&$B$3&","&U$2&",Period:="&$B$1&",InputChoice1:=Close,InputChoice2::=Close)", "FG", "", "Close",$B$2,A4, "all","", "","True","T")/100,"") -> 0.2551039012 | W4: -1 | X4: =FREQUENCY(U4:U104,W4:W104) -> 0 | Y4: =IF(AND($U$4>=W4,$U$4<W5),IF(X4=0,1,X4),NA()) ->  | AA4: =IFERROR(RTD("cqg.rtd",,"StudyData", "Correlation("&$B$3&","&AA$2&",Period:="&$B$1&",InputChoice1:=Close,InputChoice2::=Close)", "FG", "", "Close",$B$2,A4, "all","", "","True","T")/100,"") -> 0.5106457201 | AC4: -1 | AD4: =FREQUENCY(AA4:AA104,AC4:AC104) -> 0 | AE4: =IF(AND($AA$4>=AC4,$AA$4<AC5),IF(AD4=0,1,AD4),NA()) ->  | AG4: =IFERROR(RTD("cqg.rtd",,"StudyData", "Correlation("&$B$3&","&AG$2&",Period:="&$B$1&",InputChoice1:=Close,InputChoice2::=Close)", "FG", "", "Close",$B$2,A4, "all","", "","True","T")/100,"") -> 0.4040978727 | AI4: -1 | AJ4: =FREQUENCY(AG4:AG104,AI4:AI104) -> 0 | AK4: =IF(AND($AG$4>=AI4,$AG$4<AI5),IF(AJ4=0,1,AJ4),NA()) ->  | AM4: =IFERROR(RTD("cqg.rtd",,"StudyData", "Correlation("&$B$3&","&AM$2&",Period:="&$B$1&",InputChoice1:=Close,InputChoice2::=Close)", "FG", "", "Close",$B$2,A4, "all","", "","True","T")/100,"") -> 0.4542386305 | AO4: -1 | AP4: =FREQUENCY(AM4:AM104,AO4:AO104) -> 0 | AQ4: =IF(AND($AM$4>=AO4,$AM$4<AO5),IF(AP4=0,1,AP4),NA()) ->  | AS4: =IFERROR(RTD("cqg.rtd",,"StudyData", "Correlation("&$B$3&","&AS$2&",Period:="&$B$1&",InputChoice1:=Close,InputChoice2::=Close)", "FG", "", "Close",$B$2,A4, "all","", "","True","T")/100,"") -> -0.04961668089 | AU4: -1 | AV4: =FREQUENCY(AS4:AS104,AU4:AU104) -> 0 | AW4: =IF(AND($AS$4>=AU4,$AS$4<AU5),IF(AV4=0,1,AV4),NA()) ->  | AY4: =IFERROR(RTD("cqg.rtd",,"StudyData", "Correlation("&$B$3&","&AY$2&",Period:="&$B$1&",InputChoice1:=Close,InputChoice2::=Close)", "FG", "", "Close",$B$2,A4, "all","", "","True","T")/100,"") -> 0.5443930858 | BA4: -1 | BB4: =FREQUENCY(AY4:AY104,BA4:BA104) -> 0 | BC4: =IF(AND($AY$4>=BA4,$AY$4<BA5),IF(BB4=0,1,BB4),NA()) ->  | BE4: =IFERROR(RTD("cqg.rtd",,"StudyData", "Correlation("&$B$3&","&BE$2&",Period:="&$B$1&",InputChoice1:=Close,InputChoice2::=Close)", "FG", "", "Close",$B$2,A4, "all","", "","True","T")/100,"") -> 0.1724328125 | BG4: -1 | BH4: =FREQUENCY(BE4:BE104,BG4:BG104) -> 0 | BI4: =IF(AND($BE$4>=BG4,$BE$4<BG5),IF(BH4=0,1,BH4),NA()) -> 
A5: =A4-1 -> -1 | C5: =IFERROR(RTD("cqg.rtd",,"StudyData", "Correlation("&$B$3&","&C$2&",Period:="&$B$1&",InputChoice1:=Close,InputChoice2:=Close)", "FG", "", "Close",$B$2,A5, "all","", "","True","T")/100,"") -> 0.4800916724 | E5: =E4+0.02 -> -0.98 | F5: 0 | G5: =IF(AND($C$4>=E5,$C$4<E6),IF(F5=0,1,F5),NA()) ->  | I5: =IFERROR(RTD("cqg.rtd",,"StudyData", "Correlation("&$B$3&","&I$2&",Period:="&$B$1&",InputChoice1:=Close,InputChoice2::=Close)", "FG", "", "Close",$B$2,A5, "all","", "","True","T")/100,"") -> 0.4700459039 | K5: =K4+0.02 -> -0.98 | L5: 0 | M5: =IF(AND($I$4>=K5,$I$4<K6),IF(L5=0,1,L5),NA()) ->  | O5: =IFERROR(RTD("cqg.rtd",,"StudyData", "Correlation("&$B$3&","&O$2&",Period:="&$B$1&",InputChoice1:=Close,InputChoice2::=Close)", "FG", "", "Close",$B$2,A5, "all","", "","True","T")/100,"") -> 0.2216965541 | Q5: =Q4+0.02 -> -0.98 | R5: 0 | S5: =IF(AND($O$4>=Q5,$O$4<Q6),IF(R5=0,1,R5),NA()) ->  | U5: =IFERROR(RTD("cqg.rtd",,"StudyData", "Correlation("&$B$3&","&U$2&",Period:="&$B$1&",InputChoice1:=Close,InputChoice2::=Close)", "FG", "", "Close",$B$2,A5, "all","", "","True","T")/100,"") -> 0.5394338857 | W5: =W4+0.02 -> -0.98 | X5: 0 | Y5: =IF(AND($U$4>=W5,$U$4<W6),IF(X5=0,1,X5),NA()) ->  | AA5: =IFERROR(RTD("cqg.rtd",,"StudyData", "Correlation("&$B$3&","&AA$2&",Period:="&$B$1&",InputChoice1:=Close,InputChoice2::=Close)", "FG", "", "Close",$B$2,A5, "all","", "","True","T")/100,"") -> 0.6383316532 | AC5: =AC4+0.02 -> -0.98 | AD5: 0 | AE5: =IF(AND($AA$4>=AC5,$AA$4<AC6),IF(AD5=0,1,AD5),NA()) ->  | AG5: =IFERROR(RTD("cqg.rtd",,"StudyData", "Correlation("&$B$3&","&AG$2&",Period:="&$B$1&",InputChoice1:=Close,InputChoice2::=Close)", "FG", "", "Close",$B$2,A5, "all","", "","True","T")/100,"") -> 0.53918757 | AI5: =AI4+0.02 -> -0.98 | AJ5: 0 | AK5: =IF(AND($AG$4>=AI5,$AG$4<AI6),IF(AJ5=0,1,AJ5),NA()) ->  | AM5: =IFERROR(RTD("cqg.rtd",,"StudyData", "Correlation("&$B$3&","&AM$2&",Period:="&$B$1&",InputChoice1:=Close,InputChoice2::=Close)", "FG", "", "Close",$B$2,A5, "all","", "","True","T")/100,"") -> 0.5716429477 | AO5: =AO4+0.02 -> -0.98 | AP5: 0 | AQ5: =IF(AND($AM$4>=AO5,$AM$4<AO6),IF(AP5=0,1,AP5),NA()) ->  | AS5: =IFERROR(RTD("cqg.rtd",,"StudyData", "Correlation("&$B$3&","&AS$2&",Period:="&$B$1&",InputChoice1:=Close,InputChoice2::=Close)", "FG", "", "Close",$B$2,A5, "all","", "","True","T")/100,"") -> 0.2362507899 | AU5: =AU4+0.02 -> -0.98 | AV5: 0 | AW5: =IF(AND($AS$4>=AU5,$AS$4<AU6),IF(AV5=0,1,AV5),NA()) ->  | AY5: =IFERROR(RTD("cqg.rtd",,"StudyData", "Correlation("&$B$3&","&AY$2&",Period:="&$B$1&",InputChoice1:=Close,InputChoice2::=Close)", "FG", "", "Close",$B$2,A5, "all","", "","True","T")/100,"") -> 0.303646455 | BA5: =BA4+0.02 -> -0.98 | BB5: 0 | BC5: =IF(AND($AY$4>=BA5,$AY$4<BA6),IF(BB5=0,1,BB5),NA()) ->  | BE5: =IFERROR(RTD("cqg.rtd",,"StudyData", "Correlation("&$B$3&","&BE$2&",Period:="&$B$1&",InputChoice1:=Close,InputChoice2::=Close)", "FG", "", "Close",$B$2,A5, "all","", "","True","T")/100,"") -> 0.4126140974 | BG5: =BG4+0.02 -> -0.98 | BH5: 0 | BI5: =IF(AND($BE$4>=BG5,$BE$4<BG6),IF(BH5=0,1,BH5),NA()) -> 
A6: =A5-1 -> -2 | C6: =IFERROR(RTD("cqg.rtd",,"StudyData", "Correlation("&$B$3&","&C$2&",Period:="&$B$1&",InputChoice1:=Close,InputChoice2:=Close)", "FG", "", "Close",$B$2,A6, "all","", "","True","T")/100,"") -> 0.5718453696 | E6: =E5+0.02 -> -0.96 | F6: 0 | I6: =IFERROR(RTD("cqg.rtd",,"StudyData", "Correlation("&$B$3&","&I$2&",Period:="&$B$1&",InputChoice1:=Close,InputChoice2::=Close)", "FG", "", "Close",$B$2,A6, "all","", "","True","T")/100,"") -> 0.5907435659 | K6: =K5+0.02 -> -0.96 | L6: 0 | O6: =IFERROR(RTD("cqg.rtd",,"StudyData", "Correlation("&$B$3&","&O$2&",Period:="&$B$1&",InputChoice1:=Close,InputChoice2::=Close)", "FG", "", "Close",$B$2,A6, "all","", "","True","T")/100,"") -> 0.247654102 | Q6: =Q5+0.02 -> -0.96 | R6: 0 | U6: =IFERROR(RTD("cqg.rtd",,"StudyData", "Correlation("&$B$3&","&U$2&",Period:="&$B$1&",InputChoice1:=Close,InputChoice2::=Close)", "FG", "", "Close",$B$2,A6, "all","", "","True","T")/100,"") -> 0.6488428569 | W6: =W5+0.02 -> -0.96 | X6: 0 | AA6: =IFERROR(RTD("cqg.rtd",,"StudyData", "Correlation("&$B$3&","&AA$2&",Period:="&$B$1&",InputChoice1:=Close,InputChoice2::=Close)", "FG", "", "Close",$B$2,A6, "all","", "","True","T")/100,"") -> 0.7370283105 | AC6: =AC5+0.02 -> -0.96 | AD6: 0 | AG6: =IFERROR(RTD("cqg.rtd",,"StudyData", "Correlation("&$B$3&","&AG$2&",Period:="&$B$1&",InputChoice1:=Close,InputChoice2::=Close)", "FG", "", "Close",$B$2,A6, "all","", "","True","T")/100,"") -> 0.635035641 | AI6: =AI5+0.02 -> -0.96 | AJ6: 0 | AM6: =IFERROR(RTD("cqg.rtd",,"StudyData", "Correlation("&$B$3&","&AM$2&",Period:="&$B$1&",InputChoice1:=Close,InputChoice2::=Close)", "FG", "", "Close",$B$2,A6, "all","", "","True","T")/100,"") -> 0.6556182308 | AO6: =AO5+0.02 -> -0.96 | AP6: 0 | AS6: =IFERROR(RTD("cqg.rtd",,"StudyData", "Correlation("&$B$3&","&AS$2&",Period:="&$B$1&",InputChoice1:=Close,InputChoice2::=Close)", "FG", "", "Close",$B$2,A6, "all","", "","True","T")/100,"") -> 0.1830780171 | AU6: =AU5+0.02 -> -0.96 | AV6: 0 | AY6: =IFERROR(RTD("cqg.rtd",,"StudyData", "Correlation("&$B$3&","&AY$2&",Period:="&$B$1&",InputChoice1:=Close,InputChoice2::=Close)", "FG", "", "Close",$B$2,A6, "all","", "","True","T")/100,"") -> 0.2743067926 | BA6: =BA5+0.02 -> -0.96 | BB6: 0 | BE6: =IFERROR(RTD("cqg.rtd",,"StudyData", "Correlation("&$B$3&","&BE$2&",Period:="&$B$1&",InputChoice1:=Close,InputChoice2::=Close)", "FG", "", "Close",$B$2,A6, "all","", "","True","T")/100,"") -> 0.5501250146 | BG6: =BG5+0.02 -> -0.96 | BH6: 0
A7: -3 | C7: =IFERROR(RTD("cqg.rtd",,"StudyData", "Correlation("&$B$3&","&C$2&",Period:="&$B$1&",InputChoice1:=Close,InputChoice2:=Close)", "FG", "", "Close",$B$2,A7, "all","", "","True","T")/100,"") -> 0.6090369031 | E7: -0.94 | F7: 0 | I7: =IFERROR(RTD("cqg.rtd",,"StudyData", "Correlation("&$B$3&","&I$2&",Period:="&$B$1&",InputChoice1:=Close,InputChoice2::=Close)", "FG", "", "Close",$B$2,A7, "all","", "","True","T")/100,"") -> 0.6506988992 | K7: -0.94 | L7: 0 | O7: =IFERROR(RTD("cqg.rtd",,"StudyData", "Correlation("&$B$3&","&O$2&",Period:="&$B$1&",InputChoice1:=Close,InputChoice2::=Close)", "FG", "", "Close",$B$2,A7, "all","", "","True","T")/100,"") -> 0.1355994456 | Q7: -0.94 | R7: 0 | U7: =IFERROR(RTD("cqg.rtd",,"StudyData", "Correlation("&$B$3&","&U$2&",Period:="&$B$1&",InputChoice1:=Close,InputChoice2::=Close)", "FG", "", "Close",$B$2,A7, "all","", "","True","T")/100,"") -> 0.701697042 | W7: -0.94 | X7: 0 | AA7: =IFERROR(RTD("cqg.rtd",,"StudyData", "Correlation("&$B$3&","&AA$2&",Period:="&$B$1&",InputChoice1:=Close,InputChoice2::=Close)", "FG", "", "Close",$B$2,A7, "all","", "","True","T")/100,"") -> 0.7963546051 | AC7: -0.94 | AD7: 0 | AG7: =IFERROR(RTD("cqg.rtd",,"StudyData", "Correlation("&$B$3&","&AG$2&",Period:="&$B$1&",InputChoice1:=Close,InputChoice2::=Close)", "FG", "", "Close",$B$2,A7, "all","", "","True","T")/100,"") -> 0.6908722799 | AI7: -0.94 | AJ7: 0 | AM7: =IFERROR(RTD("cqg.rtd",,"StudyData", "Correlation("&$B$3&","&AM$2&",Period:="&$B$1&",InputChoice1:=Close,InputChoice2::=Close)", "FG", "", "Close",$B$2,A7, "all","", "","True","T")/100,"") -> 0.7093897407 | AO7: -0.94 | AP7: 0 | AS7: =IFERROR(RTD("cqg.rtd",,"StudyData", "Correlation("&$B$3&","&AS$2&",Period:="&$B$1&",InputChoice1:=Close,InputChoice2::=Close)", "FG", "", "Close",$B$2,A7, "all","", "","True","T")/100,"") -> 0.07800732439 | AU7: -0.94 | AV7: 0 | AY7: =IFERROR(RTD("cqg.rtd",,"StudyData", "Correlation("&$B$3&","&AY$2&",Period:="&$B$1&",InputChoice1:=Close,InputChoice2::=Close)", "FG", "", "Close",$B$2,A7, "all","", "","True","T")/100,"") -> 0.3073982068 | BA7: -0.94 | BB7: 0 | BE7: =IFERROR(RTD("cqg.rtd",,"StudyData", "Correlation("&$B$3&","&BE$2&",Period:="&$B$1&",InputChoice1:=Close,InputChoice2::=Close)", "FG", "", "Close",$B$2,A7, "all","", "","True","T")/100,"") -> 0.6456388093 | BG7: -0.94 | BH7: 0
A8: -4 | C8: =IFERROR(RTD("cqg.rtd",,"StudyData", "Correlation("&$B$3&","&C$2&",Period:="&$B$1&",InputChoice1:=Close,InputChoice2:=Close)", "FG", "", "Close",$B$2,A8, "all","", "","True","T")/100,"") -> 0.5952733638 | E8: -0.92 | F8: 0 | I8: =IFERROR(RTD("cqg.rtd",,"StudyData", "Correlation("&$B$3&","&I$2&",Period:="&$B$1&",InputChoice1:=Close,InputChoice2::=Close)", "FG", "", "Close",$B$2,A8, "all","", "","True","T")/100,"") -> 0.6878665328 | K8: -0.92 | L8: 0 | O8: =IFERROR(RTD("cqg.rtd",,"StudyData", "Correlation("&$B$3&","&O$2&",Period:="&$B$1&",InputChoice1:=Close,InputChoice2::=Close)", "FG", "", "Close",$B$2,A8, "all","", "","True","T")/100,"") -> 0.05607368126 | Q8: -0.92 | R8: 0 | U8: =IFERROR(RTD("cqg.rtd",,"StudyData", "Correlation("&$B$3&","&U$2&",Period:="&$B$1&",InputChoice1:=Close,InputChoice2::=Close)", "FG", "", "Close",$B$2,A8, "all","", "","True","T")/100,"") -> 0.7335322792 | W8: -0.92 | X8: 0 | AA8: =IFERROR(RTD("cqg.rtd",,"StudyData", "Correlation("&$B$3&","&AA$2&",Period:="&$B$1&",InputChoice1:=Close,InputChoice2::=Close)", "FG", "", "Close",$B$2,A8, "all","", "","True","T")/100,"") -> 0.8111030546 | AC8: -0.92 | AD8: 0 | AG8: =IFERROR(RTD("cqg.rtd",,"StudyData", "Correlation("&$B$3&","&AG$2&",Period:="&$B$1&",InputChoice1:=Close,InputChoice2::=Close)", "FG", "", "Close",$B$2,A8, "all","", "","True","T")/100,"") -> 0.7133628677 | AI8: -0.92 | AJ8: 0 | AM8: =IFERROR(RTD("cqg.rtd",,"StudyData", "Correlation("&$B$3&","&AM$2&",Period:="&$B$1&",InputChoice1:=Close,InputChoice2::=Close)", "FG", "", "Close",$B$2,A8, "all","", "","True","T")/100,"") -> 0.7299374809 | AO8: -0.92 | AP8: 0 | AS8: =IFERROR(RTD("cqg.rtd",,"StudyData", "Correlation("&$B$3&","&AS$2&",Period:="&$B$1&",InputChoice1:=Close,InputChoice2::=Close)", "FG", "", "Close",$B$2,A8, "all","", "","True","T")/100,"") -> -0.06618382981 | AU8: -0.92 | AV8: 0 | AY8: =IFERROR(RTD("cqg.rtd",,"StudyData", "Correlation("&$B$3&","&AY$2&",Period:="&$B$1&",InputChoice1:=Close,InputChoice2::=Close)", "FG", "", "Close",$B$2,A8, "all","", "","True","T")/100,"") -> 0.3750416417 | BA8: -0.92 | BB8: 0 | BE8: =IFERROR(RTD("cqg.rtd",,"StudyData", "Correlation("&$B$3&","&BE$2&",Period:="&$B$1&",InputChoice1:=Close,InputChoice2::=Close)", "FG", "", "Close",$B$2,A8, "all","", "","True","T")/100,"") -> 0.6431316079 | BG8: -0.92 | BH8: 0
A9: -5 | C9: =IFERROR(RTD("cqg.rtd",,"StudyData", "Correlation("&$B$3&","&C$2&",Period:="&$B$1&",InputChoice1:=Close,InputChoice2:=Close)", "FG", "", "Close",$B$2,A9, "all","", "","True","T")/100,"") -> 0.5078640801 | E9: -0.9 | F9: 0 | I9: =IFERROR(RTD("cqg.rtd",,"StudyData", "Correlation("&$B$3&","&I$2&",Period:="&$B$1&",InputChoice1:=Close,InputChoice2::=Close)", "FG", "", "Close",$B$2,A9, "all","", "","True","T")/100,"") -> 0.6922195205 | K9: -0.9 | L9: 0 | O9: =IFERROR(RTD("cqg.rtd",,"StudyData", "Correlation("&$B$3&","&O$2&",Period:="&$B$1&",InputChoice1:=Close,InputChoice2::=Close)", "FG", "", "Close",$B$2,A9, "all","", "","True","T")/100,"") -> -0.07653190362 | Q9: -0.9 | R9: 0 | U9: =IFERROR(RTD("cqg.rtd",,"StudyData", "Correlation("&$B$3&","&U$2&",Period:="&$B$1&",InputChoice1:=Close,InputChoice2::=Close)", "FG", "", "Close",$B$2,A9, "all","", "","True","T")/100,"") -> 0.7629381233 | W9: -0.9 | X9: 0 | AA9: =IFERROR(RTD("cqg.rtd",,"StudyData", "Correlation("&$B$3&","&AA$2&",Period:="&$B$1&",InputChoice1:=Close,InputChoice2::=Close)", "FG", "", "Close",$B$2,A9, "all","", "","True","T")/100,"") -> 0.7878325318 | AC9: -0.9 | AD9: 0 | AG9: =IFERROR(RTD("cqg.rtd",,"StudyData", "Correlation("&$B$3&","&AG$2&",Period:="&$B$1&",InputChoice1:=Close,InputChoice2::=Close)", "FG", "", "Close",$B$2,A9, "all","", "","True","T")/100,"") -> 0.7132229559 | AI9: -0.9 | AJ9: 2 | AM9: =IFERROR(RTD("cqg.rtd",,"StudyData", "Correlation("&$B$3&","&AM$2&",Period:="&$B$1&",InputChoice1:=Close,InputChoice2::=Close)", "FG", "", "Close",$B$2,A9, "all","", "","True","T")/100,"") -> 0.7269464349 | AO9: -0.9 | AP9: 0 | AS9: =IFERROR(RTD("cqg.rtd",,"StudyData", "Correlation("&$B$3&","&AS$2&",Period:="&$B$1&",InputChoice1:=Close,InputChoice2::=Close)", "FG", "", "Close",$B$2,A9, "all","", "","True","T")/100,"") -> -0.3000519732 | AU9: -0.9 | AV9: 0 | AY9: =IFERROR(RTD("cqg.rtd",,"StudyData", "Correlation("&$B$3&","&AY$2&",Period:="&$B$1&",InputChoice1:=Close,InputChoice2::=Close)", "FG", "", "Close",$B$2,A9, "all","", "","True","T")/100,"") -> 0.4801239733 | BA9: -0.9 | BB9: 0 | BE9: =IFERROR(RTD("cqg.rtd",,"StudyData", "Correlation("&$B$3&","&BE$2&",Period:="&$B$1&",InputChoice1:=Close,InputChoice2::=Close)", "FG", "", "Close",$B$2,A9, "all","", "","True","T")/100,"") -> 0.5818214002 | BG9: -0.9 | BH9: 0
A10: -6 | C10: =IFERROR(RTD("cqg.rtd",,"StudyData", "Correlation("&$B$3&","&C$2&",Period:="&$B$1&",InputChoice1:=Close,InputChoice2:=Close)", "FG", "", "Close",$B$2,A10, "all","", "","True","T")/100,"") -> 0.4424085275 | E10: -0.88 | F10: 0 | I10: =IFERROR(RTD("cqg.rtd",,"StudyData", "Correlation("&$B$3&","&I$2&",Period:="&$B$1&",InputChoice1:=Close,InputChoice2::=Close)", "FG", "", "Close",$B$2,A10, "all","", "","True","T")/100,"") -> 0.7034833444 | K10: -0.88 | L10: 0 | O10: =IFERROR(RTD("cqg.rtd",,"StudyData", "Correlation("&$B$3&","&O$2&",Period:="&$B$1&",InputChoice1:=Close,InputChoice2::=Close)", "FG", "", "Close",$B$2,A10, "all","", "","True","T")/100,"") -> -0.1858215311 | Q10: -0.88 | R10: 0 | U10: =IFERROR(RTD("cqg.rtd",,"StudyData", "Correlation("&$B$3&","&U$2&",Period:="&$B$1&",InputChoice1:=Close,InputChoice2::=Close)", "FG", "", "Close",$B$2,A10, "all","", "","True","T")/100,"") -> 0.7846984942 | W10: -0.88 | X10: 1 | AA10: =IFERROR(RTD("cqg.rtd",,"StudyData", "Correlation("&$B$3&","&AA$2&",Period:="&$B$1&",InputChoice1:=Close,InputChoice2::=Close)", "FG", "", "Close",$B$2,A10, "all","", "","True","T")/100,"") -> 0.7160869757 | AC10: -0.88 | AD10: 0 | AG10: =IFERROR(RTD("cqg.rtd",,"StudyData", "Correlation("&$B$3&","&AG$2&",Period:="&$B$1&",InputChoice1:=Close,InputChoice2::=Close)", "FG", "", "Close",$B$2,A10, "all","", "","True","T")/100,"") -> 0.6595882338 | AI10: -0.88 | AJ10: 2 | AM10: =IFERROR(RTD("cqg.rtd",,"StudyData", "Correlation("&$B$3&","&AM$2&",Period:="&$B$1&",InputChoice1:=Close,InputChoice2::=Close)", "FG", "", "Close",$B$2,A10, "all","", "","True","T")/100,"") -> 0.6582199929 | AO10: -0.88 | AP10: 1 | AS10: =IFERROR(RTD("cqg.rtd",,"StudyData", "Correlation("&$B$3&","&AS$2&",Period:="&$B$1&",InputChoice1:=Close,InputChoice2::=Close)", "FG", "", "Close",$B$2,A10, "all","", "","True","T")/100,"") -> -0.4837998269 | AU10: -0.88 | AV10: 3 | AY10: =IFERROR(RTD("cqg.rtd",,"StudyData", "Correlation("&$B$3&","&AY$2&",Period:="&$B$1&",InputChoice1:=Close,InputChoice2::=Close)", "FG", "", "Close",$B$2,A10, "all","", "","True","T")/100,"") -> 0.4795526857 | BA10: -0.88 | BB10: 0 | BE10: =IFERROR(RTD("cqg.rtd",,"StudyData", "Correlation("&$B$3&","&BE$2&",Period:="&$B$1&",InputChoice1:=Close,InputChoice2::=Close)", "FG", "", "Close",$B$2,A10, "all","", "","True","T")/100,"") -> 0.4937606541 | BG10: -0.88 | BH10: 0
A11: -7 | C11: =IFERROR(RTD("cqg.rtd",,"StudyData", "Correlation("&$B$3&","&C$2&",Period:="&$B$1&",InputChoice1:=Close,InputChoice2:=Close)", "FG", "", "Close",$B$2,A11, "all","", "","True","T")/100,"") -> 0.4630785804 | E11: -0.86 | F11: 0 | I11: =IFERROR(RTD("cqg.rtd",,"StudyData", "Correlation("&$B$3&","&I$2&",Period:="&$B$1&",InputChoice1:=Close,InputChoice2::=Close)", "FG", "", "Close",$B$2,A11, "all","", "","True","T")/100,"") -> 0.7552394049 | K11: -0.86 | L11: 0 | O11: =IFERROR(RTD("cqg.rtd",,"StudyData", "Correlation("&$B$3&","&O$2&",Period:="&$B$1&",InputChoice1:=Close,InputChoice2::=Close)", "FG", "", "Close",$B$2,A11, "all","", "","True","T")/100,"") -> -0.2406176316 | Q11: -0.86 | R11: 0 | U11: =IFERROR(RTD("cqg.rtd",,"StudyData", "Correlation("&$B$3&","&U$2&",Period:="&$B$1&",InputChoice1:=Close,InputChoice2::=Close)", "FG", "", "Close",$B$2,A11, "all","", "","True","T")/100,"") -> 0.828659575 | W11: -0.86 | X11: 2 | AA11: =IFERROR(RTD("cqg.rtd",,"StudyData", "Correlation("&$B$3&","&AA$2&",Period:="&$B$1&",InputChoice1:=Close,InputChoice2::=Close)", "FG", "", "Close",$B$2,A11, "all","", "","True","T")/100,"") -> 0.7328782572 | AC11: -0.86 | AD11: 2 | AG11: =IFERROR(RTD("cqg.rtd",,"StudyData", "Correlation("&$B$3&","&AG$2&",Period:="&$B$1&",InputChoice1:=Close,InputChoice2::=Close)", "FG", "", "Close",$B$2,A11, "all","", "","True","T")/100,"") -> 0.6623055321 | AI11: -0.86 | AJ11: 2 | AM11: =IFERROR(RTD("cqg.rtd",,"StudyData", "Correlation("&$B$3&","&AM$2&",Period:="&$B$1&",InputChoice1:=Close,InputChoice2::=Close)", "FG", "", "Close",$B$2,A11, "all","", "","True","T")/100,"") -> 0.6533545082 | AO11: -0.86 | AP11: 3 | AS11: =IFERROR(RTD("cqg.rtd",,"StudyData", "Correlation("&$B$3&","&AS$2&",Period:="&$B$1&",InputChoice1:=Close,InputChoice2::=Close)", "FG", "", "Close",$B$2,A11, "all","", "","True","T")/100,"") -> -0.5240429083 | AU11: -0.86 | AV11: 1 | AY11: =IFERROR(RTD("cqg.rtd",,"StudyData", "Correlation("&$B$3&","&AY$2&",Period:="&$B$1&",InputChoice1:=Close,InputChoice2::=Close)", "FG", "", "Close",$B$2,A11, "all","", "","True","T")/100,"") -> 0.5895218974 | BA11: -0.86 | BB11: 0 | BE11: =IFERROR(RTD("cqg.rtd",,"StudyData", "Correlation("&$B$3&","&BE$2&",Period:="&$B$1&",InputChoice1:=Close,InputChoice2::=Close)", "FG", "", "Close",$B$2,A11, "all","", "","True","T")/100,"") -> 0.5102425579 | BG11: -0.86 | BH11: 0
A12: -8 | C12: =IFERROR(RTD("cqg.rtd",,"StudyData", "Correlation("&$B$3&","&C$2&",Period:="&$B$1&",InputChoice1:=Close,InputChoice2:=Close)", "FG", "", "Close",$B$2,A12, "all","", "","True","T")/100,"") -> 0.3451175553 | E12: -0.84 | F12: 0 | I12: =IFERROR(RTD("cqg.rtd",,"StudyData", "Correlation("&$B$3&","&I$2&",Period:="&$B$1&",InputChoice1:=Close,InputChoice2::=Close)", "FG", "", "Close",$B$2,A12, "all","", "","True","T")/100,"") -> 0.7250273003 | K12: -0.84 | L12: 0 | O12: =IFERROR(RTD("cqg.rtd",,"StudyData", "Correlation("&$B$3&","&O$2&",Period:="&$B$1&",InputChoice1:=Close,InputChoice2::=Close)", "FG", "", "Close",$B$2,A12, "all","", "","True","T")/100,"") -> -0.3316580809 | Q12: -0.84 | R12: 0 | U12: =IFERROR(RTD("cqg.rtd",,"StudyData", "Correlation("&$B$3&","&U$2&",Period:="&$B$1&",InputChoice1:=Close,InputChoice2::=Close)", "FG", "", "Close",$B$2,A12, "all","", "","True","T")/100,"") -> 0.8237912442 | W12: -0.84 | X12: 1 | AA12: =IFERROR(RTD("cqg.rtd",,"StudyData", "Correlation("&$B$3&","&AA$2&",Period:="&$B$1&",InputChoice1:=Close,InputChoice2::=Close)", "FG", "", "Close",$B$2,A12, "all","", "","True","T")/100,"") -> 0.6268328963 | AC12: -0.84 | AD12: 2 | AG12: =IFERROR(RTD("cqg.rtd",,"StudyData", "Correlation("&$B$3&","&AG$2&",Period:="&$B$1&",InputChoice1:=Close,InputChoice2::=Close)", "FG", "", "Close",$B$2,A12, "all","", "","True","T")/100,"") -> 0.5299672327 | AI12: -0.84 | AJ12: 0 | AM12: =IFERROR(RTD("cqg.rtd",,"StudyData", "Correlation("&$B$3&","&AM$2&",Period:="&$B$1&",InputChoice1:=Close,InputChoice2::=Close)", "FG", "", "Close",$B$2,A12, "all","", "","True","T")/100,"") -> 0.5045192591 | AO12: -0.84 | AP12: 4 | AS12: =IFERROR(RTD("cqg.rtd",,"StudyData", "Correlation("&$B$3&","&AS$2&",Period:="&$B$1&",InputChoice1:=Close,InputChoice2::=Close)", "FG", "", "Close",$B$2,A12, "all","", "","True","T")/100,"") -> -0.5815260124 | AU12: -0.84 | AV12: 3 | AY12: =IFERROR(RTD("cqg.rtd",,"StudyData", "Correlation("&$B$3&","&AY$2&",Period:="&$B$1&",InputChoice1:=Close,InputChoice2::=Close)", "FG", "", "Close",$B$2,A12, "all","", "","True","T")/100,"") -> 0.6315348828 | BA12: -0.84 | BB12: 0 | BE12: =IFERROR(RTD("cqg.rtd",,"StudyData", "Correlation("&$B$3&","&BE$2&",Period:="&$B$1&",InputChoice1:=Close,InputChoice2::=Close)", "FG", "", "Close",$B$2,A12, "all","", "","True","T")/100,"") -> 0.4503924725 | BG12: -0.84 | BH12: 0
A13: -9 | C13: =IFERROR(RTD("cqg.rtd",,"StudyData", "Correlation("&$B$3&","&C$2&",Period:="&$B$1&",InputChoice1:=Close,InputChoice2:=Close)", "FG", "", "Close",$B$2,A13, "all","", "","True","T")/100,"") -> 0.2389731456 | E13: -0.82 | F13: 1 | I13: =IFERROR(RTD("cqg.rtd",,"StudyData", "Correlation("&$B$3&","&I$2&",Period:="&$B$1&",InputChoice1:=Close,InputChoice2::=Close)", "FG", "", "Close",$B$2,A13, "all","", "","True","T")/100,"") -> 0.6876989801 | K13: -0.82 | L13: 4 | O13: =IFERROR(RTD("cqg.rtd",,"StudyData", "Correlation("&$B$3&","&O$2&",Period:="&$B$1&",InputChoice1:=Close,InputChoice2::=Close)", "FG", "", "Close",$B$2,A13, "all","", "","True","T")/100,"") -> -0.365484063 | Q13: -0.82 | R13: 0 | U13: =IFERROR(RTD("cqg.rtd",,"StudyData", "Correlation("&$B$3&","&U$2&",Period:="&$B$1&",InputChoice1:=Close,InputChoice2::=Close)", "FG", "", "Close",$B$2,A13, "all","", "","True","T")/100,"") -> 0.7999996314 | W13: -0.82 | X13: 3 | AA13: =IFERROR(RTD("cqg.rtd",,"StudyData", "Correlation("&$B$3&","&AA$2&",Period:="&$B$1&",InputChoice1:=Close,InputChoice2::=Close)", "FG", "", "Close",$B$2,A13, "all","", "","True","T")/100,"") -> 0.3851380881 | AC13: -0.82 | AD13: 1 | AG13: =IFERROR(RTD("cqg.rtd",,"StudyData", "Correlation("&$B$3&","&AG$2&",Period:="&$B$1&",InputChoice1:=Close,InputChoice2::=Close)", "FG", "", "Close",$B$2,A13, "all","", "","True","T")/100,"") -> 0.3166659584 | AI13: -0.82 | AJ13: 2 | AM13: =IFERROR(RTD("cqg.rtd",,"StudyData", "Correlation("&$B$3&","&AM$2&",Period:="&$B$1&",InputChoice1:=Close,InputChoice2::=Close)", "FG", "", "Close",$B$2,A13, "all","", "","True","T")/100,"") -> 0.1850514457 | AO13: -0.82 | AP13: 2 | AS13: =IFERROR(RTD("cqg.rtd",,"StudyData", "Correlation("&$B$3&","&AS$2&",Period:="&$B$1&",InputChoice1:=Close,InputChoice2::=Close)", "FG", "", "Close",$B$2,A13, "all","", "","True","T")/100,"") -> -0.699247769 | AU13: -0.82 | AV13: 1 | AY13: =IFERROR(RTD("cqg.rtd",,"StudyData", "Correlation("&$B$3&","&AY$2&",Period:="&$B$1&",InputChoice1:=Close,InputChoice2::=Close)", "FG", "", "Close",$B$2,A13, "all","", "","True","T")/100,"") -> 0.6955650345 | BA13: -0.82 | BB13: 0 | BE13: =IFERROR(RTD("cqg.rtd",,"StudyData", "Correlation("&$B$3&","&BE$2&",Period:="&$B$1&",InputChoice1:=Close,InputChoice2::=Close)", "FG", "", "Close",$B$2,A13, "all","", "","True","T")/100,"") -> 0.3912687882 | BG13: -0.82 | BH13: 0
A14: -10 | C14: =IFERROR(RTD("cqg.rtd",,"StudyData", "Correlation("&$B$3&","&C$2&",Period:="&$B$1&",InputChoice1:=Close,InputChoice2:=Close)", "FG", "", "Close",$B$2,A14, "all","", "","True","T")/100,"") -> 0.1126433687 | E14: -0.8 | F14: 3 | I14: =IFERROR(RTD("cqg.rtd",,"StudyData", "Correlation("&$B$3&","&I$2&",Period:="&$B$1&",InputChoice1:=Close,InputChoice2::=Close)", "FG", "", "Close",$B$2,A14, "all","", "","True","T")/100,"") -> 0.6903311232 | K14: -0.8 | L14: 1 | O14: =IFERROR(RTD("cqg.rtd",,"StudyData", "Correlation("&$B$3&","&O$2&",Period:="&$B$1&",InputChoice1:=Close,InputChoice2::=Close)", "FG", "", "Close",$B$2,A14, "all","", "","True","T")/100,"") -> -0.3806237346 | Q14: -0.8 | R14: 0 | U14: =IFERROR(RTD("cqg.rtd",,"StudyData", "Correlation("&$B$3&","&U$2&",Period:="&$B$1&",InputChoice1:=Close,InputChoice2::=Close)", "FG", "", "Close",$B$2,A14, "all","", "","True","T")/100,"") -> 0.8028902497 | W14: -0.8 | X14: 3 | AA14: =IFERROR(RTD("cqg.rtd",,"StudyData", "Correlation("&$B$3&","&AA$2&",Period:="&$B$1&",InputChoice1:=Close,InputChoice2::=Close)", "FG", "", "Close",$B$2,A14, "all","", "","True","T")/100,"") -> 0.3633767328 | AC14: -0.8 | AD14: 2 | AG14: =IFERROR(RTD("cqg.rtd",,"StudyData", "Correlation("&$B$3&","&AG$2&",Period:="&$B$1&",InputChoice1:=Close,InputChoice2::=Close)", "FG", "", "Close",$B$2,A14, "all","", "","True","T")/100,"") -> 0.2593620376 | AI14: -0.8 | AJ14: 1 | AM14: =IFERROR(RTD("cqg.rtd",,"StudyData", "Correlation("&$B$3&","&AM$2&",Period:="&$B$1&",InputChoice1:=Close,InputChoice2::=Close)", "FG", "", "Close",$B$2,A14, "all","", "","True","T")/100,"") -> 0.02089198118 | AO14: -0.8 | AP14: 1 | AS14: =IFERROR(RTD("cqg.rtd",,"StudyData", "Correlation("&$B$3&","&AS$2&",Period:="&$B$1&",InputChoice1:=Close,InputChoice2::=Close)", "FG", "", "Close",$B$2,A14, "all","", "","True","T")/100,"") -> -0.6884580726 | AU14: -0.8 | AV14: 2 | AY14: =IFERROR(RTD("cqg.rtd",,"StudyData", "Correlation("&$B$3&","&AY$2&",Period:="&$B$1&",InputChoice1:=Close,InputChoice2::=Close)", "FG", "", "Close",$B$2,A14, "all","", "","True","T")/100,"") -> 0.7037631178 | BA14: -0.8 | BB14: 0 | BE14: =IFERROR(RTD("cqg.rtd",,"StudyData", "Correlation("&$B$3&","&BE$2&",Period:="&$B$1&",InputChoice1:=Close,InputChoice2::=Close)", "FG", "", "Close",$B$2,A14, "all","", "","True","T")/100,"") -> 0.3690763104 | BG14: -0.8 | BH14: 0
A15: -11 | C15: =IFERROR(RTD("cqg.rtd",,"StudyData", "Correlation("&$B$3&","&C$2&",Period:="&$B$1&",InputChoice1:=Close,InputChoice2:=Close)", "FG", "", "Close",$B$2,A15, "all","", "","True","T")/100,"") -> 0.1910779293 | E15: -0.78 | F15: 3 | I15: =IFERROR(RTD("cqg.rtd",,"StudyData", "Correlation("&$B$3&","&I$2&",Period:="&$B$1&",InputChoice1:=Close,InputChoice2::=Close)", "FG", "", "Close",$B$2,A15, "all","", "","True","T")/100,"") -> 0.6660617468 | K15: -0.78 | L15: 5 | O15: =IFERROR(RTD("cqg.rtd",,"StudyData", "Correlation("&$B$3&","&O$2&",Period:="&$B$1&",InputChoice1:=Close,InputChoice2::=Close)", "FG", "", "Close",$B$2,A15, "all","", "","True","T")/100,"") -> -0.3782488054 | Q15: -0.78 | R15: 0 | U15: =IFERROR(RTD("cqg.rtd",,"StudyData", "Correlation("&$B$3&","&U$2&",Period:="&$B$1&",InputChoice1:=Close,InputChoice2::=Close)", "FG", "", "Close",$B$2,A15, "all","", "","True","T")/100,"") -> 0.8046019705 | W15: -0.78 | X15: 5 | AA15: =IFERROR(RTD("cqg.rtd",,"StudyData", "Correlation("&$B$3&","&AA$2&",Period:="&$B$1&",InputChoice1:=Close,InputChoice2::=Close)", "FG", "", "Close",$B$2,A15, "all","", "","True","T")/100,"") -> 0.3755676092 | AC15: -0.78 | AD15: 2 | AG15: =IFERROR(RTD("cqg.rtd",,"StudyData", "Correlation("&$B$3&","&AG$2&",Period:="&$B$1&",InputChoice1:=Close,InputChoice2::=Close)", "FG", "", "Close",$B$2,A15, "all","", "","True","T")/100,"") -> 0.2738190829 | AI15: -0.78 | AJ15: 2 | AM15: =IFERROR(RTD("cqg.rtd",,"StudyData", "Correlation("&$B$3&","&AM$2&",Period:="&$B$1&",InputChoice1:=Close,InputChoice2::=Close)", "FG", "", "Close",$B$2,A15, "all","", "","True","T")/100,"") -> -0.04611675318 | AO15: -0.78 | AP15: 0 | AS15: =IFERROR(RTD("cqg.rtd",,"StudyData", "Correlation("&$B$3&","&AS$2&",Period:="&$B$1&",InputChoice1:=Close,InputChoice2::=Close)", "FG", "", "Close",$B$2,A15, "all","", "","True","T")/100,"") -> -0.6893445635 | AU15: -0.78 | AV15: 3 | AY15: =IFERROR(RTD("cqg.rtd",,"StudyData", "Correlation("&$B$3&","&AY$2&",Period:="&$B$1&",InputChoice1:=Close,InputChoice2::=Close)", "FG", "", "Close",$B$2,A15, "all","", "","True","T")/100,"") -> 0.7040717186 | BA15: -0.78 | BB15: 0 | BE15: =IFERROR(RTD("cqg.rtd",,"StudyData", "Correlation("&$B$3&","&BE$2&",Period:="&$B$1&",InputChoice1:=Close,InputChoice2::=Close)", "FG", "", "Close",$B$2,A15, "all","", "","True","T")/100,"") -> 0.4143419777 | BG15: -0.78 | BH15: 0
A16: -12 | C16: =IFERROR(RTD("cqg.rtd",,"StudyData", "Correlation("&$B$3&","&C$2&",Period:="&$B$1&",InputChoice1:=Close,InputChoice2:=Close)", "FG", "", "Close",$B$2,A16, "all","", "","True","T")/100,"") -> 0.2300964282 | E16: -0.76 | F16: 2 | I16: =IFERROR(RTD("cqg.rtd",,"StudyData", "Correlation("&$B$3&","&I$2&",Period:="&$B$1&",InputChoice1:=Close,InputChoice2::=Close)", "FG", "", "Close",$B$2,A16, "all","", "","True","T")/100,"") -> 0.657157041 | K16: -0.76 | L16: 3 | O16: =IFERROR(RTD("cqg.rtd",,"StudyData", "Correlation("&$B$3&","&O$2&",Period:="&$B$1&",InputChoice1:=Close,InputChoice2::=Close)", "FG", "", "Close",$B$2,A16, "all","", "","True","T")/100,"") -> -0.4005822647 | Q16: -0.76 | R16: 0 | U16: =IFERROR(RTD("cqg.rtd",,"StudyData", "Correlation("&$B$3&","&U$2&",Period:="&$B$1&",InputChoice1:=Close,InputChoice2::=Close)", "FG", "", "Close",$B$2,A16, "all","", "","True","T")/100,"") -> 0.8219108106 | W16: -0.76 | X16: 5 | AA16: =IFERROR(RTD("cqg.rtd",,"StudyData", "Correlation("&$B$3&","&AA$2&",Period:="&$B$1&",InputChoice1:=Close,InputChoice2::=Close)", "FG", "", "Close",$B$2,A16, "all","", "","True","T")/100,"") -> 0.4008501807 | AC16: -0.76 | AD16: 1 | AG16: =IFERROR(RTD("cqg.rtd",,"StudyData", "Correlation("&$B$3&","&AG$2&",Period:="&$B$1&",InputChoice1:=Close,InputChoice2::=Close)", "FG", "", "Close",$B$2,A16, "all","", "","True","T")/100,"") -> 0.3057969169 | AI16: -0.76 | AJ16: 2 | AM16: =IFERROR(RTD("cqg.rtd",,"StudyData", "Correlation("&$B$3&","&AM$2&",Period:="&$B$1&",InputChoice1:=Close,InputChoice2::=Close)", "FG", "", "Close",$B$2,A16, "all","", "","True","T")/100,"") -> -0.1076967774 | AO16: -0.76 | AP16: 2 | AS16: =IFERROR(RTD("cqg.rtd",,"StudyData", "Correlation("&$B$3&","&AS$2&",Period:="&$B$1&",InputChoice1:=Close,InputChoice2::=Close)", "FG", "", "Close",$B$2,A16, "all","", "","True","T")/100,"") -> -0.7043111791 | AU16: -0.76 | AV16: 0 | AY16: =IFERROR(RTD("cqg.rtd",,"StudyData", "Correlation("&$B$3&","&AY$2&",Period:="&$B$1&",InputChoice1:=Close,InputChoice2::=Close)", "FG", "", "Close",$B$2,A16, "all","", "","True","T")/100,"") -> 0.677429083 | BA16: -0.76 | BB16: 0 | BE16: =IFERROR(RTD("cqg.rtd",,"StudyData", "Correlation("&$B$3&","&BE$2&",Period:="&$B$1&",InputChoice1:=Close,InputChoice2::=Close)", "FG", "", "Close",$B$2,A16, "all","", "","True","T")/100,"") -> 0.4961009452 | BG16: -0.76 | BH16: 1
A17: -13 | C17: =IFERROR(RTD("cqg.rtd",,"StudyData", "Correlation("&$B$3&","&C$2&",Period:="&$B$1&",InputChoice1:=Close,InputChoice2:=Close)", "FG", "", "Close",$B$2,A17, "all","", "","True","T")/100,"") -> 0.2540894789 | E17: -0.74 | F17: 6 | I17: =IFERROR(RTD("cqg.rtd",,"StudyData", "Correlation("&$B$3&","&I$2&",Period:="&$B$1&",InputChoice1:=Close,InputChoice2::=Close)", "FG", "", "Close",$B$2,A17, "all","", "","True","T")/100,"") -> 0.6464098254 | K17: -0.74 | L17: 5 | O17: =IFERROR(RTD("cqg.rtd",,"StudyData", "Correlation("&$B$3&","&O$2&",Period:="&$B$1&",InputChoice1:=Close,InputChoice2::=Close)", "FG", "", "Close",$B$2,A17, "all","", "","True","T")/100,"") -> -0.4120312837 | Q17: -0.74 | R17: 0 | U17: =IFERROR(RTD("cqg.rtd",,"StudyData", "Correlation("&$B$3&","&U$2&",Period:="&$B$1&",InputChoice1:=Close,InputChoice2::=Close)", "FG", "", "Close",$B$2,A17, "all","", "","True","T")/100,"") -> 0.819816325 | W17: -0.74 | X17: 6 | AA17: =IFERROR(RTD("cqg.rtd",,"StudyData", "Correlation("&$B$3&","&AA$2&",Period:="&$B$1&",InputChoice1:=Close,InputChoice2::=Close)", "FG", "", "Close",$B$2,A17, "all","", "","True","T")/100,"") -> 0.4330133365 | AC17: -0.74 | AD17: 1 | AG17: =IFERROR(RTD("cqg.rtd",,"StudyData", "Correlation("&$B$3&","&AG$2&",Period:="&$B$1&",InputChoice1:=Close,InputChoice2::=Close)", "FG", "", "Close",$B$2,A17, "all","", "","True","T")/100,"") -> 0.3328785074 | AI17: -0.74 | AJ17: 1 | AM17: =IFERROR(RTD("cqg.rtd",,"StudyData", "Correlation("&$B$3&","&AM$2&",Period:="&$B$1&",InputChoice1:=Close,InputChoice2::=Close)", "FG", "", "Close",$B$2,A17, "all","", "","True","T")/100,"") -> -0.05899669967 | AO17: -0.74 | AP17: 3 | AS17: =IFERROR(RTD("cqg.rtd",,"StudyData", "Correlation("&$B$3&","&AS$2&",Period:="&$B$1&",InputChoice1:=Close,InputChoice2::=Close)", "FG", "", "Close",$B$2,A17, "all","", "","True","T")/100,"") -> -0.6938236983 | AU17: -0.74 | AV17: 1 | AY17: =IFERROR(RTD("cqg.rtd",,"StudyData", "Correlation("&$B$3&","&AY$2&",Period:="&$B$1&",InputChoice1:=Close,InputChoice2::=Close)", "FG", "", "Close",$B$2,A17, "all","", "","True","T")/100,"") -> 0.651406497 | BA17: -0.74 | BB17: 0 | BE17: =IFERROR(RTD("cqg.rtd",,"StudyData", "Correlation("&$B$3&","&BE$2&",Period:="&$B$1&",InputChoice1:=Close,InputChoice2::=Close)", "FG", "", "Close",$B$2,A17, "all","", "","True","T")/100,"") -> 0.5926747184 | BG17: -0.74 | BH17: 3
A18: -14 | C18: =IFERROR(RTD("cqg.rtd",,"StudyData", "Correlation("&$B$3&","&C$2&",Period:="&$B$1&",InputChoice1:=Close,InputChoice2:=Close)", "FG", "", "Close",$B$2,A18, "all","", "","True","T")/100,"") -> 0.3224865176 | E18: -0.72 | F18: 3 | I18: =IFERROR(RTD("cqg.rtd",,"StudyData", "Correlation("&$B$3&","&I$2&",Period:="&$B$1&",InputChoice1:=Close,InputChoice2::=Close)", "FG", "", "Close",$B$2,A18, "all","", "","True","T")/100,"") -> 0.6580820312 | K18: -0.72 | L18: 0 | O18: =IFERROR(RTD("cqg.rtd",,"StudyData", "Correlation("&$B$3&","&O$2&",Period:="&$B$1&",InputChoice1:=Close,InputChoice2::=Close)", "FG", "", "Close",$B$2,A18, "all","", "","True","T")/100,"") -> -0.4143218635 | Q18: -0.72 | R18: 0 | U18: =IFERROR(RTD("cqg.rtd",,"StudyData", "Correlation("&$B$3&","&U$2&",Period:="&$B$1&",InputChoice1:=Close,InputChoice2::=Close)", "FG", "", "Close",$B$2,A18, "all","", "","True","T")/100,"") -> 0.8253041555 | W18: -0.72 | X18: 3 | AA18: =IFERROR(RTD("cqg.rtd",,"StudyData", "Correlation("&$B$3&","&AA$2&",Period:="&$B$1&",InputChoice1:=Close,InputChoice2::=Close)", "FG", "", "Close",$B$2,A18, "all","", "","True","T")/100,"") -> 0.4856524151 | AC18: -0.72 | AD18: 4 | AG18: =IFERROR(RTD("cqg.rtd",,"StudyData", "Correlation("&$B$3&","&AG$2&",Period:="&$B$1&",InputChoice1:=Close,InputChoice2::=Close)", "FG", "", "Close",$B$2,A18, "all","", "","True","T")/100,"") -> 0.351051727 | AI18: -0.72 | AJ18: 0 | AM18: =IFERROR(RTD("cqg.rtd",,"StudyData", "Correlation("&$B$3&","&AM$2&",Period:="&$B$1&",InputChoice1:=Close,InputChoice2::=Close)", "FG", "", "Close",$B$2,A18, "all","", "","True","T")/100,"") -> -0.05936898246 | AO18: -0.72 | AP18: 3 | AS18: =IFERROR(RTD("cqg.rtd",,"StudyData", "Correlation("&$B$3&","&AS$2&",Period:="&$B$1&",InputChoice1:=Close,InputChoice2::=Close)", "FG", "", "Close",$B$2,A18, "all","", "","True","T")/100,"") -> -0.6875533417 | AU18: -0.72 | AV18: 0 | AY18: =IFERROR(RTD("cqg.rtd",,"StudyData", "Correlation("&$B$3&","&AY$2&",Period:="&$B$1&",InputChoice1:=Close,InputChoice2::=Close)", "FG", "", "Close",$B$2,A18, "all","", "","True","T")/100,"") -> 0.6138819958 | BA18: -0.72 | BB18: 0 | BE18: =IFERROR(RTD("cqg.rtd",,"StudyData", "Correlation("&$B$3&","&BE$2&",Period:="&$B$1&",InputChoice1:=Close,InputChoice2::=Close)", "FG", "", "Close",$B$2,A18, "all","", "","True","T")/100,"") -> 0.6644604729 | BG18: -0.72 | BH18: 2
A19: -15 | C19: =IFERROR(RTD("cqg.rtd",,"StudyData", "Correlation("&$B$3&","&C$2&",Period:="&$B$1&",InputChoice1:=Close,InputChoice2:=Close)", "FG", "", "Close",$B$2,A19, "all","", "","True","T")/100,"") -> 0.4460990386 | E19: -0.7 | F19: 6 | I19: =IFERROR(RTD("cqg.rtd",,"StudyData", "Correlation("&$B$3&","&I$2&",Period:="&$B$1&",InputChoice1:=Close,InputChoice2::=Close)", "FG", "", "Close",$B$2,A19, "all","", "","True","T")/100,"") -> 0.6625026289 | K19: -0.7 | L19: 1 | O19: =IFERROR(RTD("cqg.rtd",,"StudyData", "Correlation("&$B$3&","&O$2&",Period:="&$B$1&",InputChoice1:=Close,InputChoice2::=Close)", "FG", "", "Close",$B$2,A19, "all","", "","True","T")/100,"") -> -0.448705668 | Q19: -0.7 | R19: 0 | U19: =IFERROR(RTD("cqg.rtd",,"StudyData", "Correlation("&$B$3&","&U$2&",Period:="&$B$1&",InputChoice1:=Close,InputChoice2::=Close)", "FG", "", "Close",$B$2,A19, "all","", "","True","T")/100,"") -> 0.8265389882 | W19: -0.7 | X19: 0 | AA19: =IFERROR(RTD("cqg.rtd",,"StudyData", "Correlation("&$B$3&","&AA$2&",Period:="&$B$1&",InputChoice1:=Close,InputChoice2::=Close)", "FG", "", "Close",$B$2,A19, "all","", "","True","T")/100,"") -> 0.5240999972 | AC19: -0.7 | AD19: 1 | AG19: =IFERROR(RTD("cqg.rtd",,"StudyData", "Correlation("&$B$3&","&AG$2&",Period:="&$B$1&",InputChoice1:=Close,InputChoice2::=Close)", "FG", "", "Close",$B$2,A19, "all","", "","True","T")/100,"") -> 0.2759985112 | AI19: -0.7 | AJ19: 1 | AM19: =IFERROR(RTD("cqg.rtd",,"StudyData", "Correlation("&$B$3&","&AM$2&",Period:="&$B$1&",InputChoice1:=Close,InputChoice2::=Close)", "FG", "", "Close",$B$2,A19, "all","", "","True","T")/100,"") -> -0.1638705652 | AO19: -0.7 | AP19: 2 | AS19: =IFERROR(RTD("cqg.rtd",,"StudyData", "Correlation("&$B$3&","&AS$2&",Period:="&$B$1&",InputChoice1:=Close,InputChoice2::=Close)", "FG", "", "Close",$B$2,A19, "all","", "","True","T")/100,"") -> -0.6317882947 | AU19: -0.7 | AV19: 3 | AY19: =IFERROR(RTD("cqg.rtd",,"StudyData", "Correlation("&$B$3&","&AY$2&",Period:="&$B$1&",InputChoice1:=Close,InputChoice2::=Close)", "FG", "", "Close",$B$2,A19, "all","", "","True","T")/100,"") -> 0.5799987558 | BA19: -0.7 | BB19: 0 | BE19: =IFERROR(RTD("cqg.rtd",,"StudyData", "Correlation("&$B$3&","&BE$2&",Period:="&$B$1&",InputChoice1:=Close,InputChoice2::=Close)", "FG", "", "Close",$B$2,A19, "all","", "","True","T")/100,"") -> 0.6188348595 | BG19: -0.7 | BH19: 2
A20: -16 | C20: =IFERROR(RTD("cqg.rtd",,"StudyData", "Correlation("&$B$3&","&C$2&",Period:="&$B$1&",InputChoice1:=Close,InputChoice2:=Close)", "FG", "", "Close",$B$2,A20, "all","", "","True","T")/100,"") -> 0.4942305434 | E20: -0.68 | F20: 2 | I20: =IFERROR(RTD("cqg.rtd",,"StudyData", "Correlation("&$B$3&","&I$2&",Period:="&$B$1&",InputChoice1:=Close,InputChoice2::=Close)", "FG", "", "Close",$B$2,A20, "all","", "","True","T")/100,"") -> 0.6617327607 | K20: -0.68 | L20: 4 | O20: =IFERROR(RTD("cqg.rtd",,"StudyData", "Correlation("&$B$3&","&O$2&",Period:="&$B$1&",InputChoice1:=Close,InputChoice2::=Close)", "FG", "", "Close",$B$2,A20, "all","", "","True","T")/100,"") -> -0.3821795826 | Q20: -0.68 | R20: 0 | U20: =IFERROR(RTD("cqg.rtd",,"StudyData", "Correlation("&$B$3&","&U$2&",Period:="&$B$1&",InputChoice1:=Close,InputChoice2::=Close)", "FG", "", "Close",$B$2,A20, "all","", "","True","T")/100,"") -> 0.8205902674 | W20: -0.68 | X20: 2 | AA20: =IFERROR(RTD("cqg.rtd",,"StudyData", "Correlation("&$B$3&","&AA$2&",Period:="&$B$1&",InputChoice1:=Close,InputChoice2::=Close)", "FG", "", "Close",$B$2,A20, "all","", "","True","T")/100,"") -> 0.5618472761 | AC20: -0.68 | AD20: 2 | AG20: =IFERROR(RTD("cqg.rtd",,"StudyData", "Correlation("&$B$3&","&AG$2&",Period:="&$B$1&",InputChoice1:=Close,InputChoice2::=Close)", "FG", "", "Close",$B$2,A20, "all","", "","True","T")/100,"") -> 0.2656740242 | AI20: -0.68 | AJ20: 3 | AM20: =IFERROR(RTD("cqg.rtd",,"StudyData", "Correlation("&$B$3&","&AM$2&",Period:="&$B$1&",InputChoice1:=Close,InputChoice2::=Close)", "FG", "", "Close",$B$2,A20, "all","", "","True","T")/100,"") -> -0.1966125059 | AO20: -0.68 | AP20: 0 | AS20: =IFERROR(RTD("cqg.rtd",,"StudyData", "Correlation("&$B$3&","&AS$2&",Period:="&$B$1&",InputChoice1:=Close,InputChoice2::=Close)", "FG", "", "Close",$B$2,A20, "all","", "","True","T")/100,"") -> -0.6024230086 | AU20: -0.68 | AV20: 8 | AY20: =IFERROR(RTD("cqg.rtd",,"StudyData", "Correlation("&$B$3&","&AY$2&",Period:="&$B$1&",InputChoice1:=Close,InputChoice2::=Close)", "FG", "", "Close",$B$2,A20, "all","", "","True","T")/100,"") -> 0.5629689291 | BA20: -0.68 | BB20: 0 | BE20: =IFERROR(RTD("cqg.rtd",,"StudyData", "Correlation("&$B$3&","&BE$2&",Period:="&$B$1&",InputChoice1:=Close,InputChoice2::=Close)", "FG", "", "Close",$B$2,A20, "all","", "","True","T")/100,"") -> 0.6613523521 | BG20: -0.68 | BH20: 2
A21: -17 | C21: =IFERROR(RTD("cqg.rtd",,"StudyData", "Correlation("&$B$3&","&C$2&",Period:="&$B$1&",InputChoice1:=Close,InputChoice2:=Close)", "FG", "", "Close",$B$2,A21, "all","", "","True","T")/100,"") -> 0.4852530543 | E21: -0.66 | F21: 2 | I21: =IFERROR(RTD("cqg.rtd",,"StudyData", "Correlation("&$B$3&","&I$2&",Period:="&$B$1&",InputChoice1:=Close,InputChoice2::=Close)", "FG", "", "Close",$B$2,A21, "all","", "","True","T")/100,"") -> 0.6616559376 | K21: -0.66 | L21: 3 | O21: =IFERROR(RTD("cqg.rtd",,"StudyData", "Correlation("&$B$3&","&O$2&",Period:="&$B$1&",InputChoice1:=Close,InputChoice2::=Close)", "FG", "", "Close",$B$2,A21, "all","", "","True","T")/100,"") -> -0.3657496138 | Q21: -0.66 | R21: 0 | U21: =IFERROR(RTD("cqg.rtd",,"StudyData", "Correlation("&$B$3&","&U$2&",Period:="&$B$1&",InputChoice1:=Close,InputChoice2::=Close)", "FG", "", "Close",$B$2,A21, "all","", "","True","T")/100,"") -> 0.835010358 | W21: -0.66 | X21: 0 | AA21: =IFERROR(RTD("cqg.rtd",,"StudyData", "Correlation("&$B$3&","&AA$2&",Period:="&$B$1&",InputChoice1:=Close,InputChoice2::=Close)", "FG", "", "Close",$B$2,A21, "all","", "","True","T")/100,"") -> 0.5551444985 | AC21: -0.66 | AD21: 0 | AG21: =IFERROR(RTD("cqg.rtd",,"StudyData", "Correlation("&$B$3&","&AG$2&",Period:="&$B$1&",InputChoice1:=Close,InputChoice2::=Close)", "FG", "", "Close",$B$2,A21, "all","", "","True","T")/100,"") -> 0.2916165558 | AI21: -0.66 | AJ21: 0 | AM21: =IFERROR(RTD("cqg.rtd",,"StudyData", "Correlation("&$B$3&","&AM$2&",Period:="&$B$1&",InputChoice1:=Close,InputChoice2::=Close)", "FG", "", "Close",$B$2,A21, "all","", "","True","T")/100,"") -> -0.2106887396 | AO21: -0.66 | AP21: 1 | AS21: =IFERROR(RTD("cqg.rtd",,"StudyData", "Correlation("&$B$3&","&AS$2&",Period:="&$B$1&",InputChoice1:=Close,InputChoice2::=Close)", "FG", "", "Close",$B$2,A21, "all","", "","True","T")/100,"") -> -0.5408395801 | AU21: -0.66 | AV21: 0 | AY21: =IFERROR(RTD("cqg.rtd",,"StudyData", "Correlation("&$B$3&","&AY$2&",Period:="&$B$1&",InputChoice1:=Close,InputChoice2::=Close)", "FG", "", "Close",$B$2,A21, "all","", "","True","T")/100,"") -> 0.5404902807 | BA21: -0.66 | BB21: 0 | BE21: =IFERROR(RTD("cqg.rtd",,"StudyData", "Correlation("&$B$3&","&BE$2&",Period:="&$B$1&",InputChoice1:=Close,InputChoice2::=Close)", "FG", "", "Close",$B$2,A21, "all","", "","True","T")/100,"") -> 0.60913134 | BG21: -0.66 | BH21: 2
A22: -18 | C22: =IFERROR(RTD("cqg.rtd",,"StudyData", "Correlation("&$B$3&","&C$2&",Period:="&$B$1&",InputChoice1:=Close,InputChoice2:=Close)", "FG", "", "Close",$B$2,A22, "all","", "","True","T")/100,"") -> 0.4129781353 | E22: -0.64 | F22: 0 | I22: =IFERROR(RTD("cqg.rtd",,"StudyData", "Correlation("&$B$3&","&I$2&",Period:="&$B$1&",InputChoice1:=Close,InputChoice2::=Close)", "FG", "", "Close",$B$2,A22, "all","", "","True","T")/100,"") -> 0.6137304301 | K22: -0.64 | L22: 1 | O22: =IFERROR(RTD("cqg.rtd",,"StudyData", "Correlation("&$B$3&","&O$2&",Period:="&$B$1&",InputChoice1:=Close,InputChoice2::=Close)", "FG", "", "Close",$B$2,A22, "all","", "","True","T")/100,"") -> -0.3485317058 | Q22: -0.64 | R22: 0 | U22: =IFERROR(RTD("cqg.rtd",,"StudyData", "Correlation("&$B$3&","&U$2&",Period:="&$B$1&",InputChoice1:=Close,InputChoice2::=Close)", "FG", "", "Close",$B$2,A22, "all","", "","True","T")/100,"") -> 0.7989425189 | W22: -0.64 | X22: 1 | AA22: =IFERROR(RTD("cqg.rtd",,"StudyData", "Correlation("&$B$3&","&AA$2&",Period:="&$B$1&",InputChoice1:=Close,InputChoice2::=Close)", "FG", "", "Close",$B$2,A22, "all","", "","True","T")/100,"") -> 0.4971564999 | AC22: -0.64 | AD22: 2 | AG22: =IFERROR(RTD("cqg.rtd",,"StudyData", "Correlation("&$B$3&","&AG$2&",Period:="&$B$1&",InputChoice1:=Close,InputChoice2::=Close)", "FG", "", "Close",$B$2,A22, "all","", "","True","T")/100,"") -> 0.2562522489 | AI22: -0.64 | AJ22: 1 | AM22: =IFERROR(RTD("cqg.rtd",,"StudyData", "Correlation("&$B$3&","&AM$2&",Period:="&$B$1&",InputChoice1:=Close,InputChoice2::=Close)", "FG", "", "Close",$B$2,A22, "all","", "","True","T")/100,"") -> -0.1933461623 | AO22: -0.64 | AP22: 0 | AS22: =IFERROR(RTD("cqg.rtd",,"StudyData", "Correlation("&$B$3&","&AS$2&",Period:="&$B$1&",InputChoice1:=Close,InputChoice2::=Close)", "FG", "", "Close",$B$2,A22, "all","", "","True","T")/100,"") -> -0.4656790503 | AU22: -0.64 | AV22: 2 | AY22: =IFERROR(RTD("cqg.rtd",,"StudyData", "Correlation("&$B$3&","&AY$2&",Period:="&$B$1&",InputChoice1:=Close,InputChoice2::=Close)", "FG", "", "Close",$B$2,A22, "all","", "","True","T")/100,"") -> 0.4873625935 | BA22: -0.64 | BB22: 0 | BE22: =IFERROR(RTD("cqg.rtd",,"StudyData", "Correlation("&$B$3&","&BE$2&",Period:="&$B$1&",InputChoice1:=Close,InputChoice2::=Close)", "FG", "", "Close",$B$2,A22, "all","", "","True","T")/100,"") -> 0.5554515807 | BG22: -0.64 | BH22: 0
A23: -19 | C23: =IFERROR(RTD("cqg.rtd",,"StudyData", "Correlation("&$B$3&","&C$2&",Period:="&$B$1&",InputChoice1:=Close,InputChoice2:=Close)", "FG", "", "Close",$B$2,A23, "all","", "","True","T")/100,"") -> 0.418105062 | E23: -0.62 | F23: 1 | I23: =IFERROR(RTD("cqg.rtd",,"StudyData", "Correlation("&$B$3&","&I$2&",Period:="&$B$1&",InputChoice1:=Close,InputChoice2::=Close)", "FG", "", "Close",$B$2,A23, "all","", "","True","T")/100,"") -> 0.5892009228 | K23: -0.62 | L23: 1 | O23: =IFERROR(RTD("cqg.rtd",,"StudyData", "Correlation("&$B$3&","&O$2&",Period:="&$B$1&",InputChoice1:=Close,InputChoice2::=Close)", "FG", "", "Close",$B$2,A23, "all","", "","True","T")/100,"") -> -0.2402307594 | Q23: -0.62 | R23: 0 | U23: =IFERROR(RTD("cqg.rtd",,"StudyData", "Correlation("&$B$3&","&U$2&",Period:="&$B$1&",InputChoice1:=Close,InputChoice2::=Close)", "FG", "", "Close",$B$2,A23, "all","", "","True","T")/100,"") -> 0.7727796099 | W23: -0.62 | X23: 1 | AA23: =IFERROR(RTD("cqg.rtd",,"StudyData", "Correlation("&$B$3&","&AA$2&",Period:="&$B$1&",InputChoice1:=Close,InputChoice2::=Close)", "FG", "", "Close",$B$2,A23, "all","", "","True","T")/100,"") -> 0.4569319066 | AC23: -0.62 | AD23: 1 | AG23: =IFERROR(RTD("cqg.rtd",,"StudyData", "Correlation("&$B$3&","&AG$2&",Period:="&$B$1&",InputChoice1:=Close,InputChoice2::=Close)", "FG", "", "Close",$B$2,A23, "all","", "","True","T")/100,"") -> 0.2542850864 | AI23: -0.62 | AJ23: 1 | AM23: =IFERROR(RTD("cqg.rtd",,"StudyData", "Correlation("&$B$3&","&AM$2&",Period:="&$B$1&",InputChoice1:=Close,InputChoice2::=Close)", "FG", "", "Close",$B$2,A23, "all","", "","True","T")/100,"") -> -0.2053119584 | AO23: -0.62 | AP23: 3 | AS23: =IFERROR(RTD("cqg.rtd",,"StudyData", "Correlation("&$B$3&","&AS$2&",Period:="&$B$1&",InputChoice1:=Close,InputChoice2::=Close)", "FG", "", "Close",$B$2,A23, "all","", "","True","T")/100,"") -> -0.3747977028 | AU23: -0.62 | AV23: 2 | AY23: =IFERROR(RTD("cqg.rtd",,"StudyData", "Correlation("&$B$3&","&AY$2&",Period:="&$B$1&",InputChoice1:=Close,InputChoice2::=Close)", "FG", "", "Close",$B$2,A23, "all","", "","True","T")/100,"") -> 0.4105987316 | BA23: -0.62 | BB23: 0 | BE23: =IFERROR(RTD("cqg.rtd",,"StudyData", "Correlation("&$B$3&","&BE$2&",Period:="&$B$1&",InputChoice1:=Close,InputChoice2::=Close)", "FG", "", "Close",$B$2,A23, "all","", "","True","T")/100,"") -> 0.4520789365 | BG23: -0.62 | BH23: 0
A24: -20 | C24: =IFERROR(RTD("cqg.rtd",,"StudyData", "Correlation("&$B$3&","&C$2&",Period:="&$B$1&",InputChoice1:=Close,InputChoice2:=Close)", "FG", "", "Close",$B$2,A24, "all","", "","True","T")/100,"") -> 0.3583139502 | E24: -0.6 | F24: 2 | I24: =IFERROR(RTD("cqg.rtd",,"StudyData", "Correlation("&$B$3&","&I$2&",Period:="&$B$1&",InputChoice1:=Close,InputChoice2::=Close)", "FG", "", "Close",$B$2,A24, "all","", "","True","T")/100,"") -> 0.4860379687 | K24: -0.6 | L24: 4 | O24: =IFERROR(RTD("cqg.rtd",,"StudyData", "Correlation("&$B$3&","&O$2&",Period:="&$B$1&",InputChoice1:=Close,InputChoice2::=Close)", "FG", "", "Close",$B$2,A24, "all","", "","True","T")/100,"") -> -0.2041111978 | Q24: -0.6 | R24: 1 | U24: =IFERROR(RTD("cqg.rtd",,"StudyData", "Correlation("&$B$3&","&U$2&",Period:="&$B$1&",InputChoice1:=Close,InputChoice2::=Close)", "FG", "", "Close",$B$2,A24, "all","", "","True","T")/100,"") -> 0.5702353624 | W24: -0.6 | X24: 2 | AA24: =IFERROR(RTD("cqg.rtd",,"StudyData", "Correlation("&$B$3&","&AA$2&",Period:="&$B$1&",InputChoice1:=Close,InputChoice2::=Close)", "FG", "", "Close",$B$2,A24, "all","", "","True","T")/100,"") -> 0.2614364864 | AC24: -0.6 | AD24: 1 | AG24: =IFERROR(RTD("cqg.rtd",,"StudyData", "Correlation("&$B$3&","&AG$2&",Period:="&$B$1&",InputChoice1:=Close,InputChoice2::=Close)", "FG", "", "Close",$B$2,A24, "all","", "","True","T")/100,"") -> 0.1034645426 | AI24: -0.6 | AJ24: 3 | AM24: =IFERROR(RTD("cqg.rtd",,"StudyData", "Correlation("&$B$3&","&AM$2&",Period:="&$B$1&",InputChoice1:=Close,InputChoice2::=Close)", "FG", "", "Close",$B$2,A24, "all","", "","True","T")/100,"") -> -0.3506847302 | AO24: -0.6 | AP24: 1 | AS24: =IFERROR(RTD("cqg.rtd",,"StudyData", "Correlation("&$B$3&","&AS$2&",Period:="&$B$1&",InputChoice1:=Close,InputChoice2::=Close)", "FG", "", "Close",$B$2,A24, "all","", "","True","T")/100,"") -> -0.2861676762 | AU24: -0.6 | AV24: 2 | AY24: =IFERROR(RTD("cqg.rtd",,"StudyData", "Correlation("&$B$3&","&AY$2&",Period:="&$B$1&",InputChoice1:=Close,InputChoice2::=Close)", "FG", "", "Close",$B$2,A24, "all","", "","True","T")/100,"") -> 0.3114020936 | BA24: -0.6 | BB24: 0 | BE24: =IFERROR(RTD("cqg.rtd",,"StudyData", "Correlation("&$B$3&","&BE$2&",Period:="&$B$1&",InputChoice1:=Close,InputChoice2::=Close)", "FG", "", "Close",$B$2,A24, "all","", "","True","T")/100,"") -> 0.3560400731 | BG24: -0.6 | BH24: 0
A25: -21 | C25: =IFERROR(RTD("cqg.rtd",,"StudyData", "Correlation("&$B$3&","&C$2&",Period:="&$B$1&",InputChoice1:=Close,InputChoice2:=Close)", "FG", "", "Close",$B$2,A25, "all","", "","True","T")/100,"") -> 0.3304344437 | E25: -0.58 | F25: 2 | I25: =IFERROR(RTD("cqg.rtd",,"StudyData", "Correlation("&$B$3&","&I$2&",Period:="&$B$1&",InputChoice1:=Close,InputChoice2::=Close)", "FG", "", "Close",$B$2,A25, "all","", "","True","T")/100,"") -> 0.3976973733 | K25: =K24+0.02 -> -0.58 | L25: 2 | O25: =IFERROR(RTD("cqg.rtd",,"StudyData", "Correlation("&$B$3&","&O$2&",Period:="&$B$1&",InputChoice1:=Close,InputChoice2::=Close)", "FG", "", "Close",$B$2,A25, "all","", "","True","T")/100,"") -> -0.1436220328 | Q25: -0.58 | R25: 0 | U25: =IFERROR(RTD("cqg.rtd",,"StudyData", "Correlation("&$B$3&","&U$2&",Period:="&$B$1&",InputChoice1:=Close,InputChoice2::=Close)", "FG", "", "Close",$B$2,A25, "all","", "","True","T")/100,"") -> 0.4597062699 | W25: -0.58 | X25: 1 | AA25: =IFERROR(RTD("cqg.rtd",,"StudyData", "Correlation("&$B$3&","&AA$2&",Period:="&$B$1&",InputChoice1:=Close,InputChoice2::=Close)", "FG", "", "Close",$B$2,A25, "all","", "","True","T")/100,"") -> 0.244795246 | AC25: -0.58 | AD25: 1 | AG25: =IFERROR(RTD("cqg.rtd",,"StudyData", "Correlation("&$B$3&","&AG$2&",Period:="&$B$1&",InputChoice1:=Close,InputChoice2::=Close)", "FG", "", "Close",$B$2,A25, "all","", "","True","T")/100,"") -> 0.16731433 | AI25: -0.58 | AJ25: 0 | AM25: =IFERROR(RTD("cqg.rtd",,"StudyData", "Correlation("&$B$3&","&AM$2&",Period:="&$B$1&",InputChoice1:=Close,InputChoice2::=Close)", "FG", "", "Close",$B$2,A25, "all","", "","True","T")/100,"") -> -0.2064043643 | AO25: -0.58 | AP25: 0 | AS25: =IFERROR(RTD("cqg.rtd",,"StudyData", "Correlation("&$B$3&","&AS$2&",Period:="&$B$1&",InputChoice1:=Close,InputChoice2::=Close)", "FG", "", "Close",$B$2,A25, "all","", "","True","T")/100,"") -> -0.1516140969 | AU25: -0.58 | AV25: 2 | AY25: =IFERROR(RTD("cqg.rtd",,"StudyData", "Correlation("&$B$3&","&AY$2&",Period:="&$B$1&",InputChoice1:=Close,InputChoice2::=Close)", "FG", "", "Close",$B$2,A25, "all","", "","True","T")/100,"") -> 0.09396502935 | BA25: -0.58 | BB25: 0 | BE25: =IFERROR(RTD("cqg.rtd",,"StudyData", "Correlation("&$B$3&","&BE$2&",Period:="&$B$1&",InputChoice1:=Close,InputChoice2::=Close)", "FG", "", "Close",$B$2,A25, "all","", "","True","T")/100,"") -> 0.2833268068 | BG25: -0.58 | BH25: 0
A26: -22 | C26: =IFERROR(RTD("cqg.rtd",,"StudyData", "Correlation("&$B$3&","&C$2&",Period:="&$B$1&",InputChoice1:=Close,InputChoice2:=Close)", "FG", "", "Close",$B$2,A26, "all","", "","True","T")/100,"") -> 0.1076233309 | E26: -0.56 | F26: 1 | I26: =IFERROR(RTD("cqg.rtd",,"StudyData", "Correlation("&$B$3&","&I$2&",Period:="&$B$1&",InputChoice1:=Close,InputChoice2::=Close)", "FG", "", "Close",$B$2,A26, "all","", "","True","T")/100,"") -> 0.121680183 | K26: -0.56 | L26: 0 | O26: =IFERROR(RTD("cqg.rtd",,"StudyData", "Correlation("&$B$3&","&O$2&",Period:="&$B$1&",InputChoice1:=Close,InputChoice2::=Close)", "FG", "", "Close",$B$2,A26, "all","", "","True","T")/100,"") -> -0.05432230897 | Q26: -0.56 | R26: 2 | U26: =IFERROR(RTD("cqg.rtd",,"StudyData", "Correlation("&$B$3&","&U$2&",Period:="&$B$1&",InputChoice1:=Close,InputChoice2::=Close)", "FG", "", "Close",$B$2,A26, "all","", "","True","T")/100,"") -> 0.3310938252 | W26: -0.56 | X26: 0 | AA26: =IFERROR(RTD("cqg.rtd",,"StudyData", "Correlation("&$B$3&","&AA$2&",Period:="&$B$1&",InputChoice1:=Close,InputChoice2::=Close)", "FG", "", "Close",$B$2,A26, "all","", "","True","T")/100,"") -> 0.2447865048 | AC26: -0.56 | AD26: 0 | AG26: =IFERROR(RTD("cqg.rtd",,"StudyData", "Correlation("&$B$3&","&AG$2&",Period:="&$B$1&",InputChoice1:=Close,InputChoice2::=Close)", "FG", "", "Close",$B$2,A26, "all","", "","True","T")/100,"") -> 0.2164324706 | AI26: -0.56 | AJ26: 0 | AM26: =IFERROR(RTD("cqg.rtd",,"StudyData", "Correlation("&$B$3&","&AM$2&",Period:="&$B$1&",InputChoice1:=Close,InputChoice2::=Close)", "FG", "", "Close",$B$2,A26, "all","", "","True","T")/100,"") -> -0.09056476282 | AO26: -0.56 | AP26: 0 | AS26: =IFERROR(RTD("cqg.rtd",,"StudyData", "Correlation("&$B$3&","&AS$2&",Period:="&$B$1&",InputChoice1:=Close,InputChoice2::=Close)", "FG", "", "Close",$B$2,A26, "all","", "","True","T")/100,"") -> -0.01012919996 | AU26: -0.56 | AV26: 0 | AY26: =IFERROR(RTD("cqg.rtd",,"StudyData", "Correlation("&$B$3&","&AY$2&",Period:="&$B$1&",InputChoice1:=Close,InputChoice2::=Close)", "FG", "", "Close",$B$2,A26, "all","", "","True","T")/100,"") -> 0.0187357824 | BA26: -0.56 | BB26: 0 | BE26: =IFERROR(RTD("cqg.rtd",,"StudyData", "Correlation("&$B$3&","&BE$2&",Period:="&$B$1&",InputChoice1:=Close,InputChoice2::=Close)", "FG", "", "Close",$B$2,A26, "all","", "","True","T")/100,"") -> 0.3114581787 | BG26: -0.56 | BH26: 0
A27: -23 | C27: =IFERROR(RTD("cqg.rtd",,"StudyData", "Correlation("&$B$3&","&C$2&",Period:="&$B$1&",InputChoice1:=Close,InputChoice2:=Close)", "FG", "", "Close",$B$2,A27, "all","", "","True","T")/100,"") -> -0.003982289569 | E27: -0.54 | F27: 0 | I27: =IFERROR(RTD("cqg.rtd",,"StudyData", "Correlation("&$B$3&","&I$2&",Period:="&$B$1&",InputChoice1:=Close,InputChoice2::=Close)", "FG", "", "Close",$B$2,A27, "all","", "","True","T")/100,"") -> -0.01813486214 | K27: -0.54 | L27: 0 | O27: =IFERROR(RTD("cqg.rtd",,"StudyData", "Correlation("&$B$3&","&O$2&",Period:="&$B$1&",InputChoice1:=Close,InputChoice2::=Close)", "FG", "", "Close",$B$2,A27, "all","", "","True","T")/100,"") -> 0.06388130666 | Q27: -0.54 | R27: 0 | U27: =IFERROR(RTD("cqg.rtd",,"StudyData", "Correlation("&$B$3&","&U$2&",Period:="&$B$1&",InputChoice1:=Close,InputChoice2::=Close)", "FG", "", "Close",$B$2,A27, "all","", "","True","T")/100,"") -> 0.184735216 | W27: -0.54 | X27: 1 | AA27: =IFERROR(RTD("cqg.rtd",,"StudyData", "Correlation("&$B$3&","&AA$2&",Period:="&$B$1&",InputChoice1:=Close,InputChoice2::=Close)", "FG", "", "Close",$B$2,A27, "all","", "","True","T")/100,"") -> 0.2370340424 | AC27: -0.54 | AD27: 2 | AG27: =IFERROR(RTD("cqg.rtd",,"StudyData", "Correlation("&$B$3&","&AG$2&",Period:="&$B$1&",InputChoice1:=Close,InputChoice2::=Close)", "FG", "", "Close",$B$2,A27, "all","", "","True","T")/100,"") -> 0.2190364837 | AI27: -0.54 | AJ27: 4 | AM27: =IFERROR(RTD("cqg.rtd",,"StudyData", "Correlation("&$B$3&","&AM$2&",Period:="&$B$1&",InputChoice1:=Close,InputChoice2::=Close)", "FG", "", "Close",$B$2,A27, "all","", "","True","T")/100,"") -> 0.07983976543 | AO27: -0.54 | AP27: 0 | AS27: =IFERROR(RTD("cqg.rtd",,"StudyData", "Correlation("&$B$3&","&AS$2&",Period:="&$B$1&",InputChoice1:=Close,InputChoice2::=Close)", "FG", "", "Close",$B$2,A27, "all","", "","True","T")/100,"") -> 0.0466538117 | AU27: -0.54 | AV27: 2 | AY27: =IFERROR(RTD("cqg.rtd",,"StudyData", "Correlation("&$B$3&","&AY$2&",Period:="&$B$1&",InputChoice1:=Close,InputChoice2::=Close)", "FG", "", "Close",$B$2,A27, "all","", "","True","T")/100,"") -> 0.0637438908 | BA27: -0.54 | BB27: 0 | BE27: =IFERROR(RTD("cqg.rtd",,"StudyData", "Correlation("&$B$3&","&BE$2&",Period:="&$B$1&",InputChoice1:=Close,InputChoice2::=Close)", "FG", "", "Close",$B$2,A27, "all","", "","True","T")/100,"") -> 0.3508316053 | BG27: -0.54 | BH27: 0
A28: -24 | C28: =IFERROR(RTD("cqg.rtd",,"StudyData", "Correlation("&$B$3&","&C$2&",Period:="&$B$1&",InputChoice1:=Close,InputChoice2:=Close)", "FG", "", "Close",$B$2,A28, "all","", "","True","T")/100,"") -> -0.1228651395 | E28: -0.52 | F28: 0 | I28: =IFERROR(RTD("cqg.rtd",,"StudyData", "Correlation("&$B$3&","&I$2&",Period:="&$B$1&",InputChoice1:=Close,InputChoice2::=Close)", "FG", "", "Close",$B$2,A28, "all","", "","True","T")/100,"") -> -0.115026409 | K28: -0.52 | L28: 0 | O28: =IFERROR(RTD("cqg.rtd",,"StudyData", "Correlation("&$B$3&","&O$2&",Period:="&$B$1&",InputChoice1:=Close,InputChoice2::=Close)", "FG", "", "Close",$B$2,A28, "all","", "","True","T")/100,"") -> 0.2559853255 | Q28: -0.52 | R28: 0 | U28: =IFERROR(RTD("cqg.rtd",,"StudyData", "Correlation("&$B$3&","&U$2&",Period:="&$B$1&",InputChoice1:=Close,InputChoice2::=Close)", "FG", "", "Close",$B$2,A28, "all","", "","True","T")/100,"") -> 0.1038301149 | W28: -0.52 | X28: 0 | AA28: =IFERROR(RTD("cqg.rtd",,"StudyData", "Correlation("&$B$3&","&AA$2&",Period:="&$B$1&",InputChoice1:=Close,InputChoice2::=Close)", "FG", "", "Close",$B$2,A28, "all","", "","True","T")/100,"") -> 0.3161320942 | AC28: -0.52 | AD28: 1 | AG28: =IFERROR(RTD("cqg.rtd",,"StudyData", "Correlation("&$B$3&","&AG$2&",Period:="&$B$1&",InputChoice1:=Close,InputChoice2::=Close)", "FG", "", "Close",$B$2,A28, "all","", "","True","T")/100,"") -> 0.3333503882 | AI28: -0.52 | AJ28: 0 | AM28: =IFERROR(RTD("cqg.rtd",,"StudyData", "Correlation("&$B$3&","&AM$2&",Period:="&$B$1&",InputChoice1:=Close,InputChoice2::=Close)", "FG", "", "Close",$B$2,A28, "all","", "","True","T")/100,"") -> 0.3477732275 | AO28: -0.52 | AP28: 0 | AS28: =IFERROR(RTD("cqg.rtd",,"StudyData", "Correlation("&$B$3&","&AS$2&",Period:="&$B$1&",InputChoice1:=Close,InputChoice2::=Close)", "FG", "", "Close",$B$2,A28, "all","", "","True","T")/100,"") -> 0.05217017686 | AU28: -0.52 | AV28: 2 | AY28: =IFERROR(RTD("cqg.rtd",,"StudyData", "Correlation("&$B$3&","&AY$2&",Period:="&$B$1&",InputChoice1:=Close,InputChoice2::=Close)", "FG", "", "Close",$B$2,A28, "all","", "","True","T")/100,"") -> 0.2387713473 | BA28: -0.52 | BB28: 0 | BE28: =IFERROR(RTD("cqg.rtd",,"StudyData", "Correlation("&$B$3&","&BE$2&",Period:="&$B$1&",InputChoice1:=Close,InputChoice2::=Close)", "FG", "", "Close",$B$2,A28, "all","", "","True","T")/100,"") -> 0.3855261978 | BG28: -0.52 | BH28: 0
A29: -25 | C29: =IFERROR(RTD("cqg.rtd",,"StudyData", "Correlation("&$B$3&","&C$2&",Period:="&$B$1&",InputChoice1:=Close,InputChoice2:=Close)", "FG", "", "Close",$B$2,A29, "all","", "","True","T")/100,"") -> -0.1776219493 | E29: -0.5 | F29: 0 | I29: =IFERROR(RTD("cqg.rtd",,"StudyData", "Correlation("&$B$3&","&I$2&",Period:="&$B$1&",InputChoice1:=Close,InputChoice2::=Close)", "FG", "", "Close",$B$2,A29, "all","", "","True","T")/100,"") -> -0.1676296445 | K29: -0.5 | L29: 2 | O29: =IFERROR(RTD("cqg.rtd",,"StudyData", "Correlation("&$B$3&","&O$2&",Period:="&$B$1&",InputChoice1:=Close,InputChoice2::=Close)", "FG", "", "Close",$B$2,A29, "all","", "","True","T")/100,"") -> 0.3125228211 | Q29: -0.5 | R29: 1 | U29: =IFERROR(RTD("cqg.rtd",,"StudyData", "Correlation("&$B$3&","&U$2&",Period:="&$B$1&",InputChoice1:=Close,InputChoice2::=Close)", "FG", "", "Close",$B$2,A29, "all","", "","True","T")/100,"") -> 0.1614393587 | W29: -0.5 | X29: 0 | AA29: =IFERROR(RTD("cqg.rtd",,"StudyData", "Correlation("&$B$3&","&AA$2&",Period:="&$B$1&",InputChoice1:=Close,InputChoice2::=Close)", "FG", "", "Close",$B$2,A29, "all","", "","True","T")/100,"") -> 0.3400130766 | AC29: -0.5 | AD29: 1 | AG29: =IFERROR(RTD("cqg.rtd",,"StudyData", "Correlation("&$B$3&","&AG$2&",Period:="&$B$1&",InputChoice1:=Close,InputChoice2::=Close)", "FG", "", "Close",$B$2,A29, "all","", "","True","T")/100,"") -> 0.358117408 | AI29: -0.5 | AJ29: 1 | AM29: =IFERROR(RTD("cqg.rtd",,"StudyData", "Correlation("&$B$3&","&AM$2&",Period:="&$B$1&",InputChoice1:=Close,InputChoice2::=Close)", "FG", "", "Close",$B$2,A29, "all","", "","True","T")/100,"") -> 0.4276781201 | AO29: -0.5 | AP29: 1 | AS29: =IFERROR(RTD("cqg.rtd",,"StudyData", "Correlation("&$B$3&","&AS$2&",Period:="&$B$1&",InputChoice1:=Close,InputChoice2::=Close)", "FG", "", "Close",$B$2,A29, "all","", "","True","T")/100,"") -> -0.106480856 | AU29: -0.5 | AV29: 2 | AY29: =IFERROR(RTD("cqg.rtd",,"StudyData", "Correlation("&$B$3&","&AY$2&",Period:="&$B$1&",InputChoice1:=Close,InputChoice2::=Close)", "FG", "", "Close",$B$2,A29, "all","", "","True","T")/100,"") -> 0.5407702937 | BA29: -0.5 | BB29: 0 | BE29: =IFERROR(RTD("cqg.rtd",,"StudyData", "Correlation("&$B$3&","&BE$2&",Period:="&$B$1&",InputChoice1:=Close,InputChoice2::=Close)", "FG", "", "Close",$B$2,A29, "all","", "","True","T")/100,"") -> 0.3157810557 | BG29: -0.5 | BH29: 1
A30: -26 | C30: =IFERROR(RTD("cqg.rtd",,"StudyData", "Correlation("&$B$3&","&C$2&",Period:="&$B$1&",InputChoice1:=Close,InputChoice2:=Close)", "FG", "", "Close",$B$2,A30, "all","", "","True","T")/100,"") -> 0.1415813819 | E30: -0.48 | F30: 0 | I30: =IFERROR(RTD("cqg.rtd",,"StudyData", "Correlation("&$B$3&","&I$2&",Period:="&$B$1&",InputChoice1:=Close,InputChoice2::=Close)", "FG", "", "Close",$B$2,A30, "all","", "","True","T")/100,"") -> 0.1793029745 | K30: -0.48 | L30: 0 | O30: =IFERROR(RTD("cqg.rtd",,"StudyData", "Correlation("&$B$3&","&O$2&",Period:="&$B$1&",InputChoice1:=Close,InputChoice2::=Close)", "FG", "", "Close",$B$2,A30, "all","", "","True","T")/100,"") -> 0.4333389837 | Q30: -0.48 | R30: 1 | U30: =IFERROR(RTD("cqg.rtd",,"StudyData", "Correlation("&$B$3&","&U$2&",Period:="&$B$1&",InputChoice1:=Close,InputChoice2::=Close)", "FG", "", "Close",$B$2,A30, "all","", "","True","T")/100,"") -> 0.4214791127 | W30: -0.48 | X30: 1 | AA30: =IFERROR(RTD("cqg.rtd",,"StudyData", "Correlation("&$B$3&","&AA$2&",Period:="&$B$1&",InputChoice1:=Close,InputChoice2::=Close)", "FG", "", "Close",$B$2,A30, "all","", "","True","T")/100,"") -> 0.5740550235 | AC30: -0.48 | AD30: 0 | AG30: =IFERROR(RTD("cqg.rtd",,"StudyData", "Correlation("&$B$3&","&AG$2&",Period:="&$B$1&",InputChoice1:=Close,InputChoice2::=Close)", "FG", "", "Close",$B$2,A30, "all","", "","True","T")/100,"") -> 0.5387582281 | AI30: -0.48 | AJ30: 4 | AM30: =IFERROR(RTD("cqg.rtd",,"StudyData", "Correlation("&$B$3&","&AM$2&",Period:="&$B$1&",InputChoice1:=Close,InputChoice2::=Close)", "FG", "", "Close",$B$2,A30, "all","", "","True","T")/100,"") -> 0.6145894134 | AO30: -0.48 | AP30: 1 | AS30: =IFERROR(RTD("cqg.rtd",,"StudyData", "Correlation("&$B$3&","&AS$2&",Period:="&$B$1&",InputChoice1:=Close,InputChoice2::=Close)", "FG", "", "Close",$B$2,A30, "all","", "","True","T")/100,"") -> -0.2243164158 | AU30: -0.48 | AV30: 3 | AY30: =IFERROR(RTD("cqg.rtd",,"StudyData", "Correlation("&$B$3&","&AY$2&",Period:="&$B$1&",InputChoice1:=Close,InputChoice2::=Close)", "FG", "", "Close",$B$2,A30, "all","", "","True","T")/100,"") -> 0.5644680156 | BA30: -0.48 | BB30: 0 | BE30: =IFERROR(RTD("cqg.rtd",,"StudyData", "Correlation("&$B$3&","&BE$2&",Period:="&$B$1&",InputChoice1:=Close,InputChoice2::=Close)", "FG", "", "Close",$B$2,A30, "all","", "","True","T")/100,"") -> 0.392715083 | BG30: -0.48 | BH30: 0
A31: -27 | C31: =IFERROR(RTD("cqg.rtd",,"StudyData", "Correlation("&$B$3&","&C$2&",Period:="&$B$1&",InputChoice1:=Close,InputChoice2:=Close)", "FG", "", "Close",$B$2,A31, "all","", "","True","T")/100,"") -> 0.2378387019 | E31: -0.46 | F31: 0 | I31: =IFERROR(RTD("cqg.rtd",,"StudyData", "Correlation("&$B$3&","&I$2&",Period:="&$B$1&",InputChoice1:=Close,InputChoice2::=Close)", "FG", "", "Close",$B$2,A31, "all","", "","True","T")/100,"") -> 0.2713035349 | K31: -0.46 | L31: 1 | O31: =IFERROR(RTD("cqg.rtd",,"StudyData", "Correlation("&$B$3&","&O$2&",Period:="&$B$1&",InputChoice1:=Close,InputChoice2::=Close)", "FG", "", "Close",$B$2,A31, "all","", "","True","T")/100,"") -> 0.3042755628 | Q31: -0.46 | R31: 0 | U31: =IFERROR(RTD("cqg.rtd",,"StudyData", "Correlation("&$B$3&","&U$2&",Period:="&$B$1&",InputChoice1:=Close,InputChoice2::=Close)", "FG", "", "Close",$B$2,A31, "all","", "","True","T")/100,"") -> 0.5187904311 | W31: -0.46 | X31: 0 | AA31: =IFERROR(RTD("cqg.rtd",,"StudyData", "Correlation("&$B$3&","&AA$2&",Period:="&$B$1&",InputChoice1:=Close,InputChoice2::=Close)", "FG", "", "Close",$B$2,A31, "all","", "","True","T")/100,"") -> 0.5803192547 | AC31: -0.46 | AD31: 1 | AG31: =IFERROR(RTD("cqg.rtd",,"StudyData", "Correlation("&$B$3&","&AG$2&",Period:="&$B$1&",InputChoice1:=Close,InputChoice2::=Close)", "FG", "", "Close",$B$2,A31, "all","", "","True","T")/100,"") -> 0.5202406869 | AI31: -0.46 | AJ31: 0 | AM31: =IFERROR(RTD("cqg.rtd",,"StudyData", "Correlation("&$B$3&","&AM$2&",Period:="&$B$1&",InputChoice1:=Close,InputChoice2::=Close)", "FG", "", "Close",$B$2,A31, "all","", "","True","T")/100,"") -> 0.5851580289 | AO31: -0.46 | AP31: 1 | AS31: =IFERROR(RTD("cqg.rtd",,"StudyData", "Correlation("&$B$3&","&AS$2&",Period:="&$B$1&",InputChoice1:=Close,InputChoice2::=Close)", "FG", "", "Close",$B$2,A31, "all","", "","True","T")/100,"") -> -0.4700293797 | AU31: -0.46 | AV31: 3 | AY31: =IFERROR(RTD("cqg.rtd",,"StudyData", "Correlation("&$B$3&","&AY$2&",Period:="&$B$1&",InputChoice1:=Close,InputChoice2::=Close)", "FG", "", "Close",$B$2,A31, "all","", "","True","T")/100,"") -> 0.6262021935 | BA31: -0.46 | BB31: 0 | BE31: =IFERROR(RTD("cqg.rtd",,"StudyData", "Correlation("&$B$3&","&BE$2&",Period:="&$B$1&",InputChoice1:=Close,InputChoice2::=Close)", "FG", "", "Close",$B$2,A31, "all","", "","True","T")/100,"") -> 0.448706762 | BG31: -0.46 | BH31: 1
A32: -28 | C32: =IFERROR(RTD("cqg.rtd",,"StudyData", "Correlation("&$B$3&","&C$2&",Period:="&$B$1&",InputChoice1:=Close,InputChoice2:=Close)", "FG", "", "Close",$B$2,A32, "all","", "","True","T")/100,"") -> 0.2192109468 | E32: -0.44 | F32: 3 | I32: =IFERROR(RTD("cqg.rtd",,"StudyData", "Correlation("&$B$3&","&I$2&",Period:="&$B$1&",InputChoice1:=Close,InputChoice2::=Close)", "FG", "", "Close",$B$2,A32, "all","", "","True","T")/100,"") -> 0.2094252692 | K32: -0.44 | L32: 3 | O32: =IFERROR(RTD("cqg.rtd",,"StudyData", "Correlation("&$B$3&","&O$2&",Period:="&$B$1&",InputChoice1:=Close,InputChoice2::=Close)", "FG", "", "Close",$B$2,A32, "all","", "","True","T")/100,"") -> 0.3380296956 | Q32: -0.44 | R32: 1 | U32: =IFERROR(RTD("cqg.rtd",,"StudyData", "Correlation("&$B$3&","&U$2&",Period:="&$B$1&",InputChoice1:=Close,InputChoice2::=Close)", "FG", "", "Close",$B$2,A32, "all","", "","True","T")/100,"") -> 0.5653125508 | W32: -0.44 | X32: 0 | AA32: =IFERROR(RTD("cqg.rtd",,"StudyData", "Correlation("&$B$3&","&AA$2&",Period:="&$B$1&",InputChoice1:=Close,InputChoice2::=Close)", "FG", "", "Close",$B$2,A32, "all","", "","True","T")/100,"") -> 0.6258865903 | AC32: -0.44 | AD32: 2 | AG32: =IFERROR(RTD("cqg.rtd",,"StudyData", "Correlation("&$B$3&","&AG$2&",Period:="&$B$1&",InputChoice1:=Close,InputChoice2::=Close)", "FG", "", "Close",$B$2,A32, "all","", "","True","T")/100,"") -> 0.5502855358 | AI32: -0.44 | AJ32: 0 | AM32: =IFERROR(RTD("cqg.rtd",,"StudyData", "Correlation("&$B$3&","&AM$2&",Period:="&$B$1&",InputChoice1:=Close,InputChoice2::=Close)", "FG", "", "Close",$B$2,A32, "all","", "","True","T")/100,"") -> 0.6153873601 | AO32: -0.44 | AP32: 2 | AS32: =IFERROR(RTD("cqg.rtd",,"StudyData", "Correlation("&$B$3&","&AS$2&",Period:="&$B$1&",InputChoice1:=Close,InputChoice2::=Close)", "FG", "", "Close",$B$2,A32, "all","", "","True","T")/100,"") -> -0.5191138375 | AU32: -0.44 | AV32: 2 | AY32: =IFERROR(RTD("cqg.rtd",,"StudyData", "Correlation("&$B$3&","&AY$2&",Period:="&$B$1&",InputChoice1:=Close,InputChoice2::=Close)", "FG", "", "Close",$B$2,A32, "all","", "","True","T")/100,"") -> 0.6706437094 | BA32: -0.44 | BB32: 0 | BE32: =IFERROR(RTD("cqg.rtd",,"StudyData", "Correlation("&$B$3&","&BE$2&",Period:="&$B$1&",InputChoice1:=Close,InputChoice2::=Close)", "FG", "", "Close",$B$2,A32, "all","", "","True","T")/100,"") -> 0.481774646 | BG32: -0.44 | BH32: 0
A33: -29 | C33: =IFERROR(RTD("cqg.rtd",,"StudyData", "Correlation("&$B$3&","&C$2&",Period:="&$B$1&",InputChoice1:=Close,InputChoice2:=Close)", "FG", "", "Close",$B$2,A33, "all","", "","True","T")/100,"") -> 0.2210626952 | E33: -0.42 | F33: 0 | I33: =IFERROR(RTD("cqg.rtd",,"StudyData", "Correlation("&$B$3&","&I$2&",Period:="&$B$1&",InputChoice1:=Close,InputChoice2::=Close)", "FG", "", "Close",$B$2,A33, "all","", "","True","T")/100,"") -> 0.186924816 | K33: -0.42 | L33: 0 | O33: =IFERROR(RTD("cqg.rtd",,"StudyData", "Correlation("&$B$3&","&O$2&",Period:="&$B$1&",InputChoice1:=Close,InputChoice2::=Close)", "FG", "", "Close",$B$2,A33, "all","", "","True","T")/100,"") -> 0.2497208896 | Q33: -0.42 | R33: 2 | U33: =IFERROR(RTD("cqg.rtd",,"StudyData", "Correlation("&$B$3&","&U$2&",Period:="&$B$1&",InputChoice1:=Close,InputChoice2::=Close)", "FG", "", "Close",$B$2,A33, "all","", "","True","T")/100,"") -> 0.5701421767 | W33: -0.42 | X33: 2 | AA33: =IFERROR(RTD("cqg.rtd",,"StudyData", "Correlation("&$B$3&","&AA$2&",Period:="&$B$1&",InputChoice1:=Close,InputChoice2::=Close)", "FG", "", "Close",$B$2,A33, "all","", "","True","T")/100,"") -> 0.5810721412 | AC33: -0.42 | AD33: 3 | AG33: =IFERROR(RTD("cqg.rtd",,"StudyData", "Correlation("&$B$3&","&AG$2&",Period:="&$B$1&",InputChoice1:=Close,InputChoice2::=Close)", "FG", "", "Close",$B$2,A33, "all","", "","True","T")/100,"") -> 0.4761602456 | AI33: -0.42 | AJ33: 1 | AM33: =IFERROR(RTD("cqg.rtd",,"StudyData", "Correlation("&$B$3&","&AM$2&",Period:="&$B$1&",InputChoice1:=Close,InputChoice2::=Close)", "FG", "", "Close",$B$2,A33, "all","", "","True","T")/100,"") -> 0.5192345594 | AO33: -0.42 | AP33: 3 | AS33: =IFERROR(RTD("cqg.rtd",,"StudyData", "Correlation("&$B$3&","&AS$2&",Period:="&$B$1&",InputChoice1:=Close,InputChoice2::=Close)", "FG", "", "Close",$B$2,A33, "all","", "","True","T")/100,"") -> -0.5917353636 | AU33: -0.42 | AV33: 2 | AY33: =IFERROR(RTD("cqg.rtd",,"StudyData", "Correlation("&$B$3&","&AY$2&",Period:="&$B$1&",InputChoice1:=Close,InputChoice2::=Close)", "FG", "", "Close",$B$2,A33, "all","", "","True","T")/100,"") -> 0.7015424965 | BA33: -0.42 | BB33: 0 | BE33: =IFERROR(RTD("cqg.rtd",,"StudyData", "Correlation("&$B$3&","&BE$2&",Period:="&$B$1&",InputChoice1:=Close,InputChoice2::=Close)", "FG", "", "Close",$B$2,A33, "all","", "","True","T")/100,"") -> 0.4792773268 | BG33: -0.42 | BH33: 0
A34: -30 | C34: =IFERROR(RTD("cqg.rtd",,"StudyData", "Correlation("&$B$3&","&C$2&",Period:="&$B$1&",InputChoice1:=Close,InputChoice2:=Close)", "FG", "", "Close",$B$2,A34, "all","", "","True","T")/100,"") -> 0.07200196773 | E34: -0.4 | F34: 1 | I34: =IFERROR(RTD("cqg.rtd",,"StudyData", "Correlation("&$B$3&","&I$2&",Period:="&$B$1&",InputChoice1:=Close,InputChoice2::=Close)", "FG", "", "Close",$B$2,A34, "all","", "","True","T")/100,"") -> -0.05870912513 | K34: -0.4 | L34: 3 | O34: =IFERROR(RTD("cqg.rtd",,"StudyData", "Correlation("&$B$3&","&O$2&",Period:="&$B$1&",InputChoice1:=Close,InputChoice2::=Close)", "FG", "", "Close",$B$2,A34, "all","", "","True","T")/100,"") -> 0.274111346 | Q34: -0.4 | R34: 3 | U34: =IFERROR(RTD("cqg.rtd",,"StudyData", "Correlation("&$B$3&","&U$2&",Period:="&$B$1&",InputChoice1:=Close,InputChoice2::=Close)", "FG", "", "Close",$B$2,A34, "all","", "","True","T")/100,"") -> 0.4182880858 | W34: -0.4 | X34: 0 | AA34: =IFERROR(RTD("cqg.rtd",,"StudyData", "Correlation("&$B$3&","&AA$2&",Period:="&$B$1&",InputChoice1:=Close,InputChoice2::=Close)", "FG", "", "Close",$B$2,A34, "all","", "","True","T")/100,"") -> 0.5380600932 | AC34: -0.4 | AD34: 2 | AG34: =IFERROR(RTD("cqg.rtd",,"StudyData", "Correlation("&$B$3&","&AG$2&",Period:="&$B$1&",InputChoice1:=Close,InputChoice2::=Close)", "FG", "", "Close",$B$2,A34, "all","", "","True","T")/100,"") -> 0.4273199207 | AI34: -0.4 | AJ34: 0 | AM34: =IFERROR(RTD("cqg.rtd",,"StudyData", "Correlation("&$B$3&","&AM$2&",Period:="&$B$1&",InputChoice1:=Close,InputChoice2::=Close)", "FG", "", "Close",$B$2,A34, "all","", "","True","T")/100,"") -> 0.4460800263 | AO34: -0.4 | AP34: 1 | AS34: =IFERROR(RTD("cqg.rtd",,"StudyData", "Correlation("&$B$3&","&AS$2&",Period:="&$B$1&",InputChoice1:=Close,InputChoice2::=Close)", "FG", "", "Close",$B$2,A34, "all","", "","True","T")/100,"") -> -0.6965017301 | AU34: -0.4 | AV34: 1 | AY34: =IFERROR(RTD("cqg.rtd",,"StudyData", "Correlation("&$B$3&","&AY$2&",Period:="&$B$1&",InputChoice1:=Close,InputChoice2::=Close)", "FG", "", "Close",$B$2,A34, "all","", "","True","T")/100,"") -> 0.7828368388 | BA34: -0.4 | BB34: 0 | BE34: =IFERROR(RTD("cqg.rtd",,"StudyData", "Correlation("&$B$3&","&BE$2&",Period:="&$B$1&",InputChoice1:=Close,InputChoice2::=Close)", "FG", "", "Close",$B$2,A34, "all","", "","True","T")/100,"") -> 0.4830360571 | BG34: -0.4 | BH34: 0
A35: -31 | C35: =IFERROR(RTD("cqg.rtd",,"StudyData", "Correlation("&$B$3&","&C$2&",Period:="&$B$1&",InputChoice1:=Close,InputChoice2:=Close)", "FG", "", "Close",$B$2,A35, "all","", "","True","T")/100,"") -> -0.06444327725 | E35: -0.38 | F35: 0 | I35: =IFERROR(RTD("cqg.rtd",,"StudyData", "Correlation("&$B$3&","&I$2&",Period:="&$B$1&",InputChoice1:=Close,InputChoice2::=Close)", "FG", "", "Close",$B$2,A35, "all","", "","True","T")/100,"") -> -0.2156403742 | K35: -0.38 | L35: 2 | O35: =IFERROR(RTD("cqg.rtd",,"StudyData", "Correlation("&$B$3&","&O$2&",Period:="&$B$1&",InputChoice1:=Close,InputChoice2::=Close)", "FG", "", "Close",$B$2,A35, "all","", "","True","T")/100,"") -> 0.3675619359 | Q35: -0.38 | R35: 2 | U35: =IFERROR(RTD("cqg.rtd",,"StudyData", "Correlation("&$B$3&","&U$2&",Period:="&$B$1&",InputChoice1:=Close,InputChoice2::=Close)", "FG", "", "Close",$B$2,A35, "all","", "","True","T")/100,"") -> 0.2643985091 | W35: -0.38 | X35: 0 | AA35: =IFERROR(RTD("cqg.rtd",,"StudyData", "Correlation("&$B$3&","&AA$2&",Period:="&$B$1&",InputChoice1:=Close,InputChoice2::=Close)", "FG", "", "Close",$B$2,A35, "all","", "","True","T")/100,"") -> 0.3561274617 | AC35: -0.38 | AD35: 2 | AG35: =IFERROR(RTD("cqg.rtd",,"StudyData", "Correlation("&$B$3&","&AG$2&",Period:="&$B$1&",InputChoice1:=Close,InputChoice2::=Close)", "FG", "", "Close",$B$2,A35, "all","", "","True","T")/100,"") -> 0.2711226693 | AI35: -0.38 | AJ35: 4 | AM35: =IFERROR(RTD("cqg.rtd",,"StudyData", "Correlation("&$B$3&","&AM$2&",Period:="&$B$1&",InputChoice1:=Close,InputChoice2::=Close)", "FG", "", "Close",$B$2,A35, "all","", "","True","T")/100,"") -> 0.2397630379 | AO35: -0.38 | AP35: 0 | AS35: =IFERROR(RTD("cqg.rtd",,"StudyData", "Correlation("&$B$3&","&AS$2&",Period:="&$B$1&",InputChoice1:=Close,InputChoice2::=Close)", "FG", "", "Close",$B$2,A35, "all","", "","True","T")/100,"") -> -0.7134544261 | AU35: -0.38 | AV35: 1 | AY35: =IFERROR(RTD("cqg.rtd",,"StudyData", "Correlation("&$B$3&","&AY$2&",Period:="&$B$1&",InputChoice1:=Close,InputChoice2::=Close)", "FG", "", "Close",$B$2,A35, "all","", "","True","T")/100,"") -> 0.8398367733 | BA35: -0.38 | BB35: 0 | BE35: =IFERROR(RTD("cqg.rtd",,"StudyData", "Correlation("&$B$3&","&BE$2&",Period:="&$B$1&",InputChoice1:=Close,InputChoice2::=Close)", "FG", "", "Close",$B$2,A35, "all","", "","True","T")/100,"") -> 0.4959872711 | BG35: -0.38 | BH35: 0
A36: -32 | C36: =IFERROR(RTD("cqg.rtd",,"StudyData", "Correlation("&$B$3&","&C$2&",Period:="&$B$1&",InputChoice1:=Close,InputChoice2:=Close)", "FG", "", "Close",$B$2,A36, "all","", "","True","T")/100,"") -> -0.2071704545 | E36: -0.36 | F36: 0 | I36: =IFERROR(RTD("cqg.rtd",,"StudyData", "Correlation("&$B$3&","&I$2&",Period:="&$B$1&",InputChoice1:=Close,InputChoice2::=Close)", "FG", "", "Close",$B$2,A36, "all","", "","True","T")/100,"") -> -0.3519652905 | K36: -0.36 | L36: 1 | O36: =IFERROR(RTD("cqg.rtd",,"StudyData", "Correlation("&$B$3&","&O$2&",Period:="&$B$1&",InputChoice1:=Close,InputChoice2::=Close)", "FG", "", "Close",$B$2,A36, "all","", "","True","T")/100,"") -> 0.5203953549 | Q36: -0.36 | R36: 4 | U36: =IFERROR(RTD("cqg.rtd",,"StudyData", "Correlation("&$B$3&","&U$2&",Period:="&$B$1&",InputChoice1:=Close,InputChoice2::=Close)", "FG", "", "Close",$B$2,A36, "all","", "","True","T")/100,"") -> 0.01823032237 | W36: -0.36 | X36: 1 | AA36: =IFERROR(RTD("cqg.rtd",,"StudyData", "Correlation("&$B$3&","&AA$2&",Period:="&$B$1&",InputChoice1:=Close,InputChoice2::=Close)", "FG", "", "Close",$B$2,A36, "all","", "","True","T")/100,"") -> 0.1145129676 | AC36: -0.36 | AD36: 2 | AG36: =IFERROR(RTD("cqg.rtd",,"StudyData", "Correlation("&$B$3&","&AG$2&",Period:="&$B$1&",InputChoice1:=Close,InputChoice2::=Close)", "FG", "", "Close",$B$2,A36, "all","", "","True","T")/100,"") -> 0.09242546331 | AI36: -0.36 | AJ36: 0 | AM36: =IFERROR(RTD("cqg.rtd",,"StudyData", "Correlation("&$B$3&","&AM$2&",Period:="&$B$1&",InputChoice1:=Close,InputChoice2::=Close)", "FG", "", "Close",$B$2,A36, "all","", "","True","T")/100,"") -> -0.01441670418 | AO36: -0.36 | AP36: 1 | AS36: =IFERROR(RTD("cqg.rtd",,"StudyData", "Correlation("&$B$3&","&AS$2&",Period:="&$B$1&",InputChoice1:=Close,InputChoice2::=Close)", "FG", "", "Close",$B$2,A36, "all","", "","True","T")/100,"") -> -0.7882063264 | AU36: -0.36 | AV36: 1 | AY36: =IFERROR(RTD("cqg.rtd",,"StudyData", "Correlation("&$B$3&","&AY$2&",Period:="&$B$1&",InputChoice1:=Close,InputChoice2::=Close)", "FG", "", "Close",$B$2,A36, "all","", "","True","T")/100,"") -> 0.8710596941 | BA36: -0.36 | BB36: 0 | BE36: =IFERROR(RTD("cqg.rtd",,"StudyData", "Correlation("&$B$3&","&BE$2&",Period:="&$B$1&",InputChoice1:=Close,InputChoice2::=Close)", "FG", "", "Close",$B$2,A36, "all","", "","True","T")/100,"") -> 0.597985524 | BG36: -0.36 | BH36: 0
A37: -33 | C37: =IFERROR(RTD("cqg.rtd",,"StudyData", "Correlation("&$B$3&","&C$2&",Period:="&$B$1&",InputChoice1:=Close,InputChoice2:=Close)", "FG", "", "Close",$B$2,A37, "all","", "","True","T")/100,"") -> -0.2749400994 | E37: -0.34 | F37: 1 | I37: =IFERROR(RTD("cqg.rtd",,"StudyData", "Correlation("&$B$3&","&I$2&",Period:="&$B$1&",InputChoice1:=Close,InputChoice2::=Close)", "FG", "", "Close",$B$2,A37, "all","", "","True","T")/100,"") -> -0.4011164358 | K37: -0.34 | L37: 3 | O37: =IFERROR(RTD("cqg.rtd",,"StudyData", "Correlation("&$B$3&","&O$2&",Period:="&$B$1&",InputChoice1:=Close,InputChoice2::=Close)", "FG", "", "Close",$B$2,A37, "all","", "","True","T")/100,"") -> 0.6298178594 | Q37: -0.34 | R37: 1 | U37: =IFERROR(RTD("cqg.rtd",,"StudyData", "Correlation("&$B$3&","&U$2&",Period:="&$B$1&",InputChoice1:=Close,InputChoice2::=Close)", "FG", "", "Close",$B$2,A37, "all","", "","True","T")/100,"") -> -0.1825532954 | W37: -0.34 | X37: 2 | AA37: =IFERROR(RTD("cqg.rtd",,"StudyData", "Correlation("&$B$3&","&AA$2&",Period:="&$B$1&",InputChoice1:=Close,InputChoice2::=Close)", "FG", "", "Close",$B$2,A37, "all","", "","True","T")/100,"") -> -0.08029077797 | AC37: -0.34 | AD37: 1 | AG37: =IFERROR(RTD("cqg.rtd",,"StudyData", "Correlation("&$B$3&","&AG$2&",Period:="&$B$1&",InputChoice1:=Close,InputChoice2::=Close)", "FG", "", "Close",$B$2,A37, "all","", "","True","T")/100,"") -> -0.07567614103 | AI37: -0.34 | AJ37: 1 | AM37: =IFERROR(RTD("cqg.rtd",,"StudyData", "Correlation("&$B$3&","&AM$2&",Period:="&$B$1&",InputChoice1:=Close,InputChoice2::=Close)", "FG", "", "Close",$B$2,A37, "all","", "","True","T")/100,"") -> -0.2001779385 | AO37: -0.34 | AP37: 1 | AS37: =IFERROR(RTD("cqg.rtd",,"StudyData", "Correlation("&$B$3&","&AS$2&",Period:="&$B$1&",InputChoice1:=Close,InputChoice2::=Close)", "FG", "", "Close",$B$2,A37, "all","", "","True","T")/100,"") -> -0.8934853276 | AU37: -0.34 | AV37: 1 | AY37: =IFERROR(RTD("cqg.rtd",,"StudyData", "Correlation("&$B$3&","&AY$2&",Period:="&$B$1&",InputChoice1:=Close,InputChoice2::=Close)", "FG", "", "Close",$B$2,A37, "all","", "","True","T")/100,"") -> 0.8914701958 | BA37: -0.34 | BB37: 0 | BE37: =IFERROR(RTD("cqg.rtd",,"StudyData", "Correlation("&$B$3&","&BE$2&",Period:="&$B$1&",InputChoice1:=Close,InputChoice2::=Close)", "FG", "", "Close",$B$2,A37, "all","", "","True","T")/100,"") -> 0.6174945161 | BG37: -0.34 | BH37: 0
A38: -34 | C38: =IFERROR(RTD("cqg.rtd",,"StudyData", "Correlation("&$B$3&","&C$2&",Period:="&$B$1&",InputChoice1:=Close,InputChoice2:=Close)", "FG", "", "Close",$B$2,A38, "all","", "","True","T")/100,"") -> -0.2591224435 | E38: -0.32 | F38: 0 | I38: =IFERROR(RTD("cqg.rtd",,"StudyData", "Correlation("&$B$3&","&I$2&",Period:="&$B$1&",InputChoice1:=Close,InputChoice2::=Close)", "FG", "", "Close",$B$2,A38, "all","", "","True","T")/100,"") -> -0.373344049 | K38: -0.32 | L38: 0 | O38: =IFERROR(RTD("cqg.rtd",,"StudyData", "Correlation("&$B$3&","&O$2&",Period:="&$B$1&",InputChoice1:=Close,InputChoice2::=Close)", "FG", "", "Close",$B$2,A38, "all","", "","True","T")/100,"") -> 0.7303330463 | Q38: -0.32 | R38: 2 | U38: =IFERROR(RTD("cqg.rtd",,"StudyData", "Correlation("&$B$3&","&U$2&",Period:="&$B$1&",InputChoice1:=Close,InputChoice2::=Close)", "FG", "", "Close",$B$2,A38, "all","", "","True","T")/100,"") -> -0.3210590823 | W38: -0.32 | X38: 1 | AA38: =IFERROR(RTD("cqg.rtd",,"StudyData", "Correlation("&$B$3&","&AA$2&",Period:="&$B$1&",InputChoice1:=Close,InputChoice2::=Close)", "FG", "", "Close",$B$2,A38, "all","", "","True","T")/100,"") -> -0.2189738807 | AC38: -0.32 | AD38: 0 | AG38: =IFERROR(RTD("cqg.rtd",,"StudyData", "Correlation("&$B$3&","&AG$2&",Period:="&$B$1&",InputChoice1:=Close,InputChoice2::=Close)", "FG", "", "Close",$B$2,A38, "all","", "","True","T")/100,"") -> -0.2181820067 | AI38: -0.32 | AJ38: 4 | AM38: =IFERROR(RTD("cqg.rtd",,"StudyData", "Correlation("&$B$3&","&AM$2&",Period:="&$B$1&",InputChoice1:=Close,InputChoice2::=Close)", "FG", "", "Close",$B$2,A38, "all","", "","True","T")/100,"") -> -0.30539526 | AO38: -0.32 | AP38: 1 | AS38: =IFERROR(RTD("cqg.rtd",,"StudyData", "Correlation("&$B$3&","&AS$2&",Period:="&$B$1&",InputChoice1:=Close,InputChoice2::=Close)", "FG", "", "Close",$B$2,A38, "all","", "","True","T")/100,"") -> -0.8986726003 | AU38: -0.32 | AV38: 3 | AY38: =IFERROR(RTD("cqg.rtd",,"StudyData", "Correlation("&$B$3&","&AY$2&",Period:="&$B$1&",InputChoice1:=Close,InputChoice2::=Close)", "FG", "", "Close",$B$2,A38, "all","", "","True","T")/100,"") -> 0.8998834272 | BA38: -0.32 | BB38: 0 | BE38: =IFERROR(RTD("cqg.rtd",,"StudyData", "Correlation("&$B$3&","&BE$2&",Period:="&$B$1&",InputChoice1:=Close,InputChoice2::=Close)", "FG", "", "Close",$B$2,A38, "all","", "","True","T")/100,"") -> 0.5309706524 | BG38: -0.32 | BH38: 0
A39: -35 | C39: =IFERROR(RTD("cqg.rtd",,"StudyData", "Correlation("&$B$3&","&C$2&",Period:="&$B$1&",InputChoice1:=Close,InputChoice2:=Close)", "FG", "", "Close",$B$2,A39, "all","", "","True","T")/100,"") -> -0.3473715242 | E39: -0.3 | F39: 1 | I39: =IFERROR(RTD("cqg.rtd",,"StudyData", "Correlation("&$B$3&","&I$2&",Period:="&$B$1&",InputChoice1:=Close,InputChoice2::=Close)", "FG", "", "Close",$B$2,A39, "all","", "","True","T")/100,"") -> -0.4411689478 | K39: -0.3 | L39: 2 | O39: =IFERROR(RTD("cqg.rtd",,"StudyData", "Correlation("&$B$3&","&O$2&",Period:="&$B$1&",InputChoice1:=Close,InputChoice2::=Close)", "FG", "", "Close",$B$2,A39, "all","", "","True","T")/100,"") -> 0.7210497754 | Q39: -0.3 | R39: 0 | U39: =IFERROR(RTD("cqg.rtd",,"StudyData", "Correlation("&$B$3&","&U$2&",Period:="&$B$1&",InputChoice1:=Close,InputChoice2::=Close)", "FG", "", "Close",$B$2,A39, "all","", "","True","T")/100,"") -> -0.4359638509 | W39: -0.3 | X39: 1 | AA39: =IFERROR(RTD("cqg.rtd",,"StudyData", "Correlation("&$B$3&","&AA$2&",Period:="&$B$1&",InputChoice1:=Close,InputChoice2::=Close)", "FG", "", "Close",$B$2,A39, "all","", "","True","T")/100,"") -> -0.3886638592 | AC39: -0.3 | AD39: 0 | AG39: =IFERROR(RTD("cqg.rtd",,"StudyData", "Correlation("&$B$3&","&AG$2&",Period:="&$B$1&",InputChoice1:=Close,InputChoice2::=Close)", "FG", "", "Close",$B$2,A39, "all","", "","True","T")/100,"") -> -0.3976083421 | AI39: -0.3 | AJ39: 3 | AM39: =IFERROR(RTD("cqg.rtd",,"StudyData", "Correlation("&$B$3&","&AM$2&",Period:="&$B$1&",InputChoice1:=Close,InputChoice2::=Close)", "FG", "", "Close",$B$2,A39, "all","", "","True","T")/100,"") -> -0.4598797025 | AO39: -0.3 | AP39: 2 | AS39: =IFERROR(RTD("cqg.rtd",,"StudyData", "Correlation("&$B$3&","&AS$2&",Period:="&$B$1&",InputChoice1:=Close,InputChoice2::=Close)", "FG", "", "Close",$B$2,A39, "all","", "","True","T")/100,"") -> -0.8914667544 | AU39: -0.3 | AV39: 1 | AY39: =IFERROR(RTD("cqg.rtd",,"StudyData", "Correlation("&$B$3&","&AY$2&",Period:="&$B$1&",InputChoice1:=Close,InputChoice2::=Close)", "FG", "", "Close",$B$2,A39, "all","", "","True","T")/100,"") -> 0.9119746667 | BA39: -0.3 | BB39: 0 | BE39: =IFERROR(RTD("cqg.rtd",,"StudyData", "Correlation("&$B$3&","&BE$2&",Period:="&$B$1&",InputChoice1:=Close,InputChoice2::=Close)", "FG", "", "Close",$B$2,A39, "all","", "","True","T")/100,"") -> 0.5415523239 | BG39: -0.3 | BH39: 2
A40: -36 | C40: =IFERROR(RTD("cqg.rtd",,"StudyData", "Correlation("&$B$3&","&C$2&",Period:="&$B$1&",InputChoice1:=Close,InputChoice2:=Close)", "FG", "", "Close",$B$2,A40, "all","", "","True","T")/100,"") -> -0.4495041461 | E40: -0.28 | F40: 1 | I40: =IFERROR(RTD("cqg.rtd",,"StudyData", "Correlation("&$B$3&","&I$2&",Period:="&$B$1&",InputChoice1:=Close,InputChoice2::=Close)", "FG", "", "Close",$B$2,A40, "all","", "","True","T")/100,"") -> -0.5159274166 | K40: -0.28 | L40: 1 | O40: =IFERROR(RTD("cqg.rtd",,"StudyData", "Correlation("&$B$3&","&O$2&",Period:="&$B$1&",InputChoice1:=Close,InputChoice2::=Close)", "FG", "", "Close",$B$2,A40, "all","", "","True","T")/100,"") -> 0.721786126 | Q40: -0.28 | R40: 3 | U40: =IFERROR(RTD("cqg.rtd",,"StudyData", "Correlation("&$B$3&","&U$2&",Period:="&$B$1&",InputChoice1:=Close,InputChoice2::=Close)", "FG", "", "Close",$B$2,A40, "all","", "","True","T")/100,"") -> -0.5542302179 | W40: -0.28 | X40: 0 | AA40: =IFERROR(RTD("cqg.rtd",,"StudyData", "Correlation("&$B$3&","&AA$2&",Period:="&$B$1&",InputChoice1:=Close,InputChoice2::=Close)", "FG", "", "Close",$B$2,A40, "all","", "","True","T")/100,"") -> -0.5808731875 | AC40: -0.28 | AD40: 1 | AG40: =IFERROR(RTD("cqg.rtd",,"StudyData", "Correlation("&$B$3&","&AG$2&",Period:="&$B$1&",InputChoice1:=Close,InputChoice2::=Close)", "FG", "", "Close",$B$2,A40, "all","", "","True","T")/100,"") -> -0.6072898555 | AI40: -0.28 | AJ40: 2 | AM40: =IFERROR(RTD("cqg.rtd",,"StudyData", "Correlation("&$B$3&","&AM$2&",Period:="&$B$1&",InputChoice1:=Close,InputChoice2::=Close)", "FG", "", "Close",$B$2,A40, "all","", "","True","T")/100,"") -> -0.6264321982 | AO40: -0.28 | AP40: 2 | AS40: =IFERROR(RTD("cqg.rtd",,"StudyData", "Correlation("&$B$3&","&AS$2&",Period:="&$B$1&",InputChoice1:=Close,InputChoice2::=Close)", "FG", "", "Close",$B$2,A40, "all","", "","True","T")/100,"") -> -0.8717694285 | AU40: -0.28 | AV40: 3 | AY40: =IFERROR(RTD("cqg.rtd",,"StudyData", "Correlation("&$B$3&","&AY$2&",Period:="&$B$1&",InputChoice1:=Close,InputChoice2::=Close)", "FG", "", "Close",$B$2,A40, "all","", "","True","T")/100,"") -> 0.9275928976 | BA40: -0.28 | BB40: 0 | BE40: =IFERROR(RTD("cqg.rtd",,"StudyData", "Correlation("&$B$3&","&BE$2&",Period:="&$B$1&",InputChoice1:=Close,InputChoice2::=Close)", "FG", "", "Close",$B$2,A40, "all","", "","True","T")/100,"") -> 0.5214927835 | BG40: -0.28 | BH40: 0
A41: -37 | C41: =IFERROR(RTD("cqg.rtd",,"StudyData", "Correlation("&$B$3&","&C$2&",Period:="&$B$1&",InputChoice1:=Close,InputChoice2:=Close)", "FG", "", "Close",$B$2,A41, "all","", "","True","T")/100,"") -> -0.5856444533 | E41: -0.26 | F41: 1 | I41: =IFERROR(RTD("cqg.rtd",,"StudyData", "Correlation("&$B$3&","&I$2&",Period:="&$B$1&",InputChoice1:=Close,InputChoice2::=Close)", "FG", "", "Close",$B$2,A41, "all","", "","True","T")/100,"") -> -0.5998689326 | K41: -0.26 | L41: 1 | O41: =IFERROR(RTD("cqg.rtd",,"StudyData", "Correlation("&$B$3&","&O$2&",Period:="&$B$1&",InputChoice1:=Close,InputChoice2::=Close)", "FG", "", "Close",$B$2,A41, "all","", "","True","T")/100,"") -> 0.7140948271 | Q41: -0.26 | R41: 0 | U41: =IFERROR(RTD("cqg.rtd",,"StudyData", "Correlation("&$B$3&","&U$2&",Period:="&$B$1&",InputChoice1:=Close,InputChoice2::=Close)", "FG", "", "Close",$B$2,A41, "all","", "","True","T")/100,"") -> -0.6344326107 | W41: -0.26 | X41: 0 | AA41: =IFERROR(RTD("cqg.rtd",,"StudyData", "Correlation("&$B$3&","&AA$2&",Period:="&$B$1&",InputChoice1:=Close,InputChoice2::=Close)", "FG", "", "Close",$B$2,A41, "all","", "","True","T")/100,"") -> -0.6579359921 | AC41: -0.26 | AD41: 1 | AG41: =IFERROR(RTD("cqg.rtd",,"StudyData", "Correlation("&$B$3&","&AG$2&",Period:="&$B$1&",InputChoice1:=Close,InputChoice2::=Close)", "FG", "", "Close",$B$2,A41, "all","", "","True","T")/100,"") -> -0.7094261577 | AI41: -0.26 | AJ41: 1 | AM41: =IFERROR(RTD("cqg.rtd",,"StudyData", "Correlation("&$B$3&","&AM$2&",Period:="&$B$1&",InputChoice1:=Close,InputChoice2::=Close)", "FG", "", "Close",$B$2,A41, "all","", "","True","T")/100,"") -> -0.6644957514 | AO41: -0.26 | AP41: 0 | AS41: =IFERROR(RTD("cqg.rtd",,"StudyData", "Correlation("&$B$3&","&AS$2&",Period:="&$B$1&",InputChoice1:=Close,InputChoice2::=Close)", "FG", "", "Close",$B$2,A41, "all","", "","True","T")/100,"") -> -0.8526146516 | AU41: -0.26 | AV41: 2 | AY41: =IFERROR(RTD("cqg.rtd",,"StudyData", "Correlation("&$B$3&","&AY$2&",Period:="&$B$1&",InputChoice1:=Close,InputChoice2::=Close)", "FG", "", "Close",$B$2,A41, "all","", "","True","T")/100,"") -> 0.9326487121 | BA41: -0.26 | BB41: 0 | BE41: =IFERROR(RTD("cqg.rtd",,"StudyData", "Correlation("&$B$3&","&BE$2&",Period:="&$B$1&",InputChoice1:=Close,InputChoice2::=Close)", "FG", "", "Close",$B$2,A41, "all","", "","True","T")/100,"") -> 0.4878279098 | BG41: -0.26 | BH41: 0
A42: -38 | C42: =IFERROR(RTD("cqg.rtd",,"StudyData", "Correlation("&$B$3&","&C$2&",Period:="&$B$1&",InputChoice1:=Close,InputChoice2:=Close)", "FG", "", "Close",$B$2,A42, "all","", "","True","T")/100,"") -> -0.6789489051 | E42: -0.24 | F42: 3 | I42: =IFERROR(RTD("cqg.rtd",,"StudyData", "Correlation("&$B$3&","&I$2&",Period:="&$B$1&",InputChoice1:=Close,InputChoice2::=Close)", "FG", "", "Close",$B$2,A42, "all","", "","True","T")/100,"") -> -0.6962651862 | K42: -0.24 | L42: 1 | O42: =IFERROR(RTD("cqg.rtd",,"StudyData", "Correlation("&$B$3&","&O$2&",Period:="&$B$1&",InputChoice1:=Close,InputChoice2::=Close)", "FG", "", "Close",$B$2,A42, "all","", "","True","T")/100,"") -> 0.6528018261 | Q42: -0.24 | R42: 3 | U42: =IFERROR(RTD("cqg.rtd",,"StudyData", "Correlation("&$B$3&","&U$2&",Period:="&$B$1&",InputChoice1:=Close,InputChoice2::=Close)", "FG", "", "Close",$B$2,A42, "all","", "","True","T")/100,"") -> -0.6899582553 | W42: -0.24 | X42: 1 | AA42: =IFERROR(RTD("cqg.rtd",,"StudyData", "Correlation("&$B$3&","&AA$2&",Period:="&$B$1&",InputChoice1:=Close,InputChoice2::=Close)", "FG", "", "Close",$B$2,A42, "all","", "","True","T")/100,"") -> -0.7295419717 | AC42: -0.24 | AD42: 0 | AG42: =IFERROR(RTD("cqg.rtd",,"StudyData", "Correlation("&$B$3&","&AG$2&",Period:="&$B$1&",InputChoice1:=Close,InputChoice2::=Close)", "FG", "", "Close",$B$2,A42, "all","", "","True","T")/100,"") -> -0.7843410416 | AI42: -0.24 | AJ42: 1 | AM42: =IFERROR(RTD("cqg.rtd",,"StudyData", "Correlation("&$B$3&","&AM$2&",Period:="&$B$1&",InputChoice1:=Close,InputChoice2::=Close)", "FG", "", "Close",$B$2,A42, "all","", "","True","T")/100,"") -> -0.7027082126 | AO42: -0.24 | AP42: 1 | AS42: =IFERROR(RTD("cqg.rtd",,"StudyData", "Correlation("&$B$3&","&AS$2&",Period:="&$B$1&",InputChoice1:=Close,InputChoice2::=Close)", "FG", "", "Close",$B$2,A42, "all","", "","True","T")/100,"") -> -0.8495485983 | AU42: -0.24 | AV42: 0 | AY42: =IFERROR(RTD("cqg.rtd",,"StudyData", "Correlation("&$B$3&","&AY$2&",Period:="&$B$1&",InputChoice1:=Close,InputChoice2::=Close)", "FG", "", "Close",$B$2,A42, "all","", "","True","T")/100,"") -> 0.933810781 | BA42: -0.24 | BB42: 0 | BE42: =IFERROR(RTD("cqg.rtd",,"StudyData", "Correlation("&$B$3&","&BE$2&",Period:="&$B$1&",InputChoice1:=Close,InputChoice2::=Close)", "FG", "", "Close",$B$2,A42, "all","", "","True","T")/100,"") -> 0.4107653525 | BG42: -0.24 | BH42: 0
A43: -39 | C43: =IFERROR(RTD("cqg.rtd",,"StudyData", "Correlation("&$B$3&","&C$2&",Period:="&$B$1&",InputChoice1:=Close,InputChoice2:=Close)", "FG", "", "Close",$B$2,A43, "all","", "","True","T")/100,"") -> -0.6903669469 | E43: -0.22 | F43: 3 | I43: =IFERROR(RTD("cqg.rtd",,"StudyData", "Correlation("&$B$3&","&I$2&",Period:="&$B$1&",InputChoice1:=Close,InputChoice2::=Close)", "FG", "", "Close",$B$2,A43, "all","", "","True","T")/100,"") -> -0.7105029337 | K43: -0.22 | L43: 2 | O43: =IFERROR(RTD("cqg.rtd",,"StudyData", "Correlation("&$B$3&","&O$2&",Period:="&$B$1&",InputChoice1:=Close,InputChoice2::=Close)", "FG", "", "Close",$B$2,A43, "all","", "","True","T")/100,"") -> 0.584922469 | Q43: -0.22 | R43: 0 | U43: =IFERROR(RTD("cqg.rtd",,"StudyData", "Correlation("&$B$3&","&U$2&",Period:="&$B$1&",InputChoice1:=Close,InputChoice2::=Close)", "FG", "", "Close",$B$2,A43, "all","", "","True","T")/100,"") -> -0.7511665386 | W43: -0.22 | X43: 0 | AA43: =IFERROR(RTD("cqg.rtd",,"StudyData", "Correlation("&$B$3&","&AA$2&",Period:="&$B$1&",InputChoice1:=Close,InputChoice2::=Close)", "FG", "", "Close",$B$2,A43, "all","", "","True","T")/100,"") -> -0.779749521 | AC43: -0.22 | AD43: 2 | AG43: =IFERROR(RTD("cqg.rtd",,"StudyData", "Correlation("&$B$3&","&AG$2&",Period:="&$B$1&",InputChoice1:=Close,InputChoice2::=Close)", "FG", "", "Close",$B$2,A43, "all","", "","True","T")/100,"") -> -0.8396032398 | AI43: -0.22 | AJ43: 0 | AM43: =IFERROR(RTD("cqg.rtd",,"StudyData", "Correlation("&$B$3&","&AM$2&",Period:="&$B$1&",InputChoice1:=Close,InputChoice2::=Close)", "FG", "", "Close",$B$2,A43, "all","", "","True","T")/100,"") -> -0.7425374964 | AO43: -0.22 | AP43: 1 | AS43: =IFERROR(RTD("cqg.rtd",,"StudyData", "Correlation("&$B$3&","&AS$2&",Period:="&$B$1&",InputChoice1:=Close,InputChoice2::=Close)", "FG", "", "Close",$B$2,A43, "all","", "","True","T")/100,"") -> -0.8478157199 | AU43: -0.22 | AV43: 2 | AY43: =IFERROR(RTD("cqg.rtd",,"StudyData", "Correlation("&$B$3&","&AY$2&",Period:="&$B$1&",InputChoice1:=Close,InputChoice2::=Close)", "FG", "", "Close",$B$2,A43, "all","", "","True","T")/100,"") -> 0.9273230899 | BA43: -0.22 | BB43: 0 | BE43: =IFERROR(RTD("cqg.rtd",,"StudyData", "Correlation("&$B$3&","&BE$2&",Period:="&$B$1&",InputChoice1:=Close,InputChoice2::=Close)", "FG", "", "Close",$B$2,A43, "all","", "","True","T")/100,"") -> 0.1717011332 | BG43: -0.22 | BH43: 0
A44: -40 | C44: =IFERROR(RTD("cqg.rtd",,"StudyData", "Correlation("&$B$3&","&C$2&",Period:="&$B$1&",InputChoice1:=Close,InputChoice2:=Close)", "FG", "", "Close",$B$2,A44, "all","", "","True","T")/100,"") -> -0.7346133915 | E44: -0.2 | F44: 2 | I44: =IFERROR(RTD("cqg.rtd",,"StudyData", "Correlation("&$B$3&","&I$2&",Period:="&$B$1&",InputChoice1:=Close,InputChoice2::=Close)", "FG", "", "Close",$B$2,A44, "all","", "","True","T")/100,"") -> -0.7587615152 | K44: -0.2 | L44: 3 | O44: =IFERROR(RTD("cqg.rtd",,"StudyData", "Correlation("&$B$3&","&O$2&",Period:="&$B$1&",InputChoice1:=Close,InputChoice2::=Close)", "FG", "", "Close",$B$2,A44, "all","", "","True","T")/100,"") -> 0.511440349 | Q44: -0.2 | R44: 1 | U44: =IFERROR(RTD("cqg.rtd",,"StudyData", "Correlation("&$B$3&","&U$2&",Period:="&$B$1&",InputChoice1:=Close,InputChoice2::=Close)", "FG", "", "Close",$B$2,A44, "all","", "","True","T")/100,"") -> -0.7227551091 | W44: -0.2 | X44: 4 | AA44: =IFERROR(RTD("cqg.rtd",,"StudyData", "Correlation("&$B$3&","&AA$2&",Period:="&$B$1&",InputChoice1:=Close,InputChoice2::=Close)", "FG", "", "Close",$B$2,A44, "all","", "","True","T")/100,"") -> -0.8390982786 | AC44: -0.2 | AD44: 2 | AG44: =IFERROR(RTD("cqg.rtd",,"StudyData", "Correlation("&$B$3&","&AG$2&",Period:="&$B$1&",InputChoice1:=Close,InputChoice2::=Close)", "FG", "", "Close",$B$2,A44, "all","", "","True","T")/100,"") -> -0.9043082748 | AI44: -0.2 | AJ44: 1 | AM44: =IFERROR(RTD("cqg.rtd",,"StudyData", "Correlation("&$B$3&","&AM$2&",Period:="&$B$1&",InputChoice1:=Close,InputChoice2::=Close)", "FG", "", "Close",$B$2,A44, "all","", "","True","T")/100,"") -> -0.8230376152 | AO44: -0.2 | AP44: 4 | AS44: =IFERROR(RTD("cqg.rtd",,"StudyData", "Correlation("&$B$3&","&AS$2&",Period:="&$B$1&",InputChoice1:=Close,InputChoice2::=Close)", "FG", "", "Close",$B$2,A44, "all","", "","True","T")/100,"") -> -0.8289507606 | AU44: -0.2 | AV44: 2 | AY44: =IFERROR(RTD("cqg.rtd",,"StudyData", "Correlation("&$B$3&","&AY$2&",Period:="&$B$1&",InputChoice1:=Close,InputChoice2::=Close)", "FG", "", "Close",$B$2,A44, "all","", "","True","T")/100,"") -> 0.9207749181 | BA44: -0.2 | BB44: 0 | BE44: =IFERROR(RTD("cqg.rtd",,"StudyData", "Correlation("&$B$3&","&BE$2&",Period:="&$B$1&",InputChoice1:=Close,InputChoice2::=Close)", "FG", "", "Close",$B$2,A44, "all","", "","True","T")/100,"") -> 0.1032265609 | BG44: -0.2 | BH44: 0
A45: -41 | C45: =IFERROR(RTD("cqg.rtd",,"StudyData", "Correlation("&$B$3&","&C$2&",Period:="&$B$1&",InputChoice1:=Close,InputChoice2:=Close)", "FG", "", "Close",$B$2,A45, "all","", "","True","T")/100,"") -> -0.7473577426 | E45: -0.18 | F45: 1 | I45: =IFERROR(RTD("cqg.rtd",,"StudyData", "Correlation("&$B$3&","&I$2&",Period:="&$B$1&",InputChoice1:=Close,InputChoice2::=Close)", "FG", "", "Close",$B$2,A45, "all","", "","True","T")/100,"") -> -0.770572733 | K45: -0.18 | L45: 0 | O45: =IFERROR(RTD("cqg.rtd",,"StudyData", "Correlation("&$B$3&","&O$2&",Period:="&$B$1&",InputChoice1:=Close,InputChoice2::=Close)", "FG", "", "Close",$B$2,A45, "all","", "","True","T")/100,"") -> 0.5328631716 | Q45: -0.18 | R45: 2 | U45: =IFERROR(RTD("cqg.rtd",,"StudyData", "Correlation("&$B$3&","&U$2&",Period:="&$B$1&",InputChoice1:=Close,InputChoice2::=Close)", "FG", "", "Close",$B$2,A45, "all","", "","True","T")/100,"") -> -0.7506322624 | W45: -0.18 | X45: 2 | AA45: =IFERROR(RTD("cqg.rtd",,"StudyData", "Correlation("&$B$3&","&AA$2&",Period:="&$B$1&",InputChoice1:=Close,InputChoice2::=Close)", "FG", "", "Close",$B$2,A45, "all","", "","True","T")/100,"") -> -0.8674110883 | AC45: -0.18 | AD45: 1 | AG45: =IFERROR(RTD("cqg.rtd",,"StudyData", "Correlation("&$B$3&","&AG$2&",Period:="&$B$1&",InputChoice1:=Close,InputChoice2::=Close)", "FG", "", "Close",$B$2,A45, "all","", "","True","T")/100,"") -> -0.9150805446 | AI45: -0.18 | AJ45: 0 | AM45: =IFERROR(RTD("cqg.rtd",,"StudyData", "Correlation("&$B$3&","&AM$2&",Period:="&$B$1&",InputChoice1:=Close,InputChoice2::=Close)", "FG", "", "Close",$B$2,A45, "all","", "","True","T")/100,"") -> -0.8404973777 | AO45: -0.18 | AP45: 2 | AS45: =IFERROR(RTD("cqg.rtd",,"StudyData", "Correlation("&$B$3&","&AS$2&",Period:="&$B$1&",InputChoice1:=Close,InputChoice2::=Close)", "FG", "", "Close",$B$2,A45, "all","", "","True","T")/100,"") -> -0.8060911198 | AU45: -0.18 | AV45: 1 | AY45: =IFERROR(RTD("cqg.rtd",,"StudyData", "Correlation("&$B$3&","&AY$2&",Period:="&$B$1&",InputChoice1:=Close,InputChoice2::=Close)", "FG", "", "Close",$B$2,A45, "all","", "","True","T")/100,"") -> 0.925956368 | BA45: -0.18 | BB45: 0 | BE45: =IFERROR(RTD("cqg.rtd",,"StudyData", "Correlation("&$B$3&","&BE$2&",Period:="&$B$1&",InputChoice1:=Close,InputChoice2::=Close)", "FG", "", "Close",$B$2,A45, "all","", "","True","T")/100,"") -> -0.1072352998 | BG45: -0.18 | BH45: 0
A46: -42 | C46: =IFERROR(RTD("cqg.rtd",,"StudyData", "Correlation("&$B$3&","&C$2&",Period:="&$B$1&",InputChoice1:=Close,InputChoice2:=Close)", "FG", "", "Close",$B$2,A46, "all","", "","True","T")/100,"") -> -0.7788734458 | E46: -0.16 | F46: 2 | I46: =IFERROR(RTD("cqg.rtd",,"StudyData", "Correlation("&$B$3&","&I$2&",Period:="&$B$1&",InputChoice1:=Close,InputChoice2::=Close)", "FG", "", "Close",$B$2,A46, "all","", "","True","T")/100,"") -> -0.7938021087 | K46: -0.16 | L46: 2 | O46: =IFERROR(RTD("cqg.rtd",,"StudyData", "Correlation("&$B$3&","&O$2&",Period:="&$B$1&",InputChoice1:=Close,InputChoice2::=Close)", "FG", "", "Close",$B$2,A46, "all","", "","True","T")/100,"") -> 0.5912091707 | Q46: -0.16 | R46: 0 | U46: =IFERROR(RTD("cqg.rtd",,"StudyData", "Correlation("&$B$3&","&U$2&",Period:="&$B$1&",InputChoice1:=Close,InputChoice2::=Close)", "FG", "", "Close",$B$2,A46, "all","", "","True","T")/100,"") -> -0.8257486944 | W46: -0.16 | X46: 3 | AA46: =IFERROR(RTD("cqg.rtd",,"StudyData", "Correlation("&$B$3&","&AA$2&",Period:="&$B$1&",InputChoice1:=Close,InputChoice2::=Close)", "FG", "", "Close",$B$2,A46, "all","", "","True","T")/100,"") -> -0.8182693222 | AC46: -0.16 | AD46: 1 | AG46: =IFERROR(RTD("cqg.rtd",,"StudyData", "Correlation("&$B$3&","&AG$2&",Period:="&$B$1&",InputChoice1:=Close,InputChoice2::=Close)", "FG", "", "Close",$B$2,A46, "all","", "","True","T")/100,"") -> -0.8372380074 | AI46: -0.16 | AJ46: 0 | AM46: =IFERROR(RTD("cqg.rtd",,"StudyData", "Correlation("&$B$3&","&AM$2&",Period:="&$B$1&",InputChoice1:=Close,InputChoice2::=Close)", "FG", "", "Close",$B$2,A46, "all","", "","True","T")/100,"") -> -0.7613622437 | AO46: -0.16 | AP46: 1 | AS46: =IFERROR(RTD("cqg.rtd",,"StudyData", "Correlation("&$B$3&","&AS$2&",Period:="&$B$1&",InputChoice1:=Close,InputChoice2::=Close)", "FG", "", "Close",$B$2,A46, "all","", "","True","T")/100,"") -> -0.7928597069 | AU46: -0.16 | AV46: 0 | AY46: =IFERROR(RTD("cqg.rtd",,"StudyData", "Correlation("&$B$3&","&AY$2&",Period:="&$B$1&",InputChoice1:=Close,InputChoice2::=Close)", "FG", "", "Close",$B$2,A46, "all","", "","True","T")/100,"") -> 0.9225087174 | BA46: -0.16 | BB46: 0 | BE46: =IFERROR(RTD("cqg.rtd",,"StudyData", "Correlation("&$B$3&","&BE$2&",Period:="&$B$1&",InputChoice1:=Close,InputChoice2::=Close)", "FG", "", "Close",$B$2,A46, "all","", "","True","T")/100,"") -> -0.1746367305 | BG46: -0.16 | BH46: 1
A47: -43 | C47: =IFERROR(RTD("cqg.rtd",,"StudyData", "Correlation("&$B$3&","&C$2&",Period:="&$B$1&",InputChoice1:=Close,InputChoice2:=Close)", "FG", "", "Close",$B$2,A47, "all","", "","True","T")/100,"") -> -0.8100425008 | E47: -0.14 | F47: 2 | I47: =IFERROR(RTD("cqg.rtd",,"StudyData", "Correlation("&$B$3&","&I$2&",Period:="&$B$1&",InputChoice1:=Close,InputChoice2::=Close)", "FG", "", "Close",$B$2,A47, "all","", "","True","T")/100,"") -> -0.8103446614 | K47: -0.14 | L47: 1 | O47: =IFERROR(RTD("cqg.rtd",,"StudyData", "Correlation("&$B$3&","&O$2&",Period:="&$B$1&",InputChoice1:=Close,InputChoice2::=Close)", "FG", "", "Close",$B$2,A47, "all","", "","True","T")/100,"") -> 0.6903998983 | Q47: -0.14 | R47: 2 | U47: =IFERROR(RTD("cqg.rtd",,"StudyData", "Correlation("&$B$3&","&U$2&",Period:="&$B$1&",InputChoice1:=Close,InputChoice2::=Close)", "FG", "", "Close",$B$2,A47, "all","", "","True","T")/100,"") -> -0.8653151627 | W47: -0.14 | X47: 2 | AA47: =IFERROR(RTD("cqg.rtd",,"StudyData", "Correlation("&$B$3&","&AA$2&",Period:="&$B$1&",InputChoice1:=Close,InputChoice2::=Close)", "FG", "", "Close",$B$2,A47, "all","", "","True","T")/100,"") -> -0.7964025148 | AC47: -0.14 | AD47: 0 | AG47: =IFERROR(RTD("cqg.rtd",,"StudyData", "Correlation("&$B$3&","&AG$2&",Period:="&$B$1&",InputChoice1:=Close,InputChoice2::=Close)", "FG", "", "Close",$B$2,A47, "all","", "","True","T")/100,"") -> -0.7728675444 | AI47: -0.14 | AJ47: 0 | AM47: =IFERROR(RTD("cqg.rtd",,"StudyData", "Correlation("&$B$3&","&AM$2&",Period:="&$B$1&",InputChoice1:=Close,InputChoice2::=Close)", "FG", "", "Close",$B$2,A47, "all","", "","True","T")/100,"") -> -0.7335762116 | AO47: -0.14 | AP47: 1 | AS47: =IFERROR(RTD("cqg.rtd",,"StudyData", "Correlation("&$B$3&","&AS$2&",Period:="&$B$1&",InputChoice1:=Close,InputChoice2::=Close)", "FG", "", "Close",$B$2,A47, "all","", "","True","T")/100,"") -> -0.7851492378 | AU47: -0.14 | AV47: 2 | AY47: =IFERROR(RTD("cqg.rtd",,"StudyData", "Correlation("&$B$3&","&AY$2&",Period:="&$B$1&",InputChoice1:=Close,InputChoice2::=Close)", "FG", "", "Close",$B$2,A47, "all","", "","True","T")/100,"") -> 0.9208752213 | BA47: -0.14 | BB47: 0 | BE47: =IFERROR(RTD("cqg.rtd",,"StudyData", "Correlation("&$B$3&","&BE$2&",Period:="&$B$1&",InputChoice1:=Close,InputChoice2::=Close)", "FG", "", "Close",$B$2,A47, "all","", "","True","T")/100,"") -> -0.3164157492 | BG47: -0.14 | BH47: 1
A48: -44 | C48: =IFERROR(RTD("cqg.rtd",,"StudyData", "Correlation("&$B$3&","&C$2&",Period:="&$B$1&",InputChoice1:=Close,InputChoice2:=Close)", "FG", "", "Close",$B$2,A48, "all","", "","True","T")/100,"") -> -0.7785251972 | E48: -0.12 | F48: 2 | I48: =IFERROR(RTD("cqg.rtd",,"StudyData", "Correlation("&$B$3&","&I$2&",Period:="&$B$1&",InputChoice1:=Close,InputChoice2::=Close)", "FG", "", "Close",$B$2,A48, "all","", "","True","T")/100,"") -> -0.745877264 | K48: -0.12 | L48: 1 | O48: =IFERROR(RTD("cqg.rtd",,"StudyData", "Correlation("&$B$3&","&O$2&",Period:="&$B$1&",InputChoice1:=Close,InputChoice2::=Close)", "FG", "", "Close",$B$2,A48, "all","", "","True","T")/100,"") -> 0.6800463094 | Q48: -0.12 | R48: 0 | U48: =IFERROR(RTD("cqg.rtd",,"StudyData", "Correlation("&$B$3&","&U$2&",Period:="&$B$1&",InputChoice1:=Close,InputChoice2::=Close)", "FG", "", "Close",$B$2,A48, "all","", "","True","T")/100,"") -> -0.8990434751 | W48: -0.12 | X48: 2 | AA48: =IFERROR(RTD("cqg.rtd",,"StudyData", "Correlation("&$B$3&","&AA$2&",Period:="&$B$1&",InputChoice1:=Close,InputChoice2::=Close)", "FG", "", "Close",$B$2,A48, "all","", "","True","T")/100,"") -> -0.7247297203 | AC48: -0.12 | AD48: 0 | AG48: =IFERROR(RTD("cqg.rtd",,"StudyData", "Correlation("&$B$3&","&AG$2&",Period:="&$B$1&",InputChoice1:=Close,InputChoice2::=Close)", "FG", "", "Close",$B$2,A48, "all","", "","True","T")/100,"") -> -0.6804063087 | AI48: -0.12 | AJ48: 2 | AM48: =IFERROR(RTD("cqg.rtd",,"StudyData", "Correlation("&$B$3&","&AM$2&",Period:="&$B$1&",InputChoice1:=Close,InputChoice2::=Close)", "FG", "", "Close",$B$2,A48, "all","", "","True","T")/100,"") -> -0.6051206427 | AO48: -0.12 | AP48: 1 | AS48: =IFERROR(RTD("cqg.rtd",,"StudyData", "Correlation("&$B$3&","&AS$2&",Period:="&$B$1&",InputChoice1:=Close,InputChoice2::=Close)", "FG", "", "Close",$B$2,A48, "all","", "","True","T")/100,"") -> -0.8068624276 | AU48: -0.12 | AV48: 0 | AY48: =IFERROR(RTD("cqg.rtd",,"StudyData", "Correlation("&$B$3&","&AY$2&",Period:="&$B$1&",InputChoice1:=Close,InputChoice2::=Close)", "FG", "", "Close",$B$2,A48, "all","", "","True","T")/100,"") -> 0.9289335315 | BA48: -0.12 | BB48: 0 | BE48: =IFERROR(RTD("cqg.rtd",,"StudyData", "Correlation("&$B$3&","&BE$2&",Period:="&$B$1&",InputChoice1:=Close,InputChoice2::=Close)", "FG", "", "Close",$B$2,A48, "all","", "","True","T")/100,"") -> -0.4775106305 | BG48: -0.12 | BH48: 0
A49: -45 | C49: =IFERROR(RTD("cqg.rtd",,"StudyData", "Correlation("&$B$3&","&C$2&",Period:="&$B$1&",InputChoice1:=Close,InputChoice2:=Close)", "FG", "", "Close",$B$2,A49, "all","", "","True","T")/100,"") -> -0.7833407731 | E49: -0.1 | F49: 1 | I49: =IFERROR(RTD("cqg.rtd",,"StudyData", "Correlation("&$B$3&","&I$2&",Period:="&$B$1&",InputChoice1:=Close,InputChoice2::=Close)", "FG", "", "Close",$B$2,A49, "all","", "","True","T")/100,"") -> -0.7433931228 | K49: -0.1 | L49: 1 | O49: =IFERROR(RTD("cqg.rtd",,"StudyData", "Correlation("&$B$3&","&O$2&",Period:="&$B$1&",InputChoice1:=Close,InputChoice2::=Close)", "FG", "", "Close",$B$2,A49, "all","", "","True","T")/100,"") -> 0.6227586547 | Q49: -0.1 | R49: 1 | U49: =IFERROR(RTD("cqg.rtd",,"StudyData", "Correlation("&$B$3&","&U$2&",Period:="&$B$1&",InputChoice1:=Close,InputChoice2::=Close)", "FG", "", "Close",$B$2,A49, "all","", "","True","T")/100,"") -> -0.8680642689 | W49: -0.1 | X49: 0 | AA49: =IFERROR(RTD("cqg.rtd",,"StudyData", "Correlation("&$B$3&","&AA$2&",Period:="&$B$1&",InputChoice1:=Close,InputChoice2::=Close)", "FG", "", "Close",$B$2,A49, "all","", "","True","T")/100,"") -> -0.6592091279 | AC49: -0.1 | AD49: 1 | AG49: =IFERROR(RTD("cqg.rtd",,"StudyData", "Correlation("&$B$3&","&AG$2&",Period:="&$B$1&",InputChoice1:=Close,InputChoice2::=Close)", "FG", "", "Close",$B$2,A49, "all","", "","True","T")/100,"") -> -0.6415829298 | AI49: -0.1 | AJ49: 0 | AM49: =IFERROR(RTD("cqg.rtd",,"StudyData", "Correlation("&$B$3&","&AM$2&",Period:="&$B$1&",InputChoice1:=Close,InputChoice2::=Close)", "FG", "", "Close",$B$2,A49, "all","", "","True","T")/100,"") -> -0.4928838601 | AO49: -0.1 | AP49: 1 | AS49: =IFERROR(RTD("cqg.rtd",,"StudyData", "Correlation("&$B$3&","&AS$2&",Period:="&$B$1&",InputChoice1:=Close,InputChoice2::=Close)", "FG", "", "Close",$B$2,A49, "all","", "","True","T")/100,"") -> -0.716603022 | AU49: -0.1 | AV49: 4 | AY49: =IFERROR(RTD("cqg.rtd",,"StudyData", "Correlation("&$B$3&","&AY$2&",Period:="&$B$1&",InputChoice1:=Close,InputChoice2::=Close)", "FG", "", "Close",$B$2,A49, "all","", "","True","T")/100,"") -> 0.941970867 | BA49: -0.1 | BB49: 2 | BE49: =IFERROR(RTD("cqg.rtd",,"StudyData", "Correlation("&$B$3&","&BE$2&",Period:="&$B$1&",InputChoice1:=Close,InputChoice2::=Close)", "FG", "", "Close",$B$2,A49, "all","", "","True","T")/100,"") -> -0.6746958984 | BG49: -0.1 | BH49: 1
A50: -46 | C50: =IFERROR(RTD("cqg.rtd",,"StudyData", "Correlation("&$B$3&","&C$2&",Period:="&$B$1&",InputChoice1:=Close,InputChoice2:=Close)", "FG", "", "Close",$B$2,A50, "all","", "","True","T")/100,"") -> -0.7580210195 | E50: -0.08 | F50: 2 | I50: =IFERROR(RTD("cqg.rtd",,"StudyData", "Correlation("&$B$3&","&I$2&",Period:="&$B$1&",InputChoice1:=Close,InputChoice2::=Close)", "FG", "", "Close",$B$2,A50, "all","", "","True","T")/100,"") -> -0.6868738766 | K50: -0.08 | L50: 3 | O50: =IFERROR(RTD("cqg.rtd",,"StudyData", "Correlation("&$B$3&","&O$2&",Period:="&$B$1&",InputChoice1:=Close,InputChoice2::=Close)", "FG", "", "Close",$B$2,A50, "all","", "","True","T")/100,"") -> 0.4457336519 | Q50: -0.08 | R50: 0 | U50: =IFERROR(RTD("cqg.rtd",,"StudyData", "Correlation("&$B$3&","&U$2&",Period:="&$B$1&",InputChoice1:=Close,InputChoice2::=Close)", "FG", "", "Close",$B$2,A50, "all","", "","True","T")/100,"") -> -0.8563116394 | W50: -0.08 | X50: 1 | AA50: =IFERROR(RTD("cqg.rtd",,"StudyData", "Correlation("&$B$3&","&AA$2&",Period:="&$B$1&",InputChoice1:=Close,InputChoice2::=Close)", "FG", "", "Close",$B$2,A50, "all","", "","True","T")/100,"") -> -0.5414462407 | AC50: -0.08 | AD50: 2 | AG50: =IFERROR(RTD("cqg.rtd",,"StudyData", "Correlation("&$B$3&","&AG$2&",Period:="&$B$1&",InputChoice1:=Close,InputChoice2::=Close)", "FG", "", "Close",$B$2,A50, "all","", "","True","T")/100,"") -> -0.5406893252 | AI50: -0.08 | AJ50: 0 | AM50: =IFERROR(RTD("cqg.rtd",,"StudyData", "Correlation("&$B$3&","&AM$2&",Period:="&$B$1&",InputChoice1:=Close,InputChoice2::=Close)", "FG", "", "Close",$B$2,A50, "all","", "","True","T")/100,"") -> -0.2976482737 | AO50: -0.08 | AP50: 2 | AS50: =IFERROR(RTD("cqg.rtd",,"StudyData", "Correlation("&$B$3&","&AS$2&",Period:="&$B$1&",InputChoice1:=Close,InputChoice2::=Close)", "FG", "", "Close",$B$2,A50, "all","", "","True","T")/100,"") -> -0.6406518479 | AU50: -0.08 | AV50: 0 | AY50: =IFERROR(RTD("cqg.rtd",,"StudyData", "Correlation("&$B$3&","&AY$2&",Period:="&$B$1&",InputChoice1:=Close,InputChoice2::=Close)", "FG", "", "Close",$B$2,A50, "all","", "","True","T")/100,"") -> 0.938496229 | BA50: -0.08 | BB50: 1 | BE50: =IFERROR(RTD("cqg.rtd",,"StudyData", "Correlation("&$B$3&","&BE$2&",Period:="&$B$1&",InputChoice1:=Close,InputChoice2::=Close)", "FG", "", "Close",$B$2,A50, "all","", "","True","T")/100,"") -> -0.698090527 | BG50: -0.08 | BH50: 0
A51: -47 | C51: =IFERROR(RTD("cqg.rtd",,"StudyData", "Correlation("&$B$3&","&C$2&",Period:="&$B$1&",InputChoice1:=Close,InputChoice2:=Close)", "FG", "", "Close",$B$2,A51, "all","", "","True","T")/100,"") -> -0.7511328752 | E51: -0.06 | F51: 2 | I51: =IFERROR(RTD("cqg.rtd",,"StudyData", "Correlation("&$B$3&","&I$2&",Period:="&$B$1&",InputChoice1:=Close,InputChoice2::=Close)", "FG", "", "Close",$B$2,A51, "all","", "","True","T")/100,"") -> -0.6759154098 | K51: -0.06 | L51: 2 | O51: =IFERROR(RTD("cqg.rtd",,"StudyData", "Correlation("&$B$3&","&O$2&",Period:="&$B$1&",InputChoice1:=Close,InputChoice2::=Close)", "FG", "", "Close",$B$2,A51, "all","", "","True","T")/100,"") -> 0.6268190075 | Q51: -0.06 | R51: 1 | U51: =IFERROR(RTD("cqg.rtd",,"StudyData", "Correlation("&$B$3&","&U$2&",Period:="&$B$1&",InputChoice1:=Close,InputChoice2::=Close)", "FG", "", "Close",$B$2,A51, "all","", "","True","T")/100,"") -> -0.8202971157 | W51: -0.06 | X51: 0 | AA51: =IFERROR(RTD("cqg.rtd",,"StudyData", "Correlation("&$B$3&","&AA$2&",Period:="&$B$1&",InputChoice1:=Close,InputChoice2::=Close)", "FG", "", "Close",$B$2,A51, "all","", "","True","T")/100,"") -> -0.4580717788 | AC51: -0.06 | AD51: 1 | AG51: =IFERROR(RTD("cqg.rtd",,"StudyData", "Correlation("&$B$3&","&AG$2&",Period:="&$B$1&",InputChoice1:=Close,InputChoice2::=Close)", "FG", "", "Close",$B$2,A51, "all","", "","True","T")/100,"") -> -0.4984366613 | AI51: -0.06 | AJ51: 1 | AM51: =IFERROR(RTD("cqg.rtd",,"StudyData", "Correlation("&$B$3&","&AM$2&",Period:="&$B$1&",InputChoice1:=Close,InputChoice2::=Close)", "FG", "", "Close",$B$2,A51, "all","", "","True","T")/100,"") -> -0.1225824695 | AO51: -0.06 | AP51: 0 | AS51: =IFERROR(RTD("cqg.rtd",,"StudyData", "Correlation("&$B$3&","&AS$2&",Period:="&$B$1&",InputChoice1:=Close,InputChoice2::=Close)", "FG", "", "Close",$B$2,A51, "all","", "","True","T")/100,"") -> -0.6128740337 | AU51: -0.06 | AV51: 2 | AW51: 2 | AY51: =IFERROR(RTD("cqg.rtd",,"StudyData", "Correlation("&$B$3&","&AY$2&",Period:="&$B$1&",InputChoice1:=Close,InputChoice2::=Close)", "FG", "", "Close",$B$2,A51, "all","", "","True","T")/100,"") -> 0.9254770495 | BA51: -0.06 | BB51: 3 | BE51: =IFERROR(RTD("cqg.rtd",,"StudyData", "Correlation("&$B$3&","&BE$2&",Period:="&$B$1&",InputChoice1:=Close,InputChoice2::=Close)", "FG", "", "Close",$B$2,A51, "all","", "","True","T")/100,"") -> -0.7056137959 | BG51: -0.06 | BH51: 0
A52: -48 | C52: =IFERROR(RTD("cqg.rtd",,"StudyData", "Correlation("&$B$3&","&C$2&",Period:="&$B$1&",InputChoice1:=Close,InputChoice2:=Close)", "FG", "", "Close",$B$2,A52, "all","", "","True","T")/100,"") -> -0.7023704873 | E52: -0.04 | F52: 0 | I52: =IFERROR(RTD("cqg.rtd",,"StudyData", "Correlation("&$B$3&","&I$2&",Period:="&$B$1&",InputChoice1:=Close,InputChoice2::=Close)", "FG", "", "Close",$B$2,A52, "all","", "","True","T")/100,"") -> -0.6137645777 | K52: -0.04 | L52: 1 | O52: =IFERROR(RTD("cqg.rtd",,"StudyData", "Correlation("&$B$3&","&O$2&",Period:="&$B$1&",InputChoice1:=Close,InputChoice2::=Close)", "FG", "", "Close",$B$2,A52, "all","", "","True","T")/100,"") -> 0.5973755356 | Q52: -0.04 | R52: 1 | U52: =IFERROR(RTD("cqg.rtd",,"StudyData", "Correlation("&$B$3&","&U$2&",Period:="&$B$1&",InputChoice1:=Close,InputChoice2::=Close)", "FG", "", "Close",$B$2,A52, "all","", "","True","T")/100,"") -> -0.7662182086 | W52: -0.04 | X52: 0 | AA52: =IFERROR(RTD("cqg.rtd",,"StudyData", "Correlation("&$B$3&","&AA$2&",Period:="&$B$1&",InputChoice1:=Close,InputChoice2::=Close)", "FG", "", "Close",$B$2,A52, "all","", "","True","T")/100,"") -> -0.2767016904 | AC52: -0.04 | AD52: 0 | AG52: =IFERROR(RTD("cqg.rtd",,"StudyData", "Correlation("&$B$3&","&AG$2&",Period:="&$B$1&",InputChoice1:=Close,InputChoice2::=Close)", "FG", "", "Close",$B$2,A52, "all","", "","True","T")/100,"") -> -0.3333906109 | AI52: -0.04 | AJ52: 0 | AM52: =IFERROR(RTD("cqg.rtd",,"StudyData", "Correlation("&$B$3&","&AM$2&",Period:="&$B$1&",InputChoice1:=Close,InputChoice2::=Close)", "FG", "", "Close",$B$2,A52, "all","", "","True","T")/100,"") -> 0.1198066366 | AO52: -0.04 | AP52: 4 | AS52: =IFERROR(RTD("cqg.rtd",,"StudyData", "Correlation("&$B$3&","&AS$2&",Period:="&$B$1&",InputChoice1:=Close,InputChoice2::=Close)", "FG", "", "Close",$B$2,A52, "all","", "","True","T")/100,"") -> -0.5220729879 | AU52: -0.04 | AV52: 2 | AY52: =IFERROR(RTD("cqg.rtd",,"StudyData", "Correlation("&$B$3&","&AY$2&",Period:="&$B$1&",InputChoice1:=Close,InputChoice2::=Close)", "FG", "", "Close",$B$2,A52, "all","", "","True","T")/100,"") -> 0.9322625264 | BA52: -0.04 | BB52: 2 | BE52: =IFERROR(RTD("cqg.rtd",,"StudyData", "Correlation("&$B$3&","&BE$2&",Period:="&$B$1&",InputChoice1:=Close,InputChoice2::=Close)", "FG", "", "Close",$B$2,A52, "all","", "","True","T")/100,"") -> -0.7266290746 | BG52: -0.04 | BH52: 0
A53: -49 | C53: =IFERROR(RTD("cqg.rtd",,"StudyData", "Correlation("&$B$3&","&C$2&",Period:="&$B$1&",InputChoice1:=Close,InputChoice2:=Close)", "FG", "", "Close",$B$2,A53, "all","", "","True","T")/100,"") -> -0.6859323707 | E53: -0.02 | F53: 1 | I53: =IFERROR(RTD("cqg.rtd",,"StudyData", "Correlation("&$B$3&","&I$2&",Period:="&$B$1&",InputChoice1:=Close,InputChoice2::=Close)", "FG", "", "Close",$B$2,A53, "all","", "","True","T")/100,"") -> -0.5967878105 | K53: -0.02 | L53: 0 | O53: =IFERROR(RTD("cqg.rtd",,"StudyData", "Correlation("&$B$3&","&O$2&",Period:="&$B$1&",InputChoice1:=Close,InputChoice2::=Close)", "FG", "", "Close",$B$2,A53, "all","", "","True","T")/100,"") -> 0.6728976881 | Q53: -0.02 | R53: 1 | U53: =IFERROR(RTD("cqg.rtd",,"StudyData", "Correlation("&$B$3&","&U$2&",Period:="&$B$1&",InputChoice1:=Close,InputChoice2::=Close)", "FG", "", "Close",$B$2,A53, "all","", "","True","T")/100,"") -> -0.7427305835 | W53: -0.02 | X53: 1 | AA53: =IFERROR(RTD("cqg.rtd",,"StudyData", "Correlation("&$B$3&","&AA$2&",Period:="&$B$1&",InputChoice1:=Close,InputChoice2::=Close)", "FG", "", "Close",$B$2,A53, "all","", "","True","T")/100,"") -> -0.2121494909 | AC53: -0.02 | AD53: 0 | AG53: =IFERROR(RTD("cqg.rtd",,"StudyData", "Correlation("&$B$3&","&AG$2&",Period:="&$B$1&",InputChoice1:=Close,InputChoice2::=Close)", "FG", "", "Close",$B$2,A53, "all","", "","True","T")/100,"") -> -0.3588503278 | AI53: -0.02 | AJ53: 0 | AM53: =IFERROR(RTD("cqg.rtd",,"StudyData", "Correlation("&$B$3&","&AM$2&",Period:="&$B$1&",InputChoice1:=Close,InputChoice2::=Close)", "FG", "", "Close",$B$2,A53, "all","", "","True","T")/100,"") -> 0.1161148641 | AO53: -0.02 | AP53: 1 | AS53: =IFERROR(RTD("cqg.rtd",,"StudyData", "Correlation("&$B$3&","&AS$2&",Period:="&$B$1&",InputChoice1:=Close,InputChoice2::=Close)", "FG", "", "Close",$B$2,A53, "all","", "","True","T")/100,"") -> -0.4758162356 | AU53: -0.02 | AV53: 1 | AY53: =IFERROR(RTD("cqg.rtd",,"StudyData", "Correlation("&$B$3&","&AY$2&",Period:="&$B$1&",InputChoice1:=Close,InputChoice2::=Close)", "FG", "", "Close",$B$2,A53, "all","", "","True","T")/100,"") -> 0.9244044745 | BA53: -0.02 | BB53: 4 | BE53: =IFERROR(RTD("cqg.rtd",,"StudyData", "Correlation("&$B$3&","&BE$2&",Period:="&$B$1&",InputChoice1:=Close,InputChoice2::=Close)", "FG", "", "Close",$B$2,A53, "all","", "","True","T")/100,"") -> -0.754285064 | BG53: -0.02 | BH53: 2
A54: -50 | C54: =IFERROR(RTD("cqg.rtd",,"StudyData", "Correlation("&$B$3&","&C$2&",Period:="&$B$1&",InputChoice1:=Close,InputChoice2:=Close)", "FG", "", "Close",$B$2,A54, "all","", "","True","T")/100,"") -> -0.7033941234 | E54: 6.175615574e-16 | F54: 1 | I54: =IFERROR(RTD("cqg.rtd",,"StudyData", "Correlation("&$B$3&","&I$2&",Period:="&$B$1&",InputChoice1:=Close,InputChoice2::=Close)", "FG", "", "Close",$B$2,A54, "all","", "","True","T")/100,"") -> -0.6118403009 | K54: 6.175615574e-16 | L54: 1 | O54: =IFERROR(RTD("cqg.rtd",,"StudyData", "Correlation("&$B$3&","&O$2&",Period:="&$B$1&",InputChoice1:=Close,InputChoice2::=Close)", "FG", "", "Close",$B$2,A54, "all","", "","True","T")/100,"") -> 0.5344715159 | Q54: 6.175615574e-16 | R54: 0 | U54: =IFERROR(RTD("cqg.rtd",,"StudyData", "Correlation("&$B$3&","&U$2&",Period:="&$B$1&",InputChoice1:=Close,InputChoice2::=Close)", "FG", "", "Close",$B$2,A54, "all","", "","True","T")/100,"") -> -0.7231338273 | W54: 6.175615574e-16 | X54: 1 | AA54: =IFERROR(RTD("cqg.rtd",,"StudyData", "Correlation("&$B$3&","&AA$2&",Period:="&$B$1&",InputChoice1:=Close,InputChoice2::=Close)", "FG", "", "Close",$B$2,A54, "all","", "","True","T")/100,"") -> -0.0993001625 | AC54: 6.175615574e-16 | AD54: 1 | AG54: =IFERROR(RTD("cqg.rtd",,"StudyData", "Correlation("&$B$3&","&AG$2&",Period:="&$B$1&",InputChoice1:=Close,InputChoice2::=Close)", "FG", "", "Close",$B$2,A54, "all","", "","True","T")/100,"") -> -0.2748033991 | AI54: 6.175615574e-16 | AJ54: 0 | AM54: =IFERROR(RTD("cqg.rtd",,"StudyData", "Correlation("&$B$3&","&AM$2&",Period:="&$B$1&",InputChoice1:=Close,InputChoice2::=Close)", "FG", "", "Close",$B$2,A54, "all","", "","True","T")/100,"") -> 0.1232205848 | AO54: 6.175615574e-16 | AP54: 1 | AS54: =IFERROR(RTD("cqg.rtd",,"StudyData", "Correlation("&$B$3&","&AS$2&",Period:="&$B$1&",InputChoice1:=Close,InputChoice2::=Close)", "FG", "", "Close",$B$2,A54, "all","", "","True","T")/100,"") -> -0.4309944265 | AU54: 6.175615574e-16 | AV54: 2 | AY54: =IFERROR(RTD("cqg.rtd",,"StudyData", "Correlation("&$B$3&","&AY$2&",Period:="&$B$1&",InputChoice1:=Close,InputChoice2::=Close)", "FG", "", "Close",$B$2,A54, "all","", "","True","T")/100,"") -> 0.9172617265 | BA54: 6.175615574e-16 | BB54: 2 | BE54: =IFERROR(RTD("cqg.rtd",,"StudyData", "Correlation("&$B$3&","&BE$2&",Period:="&$B$1&",InputChoice1:=Close,InputChoice2::=Close)", "FG", "", "Close",$B$2,A54, "all","", "","True","T")/100,"") -> -0.7426099625 | BG54: 6.175615574e-16 | BH54: 0
A55: -51 | C55: =IFERROR(RTD("cqg.rtd",,"StudyData", "Correlation("&$B$3&","&C$2&",Period:="&$B$1&",InputChoice1:=Close,InputChoice2:=Close)", "FG", "", "Close",$B$2,A55, "all","", "","True","T")/100,"") -> -0.7039880726 | E55: 0.02 | F55: 1 | I55: =IFERROR(RTD("cqg.rtd",,"StudyData", "Correlation("&$B$3&","&I$2&",Period:="&$B$1&",InputChoice1:=Close,InputChoice2::=Close)", "FG", "", "Close",$B$2,A55, "all","", "","True","T")/100,"") -> -0.6335057066 | K55: 0.02 | L55: 0 | O55: =IFERROR(RTD("cqg.rtd",,"StudyData", "Correlation("&$B$3&","&O$2&",Period:="&$B$1&",InputChoice1:=Close,InputChoice2::=Close)", "FG", "", "Close",$B$2,A55, "all","", "","True","T")/100,"") -> 0.5390628958 | Q55: 0.02 | R55: 0 | U55: =IFERROR(RTD("cqg.rtd",,"StudyData", "Correlation("&$B$3&","&U$2&",Period:="&$B$1&",InputChoice1:=Close,InputChoice2::=Close)", "FG", "", "Close",$B$2,A55, "all","", "","True","T")/100,"") -> -0.7607204287 | W55: 0.02 | X55: 1 | AA55: =IFERROR(RTD("cqg.rtd",,"StudyData", "Correlation("&$B$3&","&AA$2&",Period:="&$B$1&",InputChoice1:=Close,InputChoice2::=Close)", "FG", "", "Close",$B$2,A55, "all","", "","True","T")/100,"") -> -0.1072372407 | AC55: 0.02 | AD55: 0 | AG55: =IFERROR(RTD("cqg.rtd",,"StudyData", "Correlation("&$B$3&","&AG$2&",Period:="&$B$1&",InputChoice1:=Close,InputChoice2::=Close)", "FG", "", "Close",$B$2,A55, "all","", "","True","T")/100,"") -> -0.2903433251 | AI55: 0.02 | AJ55: 0 | AM55: =IFERROR(RTD("cqg.rtd",,"StudyData", "Correlation("&$B$3&","&AM$2&",Period:="&$B$1&",InputChoice1:=Close,InputChoice2::=Close)", "FG", "", "Close",$B$2,A55, "all","", "","True","T")/100,"") -> 0.04567117078 | AO55: 0.02 | AP55: 0 | AS55: =IFERROR(RTD("cqg.rtd",,"StudyData", "Correlation("&$B$3&","&AS$2&",Period:="&$B$1&",InputChoice1:=Close,InputChoice2::=Close)", "FG", "", "Close",$B$2,A55, "all","", "","True","T")/100,"") -> -0.2889780117 | AU55: 0.02 | AV55: 0 | AY55: =IFERROR(RTD("cqg.rtd",,"StudyData", "Correlation("&$B$3&","&AY$2&",Period:="&$B$1&",InputChoice1:=Close,InputChoice2::=Close)", "FG", "", "Close",$B$2,A55, "all","", "","True","T")/100,"") -> 0.918663519 | BA55: 0.02 | BB55: 2 | BE55: =IFERROR(RTD("cqg.rtd",,"StudyData", "Correlation("&$B$3&","&BE$2&",Period:="&$B$1&",InputChoice1:=Close,InputChoice2::=Close)", "FG", "", "Close",$B$2,A55, "all","", "","True","T")/100,"") -> -0.7483253706 | BG55: 0.02 | BH55: 1
A56: -52 | C56: =IFERROR(RTD("cqg.rtd",,"StudyData", "Correlation("&$B$3&","&C$2&",Period:="&$B$1&",InputChoice1:=Close,InputChoice2:=Close)", "FG", "", "Close",$B$2,A56, "all","", "","True","T")/100,"") -> -0.7092875828 | E56: 0.04 | F56: 2 | I56: =IFERROR(RTD("cqg.rtd",,"StudyData", "Correlation("&$B$3&","&I$2&",Period:="&$B$1&",InputChoice1:=Close,InputChoice2::=Close)", "FG", "", "Close",$B$2,A56, "all","", "","True","T")/100,"") -> -0.6690696958 | K56: 0.04 | L56: 0 | O56: =IFERROR(RTD("cqg.rtd",,"StudyData", "Correlation("&$B$3&","&O$2&",Period:="&$B$1&",InputChoice1:=Close,InputChoice2::=Close)", "FG", "", "Close",$B$2,A56, "all","", "","True","T")/100,"") -> 0.4854783975 | Q56: 0.04 | R56: 0 | U56: =IFERROR(RTD("cqg.rtd",,"StudyData", "Correlation("&$B$3&","&U$2&",Period:="&$B$1&",InputChoice1:=Close,InputChoice2::=Close)", "FG", "", "Close",$B$2,A56, "all","", "","True","T")/100,"") -> -0.7772488062 | W56: 0.04 | X56: 1 | AA56: =IFERROR(RTD("cqg.rtd",,"StudyData", "Correlation("&$B$3&","&AA$2&",Period:="&$B$1&",InputChoice1:=Close,InputChoice2::=Close)", "FG", "", "Close",$B$2,A56, "all","", "","True","T")/100,"") -> -0.2322456908 | AC56: 0.04 | AD56: 0 | AG56: =IFERROR(RTD("cqg.rtd",,"StudyData", "Correlation("&$B$3&","&AG$2&",Period:="&$B$1&",InputChoice1:=Close,InputChoice2::=Close)", "FG", "", "Close",$B$2,A56, "all","", "","True","T")/100,"") -> -0.3929124759 | AI56: 0.04 | AJ56: 1 | AM56: =IFERROR(RTD("cqg.rtd",,"StudyData", "Correlation("&$B$3&","&AM$2&",Period:="&$B$1&",InputChoice1:=Close,InputChoice2::=Close)", "FG", "", "Close",$B$2,A56, "all","", "","True","T")/100,"") -> -0.08716360911 | AO56: 0.04 | AP56: 1 | AS56: =IFERROR(RTD("cqg.rtd",,"StudyData", "Correlation("&$B$3&","&AS$2&",Period:="&$B$1&",InputChoice1:=Close,InputChoice2::=Close)", "FG", "", "Close",$B$2,A56, "all","", "","True","T")/100,"") -> -0.1061786121 | AU56: 0.04 | AV56: 1 | AY56: =IFERROR(RTD("cqg.rtd",,"StudyData", "Correlation("&$B$3&","&AY$2&",Period:="&$B$1&",InputChoice1:=Close,InputChoice2::=Close)", "FG", "", "Close",$B$2,A56, "all","", "","True","T")/100,"") -> 0.9349135705 | BA56: 0.04 | BB56: 3 | BE56: =IFERROR(RTD("cqg.rtd",,"StudyData", "Correlation("&$B$3&","&BE$2&",Period:="&$B$1&",InputChoice1:=Close,InputChoice2::=Close)", "FG", "", "Close",$B$2,A56, "all","", "","True","T")/100,"") -> -0.7707075051 | BG56: 0.04 | BH56: 1
A57: -53 | C57: =IFERROR(RTD("cqg.rtd",,"StudyData", "Correlation("&$B$3&","&C$2&",Period:="&$B$1&",InputChoice1:=Close,InputChoice2:=Close)", "FG", "", "Close",$B$2,A57, "all","", "","True","T")/100,"") -> -0.7093798915 | E57: 0.06 | F57: 2 | I57: =IFERROR(RTD("cqg.rtd",,"StudyData", "Correlation("&$B$3&","&I$2&",Period:="&$B$1&",InputChoice1:=Close,InputChoice2::=Close)", "FG", "", "Close",$B$2,A57, "all","", "","True","T")/100,"") -> -0.6834350085 | K57: 0.06 | L57: 0 | O57: =IFERROR(RTD("cqg.rtd",,"StudyData", "Correlation("&$B$3&","&O$2&",Period:="&$B$1&",InputChoice1:=Close,InputChoice2::=Close)", "FG", "", "Close",$B$2,A57, "all","", "","True","T")/100,"") -> 0.4247178858 | Q57: 0.06 | R57: 1 | U57: =IFERROR(RTD("cqg.rtd",,"StudyData", "Correlation("&$B$3&","&U$2&",Period:="&$B$1&",InputChoice1:=Close,InputChoice2::=Close)", "FG", "", "Close",$B$2,A57, "all","", "","True","T")/100,"") -> -0.7839833594 | W57: 0.06 | X57: 0 | AA57: =IFERROR(RTD("cqg.rtd",,"StudyData", "Correlation("&$B$3&","&AA$2&",Period:="&$B$1&",InputChoice1:=Close,InputChoice2::=Close)", "FG", "", "Close",$B$2,A57, "all","", "","True","T")/100,"") -> -0.3490327294 | AC57: 0.06 | AD57: 0 | AG57: =IFERROR(RTD("cqg.rtd",,"StudyData", "Correlation("&$B$3&","&AG$2&",Period:="&$B$1&",InputChoice1:=Close,InputChoice2::=Close)", "FG", "", "Close",$B$2,A57, "all","", "","True","T")/100,"") -> -0.4939512903 | AI57: 0.06 | AJ57: 0 | AM57: =IFERROR(RTD("cqg.rtd",,"StudyData", "Correlation("&$B$3&","&AM$2&",Period:="&$B$1&",InputChoice1:=Close,InputChoice2::=Close)", "FG", "", "Close",$B$2,A57, "all","", "","True","T")/100,"") -> -0.2444182974 | AO57: 0.06 | AP57: 1 | AS57: =IFERROR(RTD("cqg.rtd",,"StudyData", "Correlation("&$B$3&","&AS$2&",Period:="&$B$1&",InputChoice1:=Close,InputChoice2::=Close)", "FG", "", "Close",$B$2,A57, "all","", "","True","T")/100,"") -> -0.2101552487 | AU57: 0.06 | AV57: 2 | AY57: =IFERROR(RTD("cqg.rtd",,"StudyData", "Correlation("&$B$3&","&AY$2&",Period:="&$B$1&",InputChoice1:=Close,InputChoice2::=Close)", "FG", "", "Close",$B$2,A57, "all","", "","True","T")/100,"") -> 0.9358203997 | BA57: 0.06 | BB57: 3 | BE57: =IFERROR(RTD("cqg.rtd",,"StudyData", "Correlation("&$B$3&","&BE$2&",Period:="&$B$1&",InputChoice1:=Close,InputChoice2::=Close)", "FG", "", "Close",$B$2,A57, "all","", "","True","T")/100,"") -> -0.7381093931 | BG57: 0.06 | BH57: 2
A58: -54 | C58: =IFERROR(RTD("cqg.rtd",,"StudyData", "Correlation("&$B$3&","&C$2&",Period:="&$B$1&",InputChoice1:=Close,InputChoice2:=Close)", "FG", "", "Close",$B$2,A58, "all","", "","True","T")/100,"") -> -0.6184496171 | E58: 0.08 | F58: 2 | I58: =IFERROR(RTD("cqg.rtd",,"StudyData", "Correlation("&$B$3&","&I$2&",Period:="&$B$1&",InputChoice1:=Close,InputChoice2::=Close)", "FG", "", "Close",$B$2,A58, "all","", "","True","T")/100,"") -> -0.6092113946 | K58: 0.08 | L58: 1 | O58: =IFERROR(RTD("cqg.rtd",,"StudyData", "Correlation("&$B$3&","&O$2&",Period:="&$B$1&",InputChoice1:=Close,InputChoice2::=Close)", "FG", "", "Close",$B$2,A58, "all","", "","True","T")/100,"") -> 0.4996549922 | Q58: 0.08 | R58: 1 | U58: =IFERROR(RTD("cqg.rtd",,"StudyData", "Correlation("&$B$3&","&U$2&",Period:="&$B$1&",InputChoice1:=Close,InputChoice2::=Close)", "FG", "", "Close",$B$2,A58, "all","", "","True","T")/100,"") -> -0.7659018826 | W58: 0.08 | X58: 4 | AA58: =IFERROR(RTD("cqg.rtd",,"StudyData", "Correlation("&$B$3&","&AA$2&",Period:="&$B$1&",InputChoice1:=Close,InputChoice2::=Close)", "FG", "", "Close",$B$2,A58, "all","", "","True","T")/100,"") -> -0.3984751749 | AC58: 0.08 | AD58: 0 | AG58: =IFERROR(RTD("cqg.rtd",,"StudyData", "Correlation("&$B$3&","&AG$2&",Period:="&$B$1&",InputChoice1:=Close,InputChoice2::=Close)", "FG", "", "Close",$B$2,A58, "all","", "","True","T")/100,"") -> -0.5455648325 | AI58: 0.08 | AJ58: 0 | AM58: =IFERROR(RTD("cqg.rtd",,"StudyData", "Correlation("&$B$3&","&AM$2&",Period:="&$B$1&",InputChoice1:=Close,InputChoice2::=Close)", "FG", "", "Close",$B$2,A58, "all","", "","True","T")/100,"") -> -0.3079323201 | AO58: 0.08 | AP58: 1 | AS58: =IFERROR(RTD("cqg.rtd",,"StudyData", "Correlation("&$B$3&","&AS$2&",Period:="&$B$1&",InputChoice1:=Close,InputChoice2::=Close)", "FG", "", "Close",$B$2,A58, "all","", "","True","T")/100,"") -> 0.1021250111 | AU58: 0.08 | AV58: 2 | AY58: =IFERROR(RTD("cqg.rtd",,"StudyData", "Correlation("&$B$3&","&AY$2&",Period:="&$B$1&",InputChoice1:=Close,InputChoice2::=Close)", "FG", "", "Close",$B$2,A58, "all","", "","True","T")/100,"") -> 0.9418629205 | BA58: 0.08 | BB58: 3 | BE58: =IFERROR(RTD("cqg.rtd",,"StudyData", "Correlation("&$B$3&","&BE$2&",Period:="&$B$1&",InputChoice1:=Close,InputChoice2::=Close)", "FG", "", "Close",$B$2,A58, "all","", "","True","T")/100,"") -> -0.718778785 | BG58: 0.08 | BH58: 0
A59: -55 | C59: =IFERROR(RTD("cqg.rtd",,"StudyData", "Correlation("&$B$3&","&C$2&",Period:="&$B$1&",InputChoice1:=Close,InputChoice2:=Close)", "FG", "", "Close",$B$2,A59, "all","", "","True","T")/100,"") -> -0.4519417057 | E59: 0.1 | F59: 0 | I59: =IFERROR(RTD("cqg.rtd",,"StudyData", "Correlation("&$B$3&","&I$2&",Period:="&$B$1&",InputChoice1:=Close,InputChoice2::=Close)", "FG", "", "Close",$B$2,A59, "all","", "","True","T")/100,"") -> -0.453127654 | K59: 0.1 | L59: 0 | O59: =IFERROR(RTD("cqg.rtd",,"StudyData", "Correlation("&$B$3&","&O$2&",Period:="&$B$1&",InputChoice1:=Close,InputChoice2::=Close)", "FG", "", "Close",$B$2,A59, "all","", "","True","T")/100,"") -> 0.5810483058 | Q59: 0.1 | R59: 2 | U59: =IFERROR(RTD("cqg.rtd",,"StudyData", "Correlation("&$B$3&","&U$2&",Period:="&$B$1&",InputChoice1:=Close,InputChoice2::=Close)", "FG", "", "Close",$B$2,A59, "all","", "","True","T")/100,"") -> -0.7524651168 | W59: 0.1 | X59: 0 | AA59: =IFERROR(RTD("cqg.rtd",,"StudyData", "Correlation("&$B$3&","&AA$2&",Period:="&$B$1&",InputChoice1:=Close,InputChoice2::=Close)", "FG", "", "Close",$B$2,A59, "all","", "","True","T")/100,"") -> -0.5085321852 | AC59: 0.1 | AD59: 0 | AG59: =IFERROR(RTD("cqg.rtd",,"StudyData", "Correlation("&$B$3&","&AG$2&",Period:="&$B$1&",InputChoice1:=Close,InputChoice2::=Close)", "FG", "", "Close",$B$2,A59, "all","", "","True","T")/100,"") -> -0.6078120695 | AI59: 0.1 | AJ59: 1 | AM59: =IFERROR(RTD("cqg.rtd",,"StudyData", "Correlation("&$B$3&","&AM$2&",Period:="&$B$1&",InputChoice1:=Close,InputChoice2::=Close)", "FG", "", "Close",$B$2,A59, "all","", "","True","T")/100,"") -> -0.4367415267 | AO59: 0.1 | AP59: 0 | AS59: =IFERROR(RTD("cqg.rtd",,"StudyData", "Correlation("&$B$3&","&AS$2&",Period:="&$B$1&",InputChoice1:=Close,InputChoice2::=Close)", "FG", "", "Close",$B$2,A59, "all","", "","True","T")/100,"") -> 0.3243333805 | AU59: 0.1 | AV59: 0 | AY59: =IFERROR(RTD("cqg.rtd",,"StudyData", "Correlation("&$B$3&","&AY$2&",Period:="&$B$1&",InputChoice1:=Close,InputChoice2::=Close)", "FG", "", "Close",$B$2,A59, "all","", "","True","T")/100,"") -> 0.934355318 | BA59: 0.1 | BB59: 1 | BE59: =IFERROR(RTD("cqg.rtd",,"StudyData", "Correlation("&$B$3&","&BE$2&",Period:="&$B$1&",InputChoice1:=Close,InputChoice2::=Close)", "FG", "", "Close",$B$2,A59, "all","", "","True","T")/100,"") -> -0.6952740606 | BG59: 0.1 | BH59: 2
A60: -56 | C60: =IFERROR(RTD("cqg.rtd",,"StudyData", "Correlation("&$B$3&","&C$2&",Period:="&$B$1&",InputChoice1:=Close,InputChoice2:=Close)", "FG", "", "Close",$B$2,A60, "all","", "","True","T")/100,"") -> -0.2082540395 | E60: 0.12 | F60: 2 | I60: =IFERROR(RTD("cqg.rtd",,"StudyData", "Correlation("&$B$3&","&I$2&",Period:="&$B$1&",InputChoice1:=Close,InputChoice2::=Close)", "FG", "", "Close",$B$2,A60, "all","", "","True","T")/100,"") -> -0.2158429287 | K60: 0.12 | L60: 0 | O60: =IFERROR(RTD("cqg.rtd",,"StudyData", "Correlation("&$B$3&","&O$2&",Period:="&$B$1&",InputChoice1:=Close,InputChoice2::=Close)", "FG", "", "Close",$B$2,A60, "all","", "","True","T")/100,"") -> 0.6456945086 | Q60: 0.12 | R60: 0 | U60: =IFERROR(RTD("cqg.rtd",,"StudyData", "Correlation("&$B$3&","&U$2&",Period:="&$B$1&",InputChoice1:=Close,InputChoice2::=Close)", "FG", "", "Close",$B$2,A60, "all","", "","True","T")/100,"") -> -0.5883005284 | W60: 0.12 | X60: 1 | AA60: =IFERROR(RTD("cqg.rtd",,"StudyData", "Correlation("&$B$3&","&AA$2&",Period:="&$B$1&",InputChoice1:=Close,InputChoice2::=Close)", "FG", "", "Close",$B$2,A60, "all","", "","True","T")/100,"") -> -0.5310577723 | AC60: 0.12 | AD60: 1 | AG60: =IFERROR(RTD("cqg.rtd",,"StudyData", "Correlation("&$B$3&","&AG$2&",Period:="&$B$1&",InputChoice1:=Close,InputChoice2::=Close)", "FG", "", "Close",$B$2,A60, "all","", "","True","T")/100,"") -> -0.622021265 | AI60: 0.12 | AJ60: 2 | AM60: =IFERROR(RTD("cqg.rtd",,"StudyData", "Correlation("&$B$3&","&AM$2&",Period:="&$B$1&",InputChoice1:=Close,InputChoice2::=Close)", "FG", "", "Close",$B$2,A60, "all","", "","True","T")/100,"") -> -0.4692173077 | AO60: 0.12 | AP60: 2 | AS60: =IFERROR(RTD("cqg.rtd",,"StudyData", "Correlation("&$B$3&","&AS$2&",Period:="&$B$1&",InputChoice1:=Close,InputChoice2::=Close)", "FG", "", "Close",$B$2,A60, "all","", "","True","T")/100,"") -> 0.3965217137 | AU60: 0.12 | AV60: 1 | AY60: =IFERROR(RTD("cqg.rtd",,"StudyData", "Correlation("&$B$3&","&AY$2&",Period:="&$B$1&",InputChoice1:=Close,InputChoice2::=Close)", "FG", "", "Close",$B$2,A60, "all","", "","True","T")/100,"") -> 0.7932083877 | BA60: 0.12 | BB60: 0 | BE60: =IFERROR(RTD("cqg.rtd",,"StudyData", "Correlation("&$B$3&","&BE$2&",Period:="&$B$1&",InputChoice1:=Close,InputChoice2::=Close)", "FG", "", "Close",$B$2,A60, "all","", "","True","T")/100,"") -> -0.6702483966 | BG60: 0.12 | BH60: 2
A61: -57 | C61: =IFERROR(RTD("cqg.rtd",,"StudyData", "Correlation("&$B$3&","&C$2&",Period:="&$B$1&",InputChoice1:=Close,InputChoice2:=Close)", "FG", "", "Close",$B$2,A61, "all","", "","True","T")/100,"") -> -0.08879430267 | E61: 0.14 | F61: 1 | I61: =IFERROR(RTD("cqg.rtd",,"StudyData", "Correlation("&$B$3&","&I$2&",Period:="&$B$1&",InputChoice1:=Close,InputChoice2::=Close)", "FG", "", "Close",$B$2,A61, "all","", "","True","T")/100,"") -> -0.1256812985 | K61: 0.14 | L61: 1 | O61: =IFERROR(RTD("cqg.rtd",,"StudyData", "Correlation("&$B$3&","&O$2&",Period:="&$B$1&",InputChoice1:=Close,InputChoice2::=Close)", "FG", "", "Close",$B$2,A61, "all","", "","True","T")/100,"") -> 0.7299541831 | Q61: 0.14 | R61: 1 | U61: =IFERROR(RTD("cqg.rtd",,"StudyData", "Correlation("&$B$3&","&U$2&",Period:="&$B$1&",InputChoice1:=Close,InputChoice2::=Close)", "FG", "", "Close",$B$2,A61, "all","", "","True","T")/100,"") -> -0.361736426 | W61: 0.14 | X61: 0 | AA61: =IFERROR(RTD("cqg.rtd",,"StudyData", "Correlation("&$B$3&","&AA$2&",Period:="&$B$1&",InputChoice1:=Close,InputChoice2::=Close)", "FG", "", "Close",$B$2,A61, "all","", "","True","T")/100,"") -> -0.4538522201 | AC61: 0.14 | AD61: 0 | AG61: =IFERROR(RTD("cqg.rtd",,"StudyData", "Correlation("&$B$3&","&AG$2&",Period:="&$B$1&",InputChoice1:=Close,InputChoice2::=Close)", "FG", "", "Close",$B$2,A61, "all","", "","True","T")/100,"") -> -0.5543081069 | AI61: 0.14 | AJ61: 1 | AM61: =IFERROR(RTD("cqg.rtd",,"StudyData", "Correlation("&$B$3&","&AM$2&",Period:="&$B$1&",InputChoice1:=Close,InputChoice2::=Close)", "FG", "", "Close",$B$2,A61, "all","", "","True","T")/100,"") -> -0.4582762925 | AO61: 0.14 | AP61: 1 | AS61: =IFERROR(RTD("cqg.rtd",,"StudyData", "Correlation("&$B$3&","&AS$2&",Period:="&$B$1&",InputChoice1:=Close,InputChoice2::=Close)", "FG", "", "Close",$B$2,A61, "all","", "","True","T")/100,"") -> 0.3046370335 | AU61: 0.14 | AV61: 1 | AY61: =IFERROR(RTD("cqg.rtd",,"StudyData", "Correlation("&$B$3&","&AY$2&",Period:="&$B$1&",InputChoice1:=Close,InputChoice2::=Close)", "FG", "", "Close",$B$2,A61, "all","", "","True","T")/100,"") -> 0.5996083428 | BA61: 0.14 | BB61: 1 | BE61: =IFERROR(RTD("cqg.rtd",,"StudyData", "Correlation("&$B$3&","&BE$2&",Period:="&$B$1&",InputChoice1:=Close,InputChoice2::=Close)", "FG", "", "Close",$B$2,A61, "all","", "","True","T")/100,"") -> -0.5185893774 | BG61: 0.14 | BH61: 0
A62: -58 | C62: =IFERROR(RTD("cqg.rtd",,"StudyData", "Correlation("&$B$3&","&C$2&",Period:="&$B$1&",InputChoice1:=Close,InputChoice2:=Close)", "FG", "", "Close",$B$2,A62, "all","", "","True","T")/100,"") -> 0.000905484763 | E62: 0.16 | F62: 1 | I62: =IFERROR(RTD("cqg.rtd",,"StudyData", "Correlation("&$B$3&","&I$2&",Period:="&$B$1&",InputChoice1:=Close,InputChoice2::=Close)", "FG", "", "Close",$B$2,A62, "all","", "","True","T")/100,"") -> -0.08730801892 | K62: 0.16 | L62: 0 | O62: =IFERROR(RTD("cqg.rtd",,"StudyData", "Correlation("&$B$3&","&O$2&",Period:="&$B$1&",InputChoice1:=Close,InputChoice2::=Close)", "FG", "", "Close",$B$2,A62, "all","", "","True","T")/100,"") -> 0.7518711269 | Q62: 0.16 | R62: 0 | U62: =IFERROR(RTD("cqg.rtd",,"StudyData", "Correlation("&$B$3&","&U$2&",Period:="&$B$1&",InputChoice1:=Close,InputChoice2::=Close)", "FG", "", "Close",$B$2,A62, "all","", "","True","T")/100,"") -> -0.2509509016 | W62: 0.16 | X62: 0 | AA62: =IFERROR(RTD("cqg.rtd",,"StudyData", "Correlation("&$B$3&","&AA$2&",Period:="&$B$1&",InputChoice1:=Close,InputChoice2::=Close)", "FG", "", "Close",$B$2,A62, "all","", "","True","T")/100,"") -> -0.2952929044 | AC62: 0.16 | AD62: 0 | AG62: =IFERROR(RTD("cqg.rtd",,"StudyData", "Correlation("&$B$3&","&AG$2&",Period:="&$B$1&",InputChoice1:=Close,InputChoice2::=Close)", "FG", "", "Close",$B$2,A62, "all","", "","True","T")/100,"") -> -0.3881342874 | AI62: 0.16 | AJ62: 1 | AM62: =IFERROR(RTD("cqg.rtd",,"StudyData", "Correlation("&$B$3&","&AM$2&",Period:="&$B$1&",InputChoice1:=Close,InputChoice2::=Close)", "FG", "", "Close",$B$2,A62, "all","", "","True","T")/100,"") -> -0.3393242537 | AO62: 0.16 | AP62: 1 | AS62: =IFERROR(RTD("cqg.rtd",,"StudyData", "Correlation("&$B$3&","&AS$2&",Period:="&$B$1&",InputChoice1:=Close,InputChoice2::=Close)", "FG", "", "Close",$B$2,A62, "all","", "","True","T")/100,"") -> 0.2153490379 | AU62: 0.16 | AV62: 0 | AY62: =IFERROR(RTD("cqg.rtd",,"StudyData", "Correlation("&$B$3&","&AY$2&",Period:="&$B$1&",InputChoice1:=Close,InputChoice2::=Close)", "FG", "", "Close",$B$2,A62, "all","", "","True","T")/100,"") -> 0.4341042596 | BA62: 0.16 | BB62: 1 | BE62: =IFERROR(RTD("cqg.rtd",,"StudyData", "Correlation("&$B$3&","&BE$2&",Period:="&$B$1&",InputChoice1:=Close,InputChoice2::=Close)", "FG", "", "Close",$B$2,A62, "all","", "","True","T")/100,"") -> -0.3089489419 | BG62: 0.16 | BH62: 2 | BI62: 2
A63: -59 | C63: =IFERROR(RTD("cqg.rtd",,"StudyData", "Correlation("&$B$3&","&C$2&",Period:="&$B$1&",InputChoice1:=Close,InputChoice2:=Close)", "FG", "", "Close",$B$2,A63, "all","", "","True","T")/100,"") -> 0.03527467039 | E63: 0.18 | F63: 0 | G63: 1 | I63: =IFERROR(RTD("cqg.rtd",,"StudyData", "Correlation("&$B$3&","&I$2&",Period:="&$B$1&",InputChoice1:=Close,InputChoice2::=Close)", "FG", "", "Close",$B$2,A63, "all","", "","True","T")/100,"") -> -0.09026768901 | K63: 0.18 | L63: 1 | M63: 1 | O63: =IFERROR(RTD("cqg.rtd",,"StudyData", "Correlation("&$B$3&","&O$2&",Period:="&$B$1&",InputChoice1:=Close,InputChoice2::=Close)", "FG", "", "Close",$B$2,A63, "all","", "","True","T")/100,"") -> 0.7241067215 | Q63: 0.18 | R63: 0 | S63: 1 | U63: =IFERROR(RTD("cqg.rtd",,"StudyData", "Correlation("&$B$3&","&U$2&",Period:="&$B$1&",InputChoice1:=Close,InputChoice2::=Close)", "FG", "", "Close",$B$2,A63, "all","", "","True","T")/100,"") -> -0.03644121073 | W63: 0.18 | X63: 1 | AA63: =IFERROR(RTD("cqg.rtd",,"StudyData", "Correlation("&$B$3&","&AA$2&",Period:="&$B$1&",InputChoice1:=Close,InputChoice2::=Close)", "FG", "", "Close",$B$2,A63, "all","", "","True","T")/100,"") -> -0.1885327444 | AC63: 0.18 | AD63: 1 | AG63: =IFERROR(RTD("cqg.rtd",,"StudyData", "Correlation("&$B$3&","&AG$2&",Period:="&$B$1&",InputChoice1:=Close,InputChoice2::=Close)", "FG", "", "Close",$B$2,A63, "all","", "","True","T")/100,"") -> -0.2892289621 | AI63: 0.18 | AJ63: 1 | AM63: =IFERROR(RTD("cqg.rtd",,"StudyData", "Correlation("&$B$3&","&AM$2&",Period:="&$B$1&",InputChoice1:=Close,InputChoice2::=Close)", "FG", "", "Close",$B$2,A63, "all","", "","True","T")/100,"") -> -0.2262695769 | AO63: 0.18 | AP63: 0 | AS63: =IFERROR(RTD("cqg.rtd",,"StudyData", "Correlation("&$B$3&","&AS$2&",Period:="&$B$1&",InputChoice1:=Close,InputChoice2::=Close)", "FG", "", "Close",$B$2,A63, "all","", "","True","T")/100,"") -> 0.1257331749 | AU63: 0.18 | AV63: 1 | AY63: =IFERROR(RTD("cqg.rtd",,"StudyData", "Correlation("&$B$3&","&AY$2&",Period:="&$B$1&",InputChoice1:=Close,InputChoice2::=Close)", "FG", "", "Close",$B$2,A63, "all","", "","True","T")/100,"") -> 0.1769670931 | BA63: 0.18 | BB63: 2 | BE63: =IFERROR(RTD("cqg.rtd",,"StudyData", "Correlation("&$B$3&","&BE$2&",Period:="&$B$1&",InputChoice1:=Close,InputChoice2::=Close)", "FG", "", "Close",$B$2,A63, "all","", "","True","T")/100,"") -> -0.1448728176 | BG63: 0.18 | BH63: 4
A64: -60 | C64: =IFERROR(RTD("cqg.rtd",,"StudyData", "Correlation("&$B$3&","&C$2&",Period:="&$B$1&",InputChoice1:=Close,InputChoice2:=Close)", "FG", "", "Close",$B$2,A64, "all","", "","True","T")/100,"") -> 0.07322776834 | E64: 0.2 | F64: 2 | I64: =IFERROR(RTD("cqg.rtd",,"StudyData", "Correlation("&$B$3&","&I$2&",Period:="&$B$1&",InputChoice1:=Close,InputChoice2::=Close)", "FG", "", "Close",$B$2,A64, "all","", "","True","T")/100,"") -> -0.065559736 | K64: 0.2 | L64: 2 | O64: =IFERROR(RTD("cqg.rtd",,"StudyData", "Correlation("&$B$3&","&O$2&",Period:="&$B$1&",InputChoice1:=Close,InputChoice2::=Close)", "FG", "", "Close",$B$2,A64, "all","", "","True","T")/100,"") -> 0.6416248036 | Q64: 0.2 | R64: 2 | U64: =IFERROR(RTD("cqg.rtd",,"StudyData", "Correlation("&$B$3&","&U$2&",Period:="&$B$1&",InputChoice1:=Close,InputChoice2::=Close)", "FG", "", "Close",$B$2,A64, "all","", "","True","T")/100,"") -> 0.02052828495 | W64: 0.2 | X64: 1 | AA64: =IFERROR(RTD("cqg.rtd",,"StudyData", "Correlation("&$B$3&","&AA$2&",Period:="&$B$1&",InputChoice1:=Close,InputChoice2::=Close)", "FG", "", "Close",$B$2,A64, "all","", "","True","T")/100,"") -> -0.003122835292 | AC64: 0.2 | AD64: 0 | AG64: =IFERROR(RTD("cqg.rtd",,"StudyData", "Correlation("&$B$3&","&AG$2&",Period:="&$B$1&",InputChoice1:=Close,InputChoice2::=Close)", "FG", "", "Close",$B$2,A64, "all","", "","True","T")/100,"") -> -0.1207007064 | AI64: 0.2 | AJ64: 2 | AM64: =IFERROR(RTD("cqg.rtd",,"StudyData", "Correlation("&$B$3&","&AM$2&",Period:="&$B$1&",InputChoice1:=Close,InputChoice2::=Close)", "FG", "", "Close",$B$2,A64, "all","", "","True","T")/100,"") -> -0.03875621223 | AO64: 0.2 | AP64: 1 | AS64: =IFERROR(RTD("cqg.rtd",,"StudyData", "Correlation("&$B$3&","&AS$2&",Period:="&$B$1&",InputChoice1:=Close,InputChoice2::=Close)", "FG", "", "Close",$B$2,A64, "all","", "","True","T")/100,"") -> -0.02976835632 | AU64: 0.2 | AV64: 2 | AY64: =IFERROR(RTD("cqg.rtd",,"StudyData", "Correlation("&$B$3&","&AY$2&",Period:="&$B$1&",InputChoice1:=Close,InputChoice2::=Close)", "FG", "", "Close",$B$2,A64, "all","", "","True","T")/100,"") -> -0.03209466741 | BA64: 0.2 | BB64: 2 | BE64: =IFERROR(RTD("cqg.rtd",,"StudyData", "Correlation("&$B$3&","&BE$2&",Period:="&$B$1&",InputChoice1:=Close,InputChoice2::=Close)", "FG", "", "Close",$B$2,A64, "all","", "","True","T")/100,"") -> 0.1472379993 | BG64: 0.2 | BH64: 1
A65: -61 | C65: =IFERROR(RTD("cqg.rtd",,"StudyData", "Correlation("&$B$3&","&C$2&",Period:="&$B$1&",InputChoice1:=Close,InputChoice2:=Close)", "FG", "", "Close",$B$2,A65, "all","", "","True","T")/100,"") -> 0.05971508752 | E65: 0.22 | F65: 1 | I65: =IFERROR(RTD("cqg.rtd",,"StudyData", "Correlation("&$B$3&","&I$2&",Period:="&$B$1&",InputChoice1:=Close,InputChoice2::=Close)", "FG", "", "Close",$B$2,A65, "all","", "","True","T")/100,"") -> -0.07047973726 | K65: 0.22 | L65: 1 | O65: =IFERROR(RTD("cqg.rtd",,"StudyData", "Correlation("&$B$3&","&O$2&",Period:="&$B$1&",InputChoice1:=Close,InputChoice2::=Close)", "FG", "", "Close",$B$2,A65, "all","", "","True","T")/100,"") -> 0.6623009898 | Q65: 0.22 | R65: 1 | U65: =IFERROR(RTD("cqg.rtd",,"StudyData", "Correlation("&$B$3&","&U$2&",Period:="&$B$1&",InputChoice1:=Close,InputChoice2::=Close)", "FG", "", "Close",$B$2,A65, "all","", "","True","T")/100,"") -> 0.07773061608 | W65: 0.22 | X65: 0 | AA65: =IFERROR(RTD("cqg.rtd",,"StudyData", "Correlation("&$B$3&","&AA$2&",Period:="&$B$1&",InputChoice1:=Close,InputChoice2::=Close)", "FG", "", "Close",$B$2,A65, "all","", "","True","T")/100,"") -> 0.1688865126 | AC65: 0.22 | AD65: 0 | AG65: =IFERROR(RTD("cqg.rtd",,"StudyData", "Correlation("&$B$3&","&AG$2&",Period:="&$B$1&",InputChoice1:=Close,InputChoice2::=Close)", "FG", "", "Close",$B$2,A65, "all","", "","True","T")/100,"") -> 0.03367775825 | AI65: 0.22 | AJ65: 2 | AM65: =IFERROR(RTD("cqg.rtd",,"StudyData", "Correlation("&$B$3&","&AM$2&",Period:="&$B$1&",InputChoice1:=Close,InputChoice2::=Close)", "FG", "", "Close",$B$2,A65, "all","", "","True","T")/100,"") -> 0.1504171153 | AO65: 0.22 | AP65: 0 | AS65: =IFERROR(RTD("cqg.rtd",,"StudyData", "Correlation("&$B$3&","&AS$2&",Period:="&$B$1&",InputChoice1:=Close,InputChoice2::=Close)", "FG", "", "Close",$B$2,A65, "all","", "","True","T")/100,"") -> -0.1891903381 | AU65: 0.22 | AV65: 1 | AY65: =IFERROR(RTD("cqg.rtd",,"StudyData", "Correlation("&$B$3&","&AY$2&",Period:="&$B$1&",InputChoice1:=Close,InputChoice2::=Close)", "FG", "", "Close",$B$2,A65, "all","", "","True","T")/100,"") -> -0.05217998222 | BA65: 0.22 | BB65: 1 | BE65: =IFERROR(RTD("cqg.rtd",,"StudyData", "Correlation("&$B$3&","&BE$2&",Period:="&$B$1&",InputChoice1:=Close,InputChoice2::=Close)", "FG", "", "Close",$B$2,A65, "all","", "","True","T")/100,"") -> 0.4024252162 | BG65: 0.22 | BH65: 0
A66: -62 | C66: =IFERROR(RTD("cqg.rtd",,"StudyData", "Correlation("&$B$3&","&C$2&",Period:="&$B$1&",InputChoice1:=Close,InputChoice2:=Close)", "FG", "", "Close",$B$2,A66, "all","", "","True","T")/100,"") -> 0.05434036217 | E66: 0.24 | F66: 4 | I66: =IFERROR(RTD("cqg.rtd",,"StudyData", "Correlation("&$B$3&","&I$2&",Period:="&$B$1&",InputChoice1:=Close,InputChoice2::=Close)", "FG", "", "Close",$B$2,A66, "all","", "","True","T")/100,"") -> -0.08668082127 | K66: 0.24 | L66: 0 | O66: =IFERROR(RTD("cqg.rtd",,"StudyData", "Correlation("&$B$3&","&O$2&",Period:="&$B$1&",InputChoice1:=Close,InputChoice2::=Close)", "FG", "", "Close",$B$2,A66, "all","", "","True","T")/100,"") -> 0.6891540365 | Q66: 0.24 | R66: 1 | U66: =IFERROR(RTD("cqg.rtd",,"StudyData", "Correlation("&$B$3&","&U$2&",Period:="&$B$1&",InputChoice1:=Close,InputChoice2::=Close)", "FG", "", "Close",$B$2,A66, "all","", "","True","T")/100,"") -> 0.07459897979 | W66: 0.24 | X66: 0 | Y66: 1 | AA66: =IFERROR(RTD("cqg.rtd",,"StudyData", "Correlation("&$B$3&","&AA$2&",Period:="&$B$1&",InputChoice1:=Close,InputChoice2::=Close)", "FG", "", "Close",$B$2,A66, "all","", "","True","T")/100,"") -> 0.2873143896 | AC66: 0.24 | AD66: 1 | AG66: =IFERROR(RTD("cqg.rtd",,"StudyData", "Correlation("&$B$3&","&AG$2&",Period:="&$B$1&",InputChoice1:=Close,InputChoice2::=Close)", "FG", "", "Close",$B$2,A66, "all","", "","True","T")/100,"") -> 0.1300934077 | AI66: 0.24 | AJ66: 0 | AM66: =IFERROR(RTD("cqg.rtd",,"StudyData", "Correlation("&$B$3&","&AM$2&",Period:="&$B$1&",InputChoice1:=Close,InputChoice2::=Close)", "FG", "", "Close",$B$2,A66, "all","", "","True","T")/100,"") -> 0.2682561939 | AO66: 0.24 | AP66: 2 | AS66: =IFERROR(RTD("cqg.rtd",,"StudyData", "Correlation("&$B$3&","&AS$2&",Period:="&$B$1&",InputChoice1:=Close,InputChoice2::=Close)", "FG", "", "Close",$B$2,A66, "all","", "","True","T")/100,"") -> -0.3205301319 | AU66: 0.24 | AV66: 1 | AY66: =IFERROR(RTD("cqg.rtd",,"StudyData", "Correlation("&$B$3&","&AY$2&",Period:="&$B$1&",InputChoice1:=Close,InputChoice2::=Close)", "FG", "", "Close",$B$2,A66, "all","", "","True","T")/100,"") -> -0.05946684606 | BA66: 0.24 | BB66: 2 | BE66: =IFERROR(RTD("cqg.rtd",,"StudyData", "Correlation("&$B$3&","&BE$2&",Period:="&$B$1&",InputChoice1:=Close,InputChoice2::=Close)", "FG", "", "Close",$B$2,A66, "all","", "","True","T")/100,"") -> 0.5015985857 | BG66: 0.24 | BH66: 0
A67: -63 | C67: =IFERROR(RTD("cqg.rtd",,"StudyData", "Correlation("&$B$3&","&C$2&",Period:="&$B$1&",InputChoice1:=Close,InputChoice2:=Close)", "FG", "", "Close",$B$2,A67, "all","", "","True","T")/100,"") -> 0.02060647058 | E67: 0.26 | F67: 1 | I67: =IFERROR(RTD("cqg.rtd",,"StudyData", "Correlation("&$B$3&","&I$2&",Period:="&$B$1&",InputChoice1:=Close,InputChoice2::=Close)", "FG", "", "Close",$B$2,A67, "all","", "","True","T")/100,"") -> -0.1449932617 | K67: 0.26 | L67: 0 | O67: =IFERROR(RTD("cqg.rtd",,"StudyData", "Correlation("&$B$3&","&O$2&",Period:="&$B$1&",InputChoice1:=Close,InputChoice2::=Close)", "FG", "", "Close",$B$2,A67, "all","", "","True","T")/100,"") -> 0.6511819332 | Q67: 0.26 | R67: 3 | U67: =IFERROR(RTD("cqg.rtd",,"StudyData", "Correlation("&$B$3&","&U$2&",Period:="&$B$1&",InputChoice1:=Close,InputChoice2::=Close)", "FG", "", "Close",$B$2,A67, "all","", "","True","T")/100,"") -> 0.06488172932 | W67: 0.26 | X67: 1 | AA67: =IFERROR(RTD("cqg.rtd",,"StudyData", "Correlation("&$B$3&","&AA$2&",Period:="&$B$1&",InputChoice1:=Close,InputChoice2::=Close)", "FG", "", "Close",$B$2,A67, "all","", "","True","T")/100,"") -> 0.242154574 | AC67: 0.26 | AD67: 3 | AG67: =IFERROR(RTD("cqg.rtd",,"StudyData", "Correlation("&$B$3&","&AG$2&",Period:="&$B$1&",InputChoice1:=Close,InputChoice2::=Close)", "FG", "", "Close",$B$2,A67, "all","", "","True","T")/100,"") -> 0.11488216 | AI67: 0.26 | AJ67: 3 | AM67: =IFERROR(RTD("cqg.rtd",,"StudyData", "Correlation("&$B$3&","&AM$2&",Period:="&$B$1&",InputChoice1:=Close,InputChoice2::=Close)", "FG", "", "Close",$B$2,A67, "all","", "","True","T")/100,"") -> 0.2235474731 | AO67: 0.26 | AP67: 0 | AS67: =IFERROR(RTD("cqg.rtd",,"StudyData", "Correlation("&$B$3&","&AS$2&",Period:="&$B$1&",InputChoice1:=Close,InputChoice2::=Close)", "FG", "", "Close",$B$2,A67, "all","", "","True","T")/100,"") -> -0.2787722919 | AU67: 0.26 | AV67: 0 | AY67: =IFERROR(RTD("cqg.rtd",,"StudyData", "Correlation("&$B$3&","&AY$2&",Period:="&$B$1&",InputChoice1:=Close,InputChoice2::=Close)", "FG", "", "Close",$B$2,A67, "all","", "","True","T")/100,"") -> -0.07652147652 | BA67: 0.26 | BB67: 0 | BE67: =IFERROR(RTD("cqg.rtd",,"StudyData", "Correlation("&$B$3&","&BE$2&",Period:="&$B$1&",InputChoice1:=Close,InputChoice2::=Close)", "FG", "", "Close",$B$2,A67, "all","", "","True","T")/100,"") -> 0.6022430091 | BG67: 0.26 | BH67: 0
A68: -64 | C68: =IFERROR(RTD("cqg.rtd",,"StudyData", "Correlation("&$B$3&","&C$2&",Period:="&$B$1&",InputChoice1:=Close,InputChoice2:=Close)", "FG", "", "Close",$B$2,A68, "all","", "","True","T")/100,"") -> -0.0948825427 | E68: 0.28 | F68: 0 | I68: =IFERROR(RTD("cqg.rtd",,"StudyData", "Correlation("&$B$3&","&I$2&",Period:="&$B$1&",InputChoice1:=Close,InputChoice2::=Close)", "FG", "", "Close",$B$2,A68, "all","", "","True","T")/100,"") -> -0.2543653713 | K68: 0.28 | L68: 1 | O68: =IFERROR(RTD("cqg.rtd",,"StudyData", "Correlation("&$B$3&","&O$2&",Period:="&$B$1&",InputChoice1:=Close,InputChoice2::=Close)", "FG", "", "Close",$B$2,A68, "all","", "","True","T")/100,"") -> 0.562918811 | Q68: 0.28 | R68: 1 | U68: =IFERROR(RTD("cqg.rtd",,"StudyData", "Correlation("&$B$3&","&U$2&",Period:="&$B$1&",InputChoice1:=Close,InputChoice2::=Close)", "FG", "", "Close",$B$2,A68, "all","", "","True","T")/100,"") -> -0.01478977751 | W68: 0.28 | X68: 1 | AA68: =IFERROR(RTD("cqg.rtd",,"StudyData", "Correlation("&$B$3&","&AA$2&",Period:="&$B$1&",InputChoice1:=Close,InputChoice2::=Close)", "FG", "", "Close",$B$2,A68, "all","", "","True","T")/100,"") -> 0.3022786784 | AC68: 0.28 | AD68: 1 | AG68: =IFERROR(RTD("cqg.rtd",,"StudyData", "Correlation("&$B$3&","&AG$2&",Period:="&$B$1&",InputChoice1:=Close,InputChoice2::=Close)", "FG", "", "Close",$B$2,A68, "all","", "","True","T")/100,"") -> 0.1817542519 | AI68: 0.28 | AJ68: 5 | AM68: =IFERROR(RTD("cqg.rtd",,"StudyData", "Correlation("&$B$3&","&AM$2&",Period:="&$B$1&",InputChoice1:=Close,InputChoice2::=Close)", "FG", "", "Close",$B$2,A68, "all","", "","True","T")/100,"") -> 0.2875713144 | AO68: 0.28 | AP68: 2 | AS68: =IFERROR(RTD("cqg.rtd",,"StudyData", "Correlation("&$B$3&","&AS$2&",Period:="&$B$1&",InputChoice1:=Close,InputChoice2::=Close)", "FG", "", "Close",$B$2,A68, "all","", "","True","T")/100,"") -> -0.3278757126 | AU68: 0.28 | AV68: 0 | AY68: =IFERROR(RTD("cqg.rtd",,"StudyData", "Correlation("&$B$3&","&AY$2&",Period:="&$B$1&",InputChoice1:=Close,InputChoice2::=Close)", "FG", "", "Close",$B$2,A68, "all","", "","True","T")/100,"") -> -0.008781581172 | BA68: 0.28 | BB68: 1 | BE68: =IFERROR(RTD("cqg.rtd",,"StudyData", "Correlation("&$B$3&","&BE$2&",Period:="&$B$1&",InputChoice1:=Close,InputChoice2::=Close)", "FG", "", "Close",$B$2,A68, "all","", "","True","T")/100,"") -> 0.6452413992 | BG68: 0.28 | BH68: 1
A69: -65 | C69: =IFERROR(RTD("cqg.rtd",,"StudyData", "Correlation("&$B$3&","&C$2&",Period:="&$B$1&",InputChoice1:=Close,InputChoice2:=Close)", "FG", "", "Close",$B$2,A69, "all","", "","True","T")/100,"") -> -0.1151119307 | E69: 0.3 | F69: 0 | G69: =IF(AND($C$4>=E69,$C$4<E70),IF(F69=0,1,F69),NA()) ->  | I69: =IFERROR(RTD("cqg.rtd",,"StudyData", "Correlation("&$B$3&","&I$2&",Period:="&$B$1&",InputChoice1:=Close,InputChoice2::=Close)", "FG", "", "Close",$B$2,A69, "all","", "","True","T")/100,"") -> -0.2848015007 | K69: 0.3 | L69: 0 | M69: =IF(AND($I$4>=K69,$I$4<K70),IF(L69=0,1,L69),NA()) ->  | O69: =IFERROR(RTD("cqg.rtd",,"StudyData", "Correlation("&$B$3&","&O$2&",Period:="&$B$1&",InputChoice1:=Close,InputChoice2::=Close)", "FG", "", "Close",$B$2,A69, "all","", "","True","T")/100,"") -> 0.5138413851 | Q69: 0.3 | R69: 0 | S69: =IF(AND($O$4>=Q69,$O$4<Q70),IF(R69=0,1,R69),NA()) ->  | U69: =IFERROR(RTD("cqg.rtd",,"StudyData", "Correlation("&$B$3&","&U$2&",Period:="&$B$1&",InputChoice1:=Close,InputChoice2::=Close)", "FG", "", "Close",$B$2,A69, "all","", "","True","T")/100,"") -> -0.09544072811 | W69: 0.3 | X69: 0 | Y69: =IF(AND($U$4>=W69,$U$4<W70),IF(X69=0,1,X69),NA()) ->  | AA69: =IFERROR(RTD("cqg.rtd",,"StudyData", "Correlation("&$B$3&","&AA$2&",Period:="&$B$1&",InputChoice1:=Close,InputChoice2::=Close)", "FG", "", "Close",$B$2,A69, "all","", "","True","T")/100,"") -> 0.2917548248 | AC69: 0.3 | AD69: 3 | AE69: =IF(AND($AA$4>=AC69,$AA$4<AC70),IF(AD69=0,1,AD69),NA()) ->  | AG69: =IFERROR(RTD("cqg.rtd",,"StudyData", "Correlation("&$B$3&","&AG$2&",Period:="&$B$1&",InputChoice1:=Close,InputChoice2::=Close)", "FG", "", "Close",$B$2,A69, "all","", "","True","T")/100,"") -> 0.1590126316 | AI69: 0.3 | AJ69: 1 | AK69: =IF(AND($AG$4>=AI69,$AG$4<AI70),IF(AJ69=0,1,AJ69),NA()) ->  | AM69: =IFERROR(RTD("cqg.rtd",,"StudyData", "Correlation("&$B$3&","&AM$2&",Period:="&$B$1&",InputChoice1:=Close,InputChoice2::=Close)", "FG", "", "Close",$B$2,A69, "all","", "","True","T")/100,"") -> 0.2755188443 | AO69: 0.3 | AP69: 2 | AQ69: =IF(AND($AM$4>=AO69,$AM$4<AO70),IF(AP69=0,1,AP69),NA()) ->  | AS69: =IFERROR(RTD("cqg.rtd",,"StudyData", "Correlation("&$B$3&","&AS$2&",Period:="&$B$1&",InputChoice1:=Close,InputChoice2::=Close)", "FG", "", "Close",$B$2,A69, "all","", "","True","T")/100,"") -> -0.334713885 | AU69: 0.3 | AV69: 0 | AW69: =IF(AND($AS$4>=AU69,$AS$4<AU70),IF(AV69=0,1,AV69),NA()) ->  | AY69: =IFERROR(RTD("cqg.rtd",,"StudyData", "Correlation("&$B$3&","&AY$2&",Period:="&$B$1&",InputChoice1:=Close,InputChoice2::=Close)", "FG", "", "Close",$B$2,A69, "all","", "","True","T")/100,"") -> 0.04453138055 | BA69: 0.3 | BB69: 1 | BC69: =IF(AND($AY$4>=BA69,$AY$4<BA70),IF(BB69=0,1,BB69),NA()) ->  | BE69: =IFERROR(RTD("cqg.rtd",,"StudyData", "Correlation("&$B$3&","&BE$2&",Period:="&$B$1&",InputChoice1:=Close,InputChoice2::=Close)", "FG", "", "Close",$B$2,A69, "all","", "","True","T")/100,"") -> 0.5598269717 | BG69: 0.3 | BH69: 1 | BI69: =IF(AND($BE$4>=BG69,$BE$4<BG70),IF(BH69=0,1,BH69),NA()) -> 
A70: =A69-1 -> -66 | C70: =IFERROR(RTD("cqg.rtd",,"StudyData", "Correlation("&$B$3&","&C$2&",Period:="&$B$1&",InputChoice1:=Close,InputChoice2:=Close)", "FG", "", "Close",$B$2,A70, "all","", "","True","T")/100,"") -> -0.1451714073 | E70: =E69+0.02 -> 0.32 | F70: 0 | I70: =IFERROR(RTD("cqg.rtd",,"StudyData", "Correlation("&$B$3&","&I$2&",Period:="&$B$1&",InputChoice1:=Close,InputChoice2::=Close)", "FG", "", "Close",$B$2,A70, "all","", "","True","T")/100,"") -> -0.3102328461 | K70: =K69+0.02 -> 0.32 | L70: 0 | O70: =IFERROR(RTD("cqg.rtd",,"StudyData", "Correlation("&$B$3&","&O$2&",Period:="&$B$1&",InputChoice1:=Close,InputChoice2::=Close)", "FG", "", "Close",$B$2,A70, "all","", "","True","T")/100,"") -> 0.5436997584 | Q70: =Q69+0.02 -> 0.32 | R70: 2 | U70: =IFERROR(RTD("cqg.rtd",,"StudyData", "Correlation("&$B$3&","&U$2&",Period:="&$B$1&",InputChoice1:=Close,InputChoice2::=Close)", "FG", "", "Close",$B$2,A70, "all","", "","True","T")/100,"") -> -0.1200187878 | W70: =W69+0.02 -> 0.32 | X70: 0 | AA70: =IFERROR(RTD("cqg.rtd",,"StudyData", "Correlation("&$B$3&","&AA$2&",Period:="&$B$1&",InputChoice1:=Close,InputChoice2::=Close)", "FG", "", "Close",$B$2,A70, "all","", "","True","T")/100,"") -> 0.3959693541 | AC70: =AC69+0.02 -> 0.32 | AD70: 2 | AG70: =IFERROR(RTD("cqg.rtd",,"StudyData", "Correlation("&$B$3&","&AG$2&",Period:="&$B$1&",InputChoice1:=Close,InputChoice2::=Close)", "FG", "", "Close",$B$2,A70, "all","", "","True","T")/100,"") -> 0.271770026 | AI70: =AI69+0.02 -> 0.32 | AJ70: 2 | AM70: =IFERROR(RTD("cqg.rtd",,"StudyData", "Correlation("&$B$3&","&AM$2&",Period:="&$B$1&",InputChoice1:=Close,InputChoice2::=Close)", "FG", "", "Close",$B$2,A70, "all","", "","True","T")/100,"") -> 0.3790653177 | AO70: =AO69+0.02 -> 0.32 | AP70: 0 | AS70: =IFERROR(RTD("cqg.rtd",,"StudyData", "Correlation("&$B$3&","&AS$2&",Period:="&$B$1&",InputChoice1:=Close,InputChoice2::=Close)", "FG", "", "Close",$B$2,A70, "all","", "","True","T")/100,"") -> -0.393188418 | AU70: =AU69+0.02 -> 0.32 | AV70: 3 | AY70: =IFERROR(RTD("cqg.rtd",,"StudyData", "Correlation("&$B$3&","&AY$2&",Period:="&$B$1&",InputChoice1:=Close,InputChoice2::=Close)", "FG", "", "Close",$B$2,A70, "all","", "","True","T")/100,"") -> 0.03320096086 | BA70: =BA69+0.02 -> 0.32 | BB70: 3 | BE70: =IFERROR(RTD("cqg.rtd",,"StudyData", "Correlation("&$B$3&","&BE$2&",Period:="&$B$1&",InputChoice1:=Close,InputChoice2::=Close)", "FG", "", "Close",$B$2,A70, "all","", "","True","T")/100,"") -> 0.4218284216 | BG70: =BG69+0.02 -> 0.32 | BH70: 3
A71: -67 | C71: =IFERROR(RTD("cqg.rtd",,"StudyData", "Correlation("&$B$3&","&C$2&",Period:="&$B$1&",InputChoice1:=Close,InputChoice2:=Close)", "FG", "", "Close",$B$2,A71, "all","", "","True","T")/100,"") -> -0.2382115139 | E71: 0.34 | F71: 2 | I71: =IFERROR(RTD("cqg.rtd",,"StudyData", "Correlation("&$B$3&","&I$2&",Period:="&$B$1&",InputChoice1:=Close,InputChoice2::=Close)", "FG", "", "Close",$B$2,A71, "all","", "","True","T")/100,"") -> -0.4118364289 | K71: 0.34 | L71: 0 | O71: =IFERROR(RTD("cqg.rtd",,"StudyData", "Correlation("&$B$3&","&O$2&",Period:="&$B$1&",InputChoice1:=Close,InputChoice2::=Close)", "FG", "", "Close",$B$2,A71, "all","", "","True","T")/100,"") -> 0.5633525902 | Q71: 0.34 | R71: 1 | U71: =IFERROR(RTD("cqg.rtd",,"StudyData", "Correlation("&$B$3&","&U$2&",Period:="&$B$1&",InputChoice1:=Close,InputChoice2::=Close)", "FG", "", "Close",$B$2,A71, "all","", "","True","T")/100,"") -> -0.1619417862 | W71: 0.34 | X71: 1 | AA71: =IFERROR(RTD("cqg.rtd",,"StudyData", "Correlation("&$B$3&","&AA$2&",Period:="&$B$1&",InputChoice1:=Close,InputChoice2::=Close)", "FG", "", "Close",$B$2,A71, "all","", "","True","T")/100,"") -> 0.4939716648 | AC71: 0.34 | AD71: 0 | AG71: =IFERROR(RTD("cqg.rtd",,"StudyData", "Correlation("&$B$3&","&AG$2&",Period:="&$B$1&",InputChoice1:=Close,InputChoice2::=Close)", "FG", "", "Close",$B$2,A71, "all","", "","True","T")/100,"") -> 0.3790189538 | AI71: 0.34 | AJ71: 2 | AM71: =IFERROR(RTD("cqg.rtd",,"StudyData", "Correlation("&$B$3&","&AM$2&",Period:="&$B$1&",InputChoice1:=Close,InputChoice2::=Close)", "FG", "", "Close",$B$2,A71, "all","", "","True","T")/100,"") -> 0.4882562367 | AO71: 0.34 | AP71: 0 | AS71: =IFERROR(RTD("cqg.rtd",,"StudyData", "Correlation("&$B$3&","&AS$2&",Period:="&$B$1&",InputChoice1:=Close,InputChoice2::=Close)", "FG", "", "Close",$B$2,A71, "all","", "","True","T")/100,"") -> -0.434111928 | AU71: 0.34 | AV71: 1 | AY71: =IFERROR(RTD("cqg.rtd",,"StudyData", "Correlation("&$B$3&","&AY$2&",Period:="&$B$1&",InputChoice1:=Close,InputChoice2::=Close)", "FG", "", "Close",$B$2,A71, "all","", "","True","T")/100,"") -> 0.002775213918 | BA71: 0.34 | BB71: 0 | BE71: =IFERROR(RTD("cqg.rtd",,"StudyData", "Correlation("&$B$3&","&BE$2&",Period:="&$B$1&",InputChoice1:=Close,InputChoice2::=Close)", "FG", "", "Close",$B$2,A71, "all","", "","True","T")/100,"") -> 0.3299341825 | BG71: 0.34 | BH71: 1
A72: -68 | C72: =IFERROR(RTD("cqg.rtd",,"StudyData", "Correlation("&$B$3&","&C$2&",Period:="&$B$1&",InputChoice1:=Close,InputChoice2:=Close)", "FG", "", "Close",$B$2,A72, "all","", "","True","T")/100,"") -> -0.2279093323 | E72: 0.36 | F72: 2 | I72: =IFERROR(RTD("cqg.rtd",,"StudyData", "Correlation("&$B$3&","&I$2&",Period:="&$B$1&",InputChoice1:=Close,InputChoice2::=Close)", "FG", "", "Close",$B$2,A72, "all","", "","True","T")/100,"") -> -0.4133040377 | K72: 0.36 | L72: 0 | O72: =IFERROR(RTD("cqg.rtd",,"StudyData", "Correlation("&$B$3&","&O$2&",Period:="&$B$1&",InputChoice1:=Close,InputChoice2::=Close)", "FG", "", "Close",$B$2,A72, "all","", "","True","T")/100,"") -> 0.571054006 | Q72: 0.36 | R72: 0 | U72: =IFERROR(RTD("cqg.rtd",,"StudyData", "Correlation("&$B$3&","&U$2&",Period:="&$B$1&",InputChoice1:=Close,InputChoice2::=Close)", "FG", "", "Close",$B$2,A72, "all","", "","True","T")/100,"") -> -0.2145239431 | W72: 0.36 | X72: 0 | AA72: =IFERROR(RTD("cqg.rtd",,"StudyData", "Correlation("&$B$3&","&AA$2&",Period:="&$B$1&",InputChoice1:=Close,InputChoice2::=Close)", "FG", "", "Close",$B$2,A72, "all","", "","True","T")/100,"") -> 0.5864707889 | AC72: 0.36 | AD72: 2 | AG72: =IFERROR(RTD("cqg.rtd",,"StudyData", "Correlation("&$B$3&","&AG$2&",Period:="&$B$1&",InputChoice1:=Close,InputChoice2::=Close)", "FG", "", "Close",$B$2,A72, "all","", "","True","T")/100,"") -> 0.5092840649 | AI72: 0.36 | AJ72: 2 | AM72: =IFERROR(RTD("cqg.rtd",,"StudyData", "Correlation("&$B$3&","&AM$2&",Period:="&$B$1&",InputChoice1:=Close,InputChoice2::=Close)", "FG", "", "Close",$B$2,A72, "all","", "","True","T")/100,"") -> 0.5844897934 | AO72: 0.36 | AP72: 1 | AS72: =IFERROR(RTD("cqg.rtd",,"StudyData", "Correlation("&$B$3&","&AS$2&",Period:="&$B$1&",InputChoice1:=Close,InputChoice2::=Close)", "FG", "", "Close",$B$2,A72, "all","", "","True","T")/100,"") -> -0.5121554083 | AU72: 0.36 | AV72: 0 | AY72: =IFERROR(RTD("cqg.rtd",,"StudyData", "Correlation("&$B$3&","&AY$2&",Period:="&$B$1&",InputChoice1:=Close,InputChoice2::=Close)", "FG", "", "Close",$B$2,A72, "all","", "","True","T")/100,"") -> -0.01829627145 | BA72: 0.36 | BB72: 1 | BE72: =IFERROR(RTD("cqg.rtd",,"StudyData", "Correlation("&$B$3&","&BE$2&",Period:="&$B$1&",InputChoice1:=Close,InputChoice2::=Close)", "FG", "", "Close",$B$2,A72, "all","", "","True","T")/100,"") -> 0.262660979 | BG72: 0.36 | BH72: 2
A73: -69 | C73: =IFERROR(RTD("cqg.rtd",,"StudyData", "Correlation("&$B$3&","&C$2&",Period:="&$B$1&",InputChoice1:=Close,InputChoice2:=Close)", "FG", "", "Close",$B$2,A73, "all","", "","True","T")/100,"") -> -0.1950848447 | E73: 0.38 | F73: 0 | I73: =IFERROR(RTD("cqg.rtd",,"StudyData", "Correlation("&$B$3&","&I$2&",Period:="&$B$1&",InputChoice1:=Close,InputChoice2::=Close)", "FG", "", "Close",$B$2,A73, "all","", "","True","T")/100,"") -> -0.3969996337 | K73: 0.38 | L73: 0 | O73: =IFERROR(RTD("cqg.rtd",,"StudyData", "Correlation("&$B$3&","&O$2&",Period:="&$B$1&",InputChoice1:=Close,InputChoice2::=Close)", "FG", "", "Close",$B$2,A73, "all","", "","True","T")/100,"") -> 0.6138839607 | Q73: 0.38 | R73: 1 | U73: =IFERROR(RTD("cqg.rtd",,"StudyData", "Correlation("&$B$3&","&U$2&",Period:="&$B$1&",InputChoice1:=Close,InputChoice2::=Close)", "FG", "", "Close",$B$2,A73, "all","", "","True","T")/100,"") -> -0.2136780137 | W73: 0.38 | X73: 0 | AA73: =IFERROR(RTD("cqg.rtd",,"StudyData", "Correlation("&$B$3&","&AA$2&",Period:="&$B$1&",InputChoice1:=Close,InputChoice2::=Close)", "FG", "", "Close",$B$2,A73, "all","", "","True","T")/100,"") -> 0.6567236656 | AC73: 0.38 | AD73: 2 | AG73: =IFERROR(RTD("cqg.rtd",,"StudyData", "Correlation("&$B$3&","&AG$2&",Period:="&$B$1&",InputChoice1:=Close,InputChoice2::=Close)", "FG", "", "Close",$B$2,A73, "all","", "","True","T")/100,"") -> 0.5863053813 | AI73: 0.38 | AJ73: 2 | AM73: =IFERROR(RTD("cqg.rtd",,"StudyData", "Correlation("&$B$3&","&AM$2&",Period:="&$B$1&",InputChoice1:=Close,InputChoice2::=Close)", "FG", "", "Close",$B$2,A73, "all","", "","True","T")/100,"") -> 0.6586203253 | AO73: 0.38 | AP73: 1 | AS73: =IFERROR(RTD("cqg.rtd",,"StudyData", "Correlation("&$B$3&","&AS$2&",Period:="&$B$1&",InputChoice1:=Close,InputChoice2::=Close)", "FG", "", "Close",$B$2,A73, "all","", "","True","T")/100,"") -> -0.5540375744 | AU73: 0.38 | AV73: 3 | AY73: =IFERROR(RTD("cqg.rtd",,"StudyData", "Correlation("&$B$3&","&AY$2&",Period:="&$B$1&",InputChoice1:=Close,InputChoice2::=Close)", "FG", "", "Close",$B$2,A73, "all","", "","True","T")/100,"") -> -0.03983645034 | BA73: 0.38 | BB73: 2 | BE73: =IFERROR(RTD("cqg.rtd",,"StudyData", "Correlation("&$B$3&","&BE$2&",Period:="&$B$1&",InputChoice1:=Close,InputChoice2::=Close)", "FG", "", "Close",$B$2,A73, "all","", "","True","T")/100,"") -> 0.1842987941 | BG73: 0.38 | BH73: 1
A74: -70 | C74: =IFERROR(RTD("cqg.rtd",,"StudyData", "Correlation("&$B$3&","&C$2&",Period:="&$B$1&",InputChoice1:=Close,InputChoice2:=Close)", "FG", "", "Close",$B$2,A74, "all","", "","True","T")/100,"") -> -0.1780843952 | E74: 0.4 | F74: 0 | I74: =IFERROR(RTD("cqg.rtd",,"StudyData", "Correlation("&$B$3&","&I$2&",Period:="&$B$1&",InputChoice1:=Close,InputChoice2::=Close)", "FG", "", "Close",$B$2,A74, "all","", "","True","T")/100,"") -> -0.3864211965 | K74: 0.4 | L74: 1 | O74: =IFERROR(RTD("cqg.rtd",,"StudyData", "Correlation("&$B$3&","&O$2&",Period:="&$B$1&",InputChoice1:=Close,InputChoice2::=Close)", "FG", "", "Close",$B$2,A74, "all","", "","True","T")/100,"") -> 0.6267937389 | Q74: 0.4 | R74: 0 | U74: =IFERROR(RTD("cqg.rtd",,"StudyData", "Correlation("&$B$3&","&U$2&",Period:="&$B$1&",InputChoice1:=Close,InputChoice2::=Close)", "FG", "", "Close",$B$2,A74, "all","", "","True","T")/100,"") -> -0.2033023464 | W74: 0.4 | X74: 0 | AA74: =IFERROR(RTD("cqg.rtd",,"StudyData", "Correlation("&$B$3&","&AA$2&",Period:="&$B$1&",InputChoice1:=Close,InputChoice2::=Close)", "FG", "", "Close",$B$2,A74, "all","", "","True","T")/100,"") -> 0.6562507238 | AC74: 0.4 | AD74: 2 | AG74: =IFERROR(RTD("cqg.rtd",,"StudyData", "Correlation("&$B$3&","&AG$2&",Period:="&$B$1&",InputChoice1:=Close,InputChoice2::=Close)", "FG", "", "Close",$B$2,A74, "all","", "","True","T")/100,"") -> 0.593842192 | AI74: 0.4 | AJ74: 0 | AK74: 1 | AM74: =IFERROR(RTD("cqg.rtd",,"StudyData", "Correlation("&$B$3&","&AM$2&",Period:="&$B$1&",InputChoice1:=Close,InputChoice2::=Close)", "FG", "", "Close",$B$2,A74, "all","", "","True","T")/100,"") -> 0.631064655 | AO74: 0.4 | AP74: 0 | AS74: =IFERROR(RTD("cqg.rtd",,"StudyData", "Correlation("&$B$3&","&AS$2&",Period:="&$B$1&",InputChoice1:=Close,InputChoice2::=Close)", "FG", "", "Close",$B$2,A74, "all","", "","True","T")/100,"") -> -0.6465897009 | AU74: 0.4 | AV74: 2 | AY74: =IFERROR(RTD("cqg.rtd",,"StudyData", "Correlation("&$B$3&","&AY$2&",Period:="&$B$1&",InputChoice1:=Close,InputChoice2::=Close)", "FG", "", "Close",$B$2,A74, "all","", "","True","T")/100,"") -> -0.06227304028 | BA74: 0.4 | BB74: 1 | BE74: =IFERROR(RTD("cqg.rtd",,"StudyData", "Correlation("&$B$3&","&BE$2&",Period:="&$B$1&",InputChoice1:=Close,InputChoice2::=Close)", "FG", "", "Close",$B$2,A74, "all","", "","True","T")/100,"") -> 0.1630683612 | BG74: 0.4 | BH74: 3
A75: -71 | C75: =IFERROR(RTD("cqg.rtd",,"StudyData", "Correlation("&$B$3&","&C$2&",Period:="&$B$1&",InputChoice1:=Close,InputChoice2:=Close)", "FG", "", "Close",$B$2,A75, "all","", "","True","T")/100,"") -> -0.1590066056 | E75: 0.42 | F75: 2 | I75: =IFERROR(RTD("cqg.rtd",,"StudyData", "Correlation("&$B$3&","&I$2&",Period:="&$B$1&",InputChoice1:=Close,InputChoice2::=Close)", "FG", "", "Close",$B$2,A75, "all","", "","True","T")/100,"") -> -0.352363178 | K75: 0.42 | L75: 0 | O75: =IFERROR(RTD("cqg.rtd",,"StudyData", "Correlation("&$B$3&","&O$2&",Period:="&$B$1&",InputChoice1:=Close,InputChoice2::=Close)", "FG", "", "Close",$B$2,A75, "all","", "","True","T")/100,"") -> 0.6446979075 | Q75: 0.42 | R75: 1 | U75: =IFERROR(RTD("cqg.rtd",,"StudyData", "Correlation("&$B$3&","&U$2&",Period:="&$B$1&",InputChoice1:=Close,InputChoice2::=Close)", "FG", "", "Close",$B$2,A75, "all","", "","True","T")/100,"") -> -0.1777483599 | W75: 0.42 | X75: 1 | AA75: =IFERROR(RTD("cqg.rtd",,"StudyData", "Correlation("&$B$3&","&AA$2&",Period:="&$B$1&",InputChoice1:=Close,InputChoice2::=Close)", "FG", "", "Close",$B$2,A75, "all","", "","True","T")/100,"") -> 0.6853946251 | AC75: 0.42 | AD75: 1 | AG75: =IFERROR(RTD("cqg.rtd",,"StudyData", "Correlation("&$B$3&","&AG$2&",Period:="&$B$1&",InputChoice1:=Close,InputChoice2::=Close)", "FG", "", "Close",$B$2,A75, "all","", "","True","T")/100,"") -> 0.634015871 | AI75: 0.42 | AJ75: 1 | AM75: =IFERROR(RTD("cqg.rtd",,"StudyData", "Correlation("&$B$3&","&AM$2&",Period:="&$B$1&",InputChoice1:=Close,InputChoice2::=Close)", "FG", "", "Close",$B$2,A75, "all","", "","True","T")/100,"") -> 0.6372768937 | AO75: 0.42 | AP75: 1 | AS75: =IFERROR(RTD("cqg.rtd",,"StudyData", "Correlation("&$B$3&","&AS$2&",Period:="&$B$1&",InputChoice1:=Close,InputChoice2::=Close)", "FG", "", "Close",$B$2,A75, "all","", "","True","T")/100,"") -> -0.6937926695 | AU75: 0.42 | AV75: 0 | AY75: =IFERROR(RTD("cqg.rtd",,"StudyData", "Correlation("&$B$3&","&AY$2&",Period:="&$B$1&",InputChoice1:=Close,InputChoice2::=Close)", "FG", "", "Close",$B$2,A75, "all","", "","True","T")/100,"") -> -0.0269835648 | BA75: 0.42 | BB75: 1 | BE75: =IFERROR(RTD("cqg.rtd",,"StudyData", "Correlation("&$B$3&","&BE$2&",Period:="&$B$1&",InputChoice1:=Close,InputChoice2::=Close)", "FG", "", "Close",$B$2,A75, "all","", "","True","T")/100,"") -> 0.1435622029 | BG75: 0.42 | BH75: 5
A76: -72 | C76: =IFERROR(RTD("cqg.rtd",,"StudyData", "Correlation("&$B$3&","&C$2&",Period:="&$B$1&",InputChoice1:=Close,InputChoice2:=Close)", "FG", "", "Close",$B$2,A76, "all","", "","True","T")/100,"") -> -0.07143496249 | E76: 0.44 | F76: 0 | I76: =IFERROR(RTD("cqg.rtd",,"StudyData", "Correlation("&$B$3&","&I$2&",Period:="&$B$1&",InputChoice1:=Close,InputChoice2::=Close)", "FG", "", "Close",$B$2,A76, "all","", "","True","T")/100,"") -> -0.236241866 | K76: 0.44 | L76: 0 | O76: =IFERROR(RTD("cqg.rtd",,"StudyData", "Correlation("&$B$3&","&O$2&",Period:="&$B$1&",InputChoice1:=Close,InputChoice2::=Close)", "FG", "", "Close",$B$2,A76, "all","", "","True","T")/100,"") -> 0.7250685961 | Q76: 0.44 | R76: 2 | U76: =IFERROR(RTD("cqg.rtd",,"StudyData", "Correlation("&$B$3&","&U$2&",Period:="&$B$1&",InputChoice1:=Close,InputChoice2::=Close)", "FG", "", "Close",$B$2,A76, "all","", "","True","T")/100,"") -> -0.155486011 | W76: 0.44 | X76: 1 | AA76: =IFERROR(RTD("cqg.rtd",,"StudyData", "Correlation("&$B$3&","&AA$2&",Period:="&$B$1&",InputChoice1:=Close,InputChoice2::=Close)", "FG", "", "Close",$B$2,A76, "all","", "","True","T")/100,"") -> 0.6772171934 | AC76: 0.44 | AD76: 1 | AG76: =IFERROR(RTD("cqg.rtd",,"StudyData", "Correlation("&$B$3&","&AG$2&",Period:="&$B$1&",InputChoice1:=Close,InputChoice2::=Close)", "FG", "", "Close",$B$2,A76, "all","", "","True","T")/100,"") -> 0.627850835 | AI76: 0.44 | AJ76: 1 | AM76: =IFERROR(RTD("cqg.rtd",,"StudyData", "Correlation("&$B$3&","&AM$2&",Period:="&$B$1&",InputChoice1:=Close,InputChoice2::=Close)", "FG", "", "Close",$B$2,A76, "all","", "","True","T")/100,"") -> 0.6213914 | AO76: 0.44 | AP76: 1 | AQ76: 1 | AS76: =IFERROR(RTD("cqg.rtd",,"StudyData", "Correlation("&$B$3&","&AS$2&",Period:="&$B$1&",InputChoice1:=Close,InputChoice2::=Close)", "FG", "", "Close",$B$2,A76, "all","", "","True","T")/100,"") -> -0.6845528894 | AU76: 0.44 | AV76: 0 | AY76: =IFERROR(RTD("cqg.rtd",,"StudyData", "Correlation("&$B$3&","&AY$2&",Period:="&$B$1&",InputChoice1:=Close,InputChoice2::=Close)", "FG", "", "Close",$B$2,A76, "all","", "","True","T")/100,"") -> 0.05096781848 | BA76: 0.44 | BB76: 2 | BE76: =IFERROR(RTD("cqg.rtd",,"StudyData", "Correlation("&$B$3&","&BE$2&",Period:="&$B$1&",InputChoice1:=Close,InputChoice2::=Close)", "FG", "", "Close",$B$2,A76, "all","", "","True","T")/100,"") -> 0.1114486982 | BG76: 0.44 | BH76: 1
A77: -73 | C77: =IFERROR(RTD("cqg.rtd",,"StudyData", "Correlation("&$B$3&","&C$2&",Period:="&$B$1&",InputChoice1:=Close,InputChoice2:=Close)", "FG", "", "Close",$B$2,A77, "all","", "","True","T")/100,"") -> -0.2255064135 | E77: 0.46 | F77: 2 | I77: =IFERROR(RTD("cqg.rtd",,"StudyData", "Correlation("&$B$3&","&I$2&",Period:="&$B$1&",InputChoice1:=Close,InputChoice2::=Close)", "FG", "", "Close",$B$2,A77, "all","", "","True","T")/100,"") -> -0.3076691147 | K77: 0.46 | L77: 0 | O77: =IFERROR(RTD("cqg.rtd",,"StudyData", "Correlation("&$B$3&","&O$2&",Period:="&$B$1&",InputChoice1:=Close,InputChoice2::=Close)", "FG", "", "Close",$B$2,A77, "all","", "","True","T")/100,"") -> 0.7174118374 | Q77: 0.46 | R77: 1 | U77: =IFERROR(RTD("cqg.rtd",,"StudyData", "Correlation("&$B$3&","&U$2&",Period:="&$B$1&",InputChoice1:=Close,InputChoice2::=Close)", "FG", "", "Close",$B$2,A77, "all","", "","True","T")/100,"") -> -0.1257888551 | W77: 0.46 | X77: 1 | AA77: =IFERROR(RTD("cqg.rtd",,"StudyData", "Correlation("&$B$3&","&AA$2&",Period:="&$B$1&",InputChoice1:=Close,InputChoice2::=Close)", "FG", "", "Close",$B$2,A77, "all","", "","True","T")/100,"") -> 0.6136108299 | AC77: 0.46 | AD77: 2 | AG77: =IFERROR(RTD("cqg.rtd",,"StudyData", "Correlation("&$B$3&","&AG$2&",Period:="&$B$1&",InputChoice1:=Close,InputChoice2::=Close)", "FG", "", "Close",$B$2,A77, "all","", "","True","T")/100,"") -> 0.5640722234 | AI77: 0.46 | AJ77: 0 | AM77: =IFERROR(RTD("cqg.rtd",,"StudyData", "Correlation("&$B$3&","&AM$2&",Period:="&$B$1&",InputChoice1:=Close,InputChoice2::=Close)", "FG", "", "Close",$B$2,A77, "all","", "","True","T")/100,"") -> 0.5507192589 | AO77: 0.46 | AP77: 2 | AS77: =IFERROR(RTD("cqg.rtd",,"StudyData", "Correlation("&$B$3&","&AS$2&",Period:="&$B$1&",InputChoice1:=Close,InputChoice2::=Close)", "FG", "", "Close",$B$2,A77, "all","", "","True","T")/100,"") -> -0.7538001982 | AU77: 0.46 | AV77: 0 | AY77: =IFERROR(RTD("cqg.rtd",,"StudyData", "Correlation("&$B$3&","&AY$2&",Period:="&$B$1&",InputChoice1:=Close,InputChoice2::=Close)", "FG", "", "Close",$B$2,A77, "all","", "","True","T")/100,"") -> 0.1407383666 | BA77: 0.46 | BB77: 0 | BE77: =IFERROR(RTD("cqg.rtd",,"StudyData", "Correlation("&$B$3&","&BE$2&",Period:="&$B$1&",InputChoice1:=Close,InputChoice2::=Close)", "FG", "", "Close",$B$2,A77, "all","", "","True","T")/100,"") -> 0.05477299497 | BG77: 0.46 | BH77: 4
A78: -74 | C78: =IFERROR(RTD("cqg.rtd",,"StudyData", "Correlation("&$B$3&","&C$2&",Period:="&$B$1&",InputChoice1:=Close,InputChoice2:=Close)", "FG", "", "Close",$B$2,A78, "all","", "","True","T")/100,"") -> -0.2432087512 | E78: 0.48 | F78: 1 | I78: =IFERROR(RTD("cqg.rtd",,"StudyData", "Correlation("&$B$3&","&I$2&",Period:="&$B$1&",InputChoice1:=Close,InputChoice2::=Close)", "FG", "", "Close",$B$2,A78, "all","", "","True","T")/100,"") -> -0.2305779575 | K78: 0.48 | L78: 1 | O78: =IFERROR(RTD("cqg.rtd",,"StudyData", "Correlation("&$B$3&","&O$2&",Period:="&$B$1&",InputChoice1:=Close,InputChoice2::=Close)", "FG", "", "Close",$B$2,A78, "all","", "","True","T")/100,"") -> 0.7120777938 | Q78: 0.48 | R78: 0 | U78: =IFERROR(RTD("cqg.rtd",,"StudyData", "Correlation("&$B$3&","&U$2&",Period:="&$B$1&",InputChoice1:=Close,InputChoice2::=Close)", "FG", "", "Close",$B$2,A78, "all","", "","True","T")/100,"") -> -0.1908573892 | W78: 0.48 | X78: 0 | AA78: =IFERROR(RTD("cqg.rtd",,"StudyData", "Correlation("&$B$3&","&AA$2&",Period:="&$B$1&",InputChoice1:=Close,InputChoice2::=Close)", "FG", "", "Close",$B$2,A78, "all","", "","True","T")/100,"") -> 0.4460199981 | AC78: 0.48 | AD78: 0 | AG78: =IFERROR(RTD("cqg.rtd",,"StudyData", "Correlation("&$B$3&","&AG$2&",Period:="&$B$1&",InputChoice1:=Close,InputChoice2::=Close)", "FG", "", "Close",$B$2,A78, "all","", "","True","T")/100,"") -> 0.3650386607 | AI78: 0.48 | AJ78: 1 | AM78: =IFERROR(RTD("cqg.rtd",,"StudyData", "Correlation("&$B$3&","&AM$2&",Period:="&$B$1&",InputChoice1:=Close,InputChoice2::=Close)", "FG", "", "Close",$B$2,A78, "all","", "","True","T")/100,"") -> 0.4041336004 | AO78: 0.48 | AP78: 0 | AS78: =IFERROR(RTD("cqg.rtd",,"StudyData", "Correlation("&$B$3&","&AS$2&",Period:="&$B$1&",InputChoice1:=Close,InputChoice2::=Close)", "FG", "", "Close",$B$2,A78, "all","", "","True","T")/100,"") -> -0.6303114259 | AU78: 0.48 | AV78: 0 | AY78: =IFERROR(RTD("cqg.rtd",,"StudyData", "Correlation("&$B$3&","&AY$2&",Period:="&$B$1&",InputChoice1:=Close,InputChoice2::=Close)", "FG", "", "Close",$B$2,A78, "all","", "","True","T")/100,"") -> 0.2216070316 | BA78: 0.48 | BB78: 1 | BE78: =IFERROR(RTD("cqg.rtd",,"StudyData", "Correlation("&$B$3&","&BE$2&",Period:="&$B$1&",InputChoice1:=Close,InputChoice2::=Close)", "FG", "", "Close",$B$2,A78, "all","", "","True","T")/100,"") -> 0.007657450406 | BG78: 0.48 | BH78: 1
A79: -75 | C79: =IFERROR(RTD("cqg.rtd",,"StudyData", "Correlation("&$B$3&","&C$2&",Period:="&$B$1&",InputChoice1:=Close,InputChoice2:=Close)", "FG", "", "Close",$B$2,A79, "all","", "","True","T")/100,"") -> -0.2425662435 | E79: 0.5 | F79: 3 | I79: =IFERROR(RTD("cqg.rtd",,"StudyData", "Correlation("&$B$3&","&I$2&",Period:="&$B$1&",InputChoice1:=Close,InputChoice2::=Close)", "FG", "", "Close",$B$2,A79, "all","", "","True","T")/100,"") -> -0.2049835455 | K79: 0.5 | L79: 1 | O79: =IFERROR(RTD("cqg.rtd",,"StudyData", "Correlation("&$B$3&","&O$2&",Period:="&$B$1&",InputChoice1:=Close,InputChoice2::=Close)", "FG", "", "Close",$B$2,A79, "all","", "","True","T")/100,"") -> 0.6912558424 | Q79: 0.5 | R79: 2 | U79: =IFERROR(RTD("cqg.rtd",,"StudyData", "Correlation("&$B$3&","&U$2&",Period:="&$B$1&",InputChoice1:=Close,InputChoice2::=Close)", "FG", "", "Close",$B$2,A79, "all","", "","True","T")/100,"") -> -0.1680426789 | W79: 0.5 | X79: 0 | AA79: =IFERROR(RTD("cqg.rtd",,"StudyData", "Correlation("&$B$3&","&AA$2&",Period:="&$B$1&",InputChoice1:=Close,InputChoice2::=Close)", "FG", "", "Close",$B$2,A79, "all","", "","True","T")/100,"") -> 0.2941182034 | AC79: 0.5 | AD79: 3 | AE79: 3 | AG79: =IFERROR(RTD("cqg.rtd",,"StudyData", "Correlation("&$B$3&","&AG$2&",Period:="&$B$1&",InputChoice1:=Close,InputChoice2::=Close)", "FG", "", "Close",$B$2,A79, "all","", "","True","T")/100,"") -> 0.1919192957 | AI79: 0.5 | AJ79: 0 | AM79: =IFERROR(RTD("cqg.rtd",,"StudyData", "Correlation("&$B$3&","&AM$2&",Period:="&$B$1&",InputChoice1:=Close,InputChoice2::=Close)", "FG", "", "Close",$B$2,A79, "all","", "","True","T")/100,"") -> 0.2832408805 | AO79: 0.5 | AP79: 1 | AS79: =IFERROR(RTD("cqg.rtd",,"StudyData", "Correlation("&$B$3&","&AS$2&",Period:="&$B$1&",InputChoice1:=Close,InputChoice2::=Close)", "FG", "", "Close",$B$2,A79, "all","", "","True","T")/100,"") -> -0.449498773 | AU79: 0.5 | AV79: 0 | AY79: =IFERROR(RTD("cqg.rtd",,"StudyData", "Correlation("&$B$3&","&AY$2&",Period:="&$B$1&",InputChoice1:=Close,InputChoice2::=Close)", "FG", "", "Close",$B$2,A79, "all","", "","True","T")/100,"") -> 0.1815622516 | BA79: 0.5 | BB79: 3 | BE79: =IFERROR(RTD("cqg.rtd",,"StudyData", "Correlation("&$B$3&","&BE$2&",Period:="&$B$1&",InputChoice1:=Close,InputChoice2::=Close)", "FG", "", "Close",$B$2,A79, "all","", "","True","T")/100,"") -> -0.02059879045 | BG79: 0.5 | BH79: 6
A80: -76 | C80: =IFERROR(RTD("cqg.rtd",,"StudyData", "Correlation("&$B$3&","&C$2&",Period:="&$B$1&",InputChoice1:=Close,InputChoice2:=Close)", "FG", "", "Close",$B$2,A80, "all","", "","True","T")/100,"") -> -0.4101455881 | E80: 0.52 | F80: 1 | I80: =IFERROR(RTD("cqg.rtd",,"StudyData", "Correlation("&$B$3&","&I$2&",Period:="&$B$1&",InputChoice1:=Close,InputChoice2::=Close)", "FG", "", "Close",$B$2,A80, "all","", "","True","T")/100,"") -> -0.4647834744 | K80: 0.52 | L80: 0 | O80: =IFERROR(RTD("cqg.rtd",,"StudyData", "Correlation("&$B$3&","&O$2&",Period:="&$B$1&",InputChoice1:=Close,InputChoice2::=Close)", "FG", "", "Close",$B$2,A80, "all","", "","True","T")/100,"") -> 0.6545533722 | Q80: 0.52 | R80: 2 | U80: =IFERROR(RTD("cqg.rtd",,"StudyData", "Correlation("&$B$3&","&U$2&",Period:="&$B$1&",InputChoice1:=Close,InputChoice2::=Close)", "FG", "", "Close",$B$2,A80, "all","", "","True","T")/100,"") -> -0.1441820124 | W80: 0.52 | X80: 1 | AA80: =IFERROR(RTD("cqg.rtd",,"StudyData", "Correlation("&$B$3&","&AA$2&",Period:="&$B$1&",InputChoice1:=Close,InputChoice2::=Close)", "FG", "", "Close",$B$2,A80, "all","", "","True","T")/100,"") -> -0.06259865301 | AC80: 0.52 | AD80: 1 | AG80: =IFERROR(RTD("cqg.rtd",,"StudyData", "Correlation("&$B$3&","&AG$2&",Period:="&$B$1&",InputChoice1:=Close,InputChoice2::=Close)", "FG", "", "Close",$B$2,A80, "all","", "","True","T")/100,"") -> -0.1344709623 | AI80: 0.52 | AJ80: 1 | AM80: =IFERROR(RTD("cqg.rtd",,"StudyData", "Correlation("&$B$3&","&AM$2&",Period:="&$B$1&",InputChoice1:=Close,InputChoice2::=Close)", "FG", "", "Close",$B$2,A80, "all","", "","True","T")/100,"") -> -0.05658146745 | AO80: 0.52 | AP80: 2 | AS80: =IFERROR(RTD("cqg.rtd",,"StudyData", "Correlation("&$B$3&","&AS$2&",Period:="&$B$1&",InputChoice1:=Close,InputChoice2::=Close)", "FG", "", "Close",$B$2,A80, "all","", "","True","T")/100,"") -> -0.04787881635 | AU80: 0.52 | AV80: 0 | AY80: =IFERROR(RTD("cqg.rtd",,"StudyData", "Correlation("&$B$3&","&AY$2&",Period:="&$B$1&",InputChoice1:=Close,InputChoice2::=Close)", "FG", "", "Close",$B$2,A80, "all","", "","True","T")/100,"") -> 0.1270316777 | BA80: 0.52 | BB80: 0 | BE80: =IFERROR(RTD("cqg.rtd",,"StudyData", "Correlation("&$B$3&","&BE$2&",Period:="&$B$1&",InputChoice1:=Close,InputChoice2::=Close)", "FG", "", "Close",$B$2,A80, "all","", "","True","T")/100,"") -> 0.09732958557 | BG80: 0.52 | BH80: 3
A81: -77 | C81: =IFERROR(RTD("cqg.rtd",,"StudyData", "Correlation("&$B$3&","&C$2&",Period:="&$B$1&",InputChoice1:=Close,InputChoice2:=Close)", "FG", "", "Close",$B$2,A81, "all","", "","True","T")/100,"") -> -0.6136003455 | E81: 0.54 | F81: 0 | I81: =IFERROR(RTD("cqg.rtd",,"StudyData", "Correlation("&$B$3&","&I$2&",Period:="&$B$1&",InputChoice1:=Close,InputChoice2::=Close)", "FG", "", "Close",$B$2,A81, "all","", "","True","T")/100,"") -> -0.6615224592 | K81: 0.54 | L81: 0 | O81: =IFERROR(RTD("cqg.rtd",,"StudyData", "Correlation("&$B$3&","&O$2&",Period:="&$B$1&",InputChoice1:=Close,InputChoice2::=Close)", "FG", "", "Close",$B$2,A81, "all","", "","True","T")/100,"") -> 0.5681617145 | Q81: 0.54 | R81: 4 | U81: =IFERROR(RTD("cqg.rtd",,"StudyData", "Correlation("&$B$3&","&U$2&",Period:="&$B$1&",InputChoice1:=Close,InputChoice2::=Close)", "FG", "", "Close",$B$2,A81, "all","", "","True","T")/100,"") -> -0.350304058 | W81: 0.54 | X81: 1 | AA81: =IFERROR(RTD("cqg.rtd",,"StudyData", "Correlation("&$B$3&","&AA$2&",Period:="&$B$1&",InputChoice1:=Close,InputChoice2::=Close)", "FG", "", "Close",$B$2,A81, "all","", "","True","T")/100,"") -> -0.1643582338 | AC81: 0.54 | AD81: 2 | AG81: =IFERROR(RTD("cqg.rtd",,"StudyData", "Correlation("&$B$3&","&AG$2&",Period:="&$B$1&",InputChoice1:=Close,InputChoice2::=Close)", "FG", "", "Close",$B$2,A81, "all","", "","True","T")/100,"") -> -0.2402268234 | AI81: 0.54 | AJ81: 4 | AM81: =IFERROR(RTD("cqg.rtd",,"StudyData", "Correlation("&$B$3&","&AM$2&",Period:="&$B$1&",InputChoice1:=Close,InputChoice2::=Close)", "FG", "", "Close",$B$2,A81, "all","", "","True","T")/100,"") -> -0.1488067303 | AO81: 0.54 | AP81: 0 | AS81: =IFERROR(RTD("cqg.rtd",,"StudyData", "Correlation("&$B$3&","&AS$2&",Period:="&$B$1&",InputChoice1:=Close,InputChoice2::=Close)", "FG", "", "Close",$B$2,A81, "all","", "","True","T")/100,"") -> 0.03006573123 | AU81: 0.54 | AV81: 0 | AY81: =IFERROR(RTD("cqg.rtd",,"StudyData", "Correlation("&$B$3&","&AY$2&",Period:="&$B$1&",InputChoice1:=Close,InputChoice2::=Close)", "FG", "", "Close",$B$2,A81, "all","", "","True","T")/100,"") -> 0.3873093698 | BA81: 0.54 | BB81: 0 | BC81: 1 | BE81: =IFERROR(RTD("cqg.rtd",,"StudyData", "Correlation("&$B$3&","&BE$2&",Period:="&$B$1&",InputChoice1:=Close,InputChoice2::=Close)", "FG", "", "Close",$B$2,A81, "all","", "","True","T")/100,"") -> 0.1616236163 | BG81: 0.54 | BH81: 2
A82: -78 | C82: =IFERROR(RTD("cqg.rtd",,"StudyData", "Correlation("&$B$3&","&C$2&",Period:="&$B$1&",InputChoice1:=Close,InputChoice2:=Close)", "FG", "", "Close",$B$2,A82, "all","", "","True","T")/100,"") -> -0.7014110328 | E82: 0.56 | F82: 0 | I82: =IFERROR(RTD("cqg.rtd",,"StudyData", "Correlation("&$B$3&","&I$2&",Period:="&$B$1&",InputChoice1:=Close,InputChoice2::=Close)", "FG", "", "Close",$B$2,A82, "all","", "","True","T")/100,"") -> -0.7485672475 | K82: 0.56 | L82: 0 | O82: =IFERROR(RTD("cqg.rtd",,"StudyData", "Correlation("&$B$3&","&O$2&",Period:="&$B$1&",InputChoice1:=Close,InputChoice2::=Close)", "FG", "", "Close",$B$2,A82, "all","", "","True","T")/100,"") -> 0.4114267304 | Q82: 0.56 | R82: 1 | U82: =IFERROR(RTD("cqg.rtd",,"StudyData", "Correlation("&$B$3&","&U$2&",Period:="&$B$1&",InputChoice1:=Close,InputChoice2::=Close)", "FG", "", "Close",$B$2,A82, "all","", "","True","T")/100,"") -> -0.6093382867 | W82: 0.56 | X82: 0 | AA82: =IFERROR(RTD("cqg.rtd",,"StudyData", "Correlation("&$B$3&","&AA$2&",Period:="&$B$1&",InputChoice1:=Close,InputChoice2::=Close)", "FG", "", "Close",$B$2,A82, "all","", "","True","T")/100,"") -> -0.4251980873 | AC82: 0.56 | AD82: 1 | AG82: =IFERROR(RTD("cqg.rtd",,"StudyData", "Correlation("&$B$3&","&AG$2&",Period:="&$B$1&",InputChoice1:=Close,InputChoice2::=Close)", "FG", "", "Close",$B$2,A82, "all","", "","True","T")/100,"") -> -0.5144436879 | AI82: 0.56 | AJ82: 1 | AM82: =IFERROR(RTD("cqg.rtd",,"StudyData", "Correlation("&$B$3&","&AM$2&",Period:="&$B$1&",InputChoice1:=Close,InputChoice2::=Close)", "FG", "", "Close",$B$2,A82, "all","", "","True","T")/100,"") -> -0.4355370388 | AO82: 0.56 | AP82: 1 | AS82: =IFERROR(RTD("cqg.rtd",,"StudyData", "Correlation("&$B$3&","&AS$2&",Period:="&$B$1&",InputChoice1:=Close,InputChoice2::=Close)", "FG", "", "Close",$B$2,A82, "all","", "","True","T")/100,"") -> -0.0637021345 | AU82: 0.56 | AV82: 0 | AY82: =IFERROR(RTD("cqg.rtd",,"StudyData", "Correlation("&$B$3&","&AY$2&",Period:="&$B$1&",InputChoice1:=Close,InputChoice2::=Close)", "FG", "", "Close",$B$2,A82, "all","", "","True","T")/100,"") -> 0.4937907582 | BA82: 0.56 | BB82: 3 | BE82: =IFERROR(RTD("cqg.rtd",,"StudyData", "Correlation("&$B$3&","&BE$2&",Period:="&$B$1&",InputChoice1:=Close,InputChoice2::=Close)", "FG", "", "Close",$B$2,A82, "all","", "","True","T")/100,"") -> 0.3153209122 | BG82: 0.56 | BH82: 4
A83: -79 | C83: =IFERROR(RTD("cqg.rtd",,"StudyData", "Correlation("&$B$3&","&C$2&",Period:="&$B$1&",InputChoice1:=Close,InputChoice2:=Close)", "FG", "", "Close",$B$2,A83, "all","", "","True","T")/100,"") -> -0.7245148277 | E83: 0.58 | F83: 1 | I83: =IFERROR(RTD("cqg.rtd",,"StudyData", "Correlation("&$B$3&","&I$2&",Period:="&$B$1&",InputChoice1:=Close,InputChoice2::=Close)", "FG", "", "Close",$B$2,A83, "all","", "","True","T")/100,"") -> -0.7729438439 | K83: 0.58 | L83: 0 | O83: =IFERROR(RTD("cqg.rtd",,"StudyData", "Correlation("&$B$3&","&O$2&",Period:="&$B$1&",InputChoice1:=Close,InputChoice2::=Close)", "FG", "", "Close",$B$2,A83, "all","", "","True","T")/100,"") -> 0.1852846074 | Q83: 0.58 | R83: 4 | U83: =IFERROR(RTD("cqg.rtd",,"StudyData", "Correlation("&$B$3&","&U$2&",Period:="&$B$1&",InputChoice1:=Close,InputChoice2::=Close)", "FG", "", "Close",$B$2,A83, "all","", "","True","T")/100,"") -> -0.7281401803 | W83: 0.58 | X83: 3 | AA83: =IFERROR(RTD("cqg.rtd",,"StudyData", "Correlation("&$B$3&","&AA$2&",Period:="&$B$1&",InputChoice1:=Close,InputChoice2::=Close)", "FG", "", "Close",$B$2,A83, "all","", "","True","T")/100,"") -> -0.6227899432 | AC83: 0.58 | AD83: 2 | AG83: =IFERROR(RTD("cqg.rtd",,"StudyData", "Correlation("&$B$3&","&AG$2&",Period:="&$B$1&",InputChoice1:=Close,InputChoice2::=Close)", "FG", "", "Close",$B$2,A83, "all","", "","True","T")/100,"") -> -0.6980289345 | AI83: 0.58 | AJ83: 1 | AM83: =IFERROR(RTD("cqg.rtd",,"StudyData", "Correlation("&$B$3&","&AM$2&",Period:="&$B$1&",InputChoice1:=Close,InputChoice2::=Close)", "FG", "", "Close",$B$2,A83, "all","", "","True","T")/100,"") -> -0.6289785009 | AO83: 0.58 | AP83: 1 | AS83: =IFERROR(RTD("cqg.rtd",,"StudyData", "Correlation("&$B$3&","&AS$2&",Period:="&$B$1&",InputChoice1:=Close,InputChoice2::=Close)", "FG", "", "Close",$B$2,A83, "all","", "","True","T")/100,"") -> -0.1193826306 | AU83: 0.58 | AV83: 0 | AY83: =IFERROR(RTD("cqg.rtd",,"StudyData", "Correlation("&$B$3&","&AY$2&",Period:="&$B$1&",InputChoice1:=Close,InputChoice2::=Close)", "FG", "", "Close",$B$2,A83, "all","", "","True","T")/100,"") -> 0.5999744367 | BA83: 0.58 | BB83: 3 | BE83: =IFERROR(RTD("cqg.rtd",,"StudyData", "Correlation("&$B$3&","&BE$2&",Period:="&$B$1&",InputChoice1:=Close,InputChoice2::=Close)", "FG", "", "Close",$B$2,A83, "all","", "","True","T")/100,"") -> 0.4093637491 | BG83: 0.58 | BH83: 0
A84: -80 | C84: =IFERROR(RTD("cqg.rtd",,"StudyData", "Correlation("&$B$3&","&C$2&",Period:="&$B$1&",InputChoice1:=Close,InputChoice2:=Close)", "FG", "", "Close",$B$2,A84, "all","", "","True","T")/100,"") -> -0.7443823184 | E84: 0.6 | F84: 1 | I84: =IFERROR(RTD("cqg.rtd",,"StudyData", "Correlation("&$B$3&","&I$2&",Period:="&$B$1&",InputChoice1:=Close,InputChoice2::=Close)", "FG", "", "Close",$B$2,A84, "all","", "","True","T")/100,"") -> -0.795545895 | K84: 0.6 | L84: 2 | O84: =IFERROR(RTD("cqg.rtd",,"StudyData", "Correlation("&$B$3&","&O$2&",Period:="&$B$1&",InputChoice1:=Close,InputChoice2::=Close)", "FG", "", "Close",$B$2,A84, "all","", "","True","T")/100,"") -> 0.09969255544 | Q84: 0.6 | R84: 4 | U84: =IFERROR(RTD("cqg.rtd",,"StudyData", "Correlation("&$B$3&","&U$2&",Period:="&$B$1&",InputChoice1:=Close,InputChoice2::=Close)", "FG", "", "Close",$B$2,A84, "all","", "","True","T")/100,"") -> -0.7544786954 | W84: 0.6 | X84: 0 | AA84: =IFERROR(RTD("cqg.rtd",,"StudyData", "Correlation("&$B$3&","&AA$2&",Period:="&$B$1&",InputChoice1:=Close,InputChoice2::=Close)", "FG", "", "Close",$B$2,A84, "all","", "","True","T")/100,"") -> -0.6921768135 | AC84: 0.6 | AD84: 3 | AG84: =IFERROR(RTD("cqg.rtd",,"StudyData", "Correlation("&$B$3&","&AG$2&",Period:="&$B$1&",InputChoice1:=Close,InputChoice2::=Close)", "FG", "", "Close",$B$2,A84, "all","", "","True","T")/100,"") -> -0.7463316104 | AI84: 0.6 | AJ84: 2 | AM84: =IFERROR(RTD("cqg.rtd",,"StudyData", "Correlation("&$B$3&","&AM$2&",Period:="&$B$1&",InputChoice1:=Close,InputChoice2::=Close)", "FG", "", "Close",$B$2,A84, "all","", "","True","T")/100,"") -> -0.7225844678 | AO84: 0.6 | AP84: 2 | AS84: =IFERROR(RTD("cqg.rtd",,"StudyData", "Correlation("&$B$3&","&AS$2&",Period:="&$B$1&",InputChoice1:=Close,InputChoice2::=Close)", "FG", "", "Close",$B$2,A84, "all","", "","True","T")/100,"") -> -0.4407838038 | AU84: 0.6 | AV84: 0 | AY84: =IFERROR(RTD("cqg.rtd",,"StudyData", "Correlation("&$B$3&","&AY$2&",Period:="&$B$1&",InputChoice1:=Close,InputChoice2::=Close)", "FG", "", "Close",$B$2,A84, "all","", "","True","T")/100,"") -> 0.6668717411 | BA84: 0.6 | BB84: 4 | BE84: =IFERROR(RTD("cqg.rtd",,"StudyData", "Correlation("&$B$3&","&BE$2&",Period:="&$B$1&",InputChoice1:=Close,InputChoice2::=Close)", "FG", "", "Close",$B$2,A84, "all","", "","True","T")/100,"") -> 0.515019766 | BG84: 0.6 | BH84: 6
A85: -81 | C85: =IFERROR(RTD("cqg.rtd",,"StudyData", "Correlation("&$B$3&","&C$2&",Period:="&$B$1&",InputChoice1:=Close,InputChoice2:=Close)", "FG", "", "Close",$B$2,A85, "all","", "","True","T")/100,"") -> -0.7520182069 | E85: 0.62 | F85: 1 | I85: =IFERROR(RTD("cqg.rtd",,"StudyData", "Correlation("&$B$3&","&I$2&",Period:="&$B$1&",InputChoice1:=Close,InputChoice2::=Close)", "FG", "", "Close",$B$2,A85, "all","", "","True","T")/100,"") -> -0.7974839052 | K85: 0.62 | L85: 1 | O85: =IFERROR(RTD("cqg.rtd",,"StudyData", "Correlation("&$B$3&","&O$2&",Period:="&$B$1&",InputChoice1:=Close,InputChoice2::=Close)", "FG", "", "Close",$B$2,A85, "all","", "","True","T")/100,"") -> -0.1456352808 | Q85: 0.62 | R85: 1 | U85: =IFERROR(RTD("cqg.rtd",,"StudyData", "Correlation("&$B$3&","&U$2&",Period:="&$B$1&",InputChoice1:=Close,InputChoice2::=Close)", "FG", "", "Close",$B$2,A85, "all","", "","True","T")/100,"") -> -0.7863145198 | W85: 0.62 | X85: 0 | AA85: =IFERROR(RTD("cqg.rtd",,"StudyData", "Correlation("&$B$3&","&AA$2&",Period:="&$B$1&",InputChoice1:=Close,InputChoice2::=Close)", "FG", "", "Close",$B$2,A85, "all","", "","True","T")/100,"") -> -0.7219181202 | AC85: 0.62 | AD85: 1 | AG85: =IFERROR(RTD("cqg.rtd",,"StudyData", "Correlation("&$B$3&","&AG$2&",Period:="&$B$1&",InputChoice1:=Close,InputChoice2::=Close)", "FG", "", "Close",$B$2,A85, "all","", "","True","T")/100,"") -> -0.7938056381 | AI85: 0.62 | AJ85: 0 | AM85: =IFERROR(RTD("cqg.rtd",,"StudyData", "Correlation("&$B$3&","&AM$2&",Period:="&$B$1&",InputChoice1:=Close,InputChoice2::=Close)", "FG", "", "Close",$B$2,A85, "all","", "","True","T")/100,"") -> -0.74668554 | AO85: 0.62 | AP85: 2 | AS85: =IFERROR(RTD("cqg.rtd",,"StudyData", "Correlation("&$B$3&","&AS$2&",Period:="&$B$1&",InputChoice1:=Close,InputChoice2::=Close)", "FG", "", "Close",$B$2,A85, "all","", "","True","T")/100,"") -> -0.3545597698 | AU85: 0.62 | AV85: 0 | AY85: =IFERROR(RTD("cqg.rtd",,"StudyData", "Correlation("&$B$3&","&AY$2&",Period:="&$B$1&",InputChoice1:=Close,InputChoice2::=Close)", "FG", "", "Close",$B$2,A85, "all","", "","True","T")/100,"") -> 0.6727527016 | BA85: 0.62 | BB85: 1 | BE85: =IFERROR(RTD("cqg.rtd",,"StudyData", "Correlation("&$B$3&","&BE$2&",Period:="&$B$1&",InputChoice1:=Close,InputChoice2::=Close)", "FG", "", "Close",$B$2,A85, "all","", "","True","T")/100,"") -> 0.5898030403 | BG85: 0.62 | BH85: 7
A86: -82 | C86: =IFERROR(RTD("cqg.rtd",,"StudyData", "Correlation("&$B$3&","&C$2&",Period:="&$B$1&",InputChoice1:=Close,InputChoice2:=Close)", "FG", "", "Close",$B$2,A86, "all","", "","True","T")/100,"") -> -0.7933073679 | E86: 0.64 | F86: 0 | I86: =IFERROR(RTD("cqg.rtd",,"StudyData", "Correlation("&$B$3&","&I$2&",Period:="&$B$1&",InputChoice1:=Close,InputChoice2::=Close)", "FG", "", "Close",$B$2,A86, "all","", "","True","T")/100,"") -> -0.796158974 | K86: 0.64 | L86: 0 | O86: =IFERROR(RTD("cqg.rtd",,"StudyData", "Correlation("&$B$3&","&O$2&",Period:="&$B$1&",InputChoice1:=Close,InputChoice2::=Close)", "FG", "", "Close",$B$2,A86, "all","", "","True","T")/100,"") -> -0.2580443011 | Q86: 0.64 | R86: 4 | U86: =IFERROR(RTD("cqg.rtd",,"StudyData", "Correlation("&$B$3&","&U$2&",Period:="&$B$1&",InputChoice1:=Close,InputChoice2::=Close)", "FG", "", "Close",$B$2,A86, "all","", "","True","T")/100,"") -> -0.7902767516 | W86: 0.64 | X86: 0 | AA86: =IFERROR(RTD("cqg.rtd",,"StudyData", "Correlation("&$B$3&","&AA$2&",Period:="&$B$1&",InputChoice1:=Close,InputChoice2::=Close)", "FG", "", "Close",$B$2,A86, "all","", "","True","T")/100,"") -> -0.7284768232 | AC86: 0.64 | AD86: 3 | AG86: =IFERROR(RTD("cqg.rtd",,"StudyData", "Correlation("&$B$3&","&AG$2&",Period:="&$B$1&",InputChoice1:=Close,InputChoice2::=Close)", "FG", "", "Close",$B$2,A86, "all","", "","True","T")/100,"") -> -0.8068328792 | AI86: 0.64 | AJ86: 3 | AM86: =IFERROR(RTD("cqg.rtd",,"StudyData", "Correlation("&$B$3&","&AM$2&",Period:="&$B$1&",InputChoice1:=Close,InputChoice2::=Close)", "FG", "", "Close",$B$2,A86, "all","", "","True","T")/100,"") -> -0.7539499818 | AO86: 0.64 | AP86: 3 | AS86: =IFERROR(RTD("cqg.rtd",,"StudyData", "Correlation("&$B$3&","&AS$2&",Period:="&$B$1&",InputChoice1:=Close,InputChoice2::=Close)", "FG", "", "Close",$B$2,A86, "all","", "","True","T")/100,"") -> -0.2690078191 | AU86: 0.64 | AV86: 0 | AY86: =IFERROR(RTD("cqg.rtd",,"StudyData", "Correlation("&$B$3&","&AY$2&",Period:="&$B$1&",InputChoice1:=Close,InputChoice2::=Close)", "FG", "", "Close",$B$2,A86, "all","", "","True","T")/100,"") -> 0.6803153979 | BA86: 0.64 | BB86: 2 | BE86: =IFERROR(RTD("cqg.rtd",,"StudyData", "Correlation("&$B$3&","&BE$2&",Period:="&$B$1&",InputChoice1:=Close,InputChoice2::=Close)", "FG", "", "Close",$B$2,A86, "all","", "","True","T")/100,"") -> 0.6033700286 | BG86: 0.64 | BH86: 0
A87: -83 | C87: =IFERROR(RTD("cqg.rtd",,"StudyData", "Correlation("&$B$3&","&C$2&",Period:="&$B$1&",InputChoice1:=Close,InputChoice2:=Close)", "FG", "", "Close",$B$2,A87, "all","", "","True","T")/100,"") -> -0.808763835 | E87: 0.66 | F87: 0 | I87: =IFERROR(RTD("cqg.rtd",,"StudyData", "Correlation("&$B$3&","&I$2&",Period:="&$B$1&",InputChoice1:=Close,InputChoice2::=Close)", "FG", "", "Close",$B$2,A87, "all","", "","True","T")/100,"") -> -0.8218547072 | K87: 0.66 | L87: 4 | O87: =IFERROR(RTD("cqg.rtd",,"StudyData", "Correlation("&$B$3&","&O$2&",Period:="&$B$1&",InputChoice1:=Close,InputChoice2::=Close)", "FG", "", "Close",$B$2,A87, "all","", "","True","T")/100,"") -> -0.2919832407 | Q87: 0.66 | R87: 6 | U87: =IFERROR(RTD("cqg.rtd",,"StudyData", "Correlation("&$B$3&","&U$2&",Period:="&$B$1&",InputChoice1:=Close,InputChoice2::=Close)", "FG", "", "Close",$B$2,A87, "all","", "","True","T")/100,"") -> -0.7808569875 | W87: 0.66 | X87: 1 | AA87: =IFERROR(RTD("cqg.rtd",,"StudyData", "Correlation("&$B$3&","&AA$2&",Period:="&$B$1&",InputChoice1:=Close,InputChoice2::=Close)", "FG", "", "Close",$B$2,A87, "all","", "","True","T")/100,"") -> -0.8196498218 | AC87: 0.66 | AD87: 2 | AG87: =IFERROR(RTD("cqg.rtd",,"StudyData", "Correlation("&$B$3&","&AG$2&",Period:="&$B$1&",InputChoice1:=Close,InputChoice2::=Close)", "FG", "", "Close",$B$2,A87, "all","", "","True","T")/100,"") -> -0.8722642415 | AI87: 0.66 | AJ87: 1 | AM87: =IFERROR(RTD("cqg.rtd",,"StudyData", "Correlation("&$B$3&","&AM$2&",Period:="&$B$1&",InputChoice1:=Close,InputChoice2::=Close)", "FG", "", "Close",$B$2,A87, "all","", "","True","T")/100,"") -> -0.8497208563 | AO87: 0.66 | AP87: 4 | AS87: =IFERROR(RTD("cqg.rtd",,"StudyData", "Correlation("&$B$3&","&AS$2&",Period:="&$B$1&",InputChoice1:=Close,InputChoice2::=Close)", "FG", "", "Close",$B$2,A87, "all","", "","True","T")/100,"") -> -0.284158601 | AU87: 0.66 | AV87: 0 | AY87: =IFERROR(RTD("cqg.rtd",,"StudyData", "Correlation("&$B$3&","&AY$2&",Period:="&$B$1&",InputChoice1:=Close,InputChoice2::=Close)", "FG", "", "Close",$B$2,A87, "all","", "","True","T")/100,"") -> 0.5818620499 | BA87: 0.66 | BB87: 1 | BE87: =IFERROR(RTD("cqg.rtd",,"StudyData", "Correlation("&$B$3&","&BE$2&",Period:="&$B$1&",InputChoice1:=Close,InputChoice2::=Close)", "FG", "", "Close",$B$2,A87, "all","", "","True","T")/100,"") -> 0.611200653 | BG87: 0.66 | BH87: 4
A88: -84 | C88: =IFERROR(RTD("cqg.rtd",,"StudyData", "Correlation("&$B$3&","&C$2&",Period:="&$B$1&",InputChoice1:=Close,InputChoice2:=Close)", "FG", "", "Close",$B$2,A88, "all","", "","True","T")/100,"") -> -0.8221717321 | E88: 0.68 | F88: 0 | I88: =IFERROR(RTD("cqg.rtd",,"StudyData", "Correlation("&$B$3&","&I$2&",Period:="&$B$1&",InputChoice1:=Close,InputChoice2::=Close)", "FG", "", "Close",$B$2,A88, "all","", "","True","T")/100,"") -> -0.8223106151 | K88: 0.68 | L88: 4 | O88: =IFERROR(RTD("cqg.rtd",,"StudyData", "Correlation("&$B$3&","&O$2&",Period:="&$B$1&",InputChoice1:=Close,InputChoice2::=Close)", "FG", "", "Close",$B$2,A88, "all","", "","True","T")/100,"") -> -0.2970238145 | Q88: 0.68 | R88: 2 | U88: =IFERROR(RTD("cqg.rtd",,"StudyData", "Correlation("&$B$3&","&U$2&",Period:="&$B$1&",InputChoice1:=Close,InputChoice2::=Close)", "FG", "", "Close",$B$2,A88, "all","", "","True","T")/100,"") -> -0.8115636949 | W88: 0.68 | X88: 0 | AA88: =IFERROR(RTD("cqg.rtd",,"StudyData", "Correlation("&$B$3&","&AA$2&",Period:="&$B$1&",InputChoice1:=Close,InputChoice2::=Close)", "FG", "", "Close",$B$2,A88, "all","", "","True","T")/100,"") -> -0.8412317029 | AC88: 0.68 | AD88: 1 | AG88: =IFERROR(RTD("cqg.rtd",,"StudyData", "Correlation("&$B$3&","&AG$2&",Period:="&$B$1&",InputChoice1:=Close,InputChoice2::=Close)", "FG", "", "Close",$B$2,A88, "all","", "","True","T")/100,"") -> -0.889553777 | AI88: 0.68 | AJ88: 1 | AM88: =IFERROR(RTD("cqg.rtd",,"StudyData", "Correlation("&$B$3&","&AM$2&",Period:="&$B$1&",InputChoice1:=Close,InputChoice2::=Close)", "FG", "", "Close",$B$2,A88, "all","", "","True","T")/100,"") -> -0.859947488 | AO88: 0.68 | AP88: 0 | AS88: =IFERROR(RTD("cqg.rtd",,"StudyData", "Correlation("&$B$3&","&AS$2&",Period:="&$B$1&",InputChoice1:=Close,InputChoice2::=Close)", "FG", "", "Close",$B$2,A88, "all","", "","True","T")/100,"") -> -0.2299375405 | AU88: 0.68 | AV88: 0 | AY88: =IFERROR(RTD("cqg.rtd",,"StudyData", "Correlation("&$B$3&","&AY$2&",Period:="&$B$1&",InputChoice1:=Close,InputChoice2::=Close)", "FG", "", "Close",$B$2,A88, "all","", "","True","T")/100,"") -> 0.4261528245 | BA88: 0.68 | BB88: 4 | BE88: =IFERROR(RTD("cqg.rtd",,"StudyData", "Correlation("&$B$3&","&BE$2&",Period:="&$B$1&",InputChoice1:=Close,InputChoice2::=Close)", "FG", "", "Close",$B$2,A88, "all","", "","True","T")/100,"") -> 0.5993304077 | BG88: 0.68 | BH88: 2
A89: -85 | C89: =IFERROR(RTD("cqg.rtd",,"StudyData", "Correlation("&$B$3&","&C$2&",Period:="&$B$1&",InputChoice1:=Close,InputChoice2:=Close)", "FG", "", "Close",$B$2,A89, "all","", "","True","T")/100,"") -> -0.8116215167 | E89: 0.7 | F89: 0 | I89: =IFERROR(RTD("cqg.rtd",,"StudyData", "Correlation("&$B$3&","&I$2&",Period:="&$B$1&",InputChoice1:=Close,InputChoice2::=Close)", "FG", "", "Close",$B$2,A89, "all","", "","True","T")/100,"") -> -0.8345615946 | K89: 0.7 | L89: 4 | O89: =IFERROR(RTD("cqg.rtd",,"StudyData", "Correlation("&$B$3&","&O$2&",Period:="&$B$1&",InputChoice1:=Close,InputChoice2::=Close)", "FG", "", "Close",$B$2,A89, "all","", "","True","T")/100,"") -> -0.2822774191 | Q89: 0.7 | R89: 4 | U89: =IFERROR(RTD("cqg.rtd",,"StudyData", "Correlation("&$B$3&","&U$2&",Period:="&$B$1&",InputChoice1:=Close,InputChoice2::=Close)", "FG", "", "Close",$B$2,A89, "all","", "","True","T")/100,"") -> -0.8116244938 | W89: 0.7 | X89: 0 | AA89: =IFERROR(RTD("cqg.rtd",,"StudyData", "Correlation("&$B$3&","&AA$2&",Period:="&$B$1&",InputChoice1:=Close,InputChoice2::=Close)", "FG", "", "Close",$B$2,A89, "all","", "","True","T")/100,"") -> -0.8608302099 | AC89: 0.7 | AD89: 1 | AG89: =IFERROR(RTD("cqg.rtd",,"StudyData", "Correlation("&$B$3&","&AG$2&",Period:="&$B$1&",InputChoice1:=Close,InputChoice2::=Close)", "FG", "", "Close",$B$2,A89, "all","", "","True","T")/100,"") -> -0.8961478518 | AI89: 0.7 | AJ89: 1 | AM89: =IFERROR(RTD("cqg.rtd",,"StudyData", "Correlation("&$B$3&","&AM$2&",Period:="&$B$1&",InputChoice1:=Close,InputChoice2::=Close)", "FG", "", "Close",$B$2,A89, "all","", "","True","T")/100,"") -> -0.8803636753 | AO89: 0.7 | AP89: 0 | AS89: =IFERROR(RTD("cqg.rtd",,"StudyData", "Correlation("&$B$3&","&AS$2&",Period:="&$B$1&",InputChoice1:=Close,InputChoice2::=Close)", "FG", "", "Close",$B$2,A89, "all","", "","True","T")/100,"") -> -0.003231600638 | AU89: 0.7 | AV89: 0 | AY89: =IFERROR(RTD("cqg.rtd",,"StudyData", "Correlation("&$B$3&","&AY$2&",Period:="&$B$1&",InputChoice1:=Close,InputChoice2::=Close)", "FG", "", "Close",$B$2,A89, "all","", "","True","T")/100,"") -> 0.2131020977 | BA89: 0.7 | BB89: 2 | BE89: =IFERROR(RTD("cqg.rtd",,"StudyData", "Correlation("&$B$3&","&BE$2&",Period:="&$B$1&",InputChoice1:=Close,InputChoice2::=Close)", "FG", "", "Close",$B$2,A89, "all","", "","True","T")/100,"") -> 0.6046189141 | BG89: 0.7 | BH89: 0
A90: -86 | C90: =IFERROR(RTD("cqg.rtd",,"StudyData", "Correlation("&$B$3&","&C$2&",Period:="&$B$1&",InputChoice1:=Close,InputChoice2:=Close)", "FG", "", "Close",$B$2,A90, "all","", "","True","T")/100,"") -> -0.7896971458 | E90: 0.72 | F90: 0 | I90: =IFERROR(RTD("cqg.rtd",,"StudyData", "Correlation("&$B$3&","&I$2&",Period:="&$B$1&",InputChoice1:=Close,InputChoice2::=Close)", "FG", "", "Close",$B$2,A90, "all","", "","True","T")/100,"") -> -0.8236580008 | K90: 0.72 | L90: 1 | O90: =IFERROR(RTD("cqg.rtd",,"StudyData", "Correlation("&$B$3&","&O$2&",Period:="&$B$1&",InputChoice1:=Close,InputChoice2::=Close)", "FG", "", "Close",$B$2,A90, "all","", "","True","T")/100,"") -> -0.435704719 | Q90: 0.72 | R90: 3 | U90: =IFERROR(RTD("cqg.rtd",,"StudyData", "Correlation("&$B$3&","&U$2&",Period:="&$B$1&",InputChoice1:=Close,InputChoice2::=Close)", "FG", "", "Close",$B$2,A90, "all","", "","True","T")/100,"") -> -0.8230500874 | W90: 0.72 | X90: 1 | AA90: =IFERROR(RTD("cqg.rtd",,"StudyData", "Correlation("&$B$3&","&AA$2&",Period:="&$B$1&",InputChoice1:=Close,InputChoice2::=Close)", "FG", "", "Close",$B$2,A90, "all","", "","True","T")/100,"") -> -0.845060216 | AC90: 0.72 | AD90: 1 | AG90: =IFERROR(RTD("cqg.rtd",,"StudyData", "Correlation("&$B$3&","&AG$2&",Period:="&$B$1&",InputChoice1:=Close,InputChoice2::=Close)", "FG", "", "Close",$B$2,A90, "all","", "","True","T")/100,"") -> -0.8666446493 | AI90: 0.72 | AJ90: 2 | AM90: =IFERROR(RTD("cqg.rtd",,"StudyData", "Correlation("&$B$3&","&AM$2&",Period:="&$B$1&",InputChoice1:=Close,InputChoice2::=Close)", "FG", "", "Close",$B$2,A90, "all","", "","True","T")/100,"") -> -0.8775844718 | AO90: 0.72 | AP90: 1 | AS90: =IFERROR(RTD("cqg.rtd",,"StudyData", "Correlation("&$B$3&","&AS$2&",Period:="&$B$1&",InputChoice1:=Close,InputChoice2::=Close)", "FG", "", "Close",$B$2,A90, "all","", "","True","T")/100,"") -> 0.1910710877 | AU90: 0.72 | AV90: 0 | AY90: =IFERROR(RTD("cqg.rtd",,"StudyData", "Correlation("&$B$3&","&AY$2&",Period:="&$B$1&",InputChoice1:=Close,InputChoice2::=Close)", "FG", "", "Close",$B$2,A90, "all","", "","True","T")/100,"") -> 0.03048482979 | BA90: 0.72 | BB90: 3 | BE90: =IFERROR(RTD("cqg.rtd",,"StudyData", "Correlation("&$B$3&","&BE$2&",Period:="&$B$1&",InputChoice1:=Close,InputChoice2::=Close)", "FG", "", "Close",$B$2,A90, "all","", "","True","T")/100,"") -> 0.6455574046 | BG90: 0.72 | BH90: 1
A91: -87 | C91: =IFERROR(RTD("cqg.rtd",,"StudyData", "Correlation("&$B$3&","&C$2&",Period:="&$B$1&",InputChoice1:=Close,InputChoice2:=Close)", "FG", "", "Close",$B$2,A91, "all","", "","True","T")/100,"") -> -0.7481163296 | E91: 0.74 | F91: 0 | I91: =IFERROR(RTD("cqg.rtd",,"StudyData", "Correlation("&$B$3&","&I$2&",Period:="&$B$1&",InputChoice1:=Close,InputChoice2::=Close)", "FG", "", "Close",$B$2,A91, "all","", "","True","T")/100,"") -> -0.7843213611 | K91: 0.74 | L91: 1 | O91: =IFERROR(RTD("cqg.rtd",,"StudyData", "Correlation("&$B$3&","&O$2&",Period:="&$B$1&",InputChoice1:=Close,InputChoice2::=Close)", "FG", "", "Close",$B$2,A91, "all","", "","True","T")/100,"") -> -0.4876646221 | Q91: 0.74 | R91: 6 | U91: =IFERROR(RTD("cqg.rtd",,"StudyData", "Correlation("&$B$3&","&U$2&",Period:="&$B$1&",InputChoice1:=Close,InputChoice2::=Close)", "FG", "", "Close",$B$2,A91, "all","", "","True","T")/100,"") -> -0.8190072639 | W91: 0.74 | X91: 1 | AA91: =IFERROR(RTD("cqg.rtd",,"StudyData", "Correlation("&$B$3&","&AA$2&",Period:="&$B$1&",InputChoice1:=Close,InputChoice2::=Close)", "FG", "", "Close",$B$2,A91, "all","", "","True","T")/100,"") -> -0.7894243917 | AC91: 0.74 | AD91: 2 | AG91: =IFERROR(RTD("cqg.rtd",,"StudyData", "Correlation("&$B$3&","&AG$2&",Period:="&$B$1&",InputChoice1:=Close,InputChoice2::=Close)", "FG", "", "Close",$B$2,A91, "all","", "","True","T")/100,"") -> -0.7693493272 | AI91: 0.74 | AJ91: 0 | AM91: =IFERROR(RTD("cqg.rtd",,"StudyData", "Correlation("&$B$3&","&AM$2&",Period:="&$B$1&",InputChoice1:=Close,InputChoice2::=Close)", "FG", "", "Close",$B$2,A91, "all","", "","True","T")/100,"") -> -0.8660165685 | AO91: 0.74 | AP91: 2 | AS91: =IFERROR(RTD("cqg.rtd",,"StudyData", "Correlation("&$B$3&","&AS$2&",Period:="&$B$1&",InputChoice1:=Close,InputChoice2::=Close)", "FG", "", "Close",$B$2,A91, "all","", "","True","T")/100,"") -> 0.3049979514 | AU91: 0.74 | AV91: 0 | AY91: =IFERROR(RTD("cqg.rtd",,"StudyData", "Correlation("&$B$3&","&AY$2&",Period:="&$B$1&",InputChoice1:=Close,InputChoice2::=Close)", "FG", "", "Close",$B$2,A91, "all","", "","True","T")/100,"") -> -0.08910041208 | BA91: 0.74 | BB91: 0 | BE91: =IFERROR(RTD("cqg.rtd",,"StudyData", "Correlation("&$B$3&","&BE$2&",Period:="&$B$1&",InputChoice1:=Close,InputChoice2::=Close)", "FG", "", "Close",$B$2,A91, "all","", "","True","T")/100,"") -> 0.7153568967 | BG91: 0.74 | BH91: 1
A92: -88 | C92: =IFERROR(RTD("cqg.rtd",,"StudyData", "Correlation("&$B$3&","&C$2&",Period:="&$B$1&",InputChoice1:=Close,InputChoice2:=Close)", "FG", "", "Close",$B$2,A92, "all","", "","True","T")/100,"") -> -0.7305449406 | E92: 0.76 | F92: 0 | I92: =IFERROR(RTD("cqg.rtd",,"StudyData", "Correlation("&$B$3&","&I$2&",Period:="&$B$1&",InputChoice1:=Close,InputChoice2::=Close)", "FG", "", "Close",$B$2,A92, "all","", "","True","T")/100,"") -> -0.7667378856 | K92: 0.76 | L92: 1 | O92: =IFERROR(RTD("cqg.rtd",,"StudyData", "Correlation("&$B$3&","&O$2&",Period:="&$B$1&",InputChoice1:=Close,InputChoice2::=Close)", "FG", "", "Close",$B$2,A92, "all","", "","True","T")/100,"") -> -0.5634237602 | Q92: 0.76 | R92: 1 | U92: =IFERROR(RTD("cqg.rtd",,"StudyData", "Correlation("&$B$3&","&U$2&",Period:="&$B$1&",InputChoice1:=Close,InputChoice2::=Close)", "FG", "", "Close",$B$2,A92, "all","", "","True","T")/100,"") -> -0.787792961 | W92: 0.76 | X92: 0 | AA92: =IFERROR(RTD("cqg.rtd",,"StudyData", "Correlation("&$B$3&","&AA$2&",Period:="&$B$1&",InputChoice1:=Close,InputChoice2::=Close)", "FG", "", "Close",$B$2,A92, "all","", "","True","T")/100,"") -> -0.7581636515 | AC92: 0.76 | AD92: 0 | AG92: =IFERROR(RTD("cqg.rtd",,"StudyData", "Correlation("&$B$3&","&AG$2&",Period:="&$B$1&",InputChoice1:=Close,InputChoice2::=Close)", "FG", "", "Close",$B$2,A92, "all","", "","True","T")/100,"") -> -0.692058233 | AI92: 0.76 | AJ92: 0 | AM92: =IFERROR(RTD("cqg.rtd",,"StudyData", "Correlation("&$B$3&","&AM$2&",Period:="&$B$1&",InputChoice1:=Close,InputChoice2::=Close)", "FG", "", "Close",$B$2,A92, "all","", "","True","T")/100,"") -> -0.8646292422 | AO92: 0.76 | AP92: 0 | AS92: =IFERROR(RTD("cqg.rtd",,"StudyData", "Correlation("&$B$3&","&AS$2&",Period:="&$B$1&",InputChoice1:=Close,InputChoice2::=Close)", "FG", "", "Close",$B$2,A92, "all","", "","True","T")/100,"") -> 0.3679050063 | AU92: 0.76 | AV92: 0 | AY92: =IFERROR(RTD("cqg.rtd",,"StudyData", "Correlation("&$B$3&","&AY$2&",Period:="&$B$1&",InputChoice1:=Close,InputChoice2::=Close)", "FG", "", "Close",$B$2,A92, "all","", "","True","T")/100,"") -> -0.116333433 | BA92: 0.76 | BB92: 0 | BE92: =IFERROR(RTD("cqg.rtd",,"StudyData", "Correlation("&$B$3&","&BE$2&",Period:="&$B$1&",InputChoice1:=Close,InputChoice2::=Close)", "FG", "", "Close",$B$2,A92, "all","", "","True","T")/100,"") -> 0.7385520782 | BG92: 0.76 | BH92: 1
A93: -89 | C93: =IFERROR(RTD("cqg.rtd",,"StudyData", "Correlation("&$B$3&","&C$2&",Period:="&$B$1&",InputChoice1:=Close,InputChoice2:=Close)", "FG", "", "Close",$B$2,A93, "all","", "","True","T")/100,"") -> -0.6767166971 | E93: 0.78 | F93: 0 | I93: =IFERROR(RTD("cqg.rtd",,"StudyData", "Correlation("&$B$3&","&I$2&",Period:="&$B$1&",InputChoice1:=Close,InputChoice2::=Close)", "FG", "", "Close",$B$2,A93, "all","", "","True","T")/100,"") -> -0.7412354998 | K93: 0.78 | L93: 0 | O93: =IFERROR(RTD("cqg.rtd",,"StudyData", "Correlation("&$B$3&","&O$2&",Period:="&$B$1&",InputChoice1:=Close,InputChoice2::=Close)", "FG", "", "Close",$B$2,A93, "all","", "","True","T")/100,"") -> -0.569383055 | Q93: 0.78 | R93: 0 | U93: =IFERROR(RTD("cqg.rtd",,"StudyData", "Correlation("&$B$3&","&U$2&",Period:="&$B$1&",InputChoice1:=Close,InputChoice2::=Close)", "FG", "", "Close",$B$2,A93, "all","", "","True","T")/100,"") -> -0.7704530437 | W93: 0.78 | X93: 2 | AA93: =IFERROR(RTD("cqg.rtd",,"StudyData", "Correlation("&$B$3&","&AA$2&",Period:="&$B$1&",InputChoice1:=Close,InputChoice2::=Close)", "FG", "", "Close",$B$2,A93, "all","", "","True","T")/100,"") -> -0.7166331804 | AC93: 0.78 | AD93: 0 | AG93: =IFERROR(RTD("cqg.rtd",,"StudyData", "Correlation("&$B$3&","&AG$2&",Period:="&$B$1&",InputChoice1:=Close,InputChoice2::=Close)", "FG", "", "Close",$B$2,A93, "all","", "","True","T")/100,"") -> -0.6056615726 | AI93: 0.78 | AJ93: 0 | AM93: =IFERROR(RTD("cqg.rtd",,"StudyData", "Correlation("&$B$3&","&AM$2&",Period:="&$B$1&",InputChoice1:=Close,InputChoice2::=Close)", "FG", "", "Close",$B$2,A93, "all","", "","True","T")/100,"") -> -0.8453268203 | AO93: 0.78 | AP93: 0 | AS93: =IFERROR(RTD("cqg.rtd",,"StudyData", "Correlation("&$B$3&","&AS$2&",Period:="&$B$1&",InputChoice1:=Close,InputChoice2::=Close)", "FG", "", "Close",$B$2,A93, "all","", "","True","T")/100,"") -> 0.3676895067 | AU93: 0.78 | AV93: 0 | AY93: =IFERROR(RTD("cqg.rtd",,"StudyData", "Correlation("&$B$3&","&AY$2&",Period:="&$B$1&",InputChoice1:=Close,InputChoice2::=Close)", "FG", "", "Close",$B$2,A93, "all","", "","True","T")/100,"") -> -0.101464874 | BA93: 0.78 | BB93: 0 | BE93: =IFERROR(RTD("cqg.rtd",,"StudyData", "Correlation("&$B$3&","&BE$2&",Period:="&$B$1&",InputChoice1:=Close,InputChoice2::=Close)", "FG", "", "Close",$B$2,A93, "all","", "","True","T")/100,"") -> 0.7570208656 | BG93: 0.78 | BH93: 0
A94: -90 | C94: =IFERROR(RTD("cqg.rtd",,"StudyData", "Correlation("&$B$3&","&C$2&",Period:="&$B$1&",InputChoice1:=Close,InputChoice2:=Close)", "FG", "", "Close",$B$2,A94, "all","", "","True","T")/100,"") -> -0.6295292427 | E94: 0.8 | F94: 0 | I94: =IFERROR(RTD("cqg.rtd",,"StudyData", "Correlation("&$B$3&","&I$2&",Period:="&$B$1&",InputChoice1:=Close,InputChoice2::=Close)", "FG", "", "Close",$B$2,A94, "all","", "","True","T")/100,"") -> -0.6842874386 | K94: 0.8 | L94: 0 | O94: =IFERROR(RTD("cqg.rtd",,"StudyData", "Correlation("&$B$3&","&O$2&",Period:="&$B$1&",InputChoice1:=Close,InputChoice2::=Close)", "FG", "", "Close",$B$2,A94, "all","", "","True","T")/100,"") -> -0.6046838741 | Q94: 0.8 | R94: 0 | U94: =IFERROR(RTD("cqg.rtd",,"StudyData", "Correlation("&$B$3&","&U$2&",Period:="&$B$1&",InputChoice1:=Close,InputChoice2::=Close)", "FG", "", "Close",$B$2,A94, "all","", "","True","T")/100,"") -> -0.7466463018 | W94: 0.8 | X94: 3 | AA94: =IFERROR(RTD("cqg.rtd",,"StudyData", "Correlation("&$B$3&","&AA$2&",Period:="&$B$1&",InputChoice1:=Close,InputChoice2::=Close)", "FG", "", "Close",$B$2,A94, "all","", "","True","T")/100,"") -> -0.6928732763 | AC94: 0.8 | AD94: 2 | AG94: =IFERROR(RTD("cqg.rtd",,"StudyData", "Correlation("&$B$3&","&AG$2&",Period:="&$B$1&",InputChoice1:=Close,InputChoice2::=Close)", "FG", "", "Close",$B$2,A94, "all","", "","True","T")/100,"") -> -0.5410889778 | AI94: 0.8 | AJ94: 0 | AM94: =IFERROR(RTD("cqg.rtd",,"StudyData", "Correlation("&$B$3&","&AM$2&",Period:="&$B$1&",InputChoice1:=Close,InputChoice2::=Close)", "FG", "", "Close",$B$2,A94, "all","", "","True","T")/100,"") -> -0.8387966308 | AO94: 0.8 | AP94: 0 | AS94: =IFERROR(RTD("cqg.rtd",,"StudyData", "Correlation("&$B$3&","&AS$2&",Period:="&$B$1&",InputChoice1:=Close,InputChoice2::=Close)", "FG", "", "Close",$B$2,A94, "all","", "","True","T")/100,"") -> 0.3961042648 | AU94: 0.8 | AV94: 0 | AY94: =IFERROR(RTD("cqg.rtd",,"StudyData", "Correlation("&$B$3&","&AY$2&",Period:="&$B$1&",InputChoice1:=Close,InputChoice2::=Close)", "FG", "", "Close",$B$2,A94, "all","", "","True","T")/100,"") -> -0.07037366412 | BA94: 0.8 | BB94: 2 | BE94: =IFERROR(RTD("cqg.rtd",,"StudyData", "Correlation("&$B$3&","&BE$2&",Period:="&$B$1&",InputChoice1:=Close,InputChoice2::=Close)", "FG", "", "Close",$B$2,A94, "all","", "","True","T")/100,"") -> 0.8412916132 | BG94: 0.8 | BH94: 0
A95: -91 | C95: =IFERROR(RTD("cqg.rtd",,"StudyData", "Correlation("&$B$3&","&C$2&",Period:="&$B$1&",InputChoice1:=Close,InputChoice2:=Close)", "FG", "", "Close",$B$2,A95, "all","", "","True","T")/100,"") -> -0.5952231752 | E95: 0.82 | F95: 0 | I95: =IFERROR(RTD("cqg.rtd",,"StudyData", "Correlation("&$B$3&","&I$2&",Period:="&$B$1&",InputChoice1:=Close,InputChoice2::=Close)", "FG", "", "Close",$B$2,A95, "all","", "","True","T")/100,"") -> -0.6487770628 | K95: 0.82 | L95: 0 | O95: =IFERROR(RTD("cqg.rtd",,"StudyData", "Correlation("&$B$3&","&O$2&",Period:="&$B$1&",InputChoice1:=Close,InputChoice2::=Close)", "FG", "", "Close",$B$2,A95, "all","", "","True","T")/100,"") -> -0.5136342335 | Q95: 0.82 | R95: 0 | U95: =IFERROR(RTD("cqg.rtd",,"StudyData", "Correlation("&$B$3&","&U$2&",Period:="&$B$1&",InputChoice1:=Close,InputChoice2::=Close)", "FG", "", "Close",$B$2,A95, "all","", "","True","T")/100,"") -> -0.6904085334 | W95: 0.82 | X95: 3 | AA95: =IFERROR(RTD("cqg.rtd",,"StudyData", "Correlation("&$B$3&","&AA$2&",Period:="&$B$1&",InputChoice1:=Close,InputChoice2::=Close)", "FG", "", "Close",$B$2,A95, "all","", "","True","T")/100,"") -> -0.6155998288 | AC95: 0.82 | AD95: 1 | AG95: =IFERROR(RTD("cqg.rtd",,"StudyData", "Correlation("&$B$3&","&AG$2&",Period:="&$B$1&",InputChoice1:=Close,InputChoice2::=Close)", "FG", "", "Close",$B$2,A95, "all","", "","True","T")/100,"") -> -0.3842409677 | AI95: 0.82 | AJ95: 0 | AM95: =IFERROR(RTD("cqg.rtd",,"StudyData", "Correlation("&$B$3&","&AM$2&",Period:="&$B$1&",InputChoice1:=Close,InputChoice2::=Close)", "FG", "", "Close",$B$2,A95, "all","", "","True","T")/100,"") -> -0.8050022179 | AO95: 0.82 | AP95: 0 | AS95: =IFERROR(RTD("cqg.rtd",,"StudyData", "Correlation("&$B$3&","&AS$2&",Period:="&$B$1&",InputChoice1:=Close,InputChoice2::=Close)", "FG", "", "Close",$B$2,A95, "all","", "","True","T")/100,"") -> 0.3674355873 | AU95: 0.82 | AV95: 0 | AY95: =IFERROR(RTD("cqg.rtd",,"StudyData", "Correlation("&$B$3&","&AY$2&",Period:="&$B$1&",InputChoice1:=Close,InputChoice2::=Close)", "FG", "", "Close",$B$2,A95, "all","", "","True","T")/100,"") -> -0.02750924877 | BA95: 0.82 | BB95: 0 | BE95: =IFERROR(RTD("cqg.rtd",,"StudyData", "Correlation("&$B$3&","&BE$2&",Period:="&$B$1&",InputChoice1:=Close,InputChoice2::=Close)", "FG", "", "Close",$B$2,A95, "all","", "","True","T")/100,"") -> 0.8441769089 | BG95: 0.82 | BH95: 0
A96: -92 | C96: =IFERROR(RTD("cqg.rtd",,"StudyData", "Correlation("&$B$3&","&C$2&",Period:="&$B$1&",InputChoice1:=Close,InputChoice2:=Close)", "FG", "", "Close",$B$2,A96, "all","", "","True","T")/100,"") -> -0.5600553704 | E96: 0.84 | F96: 0 | I96: =IFERROR(RTD("cqg.rtd",,"StudyData", "Correlation("&$B$3&","&I$2&",Period:="&$B$1&",InputChoice1:=Close,InputChoice2::=Close)", "FG", "", "Close",$B$2,A96, "all","", "","True","T")/100,"") -> -0.6133654809 | K96: 0.84 | L96: 0 | O96: =IFERROR(RTD("cqg.rtd",,"StudyData", "Correlation("&$B$3&","&O$2&",Period:="&$B$1&",InputChoice1:=Close,InputChoice2::=Close)", "FG", "", "Close",$B$2,A96, "all","", "","True","T")/100,"") -> -0.4284638762 | Q96: 0.84 | R96: 0 | U96: =IFERROR(RTD("cqg.rtd",,"StudyData", "Correlation("&$B$3&","&U$2&",Period:="&$B$1&",InputChoice1:=Close,InputChoice2::=Close)", "FG", "", "Close",$B$2,A96, "all","", "","True","T")/100,"") -> -0.6532444368 | W96: 0.84 | X96: 7 | AA96: =IFERROR(RTD("cqg.rtd",,"StudyData", "Correlation("&$B$3&","&AA$2&",Period:="&$B$1&",InputChoice1:=Close,InputChoice2::=Close)", "FG", "", "Close",$B$2,A96, "all","", "","True","T")/100,"") -> -0.541185826 | AC96: 0.84 | AD96: 0 | AG96: =IFERROR(RTD("cqg.rtd",,"StudyData", "Correlation("&$B$3&","&AG$2&",Period:="&$B$1&",InputChoice1:=Close,InputChoice2::=Close)", "FG", "", "Close",$B$2,A96, "all","", "","True","T")/100,"") -> -0.3315083166 | AI96: 0.84 | AJ96: 0 | AM96: =IFERROR(RTD("cqg.rtd",,"StudyData", "Correlation("&$B$3&","&AM$2&",Period:="&$B$1&",InputChoice1:=Close,InputChoice2::=Close)", "FG", "", "Close",$B$2,A96, "all","", "","True","T")/100,"") -> -0.7743799995 | AO96: 0.84 | AP96: 0 | AS96: =IFERROR(RTD("cqg.rtd",,"StudyData", "Correlation("&$B$3&","&AS$2&",Period:="&$B$1&",InputChoice1:=Close,InputChoice2::=Close)", "FG", "", "Close",$B$2,A96, "all","", "","True","T")/100,"") -> 0.3055757035 | AU96: 0.84 | AV96: 0 | AY96: =IFERROR(RTD("cqg.rtd",,"StudyData", "Correlation("&$B$3&","&AY$2&",Period:="&$B$1&",InputChoice1:=Close,InputChoice2::=Close)", "FG", "", "Close",$B$2,A96, "all","", "","True","T")/100,"") -> 0.03574951322 | BA96: 0.84 | BB96: 1 | BE96: =IFERROR(RTD("cqg.rtd",,"StudyData", "Correlation("&$B$3&","&BE$2&",Period:="&$B$1&",InputChoice1:=Close,InputChoice2::=Close)", "FG", "", "Close",$B$2,A96, "all","", "","True","T")/100,"") -> 0.9008218861 | BG96: 0.84 | BH96: 1
A97: -93 | C97: =IFERROR(RTD("cqg.rtd",,"StudyData", "Correlation("&$B$3&","&C$2&",Period:="&$B$1&",InputChoice1:=Close,InputChoice2:=Close)", "FG", "", "Close",$B$2,A97, "all","", "","True","T")/100,"") -> -0.4528647437 | E97: 0.86 | F97: 0 | I97: =IFERROR(RTD("cqg.rtd",,"StudyData", "Correlation("&$B$3&","&I$2&",Period:="&$B$1&",InputChoice1:=Close,InputChoice2::=Close)", "FG", "", "Close",$B$2,A97, "all","", "","True","T")/100,"") -> -0.5076542055 | K97: 0.86 | L97: 0 | O97: =IFERROR(RTD("cqg.rtd",,"StudyData", "Correlation("&$B$3&","&O$2&",Period:="&$B$1&",InputChoice1:=Close,InputChoice2::=Close)", "FG", "", "Close",$B$2,A97, "all","", "","True","T")/100,"") -> -0.3739943464 | Q97: 0.86 | R97: 0 | U97: =IFERROR(RTD("cqg.rtd",,"StudyData", "Correlation("&$B$3&","&U$2&",Period:="&$B$1&",InputChoice1:=Close,InputChoice2::=Close)", "FG", "", "Close",$B$2,A97, "all","", "","True","T")/100,"") -> -0.6123385033 | W97: 0.86 | X97: 0 | AA97: =IFERROR(RTD("cqg.rtd",,"StudyData", "Correlation("&$B$3&","&AA$2&",Period:="&$B$1&",InputChoice1:=Close,InputChoice2::=Close)", "FG", "", "Close",$B$2,A97, "all","", "","True","T")/100,"") -> -0.4661722638 | AC97: 0.86 | AD97: 0 | AG97: =IFERROR(RTD("cqg.rtd",,"StudyData", "Correlation("&$B$3&","&AG$2&",Period:="&$B$1&",InputChoice1:=Close,InputChoice2::=Close)", "FG", "", "Close",$B$2,A97, "all","", "","True","T")/100,"") -> -0.303372302 | AI97: 0.86 | AJ97: 0 | AM97: =IFERROR(RTD("cqg.rtd",,"StudyData", "Correlation("&$B$3&","&AM$2&",Period:="&$B$1&",InputChoice1:=Close,InputChoice2::=Close)", "FG", "", "Close",$B$2,A97, "all","", "","True","T")/100,"") -> -0.7378738009 | AO97: 0.86 | AP97: 0 | AS97: =IFERROR(RTD("cqg.rtd",,"StudyData", "Correlation("&$B$3&","&AS$2&",Period:="&$B$1&",InputChoice1:=Close,InputChoice2::=Close)", "FG", "", "Close",$B$2,A97, "all","", "","True","T")/100,"") -> 0.1613395488 | AU97: 0.86 | AV97: 0 | AY97: =IFERROR(RTD("cqg.rtd",,"StudyData", "Correlation("&$B$3&","&AY$2&",Period:="&$B$1&",InputChoice1:=Close,InputChoice2::=Close)", "FG", "", "Close",$B$2,A97, "all","", "","True","T")/100,"") -> 0.06781707252 | BA97: 0.86 | BB97: 0 | BE97: =IFERROR(RTD("cqg.rtd",,"StudyData", "Correlation("&$B$3&","&BE$2&",Period:="&$B$1&",InputChoice1:=Close,InputChoice2::=Close)", "FG", "", "Close",$B$2,A97, "all","", "","True","T")/100,"") -> 0.8817924392 | BG97: 0.86 | BH97: 2
A98: -94 | C98: =IFERROR(RTD("cqg.rtd",,"StudyData", "Correlation("&$B$3&","&C$2&",Period:="&$B$1&",InputChoice1:=Close,InputChoice2:=Close)", "FG", "", "Close",$B$2,A98, "all","", "","True","T")/100,"") -> -0.293769729 | E98: 0.88 | F98: 0 | I98: =IFERROR(RTD("cqg.rtd",,"StudyData", "Correlation("&$B$3&","&I$2&",Period:="&$B$1&",InputChoice1:=Close,InputChoice2::=Close)", "FG", "", "Close",$B$2,A98, "all","", "","True","T")/100,"") -> -0.3434966288 | K98: 0.88 | L98: 0 | O98: =IFERROR(RTD("cqg.rtd",,"StudyData", "Correlation("&$B$3&","&O$2&",Period:="&$B$1&",InputChoice1:=Close,InputChoice2::=Close)", "FG", "", "Close",$B$2,A98, "all","", "","True","T")/100,"") -> -0.3213914732 | Q98: 0.88 | R98: 0 | U98: =IFERROR(RTD("cqg.rtd",,"StudyData", "Correlation("&$B$3&","&U$2&",Period:="&$B$1&",InputChoice1:=Close,InputChoice2::=Close)", "FG", "", "Close",$B$2,A98, "all","", "","True","T")/100,"") -> -0.4959049117 | W98: 0.88 | X98: 0 | AA98: =IFERROR(RTD("cqg.rtd",,"StudyData", "Correlation("&$B$3&","&AA$2&",Period:="&$B$1&",InputChoice1:=Close,InputChoice2::=Close)", "FG", "", "Close",$B$2,A98, "all","", "","True","T")/100,"") -> -0.4205641004 | AC98: 0.88 | AD98: 0 | AG98: =IFERROR(RTD("cqg.rtd",,"StudyData", "Correlation("&$B$3&","&AG$2&",Period:="&$B$1&",InputChoice1:=Close,InputChoice2::=Close)", "FG", "", "Close",$B$2,A98, "all","", "","True","T")/100,"") -> -0.3061795595 | AI98: 0.88 | AJ98: 0 | AM98: =IFERROR(RTD("cqg.rtd",,"StudyData", "Correlation("&$B$3&","&AM$2&",Period:="&$B$1&",InputChoice1:=Close,InputChoice2::=Close)", "FG", "", "Close",$B$2,A98, "all","", "","True","T")/100,"") -> -0.7065626326 | AO98: 0.88 | AP98: 0 | AS98: =IFERROR(RTD("cqg.rtd",,"StudyData", "Correlation("&$B$3&","&AS$2&",Period:="&$B$1&",InputChoice1:=Close,InputChoice2::=Close)", "FG", "", "Close",$B$2,A98, "all","", "","True","T")/100,"") -> 0.06838896636 | AU98: 0.88 | AV98: 0 | AY98: =IFERROR(RTD("cqg.rtd",,"StudyData", "Correlation("&$B$3&","&AY$2&",Period:="&$B$1&",InputChoice1:=Close,InputChoice2::=Close)", "FG", "", "Close",$B$2,A98, "all","", "","True","T")/100,"") -> 0.1692535018 | BA98: 0.88 | BB98: 1 | BE98: =IFERROR(RTD("cqg.rtd",,"StudyData", "Correlation("&$B$3&","&BE$2&",Period:="&$B$1&",InputChoice1:=Close,InputChoice2::=Close)", "FG", "", "Close",$B$2,A98, "all","", "","True","T")/100,"") -> 0.8215019986 | BG98: 0.88 | BH98: 0
A99: -95 | C99: =IFERROR(RTD("cqg.rtd",,"StudyData", "Correlation("&$B$3&","&C$2&",Period:="&$B$1&",InputChoice1:=Close,InputChoice2:=Close)", "FG", "", "Close",$B$2,A99, "all","", "","True","T")/100,"") -> 0.1217387466 | E99: 0.9 | F99: 0 | I99: =IFERROR(RTD("cqg.rtd",,"StudyData", "Correlation("&$B$3&","&I$2&",Period:="&$B$1&",InputChoice1:=Close,InputChoice2::=Close)", "FG", "", "Close",$B$2,A99, "all","", "","True","T")/100,"") -> 0.06276738539 | K99: 0.9 | L99: 0 | O99: =IFERROR(RTD("cqg.rtd",,"StudyData", "Correlation("&$B$3&","&O$2&",Period:="&$B$1&",InputChoice1:=Close,InputChoice2::=Close)", "FG", "", "Close",$B$2,A99, "all","", "","True","T")/100,"") -> -0.1987869599 | Q99: 0.9 | R99: 0 | U99: =IFERROR(RTD("cqg.rtd",,"StudyData", "Correlation("&$B$3&","&U$2&",Period:="&$B$1&",InputChoice1:=Close,InputChoice2::=Close)", "FG", "", "Close",$B$2,A99, "all","", "","True","T")/100,"") -> -0.3516983338 | W99: 0.9 | X99: 0 | AA99: =IFERROR(RTD("cqg.rtd",,"StudyData", "Correlation("&$B$3&","&AA$2&",Period:="&$B$1&",InputChoice1:=Close,InputChoice2::=Close)", "FG", "", "Close",$B$2,A99, "all","", "","True","T")/100,"") -> -0.4126603186 | AC99: 0.9 | AD99: 0 | AG99: =IFERROR(RTD("cqg.rtd",,"StudyData", "Correlation("&$B$3&","&AG$2&",Period:="&$B$1&",InputChoice1:=Close,InputChoice2::=Close)", "FG", "", "Close",$B$2,A99, "all","", "","True","T")/100,"") -> -0.332711862 | AI99: 0.9 | AJ99: 0 | AM99: =IFERROR(RTD("cqg.rtd",,"StudyData", "Correlation("&$B$3&","&AM$2&",Period:="&$B$1&",InputChoice1:=Close,InputChoice2::=Close)", "FG", "", "Close",$B$2,A99, "all","", "","True","T")/100,"") -> -0.6337932151 | AO99: 0.9 | AP99: 0 | AS99: =IFERROR(RTD("cqg.rtd",,"StudyData", "Correlation("&$B$3&","&AS$2&",Period:="&$B$1&",InputChoice1:=Close,InputChoice2::=Close)", "FG", "", "Close",$B$2,A99, "all","", "","True","T")/100,"") -> -0.1051485309 | AU99: 0.9 | AV99: 0 | AY99: =IFERROR(RTD("cqg.rtd",,"StudyData", "Correlation("&$B$3&","&AY$2&",Period:="&$B$1&",InputChoice1:=Close,InputChoice2::=Close)", "FG", "", "Close",$B$2,A99, "all","", "","True","T")/100,"") -> 0.1885642192 | BA99: 0.9 | BB99: 2 | BE99: =IFERROR(RTD("cqg.rtd",,"StudyData", "Correlation("&$B$3&","&BE$2&",Period:="&$B$1&",InputChoice1:=Close,InputChoice2::=Close)", "FG", "", "Close",$B$2,A99, "all","", "","True","T")/100,"") -> 0.5864726592 | BG99: 0.9 | BH99: 1
